Workbook

Sheet Final Delta
A1: From Json | M1: From Labview
A2: ='Pre Delta'!A1 -> Frequecy | B2: ='Pre Delta'!B1 -> DTUL L | C2: ='Pre Delta'!C1 -> DTUL R | D2: ='Pre Delta'!D1 -> Mic1 | E2: ='Pre Delta'!E1 -> Mic2 | F2: ='Pre Delta'!F1 -> Mic3 | G2: ='Pre Delta'!G1 -> Mic4 | H2: ='Pre Delta'!H1 -> Self Mic1 | I2: ='Pre Delta'!I1 -> Self Mic2 | J2: ='Pre Delta'!J1 -> Self Mic3 | K2: ='Pre Delta'!K1 -> Self Mic4 | M2: ='From Labview'!AG1 -> Frequency | N2: ='From Labview'!D1 -> FR - Smoothed DUTL Left(Post - Pre) | O2: ='From Labview'!H1 -> FR - Smoothed DUTL Right(Post - Pre) | P2: ='From Labview'!L1 -> FR - Smoothed DUTL Mic1(Post - Pre) | Q2: ='From Labview'!P1 -> FR - Smoothed DUTL Mic2(Post - Pre) | R2: ='From Labview'!S1 -> FR - Smoothed DUTL Mic3(Post-Delta) | S2: ='From Labview'!X1 -> FR - Smoothed DUTL Mic4(Post - Pre) | T2: ='From Labview'!AB1 -> FR - Smoothed Self DUTL Mic1(Post - Pre) | U2: ='From Labview'!AF1 -> FR - Smoothed Self DUTL Mic2(Post - Pre) | V2: ='From Labview'!AJ1 -> FR - Smoothed Self DUTL Mic3(Post - Pre) | W2: ='From Labview'!AN1 -> FR - Smoothed Self DUTL Mic4(Post - Pre)
A3: ='Pre Delta'!A2 -> 50 | B3: ='Post Delta'!B2-'Pre Delta'!B2 -> -0.1626 | C3: ='Post Delta'!C2-'Pre Delta'!C2 -> 0.0475 | D3: ='Post Delta'!D2-'Pre Delta'!D2 -> 0.1191 | E3: ='Post Delta'!E2-'Pre Delta'!E2 -> 0.1294 | F3: ='Post Delta'!F2-'Pre Delta'!F2 -> 0.1155 | G3: ='Post Delta'!G2-'Pre Delta'!G2 -> 0.1278 | H3: ='Post Delta'!H2-'Pre Delta'!H2 -> 0.2262 | I3: ='Post Delta'!I2-'Pre Delta'!I2 -> 0.2638 | J3: ='Post Delta'!J2-'Pre Delta'!J2 -> 0.2808 | K3: ='Post Delta'!K2-'Pre Delta'!K2 -> 0.2577 | M3: ='From Labview'!AG2 -> 50 | N3: ='From Labview'!D2 -> -0.163 | O3: ='From Labview'!H2 -> 0.047 | P3: ='From Labview'!L2 -> 0.119 | Q3: ='From Labview'!P2 -> 0.129 | R3: ='From Labview'!S2 -> -0.103 | S3: ='From Labview'!X2 -> 0.128 | T3: ='From Labview'!AB2 -> 0.226 | U3: ='From Labview'!AF2 -> 0.264 | V3: ='From Labview'!AJ2 -> 0.281 | W3: ='From Labview'!AN2 -> 0.258
A4: ='Pre Delta'!A3 -> 53 | B4: ='Post Delta'!B3-'Pre Delta'!B3 -> 0.1887 | C4: ='Post Delta'!C3-'Pre Delta'!C3 -> 0.2031 | D4: ='Post Delta'!D3-'Pre Delta'!D3 -> 0.0972 | E4: ='Post Delta'!E3-'Pre Delta'!E3 -> 0.1146 | F4: ='Post Delta'!F3-'Pre Delta'!F3 -> 0.1012 | G4: ='Post Delta'!G3-'Pre Delta'!G3 -> 0.1142 | H4: ='Post Delta'!H3-'Pre Delta'!H3 -> 0.2762 | I4: ='Post Delta'!I3-'Pre Delta'!I3 -> 0.3443 | J4: ='Post Delta'!J3-'Pre Delta'!J3 -> 0.29 | K4: ='Post Delta'!K3-'Pre Delta'!K3 -> 0.3264 | M4: ='From Labview'!AG3 -> 53 | N4: ='From Labview'!D3 -> 0.189 | O4: ='From Labview'!H3 -> 0.203 | P4: ='From Labview'!L3 -> 0.097 | Q4: ='From Labview'!P3 -> 0.115 | R4: ='From Labview'!S3 -> -0.118 | S4: ='From Labview'!X3 -> 0.114 | T4: ='From Labview'!AB3 -> 0.276 | U4: ='From Labview'!AF3 -> 0.344 | V4: ='From Labview'!AJ3 -> 0.29 | W4: ='From Labview'!AN3 -> 0.326
A5: ='Pre Delta'!A4 -> 56 | B5: ='Post Delta'!B4-'Pre Delta'!B4 -> 0.2394 | C5: ='Post Delta'!C4-'Pre Delta'!C4 -> 0.2309 | D5: ='Post Delta'!D4-'Pre Delta'!D4 -> 0.0698 | E5: ='Post Delta'!E4-'Pre Delta'!E4 -> 0.102 | F5: ='Post Delta'!F4-'Pre Delta'!F4 -> 0.0902 | G5: ='Post Delta'!G4-'Pre Delta'!G4 -> 0.1014 | H5: ='Post Delta'!H4-'Pre Delta'!H4 -> 0.3037 | I5: ='Post Delta'!I4-'Pre Delta'!I4 -> 0.3916 | J5: ='Post Delta'!J4-'Pre Delta'!J4 -> 0.3014 | K5: ='Post Delta'!K4-'Pre Delta'!K4 -> 0.3668 | M5: ='From Labview'!AG4 -> 56 | N5: ='From Labview'!D4 -> 0.239 | O5: ='From Labview'!H4 -> 0.231 | P5: ='From Labview'!L4 -> 0.07 | Q5: ='From Labview'!P4 -> 0.102 | R5: ='From Labview'!S4 -> -0.127 | S5: ='From Labview'!X4 -> 0.101 | T5: ='From Labview'!AB4 -> 0.304 | U5: ='From Labview'!AF4 -> 0.392 | V5: ='From Labview'!AJ4 -> 0.301 | W5: ='From Labview'!AN4 -> 0.367
A6: ='Pre Delta'!A5 -> 60 | B6: ='Post Delta'!B5-'Pre Delta'!B5 -> 0.2617 | C6: ='Post Delta'!C5-'Pre Delta'!C5 -> 0.2373 | D6: ='Post Delta'!D5-'Pre Delta'!D5 -> 0.0125 | E6: ='Post Delta'!E5-'Pre Delta'!E5 -> 0.0833 | F6: ='Post Delta'!F5-'Pre Delta'!F5 -> 0.0698 | G6: ='Post Delta'!G5-'Pre Delta'!G5 -> 0.08 | H6: ='Post Delta'!H5-'Pre Delta'!H5 -> 0.3247 | I6: ='Post Delta'!I5-'Pre Delta'!I5 -> 0.4337 | J6: ='Post Delta'!J5-'Pre Delta'!J5 -> 0.3157 | K6: ='Post Delta'!K5-'Pre Delta'!K5 -> 0.4021 | M6: ='From Labview'!AG5 -> 60 | N6: ='From Labview'!D5 -> 0.262 | O6: ='From Labview'!H5 -> 0.237 | P6: ='From Labview'!L5 -> 0.013 | Q6: ='From Labview'!P5 -> 0.083 | R6: ='From Labview'!S5 -> -0.142 | S6: ='From Labview'!X5 -> 0.08 | T6: ='From Labview'!AB5 -> 0.325 | U6: ='From Labview'!AF5 -> 0.434 | V6: ='From Labview'!AJ5 -> 0.316 | W6: ='From Labview'!AN5 -> 0.402
A7: ='Pre Delta'!A6 -> 63 | B7: ='Post Delta'!B6-'Pre Delta'!B6 -> 0.2412 | C7: ='Post Delta'!C6-'Pre Delta'!C6 -> 0.2217 | D7: ='Post Delta'!D6-'Pre Delta'!D6 -> -0.0399 | E7: ='Post Delta'!E6-'Pre Delta'!E6 -> 0.0691 | F7: ='Post Delta'!F6-'Pre Delta'!F6 -> 0.0527 | G7: ='Post Delta'!G6-'Pre Delta'!G6 -> 0.0624 | H7: ='Post Delta'!H6-'Pre Delta'!H6 -> 0.2753 | I7: ='Post Delta'!I6-'Pre Delta'!I6 -> 0.4053 | J7: ='Post Delta'!J6-'Pre Delta'!J6 -> 0.2672 | K7: ='Post Delta'!K6-'Pre Delta'!K6 -> 0.3662 | M7: ='From Labview'!AG6 -> 63 | N7: ='From Labview'!D6 -> 0.241 | O7: ='From Labview'!H6 -> 0.222 | P7: ='From Labview'!L6 -> -0.04 | Q7: ='From Labview'!P6 -> 0.069 | R7: ='From Labview'!S6 -> -0.148 | S7: ='From Labview'!X6 -> 0.062 | T7: ='From Labview'!AB6 -> 0.275 | U7: ='From Labview'!AF6 -> 0.405 | V7: ='From Labview'!AJ6 -> 0.267 | W7: ='From Labview'!AN6 -> 0.366
A8: ='Pre Delta'!A7 -> 67 | B8: ='Post Delta'!B7-'Pre Delta'!B7 -> 0.2057 | C8: ='Post Delta'!C7-'Pre Delta'!C7 -> 0.197 | D8: ='Post Delta'!D7-'Pre Delta'!D7 -> -0.0636 | E8: ='Post Delta'!E7-'Pre Delta'!E7 -> 0.0659 | F8: ='Post Delta'!F7-'Pre Delta'!F7 -> 0.0456 | G8: ='Post Delta'!G7-'Pre Delta'!G7 -> 0.0559 | H8: ='Post Delta'!H7-'Pre Delta'!H7 -> 0.1684 | I8: ='Post Delta'!I7-'Pre Delta'!I7 -> 0.2892 | J8: ='Post Delta'!J7-'Pre Delta'!J7 -> 0.1661 | K8: ='Post Delta'!K7-'Pre Delta'!K7 -> 0.2541 | M8: ='From Labview'!AG7 -> 67 | N8: ='From Labview'!D7 -> 0.206 | O8: ='From Labview'!H7 -> 0.197 | P8: ='From Labview'!L7 -> -0.064 | Q8: ='From Labview'!P7 -> 0.066 | R8: ='From Labview'!S7 -> -0.141 | S8: ='From Labview'!X7 -> 0.056 | T8: ='From Labview'!AB7 -> 0.168 | U8: ='From Labview'!AF7 -> 0.289 | V8: ='From Labview'!AJ7 -> 0.166 | W8: ='From Labview'!AN7 -> 0.254
A9: ='Pre Delta'!A8 -> 71 | B9: ='Post Delta'!B8-'Pre Delta'!B8 -> 0.1665 | C9: ='Post Delta'!C8-'Pre Delta'!C8 -> 0.1666 | D9: ='Post Delta'!D8-'Pre Delta'!D8 -> -0.0452 | E9: ='Post Delta'!E8-'Pre Delta'!E8 -> 0.059 | F9: ='Post Delta'!F8-'Pre Delta'!F8 -> 0.0393 | G9: ='Post Delta'!G8-'Pre Delta'!G8 -> 0.0489 | H9: ='Post Delta'!H8-'Pre Delta'!H8 -> 0.0753 | I9: ='Post Delta'!I8-'Pre Delta'!I8 -> 0.1673 | J9: ='Post Delta'!J8-'Pre Delta'!J8 -> 0.0789 | K9: ='Post Delta'!K8-'Pre Delta'!K8 -> 0.1398 | M9: ='From Labview'!AG8 -> 71 | N9: ='From Labview'!D8 -> 0.166 | O9: ='From Labview'!H8 -> 0.167 | P9: ='From Labview'!L8 -> -0.045 | Q9: ='From Labview'!P8 -> 0.059 | R9: ='From Labview'!S8 -> -0.134 | S9: ='From Labview'!X8 -> 0.049 | T9: ='From Labview'!AB8 -> 0.075 | U9: ='From Labview'!AF8 -> 0.167 | V9: ='From Labview'!AJ8 -> 0.079 | W9: ='From Labview'!AN8 -> 0.14
A10: ='Pre Delta'!A9 -> 75 | B10: ='Post Delta'!B9-'Pre Delta'!B9 -> 0.1257 | C10: ='Post Delta'!C9-'Pre Delta'!C9 -> 0.1442 | D10: ='Post Delta'!D9-'Pre Delta'!D9 -> -0.0245 | E10: ='Post Delta'!E9-'Pre Delta'!E9 -> 0.0399 | F10: ='Post Delta'!F9-'Pre Delta'!F9 -> 0.0242 | G10: ='Post Delta'!G9-'Pre Delta'!G9 -> 0.0304 | H10: ='Post Delta'!H9-'Pre Delta'!H9 -> 0.0227 | I10: ='Post Delta'!I9-'Pre Delta'!I9 -> 0.0865 | J10: ='Post Delta'!J9-'Pre Delta'!J9 -> 0.0288 | K10: ='Post Delta'!K9-'Pre Delta'!K9 -> 0.0646 | M10: ='From Labview'!AG9 -> 75 | N10: ='From Labview'!D9 -> 0.126 | O10: ='From Labview'!H9 -> 0.144 | P10: ='From Labview'!L9 -> -0.024 | Q10: ='From Labview'!P9 -> 0.04 | R10: ='From Labview'!S9 -> -0.143 | S10: ='From Labview'!X9 -> 0.03 | T10: ='From Labview'!AB9 -> 0.023 | U10: ='From Labview'!AF9 -> 0.086 | V10: ='From Labview'!AJ9 -> 0.029 | W10: ='From Labview'!AN9 -> 0.065
A11: ='Pre Delta'!A10 -> 80 | B11: ='Post Delta'!B10-'Pre Delta'!B10 -> 0.1048 | C11: ='Post Delta'!C10-'Pre Delta'!C10 -> 0.1257 | D11: ='Post Delta'!D10-'Pre Delta'!D10 -> -0.0214 | E11: ='Post Delta'!E10-'Pre Delta'!E10 -> 0.0186 | F11: ='Post Delta'!F10-'Pre Delta'!F10 -> 0.0076 | G11: ='Post Delta'!G10-'Pre Delta'!G10 -> 0.012 | H11: ='Post Delta'!H10-'Pre Delta'!H10 -> 9.999999999e-05 | I11: ='Post Delta'!I10-'Pre Delta'!I10 -> 0.0401 | J11: ='Post Delta'!J10-'Pre Delta'!J10 -> 0.0052 | K11: ='Post Delta'!K10-'Pre Delta'!K10 -> 0.0231 | M11: ='From Labview'!AG10 -> 80 | N11: ='From Labview'!D10 -> 0.105 | O11: ='From Labview'!H10 -> 0.126 | P11: ='From Labview'!L10 -> -0.021 | Q11: ='From Labview'!P10 -> 0.019 | R11: ='From Labview'!S10 -> -0.166 | S11: ='From Labview'!X10 -> 0.012 | T11: ='From Labview'!AB10 -> 0 | U11: ='From Labview'!AF10 -> 0.04 | V11: ='From Labview'!AJ10 -> 0.005 | W11: ='From Labview'!AN10 -> 0.023
A12: ='Pre Delta'!A11 -> 85 | B12: ='Post Delta'!B11-'Pre Delta'!B11 -> 0.0919 | C12: ='Post Delta'!C11-'Pre Delta'!C11 -> 0.1003 | D12: ='Post Delta'!D11-'Pre Delta'!D11 -> -0.0119 | E12: ='Post Delta'!E11-'Pre Delta'!E11 -> 0.0083 | F12: ='Post Delta'!F11-'Pre Delta'!F11 -> -0.0004 | G12: ='Post Delta'!G11-'Pre Delta'!G11 -> 0.0022 | H12: ='Post Delta'!H11-'Pre Delta'!H11 -> -0.0141 | I12: ='Post Delta'!I11-'Pre Delta'!I11 -> 0.0133 | J12: ='Post Delta'!J11-'Pre Delta'!J11 -> -0.0131 | K12: ='Post Delta'!K11-'Pre Delta'!K11 -> -0.0059 | M12: ='From Labview'!AG11 -> 85 | N12: ='From Labview'!D11 -> 0.092 | O12: ='From Labview'!H11 -> 0.1 | P12: ='From Labview'!L11 -> -0.012 | Q12: ='From Labview'!P11 -> 0.008 | R12: ='From Labview'!S11 -> -0.178 | S12: ='From Labview'!X11 -> 0.002 | T12: ='From Labview'!AB11 -> -0.014 | U12: ='From Labview'!AF11 -> 0.013 | V12: ='From Labview'!AJ11 -> -0.013 | W12: ='From Labview'!AN11 -> -0.006
A13: ='Pre Delta'!A12 -> 90 | B13: ='Post Delta'!B12-'Pre Delta'!B12 -> 0.0655 | C13: ='Post Delta'!C12-'Pre Delta'!C12 -> 0.058 | D13: ='Post Delta'!D12-'Pre Delta'!D12 -> -0.0034 | E13: ='Post Delta'!E12-'Pre Delta'!E12 -> 0.0176 | F13: ='Post Delta'!F12-'Pre Delta'!F12 -> 0.01 | G13: ='Post Delta'!G12-'Pre Delta'!G12 -> 0.0128 | H13: ='Post Delta'!H12-'Pre Delta'!H12 -> -0.0256 | I13: ='Post Delta'!I12-'Pre Delta'!I12 -> -0.0112 | J13: ='Post Delta'!J12-'Pre Delta'!J12 -> -0.0316 | K13: ='Post Delta'!K12-'Pre Delta'!K12 -> -0.0361 | M13: ='From Labview'!AG12 -> 90 | N13: ='From Labview'!D12 -> 0.065 | O13: ='From Labview'!H12 -> 0.058 | P13: ='From Labview'!L12 -> -0.003 | Q13: ='From Labview'!P12 -> 0.018 | R13: ='From Labview'!S12 -> -0.163 | S13: ='From Labview'!X12 -> 0.013 | T13: ='From Labview'!AB12 -> -0.026 | U13: ='From Labview'!AF12 -> -0.011 | V13: ='From Labview'!AJ12 -> -0.032 | W13: ='From Labview'!AN12 -> -0.036
A14: ='Pre Delta'!A13 -> 95 | B14: ='Post Delta'!B13-'Pre Delta'!B13 -> 0.0452 | C14: ='Post Delta'!C13-'Pre Delta'!C13 -> 0.0232 | D14: ='Post Delta'!D13-'Pre Delta'!D13 -> 0.0156 | E14: ='Post Delta'!E13-'Pre Delta'!E13 -> 0.0447 | F14: ='Post Delta'!F13-'Pre Delta'!F13 -> 0.0375 | G14: ='Post Delta'!G13-'Pre Delta'!G13 -> 0.0429 | H14: ='Post Delta'!H13-'Pre Delta'!H13 -> -0.0227 | I14: ='Post Delta'!I13-'Pre Delta'!I13 -> -0.0133 | J14: ='Post Delta'!J13-'Pre Delta'!J13 -> -0.0353 | K14: ='Post Delta'!K13-'Pre Delta'!K13 -> -0.0473 | M14: ='From Labview'!AG13 -> 95 | N14: ='From Labview'!D13 -> 0.045 | O14: ='From Labview'!H13 -> 0.023 | P14: ='From Labview'!L13 -> 0.016 | Q14: ='From Labview'!P13 -> 0.045 | R14: ='From Labview'!S13 -> -0.141 | S14: ='From Labview'!X13 -> 0.043 | T14: ='From Labview'!AB13 -> -0.023 | U14: ='From Labview'!AF13 -> -0.013 | V14: ='From Labview'!AJ13 -> -0.035 | W14: ='From Labview'!AN13 -> -0.047
A15: ='Pre Delta'!A14 -> 100 | B15: ='Post Delta'!B14-'Pre Delta'!B14 -> 0.0391 | C15: ='Post Delta'!C14-'Pre Delta'!C14 -> 0.0179 | D15: ='Post Delta'!D14-'Pre Delta'!D14 -> 0.0641 | E15: ='Post Delta'!E14-'Pre Delta'!E14 -> 0.0903 | F15: ='Post Delta'!F14-'Pre Delta'!F14 -> 0.0793 | G15: ='Post Delta'!G14-'Pre Delta'!G14 -> 0.0917 | H15: ='Post Delta'!H14-'Pre Delta'!H14 -> 0.0231 | I15: ='Post Delta'!I14-'Pre Delta'!I14 -> 0.0483 | J15: ='Post Delta'!J14-'Pre Delta'!J14 -> 0.0069 | K15: ='Post Delta'!K14-'Pre Delta'!K14 -> 0.0029 | M15: ='From Labview'!AG14 -> 100 | N15: ='From Labview'!D14 -> 0.039 | O15: ='From Labview'!H14 -> 0.018 | P15: ='From Labview'!L14 -> 0.064 | Q15: ='From Labview'!P14 -> 0.09 | R15: ='From Labview'!S14 -> -0.119 | S15: ='From Labview'!X14 -> 0.092 | T15: ='From Labview'!AB14 -> 0.023 | U15: ='From Labview'!AF14 -> 0.048 | V15: ='From Labview'!AJ14 -> 0.007 | W15: ='From Labview'!AN14 -> 0.003
A16: ='Pre Delta'!A15 -> 106 | B16: ='Post Delta'!B15-'Pre Delta'!B15 -> 0.0318 | C16: ='Post Delta'!C15-'Pre Delta'!C15 -> 0.0422 | D16: ='Post Delta'!D15-'Pre Delta'!D15 -> 0.1072 | E16: ='Post Delta'!E15-'Pre Delta'!E15 -> 0.1212 | F16: ='Post Delta'!F15-'Pre Delta'!F15 -> 0.1014 | G16: ='Post Delta'!G15-'Pre Delta'!G15 -> 0.1198 | H16: ='Post Delta'!H15-'Pre Delta'!H15 -> 0.0969 | I16: ='Post Delta'!I15-'Pre Delta'!I15 -> 0.173 | J16: ='Post Delta'!J15-'Pre Delta'!J15 -> 0.0786 | K16: ='Post Delta'!K15-'Pre Delta'!K15 -> 0.1197 | M16: ='From Labview'!AG15 -> 106 | N16: ='From Labview'!D15 -> 0.032 | O16: ='From Labview'!H15 -> 0.042 | P16: ='From Labview'!L15 -> 0.107 | Q16: ='From Labview'!P15 -> 0.121 | R16: ='From Labview'!S15 -> -0.11 | S16: ='From Labview'!X15 -> 0.12 | T16: ='From Labview'!AB15 -> 0.097 | U16: ='From Labview'!AF15 -> 0.173 | V16: ='From Labview'!AJ15 -> 0.079 | W16: ='From Labview'!AN15 -> 0.12
A17: ='Pre Delta'!A16 -> 112 | B17: ='Post Delta'!B16-'Pre Delta'!B16 -> 0.0339 | C17: ='Post Delta'!C16-'Pre Delta'!C16 -> 0.0945 | D17: ='Post Delta'!D16-'Pre Delta'!D16 -> 0.0858 | E17: ='Post Delta'!E16-'Pre Delta'!E16 -> 0.0896 | F17: ='Post Delta'!F16-'Pre Delta'!F16 -> 0.064 | G17: ='Post Delta'!G16-'Pre Delta'!G16 -> 0.084 | H17: ='Post Delta'!H16-'Pre Delta'!H16 -> 0.1359 | I17: ='Post Delta'!I16-'Pre Delta'!I16 -> 0.2671 | J17: ='Post Delta'!J16-'Pre Delta'!J16 -> 0.122 | K17: ='Post Delta'!K16-'Pre Delta'!K16 -> 0.2108 | M17: ='From Labview'!AG16 -> 112 | N17: ='From Labview'!D16 -> 0.034 | O17: ='From Labview'!H16 -> 0.095 | P17: ='From Labview'!L16 -> 0.086 | Q17: ='From Labview'!P16 -> 0.09 | R17: ='From Labview'!S16 -> -0.128 | S17: ='From Labview'!X16 -> 0.084 | T17: ='From Labview'!AB16 -> 0.136 | U17: ='From Labview'!AF16 -> 0.267 | V17: ='From Labview'!AJ16 -> 0.122 | W17: ='From Labview'!AN16 -> 0.211
A18: ='Pre Delta'!A17 -> 118 | B18: ='Post Delta'!B17-'Pre Delta'!B17 -> 0.0519 | C18: ='Post Delta'!C17-'Pre Delta'!C17 -> 0.1537 | D18: ='Post Delta'!D17-'Pre Delta'!D17 -> 0.0145 | E18: ='Post Delta'!E17-'Pre Delta'!E17 -> 0.005 | F18: ='Post Delta'!F17-'Pre Delta'!F17 -> -0.0121 | G18: ='Post Delta'!G17-'Pre Delta'!G17 -> 0.0038 | H18: ='Post Delta'!H17-'Pre Delta'!H17 -> 0.1309 | I18: ='Post Delta'!I17-'Pre Delta'!I17 -> 0.2715 | J18: ='Post Delta'!J17-'Pre Delta'!J17 -> 0.1204 | K18: ='Post Delta'!K17-'Pre Delta'!K17 -> 0.2204 | M18: ='From Labview'!AG17 -> 118 | N18: ='From Labview'!D17 -> 0.052 | O18: ='From Labview'!H17 -> 0.154 | P18: ='From Labview'!L17 -> 0.014 | Q18: ='From Labview'!P17 -> 0.005 | R18: ='From Labview'!S17 -> -0.161 | S18: ='From Labview'!X17 -> 0.004 | T18: ='From Labview'!AB17 -> 0.131 | U18: ='From Labview'!AF17 -> 0.271 | V18: ='From Labview'!AJ17 -> 0.12 | W18: ='From Labview'!AN17 -> 0.22
A19: ='Pre Delta'!A18 -> 125 | B19: ='Post Delta'!B18-'Pre Delta'!B18 -> 0.093 | C19: ='Post Delta'!C18-'Pre Delta'!C18 -> 0.1833 | D19: ='Post Delta'!D18-'Pre Delta'!D18 -> -0.0449 | E19: ='Post Delta'!E18-'Pre Delta'!E18 -> -0.0552 | F19: ='Post Delta'!F18-'Pre Delta'!F18 -> -0.0486 | G19: ='Post Delta'!G18-'Pre Delta'!G18 -> -0.0444 | H19: ='Post Delta'!H18-'Pre Delta'!H18 -> 0.1237 | I19: ='Post Delta'!I18-'Pre Delta'!I18 -> 0.2666 | J19: ='Post Delta'!J18-'Pre Delta'!J18 -> 0.1114 | K19: ='Post Delta'!K18-'Pre Delta'!K18 -> 0.2145 | M19: ='From Labview'!AG18 -> 125 | N19: ='From Labview'!D18 -> 0.093 | O19: ='From Labview'!H18 -> 0.183 | P19: ='From Labview'!L18 -> -0.045 | Q19: ='From Labview'!P18 -> -0.055 | R19: ='From Labview'!S18 -> -0.17 | S19: ='From Labview'!X18 -> -0.044 | T19: ='From Labview'!AB18 -> 0.124 | U19: ='From Labview'!AF18 -> 0.267 | V19: ='From Labview'!AJ18 -> 0.111 | W19: ='From Labview'!AN18 -> 0.215
A20: ='Pre Delta'!A19 -> 132 | B20: ='Post Delta'!B19-'Pre Delta'!B19 -> 0.1839 | C20: ='Post Delta'!C19-'Pre Delta'!C19 -> 0.2043 | D20: ='Post Delta'!D19-'Pre Delta'!D19 -> -0.0271 | E20: ='Post Delta'!E19-'Pre Delta'!E19 -> -0.023 | F20: ='Post Delta'!F19-'Pre Delta'!F19 -> -0.0027 | G20: ='Post Delta'!G19-'Pre Delta'!G19 -> -0.0042 | H20: ='Post Delta'!H19-'Pre Delta'!H19 -> 0.1315 | I20: ='Post Delta'!I19-'Pre Delta'!I19 -> 0.2971 | J20: ='Post Delta'!J19-'Pre Delta'!J19 -> 0.113 | K20: ='Post Delta'!K19-'Pre Delta'!K19 -> 0.2374 | M20: ='From Labview'!AG19 -> 132 | N20: ='From Labview'!D19 -> 0.184 | O20: ='From Labview'!H19 -> 0.204 | P20: ='From Labview'!L19 -> -0.027 | Q20: ='From Labview'!P19 -> -0.023 | R20: ='From Labview'!S19 -> -0.138 | S20: ='From Labview'!X19 -> -0.004 | T20: ='From Labview'!AB19 -> 0.131 | U20: ='From Labview'!AF19 -> 0.297 | V20: ='From Labview'!AJ19 -> 0.113 | W20: ='From Labview'!AN19 -> 0.237
A21: ='Pre Delta'!A20 -> 140 | B21: ='Post Delta'!B20-'Pre Delta'!B20 -> 0.3 | C21: ='Post Delta'!C20-'Pre Delta'!C20 -> 0.2576 | D21: ='Post Delta'!D20-'Pre Delta'!D20 -> 0.0464 | E21: ='Post Delta'!E20-'Pre Delta'!E20 -> 0.0657 | F21: ='Post Delta'!F20-'Pre Delta'!F20 -> 0.0723 | G21: ='Post Delta'!G20-'Pre Delta'!G20 -> 0.0746 | H21: ='Post Delta'!H20-'Pre Delta'!H20 -> 0.1439 | I21: ='Post Delta'!I20-'Pre Delta'!I20 -> 0.3041 | J21: ='Post Delta'!J20-'Pre Delta'!J20 -> 0.1428 | K21: ='Post Delta'!K20-'Pre Delta'!K20 -> 0.267 | M21: ='From Labview'!AG20 -> 140 | N21: ='From Labview'!D20 -> 0.3 | O21: ='From Labview'!H20 -> 0.258 | P21: ='From Labview'!L20 -> 0.046 | Q21: ='From Labview'!P20 -> 0.066 | R21: ='From Labview'!S20 -> -0.104 | S21: ='From Labview'!X20 -> 0.075 | T21: ='From Labview'!AB20 -> 0.144 | U21: ='From Labview'!AF20 -> 0.304 | V21: ='From Labview'!AJ20 -> 0.143 | W21: ='From Labview'!AN20 -> 0.267
A22: ='Pre Delta'!A21 -> 150 | B22: ='Post Delta'!B21-'Pre Delta'!B21 -> 0.3553 | C22: ='Post Delta'!C21-'Pre Delta'!C21 -> 0.3078 | D22: ='Post Delta'!D21-'Pre Delta'!D21 -> 0.0879 | E22: ='Post Delta'!E21-'Pre Delta'!E21 -> 0.1092 | F22: ='Post Delta'!F21-'Pre Delta'!F21 -> 0.0983 | G22: ='Post Delta'!G21-'Pre Delta'!G21 -> 0.1055 | H22: ='Post Delta'!H21-'Pre Delta'!H21 -> 0.1626 | I22: ='Post Delta'!I21-'Pre Delta'!I21 -> 0.231 | J22: ='Post Delta'!J21-'Pre Delta'!J21 -> 0.2337 | K22: ='Post Delta'!K21-'Pre Delta'!K21 -> 0.296 | M22: ='From Labview'!AG21 -> 150 | N22: ='From Labview'!D21 -> 0.355 | O22: ='From Labview'!H21 -> 0.308 | P22: ='From Labview'!L21 -> 0.088 | Q22: ='From Labview'!P21 -> 0.109 | R22: ='From Labview'!S21 -> -0.107 | S22: ='From Labview'!X21 -> 0.106 | T22: ='From Labview'!AB21 -> 0.163 | U22: ='From Labview'!AF21 -> 0.231 | V22: ='From Labview'!AJ21 -> 0.234 | W22: ='From Labview'!AN21 -> 0.296
A23: ='Pre Delta'!A22 -> 160 | B23: ='Post Delta'!B22-'Pre Delta'!B22 -> 0.253 | C23: ='Post Delta'!C22-'Pre Delta'!C22 -> 0.3 | D23: ='Post Delta'!D22-'Pre Delta'!D22 -> 0.0678 | E23: ='Post Delta'!E22-'Pre Delta'!E22 -> 0.0861 | F23: ='Post Delta'!F22-'Pre Delta'!F22 -> 0.0709 | G23: ='Post Delta'!G22-'Pre Delta'!G22 -> 0.0794 | H23: ='Post Delta'!H22-'Pre Delta'!H22 -> 0.1846 | I23: ='Post Delta'!I22-'Pre Delta'!I22 -> 0.118 | J23: ='Post Delta'!J22-'Pre Delta'!J22 -> 0.3551 | K23: ='Post Delta'!K22-'Pre Delta'!K22 -> 0.3284 | M23: ='From Labview'!AG22 -> 160 | N23: ='From Labview'!D22 -> 0.253 | O23: ='From Labview'!H22 -> 0.3 | P23: ='From Labview'!L22 -> 0.068 | Q23: ='From Labview'!P22 -> 0.086 | R23: ='From Labview'!S22 -> -0.135 | S23: ='From Labview'!X22 -> 0.079 | T23: ='From Labview'!AB22 -> 0.185 | U23: ='From Labview'!AF22 -> 0.118 | V23: ='From Labview'!AJ22 -> 0.355 | W23: ='From Labview'!AN22 -> 0.328
A24: ='Pre Delta'!A23 -> 170 | B24: ='Post Delta'!B23-'Pre Delta'!B23 -> 0.0799 | C24: ='Post Delta'!C23-'Pre Delta'!C23 -> 0.2527 | D24: ='Post Delta'!D23-'Pre Delta'!D23 -> 0.0332 | E24: ='Post Delta'!E23-'Pre Delta'!E23 -> 0.0546 | F24: ='Post Delta'!F23-'Pre Delta'!F23 -> 0.0449 | G24: ='Post Delta'!G23-'Pre Delta'!G23 -> 0.0515 | H24: ='Post Delta'!H23-'Pre Delta'!H23 -> 0.1983 | I24: ='Post Delta'!I23-'Pre Delta'!I23 -> 0.0441 | J24: ='Post Delta'!J23-'Pre Delta'!J23 -> 0.3986 | K24: ='Post Delta'!K23-'Pre Delta'!K23 -> 0.2994 | M24: ='From Labview'!AG23 -> 170 | N24: ='From Labview'!D23 -> 0.08 | O24: ='From Labview'!H23 -> 0.253 | P24: ='From Labview'!L23 -> 0.033 | Q24: ='From Labview'!P23 -> 0.055 | R24: ='From Labview'!S23 -> -0.152 | S24: ='From Labview'!X23 -> 0.051 | T24: ='From Labview'!AB23 -> 0.198 | U24: ='From Labview'!AF23 -> 0.044 | V24: ='From Labview'!AJ23 -> 0.399 | W24: ='From Labview'!AN23 -> 0.299
A25: ='Pre Delta'!A24 -> 180 | B25: ='Post Delta'!B24-'Pre Delta'!B24 -> 0.025 | C25: ='Post Delta'!C24-'Pre Delta'!C24 -> 0.1702 | D25: ='Post Delta'!D24-'Pre Delta'!D24 -> 0.0358 | E25: ='Post Delta'!E24-'Pre Delta'!E24 -> 0.0634 | F25: ='Post Delta'!F24-'Pre Delta'!F24 -> 0.0568 | G25: ='Post Delta'!G24-'Pre Delta'!G24 -> 0.0604 | H25: ='Post Delta'!H24-'Pre Delta'!H24 -> 0.2087 | I25: ='Post Delta'!I24-'Pre Delta'!I24 -> 0.0291 | J25: ='Post Delta'!J24-'Pre Delta'!J24 -> 0.3204 | K25: ='Post Delta'!K24-'Pre Delta'!K24 -> 0.1689 | M25: ='From Labview'!AG24 -> 180 | N25: ='From Labview'!D24 -> 0.025 | O25: ='From Labview'!H24 -> 0.17 | P25: ='From Labview'!L24 -> 0.036 | Q25: ='From Labview'!P24 -> 0.063 | R25: ='From Labview'!S24 -> -0.137 | S25: ='From Labview'!X24 -> 0.06 | T25: ='From Labview'!AB24 -> 0.209 | U25: ='From Labview'!AF24 -> 0.029 | V25: ='From Labview'!AJ24 -> 0.32 | W25: ='From Labview'!AN24 -> 0.169
A26: ='Pre Delta'!A25 -> 190 | B26: ='Post Delta'!B25-'Pre Delta'!B25 -> 0.0773 | C26: ='Post Delta'!C25-'Pre Delta'!C25 -> 0.095 | D26: ='Post Delta'!D25-'Pre Delta'!D25 -> 0.0537 | E26: ='Post Delta'!E25-'Pre Delta'!E25 -> 0.0789 | F26: ='Post Delta'!F25-'Pre Delta'!F25 -> 0.0733 | G26: ='Post Delta'!G25-'Pre Delta'!G25 -> 0.0736 | H26: ='Post Delta'!H25-'Pre Delta'!H25 -> 0.2486 | I26: ='Post Delta'!I25-'Pre Delta'!I25 -> 0.071 | J26: ='Post Delta'!J25-'Pre Delta'!J25 -> 0.2387 | K26: ='Post Delta'!K25-'Pre Delta'!K25 -> 0.0473 | M26: ='From Labview'!AG25 -> 190 | N26: ='From Labview'!D25 -> 0.077 | O26: ='From Labview'!H25 -> 0.095 | P26: ='From Labview'!L25 -> 0.054 | Q26: ='From Labview'!P25 -> 0.079 | R26: ='From Labview'!S25 -> -0.119 | S26: ='From Labview'!X25 -> 0.074 | T26: ='From Labview'!AB25 -> 0.249 | U26: ='From Labview'!AF25 -> 0.071 | V26: ='From Labview'!AJ25 -> 0.239 | W26: ='From Labview'!AN25 -> 0.047
A27: ='Pre Delta'!A26 -> 200 | B27: ='Post Delta'!B26-'Pre Delta'!B26 -> 0.1431 | C27: ='Post Delta'!C26-'Pre Delta'!C26 -> 0.1183 | D27: ='Post Delta'!D26-'Pre Delta'!D26 -> 0.0501 | E27: ='Post Delta'!E26-'Pre Delta'!E26 -> 0.0704 | F27: ='Post Delta'!F26-'Pre Delta'!F26 -> 0.0655 | G27: ='Post Delta'!G26-'Pre Delta'!G26 -> 0.0675 | H27: ='Post Delta'!H26-'Pre Delta'!H26 -> 0.3067 | I27: ='Post Delta'!I26-'Pre Delta'!I26 -> 0.128 | J27: ='Post Delta'!J26-'Pre Delta'!J26 -> 0.2275 | K27: ='Post Delta'!K26-'Pre Delta'!K26 -> 0.0156 | M27: ='From Labview'!AG26 -> 200 | N27: ='From Labview'!D26 -> 0.143 | O27: ='From Labview'!H26 -> 0.118 | P27: ='From Labview'!L26 -> 0.05 | Q27: ='From Labview'!P26 -> 0.07 | R27: ='From Labview'!S26 -> -0.126 | S27: ='From Labview'!X26 -> 0.067 | T27: ='From Labview'!AB26 -> 0.307 | U27: ='From Labview'!AF26 -> 0.128 | V27: ='From Labview'!AJ26 -> 0.228 | W27: ='From Labview'!AN26 -> 0.016
A28: ='Pre Delta'!A27 -> 212 | B28: ='Post Delta'!B27-'Pre Delta'!B27 -> 0.2062 | C28: ='Post Delta'!C27-'Pre Delta'!C27 -> 0.201 | D28: ='Post Delta'!D27-'Pre Delta'!D27 -> 0.0398 | E28: ='Post Delta'!E27-'Pre Delta'!E27 -> 0.0643 | F28: ='Post Delta'!F27-'Pre Delta'!F27 -> 0.0485 | G28: ='Post Delta'!G27-'Pre Delta'!G27 -> 0.0657 | H28: ='Post Delta'!H27-'Pre Delta'!H27 -> 0.3459 | I28: ='Post Delta'!I27-'Pre Delta'!I27 -> 0.1543 | J28: ='Post Delta'!J27-'Pre Delta'!J27 -> 0.2616 | K28: ='Post Delta'!K27-'Pre Delta'!K27 -> 0.0389 | M28: ='From Labview'!AG27 -> 212 | N28: ='From Labview'!D27 -> 0.206 | O28: ='From Labview'!H27 -> 0.201 | P28: ='From Labview'!L27 -> 0.04 | Q28: ='From Labview'!P27 -> 0.064 | R28: ='From Labview'!S27 -> -0.143 | S28: ='From Labview'!X27 -> 0.066 | T28: ='From Labview'!AB27 -> 0.346 | U28: ='From Labview'!AF27 -> 0.154 | V28: ='From Labview'!AJ27 -> 0.262 | W28: ='From Labview'!AN27 -> 0.039
A29: ='Pre Delta'!A28 -> 224 | B29: ='Post Delta'!B28-'Pre Delta'!B28 -> 0.2613 | C29: ='Post Delta'!C28-'Pre Delta'!C28 -> 0.2706 | D29: ='Post Delta'!D28-'Pre Delta'!D28 -> 0.046 | E29: ='Post Delta'!E28-'Pre Delta'!E28 -> 0.0769 | F29: ='Post Delta'!F28-'Pre Delta'!F28 -> 0.0542 | G29: ='Post Delta'!G28-'Pre Delta'!G28 -> 0.0782 | H29: ='Post Delta'!H28-'Pre Delta'!H28 -> 0.3672 | I29: ='Post Delta'!I28-'Pre Delta'!I28 -> 0.1807 | J29: ='Post Delta'!J28-'Pre Delta'!J28 -> 0.3114 | K29: ='Post Delta'!K28-'Pre Delta'!K28 -> 0.0996 | M29: ='From Labview'!AG28 -> 224 | N29: ='From Labview'!D28 -> 0.261 | O29: ='From Labview'!H28 -> 0.271 | P29: ='From Labview'!L28 -> 0.046 | Q29: ='From Labview'!P28 -> 0.077 | R29: ='From Labview'!S28 -> -0.137 | S29: ='From Labview'!X28 -> 0.078 | T29: ='From Labview'!AB28 -> 0.367 | U29: ='From Labview'!AF28 -> 0.181 | V29: ='From Labview'!AJ28 -> 0.311 | W29: ='From Labview'!AN28 -> 0.1
A30: ='Pre Delta'!A29 -> 236 | B30: ='Post Delta'!B29-'Pre Delta'!B29 -> 0.3301 | C30: ='Post Delta'!C29-'Pre Delta'!C29 -> 0.3353 | D30: ='Post Delta'!D29-'Pre Delta'!D29 -> 0.0615 | E30: ='Post Delta'!E29-'Pre Delta'!E29 -> 0.0981 | F30: ='Post Delta'!F29-'Pre Delta'!F29 -> 0.0785 | G30: ='Post Delta'!G29-'Pre Delta'!G29 -> 0.0968 | H30: ='Post Delta'!H29-'Pre Delta'!H29 -> 0.4011 | I30: ='Post Delta'!I29-'Pre Delta'!I29 -> 0.2624 | J30: ='Post Delta'!J29-'Pre Delta'!J29 -> 0.3704 | K30: ='Post Delta'!K29-'Pre Delta'!K29 -> 0.2068 | M30: ='From Labview'!AG29 -> 236 | N30: ='From Labview'!D29 -> 0.33 | O30: ='From Labview'!H29 -> 0.335 | P30: ='From Labview'!L29 -> 0.062 | Q30: ='From Labview'!P29 -> 0.098 | R30: ='From Labview'!S29 -> -0.112 | S30: ='From Labview'!X29 -> 0.097 | T30: ='From Labview'!AB29 -> 0.401 | U30: ='From Labview'!AF29 -> 0.262 | V30: ='From Labview'!AJ29 -> 0.37 | W30: ='From Labview'!AN29 -> 0.207
A31: ='Pre Delta'!A30 -> 250 | B31: ='Post Delta'!B30-'Pre Delta'!B30 -> 0.4149 | C31: ='Post Delta'!C30-'Pre Delta'!C30 -> 0.4044 | D31: ='Post Delta'!D30-'Pre Delta'!D30 -> 0.0659 | E31: ='Post Delta'!E30-'Pre Delta'!E30 -> 0.1047 | F31: ='Post Delta'!F30-'Pre Delta'!F30 -> 0.0886 | G31: ='Post Delta'!G30-'Pre Delta'!G30 -> 0.1006 | H31: ='Post Delta'!H30-'Pre Delta'!H30 -> 0.4539 | I31: ='Post Delta'!I30-'Pre Delta'!I30 -> 0.384 | J31: ='Post Delta'!J30-'Pre Delta'!J30 -> 0.429 | K31: ='Post Delta'!K30-'Pre Delta'!K30 -> 0.3323 | M31: ='From Labview'!AG30 -> 250 | N31: ='From Labview'!D30 -> 0.415 | O31: ='From Labview'!H30 -> 0.404 | P31: ='From Labview'!L30 -> 0.066 | Q31: ='From Labview'!P30 -> 0.105 | R31: ='From Labview'!S30 -> -0.101 | S31: ='From Labview'!X30 -> 0.101 | T31: ='From Labview'!AB30 -> 0.454 | U31: ='From Labview'!AF30 -> 0.384 | V31: ='From Labview'!AJ30 -> 0.429 | W31: ='From Labview'!AN30 -> 0.332
A32: ='Pre Delta'!A31 -> 265 | B32: ='Post Delta'!B31-'Pre Delta'!B31 -> 0.4848 | C32: ='Post Delta'!C31-'Pre Delta'!C31 -> 0.4586 | D32: ='Post Delta'!D31-'Pre Delta'!D31 -> 0.0609 | E32: ='Post Delta'!E31-'Pre Delta'!E31 -> 0.0942 | F32: ='Post Delta'!F31-'Pre Delta'!F31 -> 0.0781 | G32: ='Post Delta'!G31-'Pre Delta'!G31 -> 0.0881 | H32: ='Post Delta'!H31-'Pre Delta'!H31 -> 0.5 | I32: ='Post Delta'!I31-'Pre Delta'!I31 -> 0.4853 | J32: ='Post Delta'!J31-'Pre Delta'!J31 -> 0.471 | K32: ='Post Delta'!K31-'Pre Delta'!K31 -> 0.427 | M32: ='From Labview'!AG31 -> 265 | N32: ='From Labview'!D31 -> 0.485 | O32: ='From Labview'!H31 -> 0.459 | P32: ='From Labview'!L31 -> 0.061 | Q32: ='From Labview'!P31 -> 0.094 | R32: ='From Labview'!S31 -> -0.111 | S32: ='From Labview'!X31 -> 0.088 | T32: ='From Labview'!AB31 -> 0.5 | U32: ='From Labview'!AF31 -> 0.485 | V32: ='From Labview'!AJ31 -> 0.471 | W32: ='From Labview'!AN31 -> 0.427
A33: ='Pre Delta'!A32 -> 280 | B33: ='Post Delta'!B32-'Pre Delta'!B32 -> 0.5166 | C33: ='Post Delta'!C32-'Pre Delta'!C32 -> 0.487 | D33: ='Post Delta'!D32-'Pre Delta'!D32 -> 0.0539 | E33: ='Post Delta'!E32-'Pre Delta'!E32 -> 0.0747 | F33: ='Post Delta'!F32-'Pre Delta'!F32 -> 0.0582 | G33: ='Post Delta'!G32-'Pre Delta'!G32 -> 0.0678 | H33: ='Post Delta'!H32-'Pre Delta'!H32 -> 0.5288 | I33: ='Post Delta'!I32-'Pre Delta'!I32 -> 0.5404 | J33: ='Post Delta'!J32-'Pre Delta'!J32 -> 0.4909 | K33: ='Post Delta'!K32-'Pre Delta'!K32 -> 0.4743 | M33: ='From Labview'!AG32 -> 280 | N33: ='From Labview'!D32 -> 0.517 | O33: ='From Labview'!H32 -> 0.487 | P33: ='From Labview'!L32 -> 0.054 | Q33: ='From Labview'!P32 -> 0.075 | R33: ='From Labview'!S32 -> -0.129 | S33: ='From Labview'!X32 -> 0.068 | T33: ='From Labview'!AB32 -> 0.529 | U33: ='From Labview'!AF32 -> 0.54 | V33: ='From Labview'!AJ32 -> 0.491 | W33: ='From Labview'!AN32 -> 0.474
A34: ='Pre Delta'!A33 -> 300 | B34: ='Post Delta'!B33-'Pre Delta'!B33 -> 0.517 | C34: ='Post Delta'!C33-'Pre Delta'!C33 -> 0.5087 | D34: ='Post Delta'!D33-'Pre Delta'!D33 -> 0.048 | E34: ='Post Delta'!E33-'Pre Delta'!E33 -> 0.0596 | F34: ='Post Delta'!F33-'Pre Delta'!F33 -> 0.046 | G34: ='Post Delta'!G33-'Pre Delta'!G33 -> 0.0555 | H34: ='Post Delta'!H33-'Pre Delta'!H33 -> 0.5417 | I34: ='Post Delta'!I33-'Pre Delta'!I33 -> 0.5614 | J34: ='Post Delta'!J33-'Pre Delta'!J33 -> 0.4994 | K34: ='Post Delta'!K33-'Pre Delta'!K33 -> 0.4897 | M34: ='From Labview'!AG33 -> 300 | N34: ='From Labview'!D33 -> 0.517 | O34: ='From Labview'!H33 -> 0.509 | P34: ='From Labview'!L33 -> 0.048 | Q34: ='From Labview'!P33 -> 0.06 | R34: ='From Labview'!S33 -> -0.138 | S34: ='From Labview'!X33 -> 0.056 | T34: ='From Labview'!AB33 -> 0.542 | U34: ='From Labview'!AF33 -> 0.561 | V34: ='From Labview'!AJ33 -> 0.499 | W34: ='From Labview'!AN33 -> 0.49
A35: ='Pre Delta'!A34 -> 315 | B35: ='Post Delta'!B34-'Pre Delta'!B34 -> 0.4929 | C35: ='Post Delta'!C34-'Pre Delta'!C34 -> 0.5123 | D35: ='Post Delta'!D34-'Pre Delta'!D34 -> 0.041 | E35: ='Post Delta'!E34-'Pre Delta'!E34 -> 0.0554 | F35: ='Post Delta'!F34-'Pre Delta'!F34 -> 0.0431 | G35: ='Post Delta'!G34-'Pre Delta'!G34 -> 0.0521 | H35: ='Post Delta'!H34-'Pre Delta'!H34 -> 0.5393 | I35: ='Post Delta'!I34-'Pre Delta'!I34 -> 0.5621 | J35: ='Post Delta'!J34-'Pre Delta'!J34 -> 0.4947 | K35: ='Post Delta'!K34-'Pre Delta'!K34 -> 0.4869 | M35: ='From Labview'!AG34 -> 315 | N35: ='From Labview'!D34 -> 0.493 | O35: ='From Labview'!H34 -> 0.512 | P35: ='From Labview'!L34 -> 0.041 | Q35: ='From Labview'!P34 -> 0.055 | R35: ='From Labview'!S34 -> -0.136 | S35: ='From Labview'!X34 -> 0.052 | T35: ='From Labview'!AB34 -> 0.539 | U35: ='From Labview'!AF34 -> 0.562 | V35: ='From Labview'!AJ34 -> 0.495 | W35: ='From Labview'!AN34 -> 0.487
A36: ='Pre Delta'!A35 -> 335 | B36: ='Post Delta'!B35-'Pre Delta'!B35 -> 0.4494 | C36: ='Post Delta'!C35-'Pre Delta'!C35 -> 0.4724 | D36: ='Post Delta'!D35-'Pre Delta'!D35 -> 0.033 | E36: ='Post Delta'!E35-'Pre Delta'!E35 -> 0.0489 | F36: ='Post Delta'!F35-'Pre Delta'!F35 -> 0.0357 | G36: ='Post Delta'!G35-'Pre Delta'!G35 -> 0.0461 | H36: ='Post Delta'!H35-'Pre Delta'!H35 -> 0.5106 | I36: ='Post Delta'!I35-'Pre Delta'!I35 -> 0.5356 | J36: ='Post Delta'!J35-'Pre Delta'!J35 -> 0.4675 | K36: ='Post Delta'!K35-'Pre Delta'!K35 -> 0.4584 | M36: ='From Labview'!AG35 -> 335 | N36: ='From Labview'!D35 -> 0.449 | O36: ='From Labview'!H35 -> 0.472 | P36: ='From Labview'!L35 -> 0.033 | Q36: ='From Labview'!P35 -> 0.049 | R36: ='From Labview'!S35 -> -0.134 | S36: ='From Labview'!X35 -> 0.046 | T36: ='From Labview'!AB35 -> 0.511 | U36: ='From Labview'!AF35 -> 0.536 | V36: ='From Labview'!AJ35 -> 0.468 | W36: ='From Labview'!AN35 -> 0.458
A37: ='Pre Delta'!A36 -> 355 | B37: ='Post Delta'!B36-'Pre Delta'!B36 -> 0.3964 | C37: ='Post Delta'!C36-'Pre Delta'!C36 -> 0.401 | D37: ='Post Delta'!D36-'Pre Delta'!D36 -> 0.0285 | E37: ='Post Delta'!E36-'Pre Delta'!E36 -> 0.0389 | F37: ='Post Delta'!F36-'Pre Delta'!F36 -> 0.0238 | G37: ='Post Delta'!G36-'Pre Delta'!G36 -> 0.035 | H37: ='Post Delta'!H36-'Pre Delta'!H36 -> 0.4614 | I37: ='Post Delta'!I36-'Pre Delta'!I36 -> 0.4968 | J37: ='Post Delta'!J36-'Pre Delta'!J36 -> 0.4232 | K37: ='Post Delta'!K36-'Pre Delta'!K36 -> 0.4263 | M37: ='From Labview'!AG36 -> 355 | N37: ='From Labview'!D36 -> 0.396 | O37: ='From Labview'!H36 -> 0.401 | P37: ='From Labview'!L36 -> 0.028 | Q37: ='From Labview'!P36 -> 0.039 | R37: ='From Labview'!S36 -> -0.135 | S37: ='From Labview'!X36 -> 0.035 | T37: ='From Labview'!AB36 -> 0.461 | U37: ='From Labview'!AF36 -> 0.497 | V37: ='From Labview'!AJ36 -> 0.423 | W37: ='From Labview'!AN36 -> 0.426
A38: ='Pre Delta'!A37 -> 375 | B38: ='Post Delta'!B37-'Pre Delta'!B37 -> 0.3409 | C38: ='Post Delta'!C37-'Pre Delta'!C37 -> 0.3181 | D38: ='Post Delta'!D37-'Pre Delta'!D37 -> 0.0314 | E38: ='Post Delta'!E37-'Pre Delta'!E37 -> 0.0381 | F38: ='Post Delta'!F37-'Pre Delta'!F37 -> 0.0196 | G38: ='Post Delta'!G37-'Pre Delta'!G37 -> 0.0339 | H38: ='Post Delta'!H37-'Pre Delta'!H37 -> 0.3985 | I38: ='Post Delta'!I37-'Pre Delta'!I37 -> 0.4591 | J38: ='Post Delta'!J37-'Pre Delta'!J37 -> 0.368 | K38: ='Post Delta'!K37-'Pre Delta'!K37 -> 0.4014 | M38: ='From Labview'!AG37 -> 375 | N38: ='From Labview'!D37 -> 0.341 | O38: ='From Labview'!H37 -> 0.318 | P38: ='From Labview'!L37 -> 0.031 | Q38: ='From Labview'!P37 -> 0.038 | R38: ='From Labview'!S37 -> -0.137 | S38: ='From Labview'!X37 -> 0.034 | T38: ='From Labview'!AB37 -> 0.399 | U38: ='From Labview'!AF37 -> 0.459 | V38: ='From Labview'!AJ37 -> 0.368 | W38: ='From Labview'!AN37 -> 0.401
A39: ='Pre Delta'!A38 -> 400 | B39: ='Post Delta'!B38-'Pre Delta'!B38 -> 0.2895 | C39: ='Post Delta'!C38-'Pre Delta'!C38 -> 0.2476 | D39: ='Post Delta'!D38-'Pre Delta'!D38 -> 0.0354 | E39: ='Post Delta'!E38-'Pre Delta'!E38 -> 0.0479 | F39: ='Post Delta'!F38-'Pre Delta'!F38 -> 0.0303 | G39: ='Post Delta'!G38-'Pre Delta'!G38 -> 0.0439 | H39: ='Post Delta'!H38-'Pre Delta'!H38 -> 0.3009 | I39: ='Post Delta'!I38-'Pre Delta'!I38 -> 0.3998 | J39: ='Post Delta'!J38-'Pre Delta'!J38 -> 0.2777 | K39: ='Post Delta'!K38-'Pre Delta'!K38 -> 0.3474 | M39: ='From Labview'!AG38 -> 400 | N39: ='From Labview'!D38 -> 0.29 | O39: ='From Labview'!H38 -> 0.248 | P39: ='From Labview'!L38 -> 0.035 | Q39: ='From Labview'!P38 -> 0.048 | R39: ='From Labview'!S38 -> -0.137 | S39: ='From Labview'!X38 -> 0.044 | T39: ='From Labview'!AB38 -> 0.301 | U39: ='From Labview'!AF38 -> 0.4 | V39: ='From Labview'!AJ38 -> 0.278 | W39: ='From Labview'!AN38 -> 0.347
A40: ='Pre Delta'!A39 -> 425 | B40: ='Post Delta'!B39-'Pre Delta'!B39 -> 0.2395 | C40: ='Post Delta'!C39-'Pre Delta'!C39 -> 0.202 | D40: ='Post Delta'!D39-'Pre Delta'!D39 -> 0.033 | E40: ='Post Delta'!E39-'Pre Delta'!E39 -> 0.0565 | F40: ='Post Delta'!F39-'Pre Delta'!F39 -> 0.041 | G40: ='Post Delta'!G39-'Pre Delta'!G39 -> 0.054 | H40: ='Post Delta'!H39-'Pre Delta'!H39 -> 0.1681 | I40: ='Post Delta'!I39-'Pre Delta'!I39 -> 0.2927 | J40: ='Post Delta'!J39-'Pre Delta'!J39 -> 0.1584 | K40: ='Post Delta'!K39-'Pre Delta'!K39 -> 0.2474 | M40: ='From Labview'!AG39 -> 425 | N40: ='From Labview'!D39 -> 0.239 | O40: ='From Labview'!H39 -> 0.202 | P40: ='From Labview'!L39 -> 0.033 | Q40: ='From Labview'!P39 -> 0.056 | R40: ='From Labview'!S39 -> -0.144 | S40: ='From Labview'!X39 -> 0.054 | T40: ='From Labview'!AB39 -> 0.168 | U40: ='From Labview'!AF39 -> 0.293 | V40: ='From Labview'!AJ39 -> 0.158 | W40: ='From Labview'!AN39 -> 0.247
A41: ='Pre Delta'!A40 -> 450 | B41: ='Post Delta'!B40-'Pre Delta'!B40 -> 0.1915 | C41: ='Post Delta'!C40-'Pre Delta'!C40 -> 0.1645 | D41: ='Post Delta'!D40-'Pre Delta'!D40 -> 0.0182 | E41: ='Post Delta'!E40-'Pre Delta'!E40 -> 0.0476 | F41: ='Post Delta'!F40-'Pre Delta'!F40 -> 0.036 | G41: ='Post Delta'!G40-'Pre Delta'!G40 -> 0.0466 | H41: ='Post Delta'!H40-'Pre Delta'!H40 -> 0.0451 | I41: ='Post Delta'!I40-'Pre Delta'!I40 -> 0.1725 | J41: ='Post Delta'!J40-'Pre Delta'!J40 -> 0.0542 | K41: ='Post Delta'!K40-'Pre Delta'!K40 -> 0.1406 | M41: ='From Labview'!AG40 -> 450 | N41: ='From Labview'!D40 -> 0.192 | O41: ='From Labview'!H40 -> 0.165 | P41: ='From Labview'!L40 -> 0.018 | Q41: ='From Labview'!P40 -> 0.048 | R41: ='From Labview'!S40 -> -0.159 | S41: ='From Labview'!X40 -> 0.047 | T41: ='From Labview'!AB40 -> 0.045 | U41: ='From Labview'!AF40 -> 0.172 | V41: ='From Labview'!AJ40 -> 0.054 | W41: ='From Labview'!AN40 -> 0.141
A42: ='Pre Delta'!A41 -> 475 | B42: ='Post Delta'!B41-'Pre Delta'!B41 -> 0.1649 | C42: ='Post Delta'!C41-'Pre Delta'!C41 -> 0.1579 | D42: ='Post Delta'!D41-'Pre Delta'!D41 -> 0.0032 | E42: ='Post Delta'!E41-'Pre Delta'!E41 -> 0.0286 | F42: ='Post Delta'!F41-'Pre Delta'!F41 -> 0.0326 | G42: ='Post Delta'!G41-'Pre Delta'!G41 -> 0.0391 | H42: ='Post Delta'!H41-'Pre Delta'!H41 -> -0.065 | I42: ='Post Delta'!I41-'Pre Delta'!I41 -> 0.0487 | J42: ='Post Delta'!J41-'Pre Delta'!J41 -> -0.0364 | K42: ='Post Delta'!K41-'Pre Delta'!K41 -> 0.0382 | M42: ='From Labview'!AG41 -> 475 | N42: ='From Labview'!D41 -> 0.165 | O42: ='From Labview'!H41 -> 0.158 | P42: ='From Labview'!L41 -> 0.003 | Q42: ='From Labview'!P41 -> 0.029 | R42: ='From Labview'!S41 -> -0.159 | S42: ='From Labview'!X41 -> 0.039 | T42: ='From Labview'!AB41 -> -0.065 | U42: ='From Labview'!AF41 -> 0.049 | V42: ='From Labview'!AJ41 -> -0.036 | W42: ='From Labview'!AN41 -> 0.038
A43: ='Pre Delta'!A42 -> 500 | B43: ='Post Delta'!B42-'Pre Delta'!B42 -> 0.1983 | C43: ='Post Delta'!C42-'Pre Delta'!C42 -> 0.2024 | D43: ='Post Delta'!D42-'Pre Delta'!D42 -> 0.0498 | E43: ='Post Delta'!E42-'Pre Delta'!E42 -> 0.0576 | F43: ='Post Delta'!F42-'Pre Delta'!F42 -> 0.0777 | G43: ='Post Delta'!G42-'Pre Delta'!G42 -> 0.078 | H43: ='Post Delta'!H42-'Pre Delta'!H42 -> -0.1854 | I43: ='Post Delta'!I42-'Pre Delta'!I42 -> -0.1182 | J43: ='Post Delta'!J42-'Pre Delta'!J42 -> -0.1404 | K43: ='Post Delta'!K42-'Pre Delta'!K42 -> -0.1128 | M43: ='From Labview'!AG42 -> 500 | N43: ='From Labview'!D42 -> 0.198 | O43: ='From Labview'!H42 -> 0.202 | P43: ='From Labview'!L42 -> 0.05 | Q43: ='From Labview'!P42 -> 0.058 | R43: ='From Labview'!S42 -> -0.118 | S43: ='From Labview'!X42 -> 0.078 | T43: ='From Labview'!AB42 -> -0.185 | U43: ='From Labview'!AF42 -> -0.118 | V43: ='From Labview'!AJ42 -> -0.14 | W43: ='From Labview'!AN42 -> -0.113
A44: ='Pre Delta'!A43 -> 530 | B44: ='Post Delta'!B43-'Pre Delta'!B43 -> 0.2658 | C44: ='Post Delta'!C43-'Pre Delta'!C43 -> 0.2374 | D44: ='Post Delta'!D43-'Pre Delta'!D43 -> 0.1068 | E44: ='Post Delta'!E43-'Pre Delta'!E43 -> 0.1091 | F44: ='Post Delta'!F43-'Pre Delta'!F43 -> 0.0961 | G44: ='Post Delta'!G43-'Pre Delta'!G43 -> 0.1037 | H44: ='Post Delta'!H43-'Pre Delta'!H43 -> -0.273 | I44: ='Post Delta'!I43-'Pre Delta'!I43 -> -0.3226 | J44: ='Post Delta'!J43-'Pre Delta'!J43 -> -0.2159 | K44: ='Post Delta'!K43-'Pre Delta'!K43 -> -0.3028 | M44: ='From Labview'!AG43 -> 530 | N44: ='From Labview'!D43 -> 0.266 | O44: ='From Labview'!H43 -> 0.237 | P44: ='From Labview'!L43 -> 0.107 | Q44: ='From Labview'!P43 -> 0.109 | R44: ='From Labview'!S43 -> -0.101 | S44: ='From Labview'!X43 -> 0.104 | T44: ='From Labview'!AB43 -> -0.273 | U44: ='From Labview'!AF43 -> -0.323 | V44: ='From Labview'!AJ43 -> -0.216 | W44: ='From Labview'!AN43 -> -0.303
A45: ='Pre Delta'!A44 -> 560 | B45: ='Post Delta'!B44-'Pre Delta'!B44 -> 0.298 | C45: ='Post Delta'!C44-'Pre Delta'!C44 -> 0.2408 | D45: ='Post Delta'!D44-'Pre Delta'!D44 -> 0.0955 | E45: ='Post Delta'!E44-'Pre Delta'!E44 -> 0.1101 | F45: ='Post Delta'!F44-'Pre Delta'!F44 -> 0.086 | G45: ='Post Delta'!G44-'Pre Delta'!G44 -> 0.0971 | H45: ='Post Delta'!H44-'Pre Delta'!H44 -> -0.1915 | I45: ='Post Delta'!I44-'Pre Delta'!I44 -> -0.4381 | J45: ='Post Delta'!J44-'Pre Delta'!J44 -> -0.105 | K45: ='Post Delta'!K44-'Pre Delta'!K44 -> -0.3849 | M45: ='From Labview'!AG44 -> 560 | N45: ='From Labview'!D44 -> 0.298 | O45: ='From Labview'!H44 -> 0.241 | P45: ='From Labview'!L44 -> 0.096 | Q45: ='From Labview'!P44 -> 0.11 | R45: ='From Labview'!S44 -> -0.104 | S45: ='From Labview'!X44 -> 0.097 | T45: ='From Labview'!AB44 -> -0.191 | U45: ='From Labview'!AF44 -> -0.438 | V45: ='From Labview'!AJ44 -> -0.105 | W45: ='From Labview'!AN44 -> -0.385
A46: ='Pre Delta'!A45 -> 600 | B46: ='Post Delta'!B45-'Pre Delta'!B45 -> 0.2885 | C46: ='Post Delta'!C45-'Pre Delta'!C45 -> 0.218 | D46: ='Post Delta'!D45-'Pre Delta'!D45 -> 0.0745 | E46: ='Post Delta'!E45-'Pre Delta'!E45 -> 0.098 | F46: ='Post Delta'!F45-'Pre Delta'!F45 -> 0.0723 | G46: ='Post Delta'!G45-'Pre Delta'!G45 -> 0.0868 | H46: ='Post Delta'!H45-'Pre Delta'!H45 -> 0.1484 | I46: ='Post Delta'!I45-'Pre Delta'!I45 -> -0.3067 | J46: ='Post Delta'!J45-'Pre Delta'!J45 -> 0.2471 | K46: ='Post Delta'!K45-'Pre Delta'!K45 -> -0.192 | M46: ='From Labview'!AG45 -> 600 | N46: ='From Labview'!D45 -> 0.289 | O46: ='From Labview'!H45 -> 0.218 | P46: ='From Labview'!L45 -> 0.075 | Q46: ='From Labview'!P45 -> 0.098 | R46: ='From Labview'!S45 -> -0.11 | S46: ='From Labview'!X45 -> 0.087 | T46: ='From Labview'!AB45 -> 0.148 | U46: ='From Labview'!AF45 -> -0.307 | V46: ='From Labview'!AJ45 -> 0.247 | W46: ='From Labview'!AN45 -> -0.192
A47: ='Pre Delta'!A46 -> 630 | B47: ='Post Delta'!B46-'Pre Delta'!B46 -> 0.2218 | C47: ='Post Delta'!C46-'Pre Delta'!C46 -> 0.1638 | D47: ='Post Delta'!D46-'Pre Delta'!D46 -> 0.0598 | E47: ='Post Delta'!E46-'Pre Delta'!E46 -> 0.0853 | F47: ='Post Delta'!F46-'Pre Delta'!F46 -> 0.0616 | G47: ='Post Delta'!G46-'Pre Delta'!G46 -> 0.0777 | H47: ='Post Delta'!H46-'Pre Delta'!H46 -> 0.471 | I47: ='Post Delta'!I46-'Pre Delta'!I46 -> 0.0322 | J47: ='Post Delta'!J46-'Pre Delta'!J46 -> 0.5207 | K47: ='Post Delta'!K46-'Pre Delta'!K46 -> 0.1644 | M47: ='From Labview'!AG46 -> 630 | N47: ='From Labview'!D46 -> 0.222 | O47: ='From Labview'!H46 -> 0.164 | P47: ='From Labview'!L46 -> 0.06 | Q47: ='From Labview'!P46 -> 0.085 | R47: ='From Labview'!S46 -> -0.116 | S47: ='From Labview'!X46 -> 0.078 | T47: ='From Labview'!AB46 -> 0.471 | U47: ='From Labview'!AF46 -> 0.032 | V47: ='From Labview'!AJ46 -> 0.521 | W47: ='From Labview'!AN46 -> 0.164
A48: ='Pre Delta'!A47 -> 670 | B48: ='Post Delta'!B47-'Pre Delta'!B47 -> 0.1253 | C48: ='Post Delta'!C47-'Pre Delta'!C47 -> 0.1226 | D48: ='Post Delta'!D47-'Pre Delta'!D47 -> 0.0513 | E48: ='Post Delta'!E47-'Pre Delta'!E47 -> 0.0755 | F48: ='Post Delta'!F47-'Pre Delta'!F47 -> 0.0555 | G48: ='Post Delta'!G47-'Pre Delta'!G47 -> 0.0713 | H48: ='Post Delta'!H47-'Pre Delta'!H47 -> 0.4862 | I48: ='Post Delta'!I47-'Pre Delta'!I47 -> 0.2689 | J48: ='Post Delta'!J47-'Pre Delta'!J47 -> 0.4856 | K48: ='Post Delta'!K47-'Pre Delta'!K47 -> 0.3275 | M48: ='From Labview'!AG47 -> 670 | N48: ='From Labview'!D47 -> 0.125 | O48: ='From Labview'!H47 -> 0.123 | P48: ='From Labview'!L47 -> 0.051 | Q48: ='From Labview'!P47 -> 0.076 | R48: ='From Labview'!S47 -> -0.119 | S48: ='From Labview'!X47 -> 0.071 | T48: ='From Labview'!AB47 -> 0.486 | U48: ='From Labview'!AF47 -> 0.269 | V48: ='From Labview'!AJ47 -> 0.486 | W48: ='From Labview'!AN47 -> 0.327
A49: ='Pre Delta'!A48 -> 710 | B49: ='Post Delta'!B48-'Pre Delta'!B48 -> 0.0684 | C49: ='Post Delta'!C48-'Pre Delta'!C48 -> 0.1191 | D49: ='Post Delta'!D48-'Pre Delta'!D48 -> 0.0471 | E49: ='Post Delta'!E48-'Pre Delta'!E48 -> 0.0704 | F49: ='Post Delta'!F48-'Pre Delta'!F48 -> 0.0514 | G49: ='Post Delta'!G48-'Pre Delta'!G48 -> 0.0688 | H49: ='Post Delta'!H48-'Pre Delta'!H48 -> 0.3139 | I49: ='Post Delta'!I48-'Pre Delta'!I48 -> 0.3008 | J49: ='Post Delta'!J48-'Pre Delta'!J48 -> 0.2826 | K49: ='Post Delta'!K48-'Pre Delta'!K48 -> 0.2568 | M49: ='From Labview'!AG48 -> 710 | N49: ='From Labview'!D48 -> 0.068 | O49: ='From Labview'!H48 -> 0.119 | P49: ='From Labview'!L48 -> 0.047 | Q49: ='From Labview'!P48 -> 0.07 | R49: ='From Labview'!S48 -> -0.119 | S49: ='From Labview'!X48 -> 0.069 | T49: ='From Labview'!AB48 -> 0.314 | U49: ='From Labview'!AF48 -> 0.301 | V49: ='From Labview'!AJ48 -> 0.283 | W49: ='From Labview'!AN48 -> 0.257
A50: ='Pre Delta'!A49 -> 750 | B50: ='Post Delta'!B49-'Pre Delta'!B49 -> 0.0313 | C50: ='Post Delta'!C49-'Pre Delta'!C49 -> 0.1341 | D50: ='Post Delta'!D49-'Pre Delta'!D49 -> 0.0433 | E50: ='Post Delta'!E49-'Pre Delta'!E49 -> 0.0685 | F50: ='Post Delta'!F49-'Pre Delta'!F49 -> 0.0462 | G50: ='Post Delta'!G49-'Pre Delta'!G49 -> 0.0699 | H50: ='Post Delta'!H49-'Pre Delta'!H49 -> 0.1187 | I50: ='Post Delta'!I49-'Pre Delta'!I49 -> 0.2856 | J50: ='Post Delta'!J49-'Pre Delta'!J49 -> 0.0807 | K50: ='Post Delta'!K49-'Pre Delta'!K49 -> 0.173 | M50: ='From Labview'!AG49 -> 750 | N50: ='From Labview'!D49 -> 0.031 | O50: ='From Labview'!H49 -> 0.134 | P50: ='From Labview'!L49 -> 0.043 | Q50: ='From Labview'!P49 -> 0.069 | R50: ='From Labview'!S49 -> -0.118 | S50: ='From Labview'!X49 -> 0.07 | T50: ='From Labview'!AB49 -> 0.119 | U50: ='From Labview'!AF49 -> 0.286 | V50: ='From Labview'!AJ49 -> 0.081 | W50: ='From Labview'!AN49 -> 0.173
A51: ='Pre Delta'!A50 -> 800 | B51: ='Post Delta'!B50-'Pre Delta'!B50 -> 0.0359 | C51: ='Post Delta'!C50-'Pre Delta'!C50 -> 0.1642 | D51: ='Post Delta'!D50-'Pre Delta'!D50 -> 0.0365 | E51: ='Post Delta'!E50-'Pre Delta'!E50 -> 0.069 | F51: ='Post Delta'!F50-'Pre Delta'!F50 -> 0.038 | G51: ='Post Delta'!G50-'Pre Delta'!G50 -> 0.072 | H51: ='Post Delta'!H50-'Pre Delta'!H50 -> 0.0199 | I51: ='Post Delta'!I50-'Pre Delta'!I50 -> 0.2918 | J51: ='Post Delta'!J50-'Pre Delta'!J50 -> -0.0079 | K51: ='Post Delta'!K50-'Pre Delta'!K50 -> 0.1879 | M51: ='From Labview'!AG50 -> 800 | N51: ='From Labview'!D50 -> 0.036 | O51: ='From Labview'!H50 -> 0.164 | P51: ='From Labview'!L50 -> 0.037 | Q51: ='From Labview'!P50 -> 0.069 | R51: ='From Labview'!S50 -> -0.116 | S51: ='From Labview'!X50 -> 0.072 | T51: ='From Labview'!AB50 -> 0.02 | U51: ='From Labview'!AF50 -> 0.292 | V51: ='From Labview'!AJ50 -> -0.008 | W51: ='From Labview'!AN50 -> 0.188
A52: ='Pre Delta'!A51 -> 850 | B52: ='Post Delta'!B51-'Pre Delta'!B51 -> 0.1599 | C52: ='Post Delta'!C51-'Pre Delta'!C51 -> 0.2195 | D52: ='Post Delta'!D51-'Pre Delta'!D51 -> 0.0214 | E52: ='Post Delta'!E51-'Pre Delta'!E51 -> 0.0636 | F52: ='Post Delta'!F51-'Pre Delta'!F51 -> 0.0258 | G52: ='Post Delta'!G51-'Pre Delta'!G51 -> 0.0694 | H52: ='Post Delta'!H51-'Pre Delta'!H51 -> 0.1005 | I52: ='Post Delta'!I51-'Pre Delta'!I51 -> 0.325 | J52: ='Post Delta'!J51-'Pre Delta'!J51 -> 0.0913 | K52: ='Post Delta'!K51-'Pre Delta'!K51 -> 0.2805 | M52: ='From Labview'!AG51 -> 850 | N52: ='From Labview'!D51 -> 0.16 | O52: ='From Labview'!H51 -> 0.219 | P52: ='From Labview'!L51 -> 0.021 | Q52: ='From Labview'!P51 -> 0.064 | R52: ='From Labview'!S51 -> -0.114 | S52: ='From Labview'!X51 -> 0.069 | T52: ='From Labview'!AB51 -> 0.1 | U52: ='From Labview'!AF51 -> 0.325 | V52: ='From Labview'!AJ51 -> 0.091 | W52: ='From Labview'!AN51 -> 0.281
A53: ='Pre Delta'!A52 -> 900 | B53: ='Post Delta'!B52-'Pre Delta'!B52 -> 0.2334 | C53: ='Post Delta'!C52-'Pre Delta'!C52 -> 0.2802 | D53: ='Post Delta'!D52-'Pre Delta'!D52 -> -0.0024 | E53: ='Post Delta'!E52-'Pre Delta'!E52 -> 0.0408 | F53: ='Post Delta'!F52-'Pre Delta'!F52 -> 0.0107 | G53: ='Post Delta'!G52-'Pre Delta'!G52 -> 0.0464 | H53: ='Post Delta'!H52-'Pre Delta'!H52 -> 0.2493 | I53: ='Post Delta'!I52-'Pre Delta'!I52 -> 0.3666 | J53: ='Post Delta'!J52-'Pre Delta'!J52 -> 0.2402 | K53: ='Post Delta'!K52-'Pre Delta'!K52 -> 0.3544 | M53: ='From Labview'!AG52 -> 900 | N53: ='From Labview'!D52 -> 0.233 | O53: ='From Labview'!H52 -> 0.28 | P53: ='From Labview'!L52 -> -0.002 | Q53: ='From Labview'!P52 -> 0.041 | R53: ='From Labview'!S52 -> -0.119 | S53: ='From Labview'!X52 -> 0.046 | T53: ='From Labview'!AB52 -> 0.249 | U53: ='From Labview'!AF52 -> 0.367 | V53: ='From Labview'!AJ52 -> 0.24 | W53: ='From Labview'!AN52 -> 0.354
A54: ='Pre Delta'!A53 -> 950 | B54: ='Post Delta'!B53-'Pre Delta'!B53 -> 0.2565 | C54: ='Post Delta'!C53-'Pre Delta'!C53 -> 0.3621 | D54: ='Post Delta'!D53-'Pre Delta'!D53 -> -0.013 | E54: ='Post Delta'!E53-'Pre Delta'!E53 -> 0.0008 | F54: ='Post Delta'!F53-'Pre Delta'!F53 -> 0.0058 | G54: ='Post Delta'!G53-'Pre Delta'!G53 -> 0.0075 | H54: ='Post Delta'!H53-'Pre Delta'!H53 -> 0.313 | I54: ='Post Delta'!I53-'Pre Delta'!I53 -> 0.3834 | J54: ='Post Delta'!J53-'Pre Delta'!J53 -> 0.2861 | K54: ='Post Delta'!K53-'Pre Delta'!K53 -> 0.3557 | M54: ='From Labview'!AG53 -> 950 | N54: ='From Labview'!D53 -> 0.256 | O54: ='From Labview'!H53 -> 0.362 | P54: ='From Labview'!L53 -> -0.013 | Q54: ='From Labview'!P53 -> 0.001 | R54: ='From Labview'!S53 -> -0.145 | S54: ='From Labview'!X53 -> 0.008 | T54: ='From Labview'!AB53 -> 0.313 | U54: ='From Labview'!AF53 -> 0.383 | V54: ='From Labview'!AJ53 -> 0.286 | W54: ='From Labview'!AN53 -> 0.356
A55: ='Pre Delta'!A54 -> 1000 | B55: ='Post Delta'!B54-'Pre Delta'!B54 -> 0.3146 | C55: ='Post Delta'!C54-'Pre Delta'!C54 -> 0.4432 | D55: ='Post Delta'!D54-'Pre Delta'!D54 -> 0.053 | E55: ='Post Delta'!E54-'Pre Delta'!E54 -> -0.0243 | F55: ='Post Delta'!F54-'Pre Delta'!F54 -> 0.0421 | G55: ='Post Delta'!G54-'Pre Delta'!G54 -> -0.0173 | H55: ='Post Delta'!H54-'Pre Delta'!H54 -> 0.343 | I55: ='Post Delta'!I54-'Pre Delta'!I54 -> 0.3996 | J55: ='Post Delta'!J54-'Pre Delta'!J54 -> 0.305 | K55: ='Post Delta'!K54-'Pre Delta'!K54 -> 0.3553 | M55: ='From Labview'!AG54 -> 1000 | N55: ='From Labview'!D54 -> 0.315 | O55: ='From Labview'!H54 -> 0.443 | P55: ='From Labview'!L54 -> 0.053 | Q55: ='From Labview'!P54 -> -0.024 | R55: ='From Labview'!S54 -> -0.174 | S55: ='From Labview'!X54 -> -0.017 | T55: ='From Labview'!AB54 -> 0.343 | U55: ='From Labview'!AF54 -> 0.4 | V55: ='From Labview'!AJ54 -> 0.305 | W55: ='From Labview'!AN54 -> 0.355
A56: ='Pre Delta'!A55 -> 1060 | B56: ='Post Delta'!B55-'Pre Delta'!B55 -> 0.3891 | C56: ='Post Delta'!C55-'Pre Delta'!C55 -> 0.5032 | D56: ='Post Delta'!D55-'Pre Delta'!D55 -> 0.133 | E56: ='Post Delta'!E55-'Pre Delta'!E55 -> 0.06 | F56: ='Post Delta'!F55-'Pre Delta'!F55 -> 0.1047 | G56: ='Post Delta'!G55-'Pre Delta'!G55 -> 0.0374 | H56: ='Post Delta'!H55-'Pre Delta'!H55 -> 0.3965 | I56: ='Post Delta'!I55-'Pre Delta'!I55 -> 0.4467 | J56: ='Post Delta'!J55-'Pre Delta'!J55 -> 0.3625 | K56: ='Post Delta'!K55-'Pre Delta'!K55 -> 0.3995 | M56: ='From Labview'!AG55 -> 1060 | N56: ='From Labview'!D55 -> 0.389 | O56: ='From Labview'!H55 -> 0.503 | P56: ='From Labview'!L55 -> 0.133 | Q56: ='From Labview'!P55 -> 0.06 | R56: ='From Labview'!S55 -> -0.179 | S56: ='From Labview'!X55 -> 0.037 | T56: ='From Labview'!AB55 -> 0.396 | U56: ='From Labview'!AF55 -> 0.447 | V56: ='From Labview'!AJ55 -> 0.363 | W56: ='From Labview'!AN55 -> 0.399
A57: ='Pre Delta'!A56 -> 1120 | B57: ='Post Delta'!B56-'Pre Delta'!B56 -> 0.4641 | C57: ='Post Delta'!C56-'Pre Delta'!C56 -> 0.5827 | D57: ='Post Delta'!D56-'Pre Delta'!D56 -> 0.1615 | E57: ='Post Delta'!E56-'Pre Delta'!E56 -> 0.1849 | F57: ='Post Delta'!F56-'Pre Delta'!F56 -> 0.1399 | G57: ='Post Delta'!G56-'Pre Delta'!G56 -> 0.1503 | H57: ='Post Delta'!H56-'Pre Delta'!H56 -> 0.4748 | I57: ='Post Delta'!I56-'Pre Delta'!I56 -> 0.5194 | J57: ='Post Delta'!J56-'Pre Delta'!J56 -> 0.459 | K57: ='Post Delta'!K56-'Pre Delta'!K56 -> 0.479 | M57: ='From Labview'!AG56 -> 1120 | N57: ='From Labview'!D56 -> 0.464 | O57: ='From Labview'!H56 -> 0.583 | P57: ='From Labview'!L56 -> 0.161 | Q57: ='From Labview'!P56 -> 0.185 | R57: ='From Labview'!S56 -> -0.167 | S57: ='From Labview'!X56 -> 0.15 | T57: ='From Labview'!AB56 -> 0.475 | U57: ='From Labview'!AF56 -> 0.519 | V57: ='From Labview'!AJ56 -> 0.459 | W57: ='From Labview'!AN56 -> 0.479
A58: ='Pre Delta'!A57 -> 1180 | B58: ='Post Delta'!B57-'Pre Delta'!B57 -> 0.5703 | C58: ='Post Delta'!C57-'Pre Delta'!C57 -> 0.6477 | D58: ='Post Delta'!D57-'Pre Delta'!D57 -> 0.1682 | E58: ='Post Delta'!E57-'Pre Delta'!E57 -> 0.2066 | F58: ='Post Delta'!F57-'Pre Delta'!F57 -> 0.1446 | G58: ='Post Delta'!G57-'Pre Delta'!G57 -> 0.1711 | H58: ='Post Delta'!H57-'Pre Delta'!H57 -> 0.5631 | I58: ='Post Delta'!I57-'Pre Delta'!I57 -> 0.5858 | J58: ='Post Delta'!J57-'Pre Delta'!J57 -> 0.5636 | K58: ='Post Delta'!K57-'Pre Delta'!K57 -> 0.5822 | M58: ='From Labview'!AG57 -> 1180 | N58: ='From Labview'!D57 -> 0.57 | O58: ='From Labview'!H57 -> 0.648 | P58: ='From Labview'!L57 -> 0.168 | Q58: ='From Labview'!P57 -> 0.207 | R58: ='From Labview'!S57 -> -0.149 | S58: ='From Labview'!X57 -> 0.171 | T58: ='From Labview'!AB57 -> 0.563 | U58: ='From Labview'!AF57 -> 0.586 | V58: ='From Labview'!AJ57 -> 0.564 | W58: ='From Labview'!AN57 -> 0.582
A59: ='Pre Delta'!A58 -> 1250 | B59: ='Post Delta'!B58-'Pre Delta'!B58 -> 0.6216 | C59: ='Post Delta'!C58-'Pre Delta'!C58 -> 0.7521 | D59: ='Post Delta'!D58-'Pre Delta'!D58 -> 0.1634 | E59: ='Post Delta'!E58-'Pre Delta'!E58 -> 0.185 | F59: ='Post Delta'!F58-'Pre Delta'!F58 -> 0.1395 | G59: ='Post Delta'!G58-'Pre Delta'!G58 -> 0.1529 | H59: ='Post Delta'!H58-'Pre Delta'!H58 -> 0.6741 | I59: ='Post Delta'!I58-'Pre Delta'!I58 -> 0.5895 | J59: ='Post Delta'!J58-'Pre Delta'!J58 -> 0.6586 | K59: ='Post Delta'!K58-'Pre Delta'!K58 -> 0.711 | M59: ='From Labview'!AG58 -> 1250 | N59: ='From Labview'!D58 -> 0.622 | O59: ='From Labview'!H58 -> 0.752 | P59: ='From Labview'!L58 -> 0.163 | Q59: ='From Labview'!P58 -> 0.185 | R59: ='From Labview'!S58 -> -0.126 | S59: ='From Labview'!X58 -> 0.153 | T59: ='From Labview'!AB58 -> 0.674 | U59: ='From Labview'!AF58 -> 0.59 | V59: ='From Labview'!AJ58 -> 0.659 | W59: ='From Labview'!AN58 -> 0.711
A60: ='Pre Delta'!A59 -> 1320 | B60: ='Post Delta'!B59-'Pre Delta'!B59 -> 0.7304 | C60: ='Post Delta'!C59-'Pre Delta'!C59 -> 0.9218 | D60: ='Post Delta'!D59-'Pre Delta'!D59 -> 0.146 | E60: ='Post Delta'!E59-'Pre Delta'!E59 -> 0.15 | F60: ='Post Delta'!F59-'Pre Delta'!F59 -> 0.1249 | G60: ='Post Delta'!G59-'Pre Delta'!G59 -> 0.1285 | H60: ='Post Delta'!H59-'Pre Delta'!H59 -> 0.8454 | I60: ='Post Delta'!I59-'Pre Delta'!I59 -> 0.5246 | J60: ='Post Delta'!J59-'Pre Delta'!J59 -> 0.8162 | K60: ='Post Delta'!K59-'Pre Delta'!K59 -> 0.9717 | M60: ='From Labview'!AG59 -> 1320 | N60: ='From Labview'!D59 -> 0.73 | O60: ='From Labview'!H59 -> 0.922 | P60: ='From Labview'!L59 -> 0.146 | Q60: ='From Labview'!P59 -> 0.15 | R60: ='From Labview'!S59 -> -0.107 | S60: ='From Labview'!X59 -> 0.129 | T60: ='From Labview'!AB59 -> 0.845 | U60: ='From Labview'!AF59 -> 0.525 | V60: ='From Labview'!AJ59 -> 0.816 | W60: ='From Labview'!AN59 -> 0.972
A61: ='Pre Delta'!A60 -> 1400 | B61: ='Post Delta'!B60-'Pre Delta'!B60 -> 0.9196 | C61: ='Post Delta'!C60-'Pre Delta'!C60 -> 1.0077 | D61: ='Post Delta'!D60-'Pre Delta'!D60 -> 0.1083 | E61: ='Post Delta'!E60-'Pre Delta'!E60 -> 0.1022 | F61: ='Post Delta'!F60-'Pre Delta'!F60 -> 0.0974 | G61: ='Post Delta'!G60-'Pre Delta'!G60 -> 0.0949 | H61: ='Post Delta'!H60-'Pre Delta'!H60 -> 0.9893 | I61: ='Post Delta'!I60-'Pre Delta'!I60 -> 0.452 | J61: ='Post Delta'!J60-'Pre Delta'!J60 -> 0.9876 | K61: ='Post Delta'!K60-'Pre Delta'!K60 -> 1.4383 | M61: ='From Labview'!AG60 -> 1400 | N61: ='From Labview'!D60 -> 0.92 | O61: ='From Labview'!H60 -> 1.008 | P61: ='From Labview'!L60 -> 0.108 | Q61: ='From Labview'!P60 -> 0.102 | R61: ='From Labview'!S60 -> -0.103 | S61: ='From Labview'!X60 -> 0.095 | T61: ='From Labview'!AB60 -> 0.989 | U61: ='From Labview'!AF60 -> 0.452 | V61: ='From Labview'!AJ60 -> 0.988 | W61: ='From Labview'!AN60 -> 1.438
A62: ='Pre Delta'!A61 -> 1500 | B62: ='Post Delta'!B61-'Pre Delta'!B61 -> 1.0523 | C62: ='Post Delta'!C61-'Pre Delta'!C61 -> 1.0216 | D62: ='Post Delta'!D61-'Pre Delta'!D61 -> 0.0544 | E62: ='Post Delta'!E61-'Pre Delta'!E61 -> 0.052 | F62: ='Post Delta'!F61-'Pre Delta'!F61 -> 0.0631 | G62: ='Post Delta'!G61-'Pre Delta'!G61 -> 0.0599 | H62: ='Post Delta'!H61-'Pre Delta'!H61 -> 0.9461 | I62: ='Post Delta'!I61-'Pre Delta'!I61 -> 0.556 | J62: ='Post Delta'!J61-'Pre Delta'!J61 -> 1.0497 | K62: ='Post Delta'!K61-'Pre Delta'!K61 -> 1.5528 | M62: ='From Labview'!AG61 -> 1500 | N62: ='From Labview'!D61 -> 1.052 | O62: ='From Labview'!H61 -> 1.022 | P62: ='From Labview'!L61 -> 0.054 | Q62: ='From Labview'!P61 -> 0.052 | R62: ='From Labview'!S61 -> -0.127 | S62: ='From Labview'!X61 -> 0.06 | T62: ='From Labview'!AB61 -> 0.946 | U62: ='From Labview'!AF61 -> 0.556 | V62: ='From Labview'!AJ61 -> 1.05 | W62: ='From Labview'!AN61 -> 1.553
A63: ='Pre Delta'!A62 -> 1600 | B63: ='Post Delta'!B62-'Pre Delta'!B62 -> 1.1592 | C63: ='Post Delta'!C62-'Pre Delta'!C62 -> 1.0066 | D63: ='Post Delta'!D62-'Pre Delta'!D62 -> 0.038 | E63: ='Post Delta'!E62-'Pre Delta'!E62 -> 0.0382 | F63: ='Post Delta'!F62-'Pre Delta'!F62 -> 0.0524 | G63: ='Post Delta'!G62-'Pre Delta'!G62 -> 0.0453 | H63: ='Post Delta'!H62-'Pre Delta'!H62 -> 0.8232 | I63: ='Post Delta'!I62-'Pre Delta'!I62 -> 0.8225 | J63: ='Post Delta'!J62-'Pre Delta'!J62 -> 1.0064 | K63: ='Post Delta'!K62-'Pre Delta'!K62 -> 1.2977 | M63: ='From Labview'!AG62 -> 1600 | N63: ='From Labview'!D62 -> 1.159 | O63: ='From Labview'!H62 -> 1.007 | P63: ='From Labview'!L62 -> 0.038 | Q63: ='From Labview'!P62 -> 0.038 | R63: ='From Labview'!S62 -> -0.149 | S63: ='From Labview'!X62 -> 0.045 | T63: ='From Labview'!AB62 -> 0.823 | U63: ='From Labview'!AF62 -> 0.823 | V63: ='From Labview'!AJ62 -> 1.006 | W63: ='From Labview'!AN62 -> 1.298
A64: ='Pre Delta'!A63 -> 1700 | B64: ='Post Delta'!B63-'Pre Delta'!B63 -> 1.1436 | C64: ='Post Delta'!C63-'Pre Delta'!C63 -> 0.9679 | D64: ='Post Delta'!D63-'Pre Delta'!D63 -> 0.0454 | E64: ='Post Delta'!E63-'Pre Delta'!E63 -> 0.061 | F64: ='Post Delta'!F63-'Pre Delta'!F63 -> 0.0457 | G64: ='Post Delta'!G63-'Pre Delta'!G63 -> 0.0492 | H64: ='Post Delta'!H63-'Pre Delta'!H63 -> 0.6961 | I64: ='Post Delta'!I63-'Pre Delta'!I63 -> 0.9073 | J64: ='Post Delta'!J63-'Pre Delta'!J63 -> 0.8195 | K64: ='Post Delta'!K63-'Pre Delta'!K63 -> 0.9815 | M64: ='From Labview'!AG63 -> 1700 | N64: ='From Labview'!D63 -> 1.144 | O64: ='From Labview'!H63 -> 0.968 | P64: ='From Labview'!L63 -> 0.045 | Q64: ='From Labview'!P63 -> 0.061 | R64: ='From Labview'!S63 -> -0.149 | S64: ='From Labview'!X63 -> 0.049 | T64: ='From Labview'!AB63 -> 0.696 | U64: ='From Labview'!AF63 -> 0.907 | V64: ='From Labview'!AJ63 -> 0.82 | W64: ='From Labview'!AN63 -> 0.982
A65: ='Pre Delta'!A64 -> 1800 | B65: ='Post Delta'!B64-'Pre Delta'!B64 -> 0.9878 | C65: ='Post Delta'!C64-'Pre Delta'!C64 -> 0.9012 | D65: ='Post Delta'!D64-'Pre Delta'!D64 -> 0.0273 | E65: ='Post Delta'!E64-'Pre Delta'!E64 -> 0.0728 | F65: ='Post Delta'!F64-'Pre Delta'!F64 -> 0.0149 | G65: ='Post Delta'!G64-'Pre Delta'!G64 -> 0.0491 | H65: ='Post Delta'!H64-'Pre Delta'!H64 -> 0.5881 | I65: ='Post Delta'!I64-'Pre Delta'!I64 -> 0.8195 | J65: ='Post Delta'!J64-'Pre Delta'!J64 -> 0.6011 | K65: ='Post Delta'!K64-'Pre Delta'!K64 -> 0.7212 | M65: ='From Labview'!AG64 -> 1800 | N65: ='From Labview'!D64 -> 0.988 | O65: ='From Labview'!H64 -> 0.901 | P65: ='From Labview'!L64 -> 0.027 | Q65: ='From Labview'!P64 -> 0.073 | R65: ='From Labview'!S64 -> -0.149 | S65: ='From Labview'!X64 -> 0.049 | T65: ='From Labview'!AB64 -> 0.588 | U65: ='From Labview'!AF64 -> 0.82 | V65: ='From Labview'!AJ64 -> 0.601 | W65: ='From Labview'!AN64 -> 0.721
A66: ='Pre Delta'!A65 -> 1900 | B66: ='Post Delta'!B65-'Pre Delta'!B65 -> 0.8885 | C66: ='Post Delta'!C65-'Pre Delta'!C65 -> 0.8514 | D66: ='Post Delta'!D65-'Pre Delta'!D65 -> -0.0032 | E66: ='Post Delta'!E65-'Pre Delta'!E65 -> 0.0612 | F66: ='Post Delta'!F65-'Pre Delta'!F65 -> -0.0215 | G66: ='Post Delta'!G65-'Pre Delta'!G65 -> 0.0361 | H66: ='Post Delta'!H65-'Pre Delta'!H65 -> 0.5706 | I66: ='Post Delta'!I65-'Pre Delta'!I65 -> 0.7157 | J66: ='Post Delta'!J65-'Pre Delta'!J65 -> 0.5826 | K66: ='Post Delta'!K65-'Pre Delta'!K65 -> 0.5998 | M66: ='From Labview'!AG65 -> 1900 | N66: ='From Labview'!D65 -> 0.888 | O66: ='From Labview'!H65 -> 0.851 | P66: ='From Labview'!L65 -> -0.003 | Q66: ='From Labview'!P65 -> 0.061 | R66: ='From Labview'!S65 -> -0.151 | S66: ='From Labview'!X65 -> 0.036 | T66: ='From Labview'!AB65 -> 0.571 | U66: ='From Labview'!AF65 -> 0.716 | V66: ='From Labview'!AJ65 -> 0.583 | W66: ='From Labview'!AN65 -> 0.6
A67: ='Pre Delta'!A66 -> 2000 | B67: ='Post Delta'!B66-'Pre Delta'!B66 -> 0.8311 | C67: ='Post Delta'!C66-'Pre Delta'!C66 -> 0.8641 | D67: ='Post Delta'!D66-'Pre Delta'!D66 -> -0.0179 | E67: ='Post Delta'!E66-'Pre Delta'!E66 -> 0.0339 | F67: ='Post Delta'!F66-'Pre Delta'!F66 -> -0.0327 | G67: ='Post Delta'!G66-'Pre Delta'!G66 -> 0.0134 | H67: ='Post Delta'!H66-'Pre Delta'!H66 -> 0.6457 | I67: ='Post Delta'!I66-'Pre Delta'!I66 -> 0.6321 | J67: ='Post Delta'!J66-'Pre Delta'!J66 -> 0.6911 | K67: ='Post Delta'!K66-'Pre Delta'!K66 -> 0.5657 | M67: ='From Labview'!AG66 -> 2000 | N67: ='From Labview'!D66 -> 0.831 | O67: ='From Labview'!H66 -> 0.864 | P67: ='From Labview'!L66 -> -0.018 | Q67: ='From Labview'!P66 -> 0.034 | R67: ='From Labview'!S66 -> -0.154 | S67: ='From Labview'!X66 -> 0.013 | T67: ='From Labview'!AB66 -> 0.646 | U67: ='From Labview'!AF66 -> 0.632 | V67: ='From Labview'!AJ66 -> 0.691 | W67: ='From Labview'!AN66 -> 0.566
A68: ='Pre Delta'!A67 -> 2120 | B68: ='Post Delta'!B67-'Pre Delta'!B67 -> 0.8076 | C68: ='Post Delta'!C67-'Pre Delta'!C67 -> 0.8953 | D68: ='Post Delta'!D67-'Pre Delta'!D67 -> -0.0025 | E68: ='Post Delta'!E67-'Pre Delta'!E67 -> 0.0076 | F68: ='Post Delta'!F67-'Pre Delta'!F67 -> 0.0017 | G68: ='Post Delta'!G67-'Pre Delta'!G67 -> 0.0104 | H68: ='Post Delta'!H67-'Pre Delta'!H67 -> 0.7283 | I68: ='Post Delta'!I67-'Pre Delta'!I67 -> 0.5945 | J68: ='Post Delta'!J67-'Pre Delta'!J67 -> 0.7639 | K68: ='Post Delta'!K67-'Pre Delta'!K67 -> 0.6235 | M68: ='From Labview'!AG67 -> 2120 | N68: ='From Labview'!D67 -> 0.808 | O68: ='From Labview'!H67 -> 0.895 | P68: ='From Labview'!L67 -> -0.002 | Q68: ='From Labview'!P67 -> 0.008 | R68: ='From Labview'!S67 -> -0.156 | S68: ='From Labview'!X67 -> 0.01 | T68: ='From Labview'!AB67 -> 0.728 | U68: ='From Labview'!AF67 -> 0.594 | V68: ='From Labview'!AJ67 -> 0.764 | W68: ='From Labview'!AN67 -> 0.623
A69: ='Pre Delta'!A68 -> 2240 | B69: ='Post Delta'!B68-'Pre Delta'!B68 -> 0.812 | C69: ='Post Delta'!C68-'Pre Delta'!C68 -> 0.9136 | D69: ='Post Delta'!D68-'Pre Delta'!D68 -> 0.0285 | E69: ='Post Delta'!E68-'Pre Delta'!E68 -> 0.0002 | F69: ='Post Delta'!F68-'Pre Delta'!F68 -> 0.0575 | G69: ='Post Delta'!G68-'Pre Delta'!G68 -> 0.0442 | H69: ='Post Delta'!H68-'Pre Delta'!H68 -> 0.7623 | I69: ='Post Delta'!I68-'Pre Delta'!I68 -> 0.652 | J69: ='Post Delta'!J68-'Pre Delta'!J68 -> 0.7386 | K69: ='Post Delta'!K68-'Pre Delta'!K68 -> 0.8051 | M69: ='From Labview'!AG68 -> 2240 | N69: ='From Labview'!D68 -> 0.812 | O69: ='From Labview'!H68 -> 0.914 | P69: ='From Labview'!L68 -> 0.029 | Q69: ='From Labview'!P68 -> 0 | R69: ='From Labview'!S68 -> -0.157 | S69: ='From Labview'!X68 -> 0.044 | T69: ='From Labview'!AB68 -> 0.762 | U69: ='From Labview'!AF68 -> 0.652 | V69: ='From Labview'!AJ68 -> 0.739 | W69: ='From Labview'!AN68 -> 0.805
A70: ='Pre Delta'!A69 -> 2360 | B70: ='Post Delta'!B69-'Pre Delta'!B69 -> 0.7602 | C70: ='Post Delta'!C69-'Pre Delta'!C69 -> 0.9123 | D70: ='Post Delta'!D69-'Pre Delta'!D69 -> 0.0518 | E70: ='Post Delta'!E69-'Pre Delta'!E69 -> 0.0122 | F70: ='Post Delta'!F69-'Pre Delta'!F69 -> 0.0875 | G70: ='Post Delta'!G69-'Pre Delta'!G69 -> 0.0873 | H70: ='Post Delta'!H69-'Pre Delta'!H69 -> 0.7715 | I70: ='Post Delta'!I69-'Pre Delta'!I69 -> 0.751 | J70: ='Post Delta'!J69-'Pre Delta'!J69 -> 0.653 | K70: ='Post Delta'!K69-'Pre Delta'!K69 -> 1.0406 | M70: ='From Labview'!AG69 -> 2360 | N70: ='From Labview'!D69 -> 0.76 | O70: ='From Labview'!H69 -> 0.912 | P70: ='From Labview'!L69 -> 0.052 | Q70: ='From Labview'!P69 -> 0.012 | R70: ='From Labview'!S69 -> -0.16 | S70: ='From Labview'!X69 -> 0.087 | T70: ='From Labview'!AB69 -> 0.772 | U70: ='From Labview'!AF69 -> 0.751 | V70: ='From Labview'!AJ69 -> 0.653 | W70: ='From Labview'!AN69 -> 1.041
A71: ='Pre Delta'!A70 -> 2500 | B71: ='Post Delta'!B70-'Pre Delta'!B70 -> 0.0991 | C71: ='Post Delta'!C70-'Pre Delta'!C70 -> 0.6771 | D71: ='Post Delta'!D70-'Pre Delta'!D70 -> 0.0851 | E71: ='Post Delta'!E70-'Pre Delta'!E70 -> 0.0365 | F71: ='Post Delta'!F70-'Pre Delta'!F70 -> 0.0848 | G71: ='Post Delta'!G70-'Pre Delta'!G70 -> 0.1124 | H71: ='Post Delta'!H70-'Pre Delta'!H70 -> 0.8466 | I71: ='Post Delta'!I70-'Pre Delta'!I70 -> 0.6832 | J71: ='Post Delta'!J70-'Pre Delta'!J70 -> 0.7125 | K71: ='Post Delta'!K70-'Pre Delta'!K70 -> 1.0484 | M71: ='From Labview'!AG70 -> 2500 | N71: ='From Labview'!D70 -> 0.099 | O71: ='From Labview'!H70 -> 0.677 | P71: ='From Labview'!L70 -> 0.085 | Q71: ='From Labview'!P70 -> 0.036 | R71: ='From Labview'!S70 -> -0.162 | S71: ='From Labview'!X70 -> 0.112 | T71: ='From Labview'!AB70 -> 0.847 | U71: ='From Labview'!AF70 -> 0.683 | V71: ='From Labview'!AJ70 -> 0.712 | W71: ='From Labview'!AN70 -> 1.048
A72: ='Pre Delta'!A71 -> 2650 | B72: ='Post Delta'!B71-'Pre Delta'!B71 -> -0.7859 | C72: ='Post Delta'!C71-'Pre Delta'!C71 -> 0.2908 | D72: ='Post Delta'!D71-'Pre Delta'!D71 -> 0.1508 | E72: ='Post Delta'!E71-'Pre Delta'!E71 -> 0.0603 | F72: ='Post Delta'!F71-'Pre Delta'!F71 -> 0.0795 | G72: ='Post Delta'!G71-'Pre Delta'!G71 -> 0.1041 | H72: ='Post Delta'!H71-'Pre Delta'!H71 -> 1.012 | I72: ='Post Delta'!I71-'Pre Delta'!I71 -> 0.5019 | J72: ='Post Delta'!J71-'Pre Delta'!J71 -> 0.879 | K72: ='Post Delta'!K71-'Pre Delta'!K71 -> 0.8001 | M72: ='From Labview'!AG71 -> 2650 | N72: ='From Labview'!D71 -> -0.786 | O72: ='From Labview'!H71 -> 0.291 | P72: ='From Labview'!L71 -> 0.151 | Q72: ='From Labview'!P71 -> 0.06 | R72: ='From Labview'!S71 -> -0.146 | S72: ='From Labview'!X71 -> 0.104 | T72: ='From Labview'!AB71 -> 1.012 | U72: ='From Labview'!AF71 -> 0.502 | V72: ='From Labview'!AJ71 -> 0.879 | W72: ='From Labview'!AN71 -> 0.8
A73: ='Pre Delta'!A72 -> 2800 | B73: ='Post Delta'!B72-'Pre Delta'!B72 -> -0.9212 | C73: ='Post Delta'!C72-'Pre Delta'!C72 -> 0.2036 | D73: ='Post Delta'!D72-'Pre Delta'!D72 -> 0.1471 | E73: ='Post Delta'!E72-'Pre Delta'!E72 -> 0.0665 | F73: ='Post Delta'!F72-'Pre Delta'!F72 -> 0.0633 | G73: ='Post Delta'!G72-'Pre Delta'!G72 -> 0.08 | H73: ='Post Delta'!H72-'Pre Delta'!H72 -> 0.7721 | I73: ='Post Delta'!I72-'Pre Delta'!I72 -> 0.3965 | J73: ='Post Delta'!J72-'Pre Delta'!J72 -> 0.699 | K73: ='Post Delta'!K72-'Pre Delta'!K72 -> 0.6577 | M73: ='From Labview'!AG72 -> 2800 | N73: ='From Labview'!D72 -> -0.921 | O73: ='From Labview'!H72 -> 0.204 | P73: ='From Labview'!L72 -> 0.147 | Q73: ='From Labview'!P72 -> 0.067 | R73: ='From Labview'!S72 -> -0.135 | S73: ='From Labview'!X72 -> 0.08 | T73: ='From Labview'!AB72 -> 0.772 | U73: ='From Labview'!AF72 -> 0.396 | V73: ='From Labview'!AJ72 -> 0.699 | W73: ='From Labview'!AN72 -> 0.658
A74: ='Pre Delta'!A73 -> 3000 | B74: ='Post Delta'!B73-'Pre Delta'!B73 -> -0.6698 | C74: ='Post Delta'!C73-'Pre Delta'!C73 -> 0.2892 | D74: ='Post Delta'!D73-'Pre Delta'!D73 -> 0.0983 | E74: ='Post Delta'!E73-'Pre Delta'!E73 -> 0.0815 | F74: ='Post Delta'!F73-'Pre Delta'!F73 -> 0.0456 | G74: ='Post Delta'!G73-'Pre Delta'!G73 -> 0.0576 | H74: ='Post Delta'!H73-'Pre Delta'!H73 -> 0.5835 | I74: ='Post Delta'!I73-'Pre Delta'!I73 -> 0.3235 | J74: ='Post Delta'!J73-'Pre Delta'!J73 -> 0.5724 | K74: ='Post Delta'!K73-'Pre Delta'!K73 -> 0.6903 | M74: ='From Labview'!AG73 -> 3000 | N74: ='From Labview'!D73 -> -0.67 | O74: ='From Labview'!H73 -> 0.289 | P74: ='From Labview'!L73 -> 0.098 | Q74: ='From Labview'!P73 -> 0.081 | R74: ='From Labview'!S73 -> -0.132 | S74: ='From Labview'!X73 -> 0.058 | T74: ='From Labview'!AB73 -> 0.584 | U74: ='From Labview'!AF73 -> 0.324 | V74: ='From Labview'!AJ73 -> 0.572 | W74: ='From Labview'!AN73 -> 0.69
A75: ='Pre Delta'!A74 -> 3150 | B75: ='Post Delta'!B74-'Pre Delta'!B74 -> -0.161 | C75: ='Post Delta'!C74-'Pre Delta'!C74 -> 0.3548 | D75: ='Post Delta'!D74-'Pre Delta'!D74 -> 0.0687 | E75: ='Post Delta'!E74-'Pre Delta'!E74 -> 0.1108 | F75: ='Post Delta'!F74-'Pre Delta'!F74 -> 0.0463 | G75: ='Post Delta'!G74-'Pre Delta'!G74 -> 0.0765 | H75: ='Post Delta'!H74-'Pre Delta'!H74 -> 0.8095 | I75: ='Post Delta'!I74-'Pre Delta'!I74 -> 0.1679 | J75: ='Post Delta'!J74-'Pre Delta'!J74 -> 0.6084 | K75: ='Post Delta'!K74-'Pre Delta'!K74 -> 0.883 | M75: ='From Labview'!AG74 -> 3150 | N75: ='From Labview'!D74 -> -0.161 | O75: ='From Labview'!H74 -> 0.355 | P75: ='From Labview'!L74 -> 0.069 | Q75: ='From Labview'!P74 -> 0.111 | R75: ='From Labview'!S74 -> -0.127 | S75: ='From Labview'!X74 -> 0.077 | T75: ='From Labview'!AB74 -> 0.809 | U75: ='From Labview'!AF74 -> 0.168 | V75: ='From Labview'!AJ74 -> 0.608 | W75: ='From Labview'!AN74 -> 0.883
A76: ='Pre Delta'!A75 -> 3350 | B76: ='Post Delta'!B75-'Pre Delta'!B75 -> 0.194 | C76: ='Post Delta'!C75-'Pre Delta'!C75 -> 0.418 | D76: ='Post Delta'!D75-'Pre Delta'!D75 -> 0.0677 | E76: ='Post Delta'!E75-'Pre Delta'!E75 -> 0.1559 | F76: ='Post Delta'!F75-'Pre Delta'!F75 -> 0.0625 | G76: ='Post Delta'!G75-'Pre Delta'!G75 -> 0.121 | H76: ='Post Delta'!H75-'Pre Delta'!H75 -> 0.6855 | I76: ='Post Delta'!I75-'Pre Delta'!I75 -> 0.2209 | J76: ='Post Delta'!J75-'Pre Delta'!J75 -> 0.6785 | K76: ='Post Delta'!K75-'Pre Delta'!K75 -> 0.8643 | M76: ='From Labview'!AG75 -> 3350 | N76: ='From Labview'!D75 -> 0.194 | O76: ='From Labview'!H75 -> 0.418 | P76: ='From Labview'!L75 -> 0.068 | Q76: ='From Labview'!P75 -> 0.156 | R76: ='From Labview'!S75 -> -0.115 | S76: ='From Labview'!X75 -> 0.121 | T76: ='From Labview'!AB75 -> 0.685 | U76: ='From Labview'!AF75 -> 0.221 | V76: ='From Labview'!AJ75 -> 0.678 | W76: ='From Labview'!AN75 -> 0.864
A77: ='Pre Delta'!A76 -> 3550 | B77: ='Post Delta'!B76-'Pre Delta'!B76 -> 0.3029 | C77: ='Post Delta'!C76-'Pre Delta'!C76 -> 0.4123 | D77: ='Post Delta'!D76-'Pre Delta'!D76 -> 0.0628 | E77: ='Post Delta'!E76-'Pre Delta'!E76 -> 0.1633 | F77: ='Post Delta'!F76-'Pre Delta'!F76 -> 0.0836 | G77: ='Post Delta'!G76-'Pre Delta'!G76 -> 0.1639 | H77: ='Post Delta'!H76-'Pre Delta'!H76 -> 0.5336 | I77: ='Post Delta'!I76-'Pre Delta'!I76 -> 0.6469 | J77: ='Post Delta'!J76-'Pre Delta'!J76 -> 0.8096 | K77: ='Post Delta'!K76-'Pre Delta'!K76 -> 0.5183 | M77: ='From Labview'!AG76 -> 3550 | N77: ='From Labview'!D76 -> 0.303 | O77: ='From Labview'!H76 -> 0.412 | P77: ='From Labview'!L76 -> 0.063 | Q77: ='From Labview'!P76 -> 0.163 | R77: ='From Labview'!S76 -> -0.094 | S77: ='From Labview'!X76 -> 0.164 | T77: ='From Labview'!AB76 -> 0.534 | U77: ='From Labview'!AF76 -> 0.647 | V77: ='From Labview'!AJ76 -> 0.81 | W77: ='From Labview'!AN76 -> 0.518
A78: ='Pre Delta'!A77 -> 3750 | B78: ='Post Delta'!B77-'Pre Delta'!B77 -> 0.5177 | C78: ='Post Delta'!C77-'Pre Delta'!C77 -> 0.3892 | D78: ='Post Delta'!D77-'Pre Delta'!D77 -> 0.0365 | E78: ='Post Delta'!E77-'Pre Delta'!E77 -> 0.1211 | F78: ='Post Delta'!F77-'Pre Delta'!F77 -> 0.1011 | G78: ='Post Delta'!G77-'Pre Delta'!G77 -> 0.1732 | H78: ='Post Delta'!H77-'Pre Delta'!H77 -> 0.5773 | I78: ='Post Delta'!I77-'Pre Delta'!I77 -> 1.015 | J78: ='Post Delta'!J77-'Pre Delta'!J77 -> 1.0222 | K78: ='Post Delta'!K77-'Pre Delta'!K77 -> 0.288 | M78: ='From Labview'!AG77 -> 3750 | N78: ='From Labview'!D77 -> 0.518 | O78: ='From Labview'!H77 -> 0.389 | P78: ='From Labview'!L77 -> 0.036 | Q78: ='From Labview'!P77 -> 0.121 | R78: ='From Labview'!S77 -> -0.072 | S78: ='From Labview'!X77 -> 0.173 | T78: ='From Labview'!AB77 -> 0.577 | U78: ='From Labview'!AF77 -> 1.015 | V78: ='From Labview'!AJ77 -> 1.022 | W78: ='From Labview'!AN77 -> 0.288
A79: ='Pre Delta'!A78 -> 4000 | B79: ='Post Delta'!B78-'Pre Delta'!B78 -> 0.7029 | C79: ='Post Delta'!C78-'Pre Delta'!C78 -> 0.412 | D79: ='Post Delta'!D78-'Pre Delta'!D78 -> -0.017 | E79: ='Post Delta'!E78-'Pre Delta'!E78 -> 0.0484 | F79: ='Post Delta'!F78-'Pre Delta'!F78 -> 0.1116 | G79: ='Post Delta'!G78-'Pre Delta'!G78 -> 0.1366 | H79: ='Post Delta'!H78-'Pre Delta'!H78 -> 0.6637 | I79: ='Post Delta'!I78-'Pre Delta'!I78 -> 1.1711 | J79: ='Post Delta'!J78-'Pre Delta'!J78 -> 0.9229 | K79: ='Post Delta'!K78-'Pre Delta'!K78 -> 0.3289 | M79: ='From Labview'!AG78 -> 4000 | N79: ='From Labview'!D78 -> 0.703 | O79: ='From Labview'!H78 -> 0.412 | P79: ='From Labview'!L78 -> -0.017 | Q79: ='From Labview'!P78 -> 0.048 | R79: ='From Labview'!S78 -> -0.069 | S79: ='From Labview'!X78 -> 0.137 | T79: ='From Labview'!AB78 -> 0.664 | U79: ='From Labview'!AF78 -> 1.171 | V79: ='From Labview'!AJ78 -> 0.923 | W79: ='From Labview'!AN78 -> 0.329
A80: ='Pre Delta'!A79 -> 4250 | B80: ='Post Delta'!B79-'Pre Delta'!B79 -> 0.7499 | C80: ='Post Delta'!C79-'Pre Delta'!C79 -> 0.4965 | D80: ='Post Delta'!D79-'Pre Delta'!D79 -> -0.0461 | E80: ='Post Delta'!E79-'Pre Delta'!E79 -> -0.0353 | F80: ='Post Delta'!F79-'Pre Delta'!F79 -> 0.1052 | G80: ='Post Delta'!G79-'Pre Delta'!G79 -> 0.0875 | H80: ='Post Delta'!H79-'Pre Delta'!H79 -> 0.7863 | I80: ='Post Delta'!I79-'Pre Delta'!I79 -> 1.0351 | J80: ='Post Delta'!J79-'Pre Delta'!J79 -> 0.756 | K80: ='Post Delta'!K79-'Pre Delta'!K79 -> 0.4914 | M80: ='From Labview'!AG79 -> 4250 | N80: ='From Labview'!D79 -> 0.75 | O80: ='From Labview'!H79 -> 0.496 | P80: ='From Labview'!L79 -> -0.046 | Q80: ='From Labview'!P79 -> -0.035 | R80: ='From Labview'!S79 -> -0.108 | S80: ='From Labview'!X79 -> 0.087 | T80: ='From Labview'!AB79 -> 0.786 | U80: ='From Labview'!AF79 -> 1.035 | V80: ='From Labview'!AJ79 -> 0.756 | W80: ='From Labview'!AN79 -> 0.491
A81: ='Pre Delta'!A80 -> 4500 | B81: ='Post Delta'!B80-'Pre Delta'!B80 -> 0.766 | C81: ='Post Delta'!C80-'Pre Delta'!C80 -> 0.5685 | D81: ='Post Delta'!D80-'Pre Delta'!D80 -> 0.0074 | E81: ='Post Delta'!E80-'Pre Delta'!E80 -> -0.0837 | F81: ='Post Delta'!F80-'Pre Delta'!F80 -> 0.1386 | G81: ='Post Delta'!G80-'Pre Delta'!G80 -> 0.0477 | H81: ='Post Delta'!H80-'Pre Delta'!H80 -> 0.8636 | I81: ='Post Delta'!I80-'Pre Delta'!I80 -> 0.8958 | J81: ='Post Delta'!J80-'Pre Delta'!J80 -> 0.6956 | K81: ='Post Delta'!K80-'Pre Delta'!K80 -> 0.65 | M81: ='From Labview'!AG80 -> 4500 | N81: ='From Labview'!D80 -> 0.766 | O81: ='From Labview'!H80 -> 0.569 | P81: ='From Labview'!L80 -> 0.007 | Q81: ='From Labview'!P80 -> -0.084 | R81: ='From Labview'!S80 -> -0.145 | S81: ='From Labview'!X80 -> 0.048 | T81: ='From Labview'!AB80 -> 0.864 | U81: ='From Labview'!AF80 -> 0.896 | V81: ='From Labview'!AJ80 -> 0.696 | W81: ='From Labview'!AN80 -> 0.65
A82: ='Pre Delta'!A81 -> 4750 | B82: ='Post Delta'!B81-'Pre Delta'!B81 -> 0.7421 | C82: ='Post Delta'!C81-'Pre Delta'!C81 -> 0.6005 | D82: ='Post Delta'!D81-'Pre Delta'!D81 -> 0.0874 | E82: ='Post Delta'!E81-'Pre Delta'!E81 -> -0.0478 | F82: ='Post Delta'!F81-'Pre Delta'!F81 -> 0.1669 | G82: ='Post Delta'!G81-'Pre Delta'!G81 -> 0.0857 | H82: ='Post Delta'!H81-'Pre Delta'!H81 -> 0.8245 | I82: ='Post Delta'!I81-'Pre Delta'!I81 -> 0.7498 | J82: ='Post Delta'!J81-'Pre Delta'!J81 -> 0.703 | K82: ='Post Delta'!K81-'Pre Delta'!K81 -> 0.8706 | M82: ='From Labview'!AG81 -> 4750 | N82: ='From Labview'!D81 -> 0.742 | O82: ='From Labview'!H81 -> 0.6 | P82: ='From Labview'!L81 -> 0.087 | Q82: ='From Labview'!P81 -> -0.048 | R82: ='From Labview'!S81 -> -0.148 | S82: ='From Labview'!X81 -> 0.086 | T82: ='From Labview'!AB81 -> 0.824 | U82: ='From Labview'!AF81 -> 0.75 | V82: ='From Labview'!AJ81 -> 0.703 | W82: ='From Labview'!AN81 -> 0.871
A83: ='Pre Delta'!A82 -> 5000 | B83: ='Post Delta'!B82-'Pre Delta'!B82 -> 0.7135 | C83: ='Post Delta'!C82-'Pre Delta'!C82 -> 0.6166 | D83: ='Post Delta'!D82-'Pre Delta'!D82 -> 0.1228 | E83: ='Post Delta'!E82-'Pre Delta'!E82 -> 0.0905 | F83: ='Post Delta'!F82-'Pre Delta'!F82 -> 0.1638 | G83: ='Post Delta'!G82-'Pre Delta'!G82 -> 0.1288 | H83: ='Post Delta'!H82-'Pre Delta'!H82 -> 0.7183 | I83: ='Post Delta'!I82-'Pre Delta'!I82 -> 0.6392 | J83: ='Post Delta'!J82-'Pre Delta'!J82 -> 0.7547 | K83: ='Post Delta'!K82-'Pre Delta'!K82 -> 1.1277 | M83: ='From Labview'!AG82 -> 5000 | N83: ='From Labview'!D82 -> 0.714 | O83: ='From Labview'!H82 -> 0.617 | P83: ='From Labview'!L82 -> 0.123 | Q83: ='From Labview'!P82 -> 0.09 | R83: ='From Labview'!S82 -> -0.14 | S83: ='From Labview'!X82 -> 0.129 | T83: ='From Labview'!AB82 -> 0.718 | U83: ='From Labview'!AF82 -> 0.639 | V83: ='From Labview'!AJ82 -> 0.755 | W83: ='From Labview'!AN82 -> 1.128
A84: ='Pre Delta'!A83 -> 5300 | B84: ='Post Delta'!B83-'Pre Delta'!B83 -> 0.6239 | C84: ='Post Delta'!C83-'Pre Delta'!C83 -> 0.5668 | D84: ='Post Delta'!D83-'Pre Delta'!D83 -> 0.1093 | E84: ='Post Delta'!E83-'Pre Delta'!E83 -> 0.1729 | F84: ='Post Delta'!F83-'Pre Delta'!F83 -> 0.1682 | G84: ='Post Delta'!G83-'Pre Delta'!G83 -> 0.0978 | H84: ='Post Delta'!H83-'Pre Delta'!H83 -> 0.6028 | I84: ='Post Delta'!I83-'Pre Delta'!I83 -> 0.6069 | J84: ='Post Delta'!J83-'Pre Delta'!J83 -> 0.7404 | K84: ='Post Delta'!K83-'Pre Delta'!K83 -> 1.2572 | M84: ='From Labview'!AG83 -> 5300 | N84: ='From Labview'!D83 -> 0.624 | O84: ='From Labview'!H83 -> 0.567 | P84: ='From Labview'!L83 -> 0.109 | Q84: ='From Labview'!P83 -> 0.173 | R84: ='From Labview'!S83 -> -0.125 | S84: ='From Labview'!X83 -> 0.098 | T84: ='From Labview'!AB83 -> 0.603 | U84: ='From Labview'!AF83 -> 0.607 | V84: ='From Labview'!AJ83 -> 0.74 | W84: ='From Labview'!AN83 -> 1.257
A85: ='Pre Delta'!A84 -> 5600 | B85: ='Post Delta'!B84-'Pre Delta'!B84 -> 0.5138 | C85: ='Post Delta'!C84-'Pre Delta'!C84 -> 0.5007 | D85: ='Post Delta'!D84-'Pre Delta'!D84 -> 0.0869 | E85: ='Post Delta'!E84-'Pre Delta'!E84 -> 0.1637 | F85: ='Post Delta'!F84-'Pre Delta'!F84 -> 0.182 | G85: ='Post Delta'!G84-'Pre Delta'!G84 -> 0.0916 | H85: ='Post Delta'!H84-'Pre Delta'!H84 -> 0.4975 | I85: ='Post Delta'!I84-'Pre Delta'!I84 -> 0.5687 | J85: ='Post Delta'!J84-'Pre Delta'!J84 -> 0.6268 | K85: ='Post Delta'!K84-'Pre Delta'!K84 -> 1.0442 | M85: ='From Labview'!AG84 -> 5600 | N85: ='From Labview'!D84 -> 0.514 | O85: ='From Labview'!H84 -> 0.501 | P85: ='From Labview'!L84 -> 0.087 | Q85: ='From Labview'!P84 -> 0.164 | R85: ='From Labview'!S84 -> -0.104 | S85: ='From Labview'!X84 -> 0.092 | T85: ='From Labview'!AB84 -> 0.497 | U85: ='From Labview'!AF84 -> 0.569 | V85: ='From Labview'!AJ84 -> 0.627 | W85: ='From Labview'!AN84 -> 1.044
A86: ='Pre Delta'!A85 -> 6000 | B86: ='Post Delta'!B85-'Pre Delta'!B85 -> 0.4793 | C86: ='Post Delta'!C85-'Pre Delta'!C85 -> 0.4805 | D86: ='Post Delta'!D85-'Pre Delta'!D85 -> 0.1317 | E86: ='Post Delta'!E85-'Pre Delta'!E85 -> 0.1388 | F86: ='Post Delta'!F85-'Pre Delta'!F85 -> 0.2171 | G86: ='Post Delta'!G85-'Pre Delta'!G85 -> 0.1217 | H86: ='Post Delta'!H85-'Pre Delta'!H85 -> 0.4259 | I86: ='Post Delta'!I85-'Pre Delta'!I85 -> 0.4049 | J86: ='Post Delta'!J85-'Pre Delta'!J85 -> 0.5105 | K86: ='Post Delta'!K85-'Pre Delta'!K85 -> 0.6076 | M86: ='From Labview'!AG85 -> 6000 | N86: ='From Labview'!D85 -> 0.479 | O86: ='From Labview'!H85 -> 0.48 | P86: ='From Labview'!L85 -> 0.132 | Q86: ='From Labview'!P85 -> 0.139 | R86: ='From Labview'!S85 -> -0.1 | S86: ='From Labview'!X85 -> 0.122 | T86: ='From Labview'!AB85 -> 0.426 | U86: ='From Labview'!AF85 -> 0.405 | V86: ='From Labview'!AJ85 -> 0.51 | W86: ='From Labview'!AN85 -> 0.608
A87: ='Pre Delta'!A86 -> 6300 | B87: ='Post Delta'!B86-'Pre Delta'!B86 -> 0.4875 | C87: ='Post Delta'!C86-'Pre Delta'!C86 -> 0.4549 | D87: ='Post Delta'!D86-'Pre Delta'!D86 -> 0.2442 | E87: ='Post Delta'!E86-'Pre Delta'!E86 -> 0.1329 | F87: ='Post Delta'!F86-'Pre Delta'!F86 -> 0.1926 | G87: ='Post Delta'!G86-'Pre Delta'!G86 -> 0.1922 | H87: ='Post Delta'!H86-'Pre Delta'!H86 -> 0.4489 | I87: ='Post Delta'!I86-'Pre Delta'!I86 -> 0.1056 | J87: ='Post Delta'!J86-'Pre Delta'!J86 -> 0.4018 | K87: ='Post Delta'!K86-'Pre Delta'!K86 -> 0.4599 | M87: ='From Labview'!AG86 -> 6300 | N87: ='From Labview'!D86 -> 0.488 | O87: ='From Labview'!H86 -> 0.455 | P87: ='From Labview'!L86 -> 0.244 | Q87: ='From Labview'!P86 -> 0.133 | R87: ='From Labview'!S86 -> -0.153 | S87: ='From Labview'!X86 -> 0.192 | T87: ='From Labview'!AB86 -> 0.449 | U87: ='From Labview'!AF86 -> 0.106 | V87: ='From Labview'!AJ86 -> 0.402 | W87: ='From Labview'!AN86 -> 0.46
A88: ='Pre Delta'!A87 -> 6700 | B88: ='Post Delta'!B87-'Pre Delta'!B87 -> 0.4927 | C88: ='Post Delta'!C87-'Pre Delta'!C87 -> 0.4312 | D88: ='Post Delta'!D87-'Pre Delta'!D87 -> 0.204 | E88: ='Post Delta'!E87-'Pre Delta'!E87 -> 0.1701 | F88: ='Post Delta'!F87-'Pre Delta'!F87 -> 0.0909 | G88: ='Post Delta'!G87-'Pre Delta'!G87 -> 0.2886 | H88: ='Post Delta'!H87-'Pre Delta'!H87 -> 0.5835 | I88: ='Post Delta'!I87-'Pre Delta'!I87 -> -0.1143 | J88: ='Post Delta'!J87-'Pre Delta'!J87 -> 0.0989 | K88: ='Post Delta'!K87-'Pre Delta'!K87 -> 0.6974 | M88: ='From Labview'!AG87 -> 6700 | N88: ='From Labview'!D87 -> 0.493 | O88: ='From Labview'!H87 -> 0.431 | P88: ='From Labview'!L87 -> 0.204 | Q88: ='From Labview'!P87 -> 0.17 | R88: ='From Labview'!S87 -> -0.186 | S88: ='From Labview'!X87 -> 0.289 | T88: ='From Labview'!AB87 -> 0.584 | U88: ='From Labview'!AF87 -> -0.114 | V88: ='From Labview'!AJ87 -> 0.099 | W88: ='From Labview'!AN87 -> 0.697
A89: ='Pre Delta'!A88 -> 7100 | B89: ='Post Delta'!B88-'Pre Delta'!B88 -> 0.4785 | C89: ='Post Delta'!C88-'Pre Delta'!C88 -> 0.4042 | D89: ='Post Delta'!D88-'Pre Delta'!D88 -> 0.089 | E89: ='Post Delta'!E88-'Pre Delta'!E88 -> 0.2991 | F89: ='Post Delta'!F88-'Pre Delta'!F88 -> 0.0585 | G89: ='Post Delta'!G88-'Pre Delta'!G88 -> 0.3593 | H89: ='Post Delta'!H88-'Pre Delta'!H88 -> 0.6777 | I89: ='Post Delta'!I88-'Pre Delta'!I88 -> -0.1423 | J89: ='Post Delta'!J88-'Pre Delta'!J88 -> -0.4805 | K89: ='Post Delta'!K88-'Pre Delta'!K88 -> 1.2511 | M89: ='From Labview'!AG88 -> 7100 | N89: ='From Labview'!D88 -> 0.479 | O89: ='From Labview'!H88 -> 0.404 | P89: ='From Labview'!L88 -> 0.089 | Q89: ='From Labview'!P88 -> 0.299 | R89: ='From Labview'!S88 -> -0.161 | S89: ='From Labview'!X88 -> 0.359 | T89: ='From Labview'!AB88 -> 0.678 | U89: ='From Labview'!AF88 -> -0.142 | V89: ='From Labview'!AJ88 -> -0.481 | W89: ='From Labview'!AN88 -> 1.251
A90: ='Pre Delta'!A89 -> 7500 | B90: ='Post Delta'!B89-'Pre Delta'!B89 -> 0.4285 | C90: ='Post Delta'!C89-'Pre Delta'!C89 -> 0.3767 | D90: ='Post Delta'!D89-'Pre Delta'!D89 -> 0.0304 | E90: ='Post Delta'!E89-'Pre Delta'!E89 -> 0.4092 | F90: ='Post Delta'!F89-'Pre Delta'!F89 -> 0.1065 | G90: ='Post Delta'!G89-'Pre Delta'!G89 -> 0.3656 | H90: ='Post Delta'!H89-'Pre Delta'!H89 -> 0.5532 | I90: ='Post Delta'!I89-'Pre Delta'!I89 -> -0.0435 | J90: ='Post Delta'!J89-'Pre Delta'!J89 -> -0.8294 | K90: ='Post Delta'!K89-'Pre Delta'!K89 -> 1.481 | M90: ='From Labview'!AG89 -> 7500 | N90: ='From Labview'!D89 -> 0.429 | O90: ='From Labview'!H89 -> 0.377 | P90: ='From Labview'!L89 -> 0.03 | Q90: ='From Labview'!P89 -> 0.409 | R90: ='From Labview'!S89 -> -0.124 | S90: ='From Labview'!X89 -> 0.366 | T90: ='From Labview'!AB89 -> 0.553 | U90: ='From Labview'!AF89 -> -0.043 | V90: ='From Labview'!AJ89 -> -0.829 | W90: ='From Labview'!AN89 -> 1.481
A91: ='Pre Delta'!A90 -> 8000 | B91: ='Post Delta'!B90-'Pre Delta'!B90 -> 0.36 | C91: ='Post Delta'!C90-'Pre Delta'!C90 -> 0.364 | D91: ='Post Delta'!D90-'Pre Delta'!D90 -> 0.1262 | E91: ='Post Delta'!E90-'Pre Delta'!E90 -> 0.4818 | F91: ='Post Delta'!F90-'Pre Delta'!F90 -> 0.1966 | G91: ='Post Delta'!G90-'Pre Delta'!G90 -> 0.3303 | H91: ='Post Delta'!H90-'Pre Delta'!H90 -> 0.3824 | I91: ='Post Delta'!I90-'Pre Delta'!I90 -> 0.0773 | J91: ='Post Delta'!J90-'Pre Delta'!J90 -> -0.8097 | K91: ='Post Delta'!K90-'Pre Delta'!K90 -> 1.0741 | M91: ='From Labview'!AG90 -> 8000 | N91: ='From Labview'!D90 -> 0.36 | O91: ='From Labview'!H90 -> 0.364 | P91: ='From Labview'!L90 -> 0.126 | Q91: ='From Labview'!P90 -> 0.482 | R91: ='From Labview'!S90 -> -0.127 | S91: ='From Labview'!X90 -> 0.33 | T91: ='From Labview'!AB90 -> 0.382 | U91: ='From Labview'!AF90 -> 0.077 | V91: ='From Labview'!AJ90 -> -0.81 | W91: ='From Labview'!AN90 -> 1.074
A92: ='Pre Delta'!A91 -> 8500 | B92: ='Post Delta'!B91-'Pre Delta'!B91 -> 0.288 | C92: ='Post Delta'!C91-'Pre Delta'!C91 -> 0.3479 | D92: ='Post Delta'!D91-'Pre Delta'!D91 -> 0.2264 | E92: ='Post Delta'!E91-'Pre Delta'!E91 -> 0.5166 | F92: ='Post Delta'!F91-'Pre Delta'!F91 -> 0.2027 | G92: ='Post Delta'!G91-'Pre Delta'!G91 -> 0.2295 | H92: ='Post Delta'!H91-'Pre Delta'!H91 -> 0.3169 | I92: ='Post Delta'!I91-'Pre Delta'!I91 -> 0.1778 | J92: ='Post Delta'!J91-'Pre Delta'!J91 -> -0.6727 | K92: ='Post Delta'!K91-'Pre Delta'!K91 -> 0.5761 | M92: ='From Labview'!AG91 -> 8500 | N92: ='From Labview'!D91 -> 0.288 | O92: ='From Labview'!H91 -> 0.348 | P92: ='From Labview'!L91 -> 0.226 | Q92: ='From Labview'!P91 -> 0.517 | R92: ='From Labview'!S91 -> -0.156 | S92: ='From Labview'!X91 -> 0.23 | T92: ='From Labview'!AB91 -> 0.317 | U92: ='From Labview'!AF91 -> 0.178 | V92: ='From Labview'!AJ91 -> -0.673 | W92: ='From Labview'!AN91 -> 0.576
A93: ='Pre Delta'!A92 -> 9000 | B93: ='Post Delta'!B92-'Pre Delta'!B92 -> 0.2501 | C93: ='Post Delta'!C92-'Pre Delta'!C92 -> 0.3422 | D93: ='Post Delta'!D92-'Pre Delta'!D92 -> 0.214 | E93: ='Post Delta'!E92-'Pre Delta'!E92 -> 0.3584 | F93: ='Post Delta'!F92-'Pre Delta'!F92 -> 0.1742 | G93: ='Post Delta'!G92-'Pre Delta'!G92 -> 0.0801 | H93: ='Post Delta'!H92-'Pre Delta'!H92 -> 0.2768 | I93: ='Post Delta'!I92-'Pre Delta'!I92 -> 0.1308 | J93: ='Post Delta'!J92-'Pre Delta'!J92 -> -0.6816 | K93: ='Post Delta'!K92-'Pre Delta'!K92 -> 0.4117 | M93: ='From Labview'!AG92 -> 9000 | N93: ='From Labview'!D92 -> 0.25 | O93: ='From Labview'!H92 -> 0.342 | P93: ='From Labview'!L92 -> 0.214 | Q93: ='From Labview'!P92 -> 0.358 | R93: ='From Labview'!S92 -> -0.175 | S93: ='From Labview'!X92 -> 0.08 | T93: ='From Labview'!AB92 -> 0.277 | U93: ='From Labview'!AF92 -> 0.131 | V93: ='From Labview'!AJ92 -> -0.682 | W93: ='From Labview'!AN92 -> 0.412
A94: ='Pre Delta'!A93 -> 9500 | B94: ='Post Delta'!B93-'Pre Delta'!B93 -> 0.2603 | C94: ='Post Delta'!C93-'Pre Delta'!C93 -> 0.3276 | D94: ='Post Delta'!D93-'Pre Delta'!D93 -> 0.2457 | E94: ='Post Delta'!E93-'Pre Delta'!E93 -> 0.2099 | F94: ='Post Delta'!F93-'Pre Delta'!F93 -> 0.1815 | G94: ='Post Delta'!G93-'Pre Delta'!G93 -> 0.0538 | H94: ='Post Delta'!H93-'Pre Delta'!H93 -> 0.0846 | I94: ='Post Delta'!I93-'Pre Delta'!I93 -> -0.0715 | J94: ='Post Delta'!J93-'Pre Delta'!J93 -> -0.3398 | K94: ='Post Delta'!K93-'Pre Delta'!K93 -> 0.5566 | M94: ='From Labview'!AG93 -> 9500 | N94: ='From Labview'!D93 -> 0.26 | O94: ='From Labview'!H93 -> 0.328 | P94: ='From Labview'!L93 -> 0.246 | Q94: ='From Labview'!P93 -> 0.21 | R94: ='From Labview'!S93 -> -0.181 | S94: ='From Labview'!X93 -> 0.054 | T94: ='From Labview'!AB93 -> 0.085 | U94: ='From Labview'!AF93 -> -0.071 | V94: ='From Labview'!AJ93 -> -0.34 | W94: ='From Labview'!AN93 -> 0.557
A95: ='Pre Delta'!A94 -> 10000 | B95: ='Post Delta'!B94-'Pre Delta'!B94 -> 0.3196 | C95: ='Post Delta'!C94-'Pre Delta'!C94 -> 0.3532 | D95: ='Post Delta'!D94-'Pre Delta'!D94 -> 0.3272 | E95: ='Post Delta'!E94-'Pre Delta'!E94 -> 0.2166 | F95: ='Post Delta'!F94-'Pre Delta'!F94 -> 0.1905 | G95: ='Post Delta'!G94-'Pre Delta'!G94 -> 0.1031 | H95: ='Post Delta'!H94-'Pre Delta'!H94 -> -0.2168 | I95: ='Post Delta'!I94-'Pre Delta'!I94 -> -0.3241 | J95: ='Post Delta'!J94-'Pre Delta'!J94 -> 0.78 | K95: ='Post Delta'!K94-'Pre Delta'!K94 -> 0.5192 | M95: ='From Labview'!AG94 -> 10000 | N95: ='From Labview'!D94 -> 0.32 | O95: ='From Labview'!H94 -> 0.353 | P95: ='From Labview'!L94 -> 0.327 | Q95: ='From Labview'!P94 -> 0.217 | R95: ='From Labview'!S94 -> -0.152 | S95: ='From Labview'!X94 -> 0.103 | T95: ='From Labview'!AB94 -> -0.217 | U95: ='From Labview'!AF94 -> -0.324 | V95: ='From Labview'!AJ94 -> 0.78 | W95: ='From Labview'!AN94 -> 0.519
A96: ='Pre Delta'!A95 -> 10600 | B96: ='Post Delta'!B95-'Pre Delta'!B95 -> 0.3542 | C96: ='Post Delta'!C95-'Pre Delta'!C95 -> 0.4173 | D96: ='Post Delta'!D95-'Pre Delta'!D95 -> 0.2936 | E96: ='Post Delta'!E95-'Pre Delta'!E95 -> 0.2142 | F96: ='Post Delta'!F95-'Pre Delta'!F95 -> 0.1093 | G96: ='Post Delta'!G95-'Pre Delta'!G95 -> 0.0814 | H96: ='Post Delta'!H95-'Pre Delta'!H95 -> -0.0124 | I96: ='Post Delta'!I95-'Pre Delta'!I95 -> -0.4372 | J96: ='Post Delta'!J95-'Pre Delta'!J95 -> 1.8747 | K96: ='Post Delta'!K95-'Pre Delta'!K95 -> 0.1854 | M96: ='From Labview'!AG95 -> 10600 | N96: ='From Labview'!D95 -> 0.354 | O96: ='From Labview'!H95 -> 0.417 | P96: ='From Labview'!L95 -> 0.294 | Q96: ='From Labview'!P95 -> 0.214 | R96: ='From Labview'!S95 -> -0.167 | S96: ='From Labview'!X95 -> 0.081 | T96: ='From Labview'!AB95 -> -0.012 | U96: ='From Labview'!AF95 -> -0.437 | V96: ='From Labview'!AJ95 -> 1.875 | W96: ='From Labview'!AN95 -> 0.185
A97: ='Pre Delta'!A96 -> 11200 | B97: ='Post Delta'!B96-'Pre Delta'!B96 -> 0.385 | C97: ='Post Delta'!C96-'Pre Delta'!C96 -> 0.48 | D97: ='Post Delta'!D96-'Pre Delta'!D96 -> 0.2369 | E97: ='Post Delta'!E96-'Pre Delta'!E96 -> 0.0783 | F97: ='Post Delta'!F96-'Pre Delta'!F96 -> 0.134 | G97: ='Post Delta'!G96-'Pre Delta'!G96 -> 0.0669 | H97: ='Post Delta'!H96-'Pre Delta'!H96 -> 0.8818 | I97: ='Post Delta'!I96-'Pre Delta'!I96 -> -0.3317 | J97: ='Post Delta'!J96-'Pre Delta'!J96 -> 2.2909 | K97: ='Post Delta'!K96-'Pre Delta'!K96 -> -0.2403 | M97: ='From Labview'!AG96 -> 11200 | N97: ='From Labview'!D96 -> 0.385 | O97: ='From Labview'!H96 -> 0.48 | P97: ='From Labview'!L96 -> 0.237 | Q97: ='From Labview'!P96 -> 0.078 | R97: ='From Labview'!S96 -> -0.201 | S97: ='From Labview'!X96 -> 0.067 | T97: ='From Labview'!AB96 -> 0.882 | U97: ='From Labview'!AF96 -> -0.332 | V97: ='From Labview'!AJ96 -> 2.291 | W97: ='From Labview'!AN96 -> -0.24
A98: ='Pre Delta'!A97 -> 11800 | B98: ='Post Delta'!B97-'Pre Delta'!B97 -> 0.412 | C98: ='Post Delta'!C97-'Pre Delta'!C97 -> 0.4964 | D98: ='Post Delta'!D97-'Pre Delta'!D97 -> 0.2454 | E98: ='Post Delta'!E97-'Pre Delta'!E97 -> 0.1065 | F98: ='Post Delta'!F97-'Pre Delta'!F97 -> 0.2348 | G98: ='Post Delta'!G97-'Pre Delta'!G97 -> 0.0957 | H98: ='Post Delta'!H97-'Pre Delta'!H97 -> 1.2657 | I98: ='Post Delta'!I97-'Pre Delta'!I97 -> -0.3128 | J98: ='Post Delta'!J97-'Pre Delta'!J97 -> 2.3129 | K98: ='Post Delta'!K97-'Pre Delta'!K97 -> -0.0623 | M98: ='From Labview'!AG97 -> 11800 | N98: ='From Labview'!D97 -> 0.412 | O98: ='From Labview'!H97 -> 0.496 | P98: ='From Labview'!L97 -> 0.245 | Q98: ='From Labview'!P97 -> 0.106 | R98: ='From Labview'!S97 -> -0.208 | S98: ='From Labview'!X97 -> 0.096 | T98: ='From Labview'!AB97 -> 1.266 | U98: ='From Labview'!AF97 -> -0.313 | V98: ='From Labview'!AJ97 -> 2.313 | W98: ='From Labview'!AN97 -> -0.062
A99: ='Pre Delta'!A98 -> 12500 | B99: ='Post Delta'!B98-'Pre Delta'!B98 -> 0.3654 | C99: ='Post Delta'!C98-'Pre Delta'!C98 -> 0.4417 | D99: ='Post Delta'!D98-'Pre Delta'!D98 -> 0.3361 | E99: ='Post Delta'!E98-'Pre Delta'!E98 -> 0.2694 | F99: ='Post Delta'!F98-'Pre Delta'!F98 -> 0.256 | G99: ='Post Delta'!G98-'Pre Delta'!G98 -> 0.1265 | H99: ='Post Delta'!H98-'Pre Delta'!H98 -> 0.9541 | I99: ='Post Delta'!I98-'Pre Delta'!I98 -> -0.6765 | J99: ='Post Delta'!J98-'Pre Delta'!J98 -> 2.0613 | K99: ='Post Delta'!K98-'Pre Delta'!K98 -> 0.4553 | M99: ='From Labview'!AG98 -> 12500 | N99: ='From Labview'!D98 -> 0.365 | O99: ='From Labview'!H98 -> 0.442 | P99: ='From Labview'!L98 -> 0.336 | Q99: ='From Labview'!P98 -> 0.269 | R99: ='From Labview'!S98 -> -0.23 | S99: ='From Labview'!X98 -> 0.126 | T99: ='From Labview'!AB98 -> 0.954 | U99: ='From Labview'!AF98 -> -0.677 | V99: ='From Labview'!AJ98 -> 2.061 | W99: ='From Labview'!AN98 -> 0.455
A100: ='Pre Delta'!A99 -> 13200 | B100: ='Post Delta'!B99-'Pre Delta'!B99 -> 0.2966 | C100: ='Post Delta'!C99-'Pre Delta'!C99 -> 0.3391 | D100: ='Post Delta'!D99-'Pre Delta'!D99 -> 0.3673 | E100: ='Post Delta'!E99-'Pre Delta'!E99 -> 0.3602 | F100: ='Post Delta'!F99-'Pre Delta'!F99 -> 0.305 | G100: ='Post Delta'!G99-'Pre Delta'!G99 -> 0.1548 | H100: ='Post Delta'!H99-'Pre Delta'!H99 -> 0.5078 | I100: ='Post Delta'!I99-'Pre Delta'!I99 -> -0.9847 | J100: ='Post Delta'!J99-'Pre Delta'!J99 -> 1.5944 | K100: ='Post Delta'!K99-'Pre Delta'!K99 -> 0.7229 | M100: ='From Labview'!AG99 -> 13200 | N100: ='From Labview'!D99 -> 0.297 | O100: ='From Labview'!H99 -> 0.339 | P100: ='From Labview'!L99 -> 0.367 | Q100: ='From Labview'!P99 -> 0.36 | R100: ='From Labview'!S99 -> -0.241 | S100: ='From Labview'!X99 -> 0.155 | T100: ='From Labview'!AB99 -> 0.508 | U100: ='From Labview'!AF99 -> -0.985 | V100: ='From Labview'!AJ99 -> 1.594 | W100: ='From Labview'!AN99 -> 0.723
A101: ='Pre Delta'!A100 -> 14000 | B101: ='Post Delta'!B100-'Pre Delta'!B100 -> 0.3584 | C101: ='Post Delta'!C100-'Pre Delta'!C100 -> 0.375 | D101: ='Post Delta'!D100-'Pre Delta'!D100 -> 0.2972 | E101: ='Post Delta'!E100-'Pre Delta'!E100 -> 0.4077 | F101: ='Post Delta'!F100-'Pre Delta'!F100 -> 0.4929 | G101: ='Post Delta'!G100-'Pre Delta'!G100 -> 0.1629 | H101: ='Post Delta'!H100-'Pre Delta'!H100 -> 0.1155 | I101: ='Post Delta'!I100-'Pre Delta'!I100 -> -1.0187 | J101: ='Post Delta'!J100-'Pre Delta'!J100 -> 1.173 | K101: ='Post Delta'!K100-'Pre Delta'!K100 -> 0.6203 | M101: ='From Labview'!AG100 -> 14000 | N101: ='From Labview'!D100 -> 0.358 | O101: ='From Labview'!H100 -> 0.375 | P101: ='From Labview'!L100 -> 0.297 | Q101: ='From Labview'!P100 -> 0.408 | R101: ='From Labview'!S100 -> -0.276 | S101: ='From Labview'!X100 -> 0.163 | T101: ='From Labview'!AB100 -> 0.116 | U101: ='From Labview'!AF100 -> -1.019 | V101: ='From Labview'!AJ100 -> 1.173 | W101: ='From Labview'!AN100 -> 0.62
A102: ='Pre Delta'!A101 -> 15000 | B102: ='Post Delta'!B101-'Pre Delta'!B101 -> 0.525 | C102: ='Post Delta'!C101-'Pre Delta'!C101 -> 0.5451 | D102: ='Post Delta'!D101-'Pre Delta'!D101 -> 0.2919 | E102: ='Post Delta'!E101-'Pre Delta'!E101 -> 0.5425 | F102: ='Post Delta'!F101-'Pre Delta'!F101 -> 0.4614 | G102: ='Post Delta'!G101-'Pre Delta'!G101 -> 0.156 | H102: ='Post Delta'!H101-'Pre Delta'!H101 -> -0.1845 | I102: ='Post Delta'!I101-'Pre Delta'!I101 -> -0.8423 | J102: ='Post Delta'!J101-'Pre Delta'!J101 -> 1.0082 | K102: ='Post Delta'!K101-'Pre Delta'!K101 -> 0.1498 | M102: ='From Labview'!AG101 -> 15000 | N102: ='From Labview'!D101 -> 0.525 | O102: ='From Labview'!H101 -> 0.545 | P102: ='From Labview'!L101 -> 0.292 | Q102: ='From Labview'!P101 -> 0.542 | R102: ='From Labview'!S101 -> -0.327 | S102: ='From Labview'!X101 -> 0.156 | T102: ='From Labview'!AB101 -> -0.184 | U102: ='From Labview'!AF101 -> -0.842 | V102: ='From Labview'!AJ101 -> 1.008 | W102: ='From Labview'!AN101 -> 0.15
A103: ='Pre Delta'!A102 -> 16000 | B103: ='Post Delta'!B102-'Pre Delta'!B102 -> 0.4306 | C103: ='Post Delta'!C102-'Pre Delta'!C102 -> 0.4511 | D103: ='Post Delta'!D102-'Pre Delta'!D102 -> 0.2596 | E103: ='Post Delta'!E102-'Pre Delta'!E102 -> 0.5128 | F103: ='Post Delta'!F102-'Pre Delta'!F102 -> 0.2107 | G103: ='Post Delta'!G102-'Pre Delta'!G102 -> 0.0917 | H103: ='Post Delta'!H102-'Pre Delta'!H102 -> -0.4312 | I103: ='Post Delta'!I102-'Pre Delta'!I102 -> -0.7507 | J103: ='Post Delta'!J102-'Pre Delta'!J102 -> 0.9213 | K103: ='Post Delta'!K102-'Pre Delta'!K102 -> -0.3247 | M103: ='From Labview'!AG102 -> 16000 | N103: ='From Labview'!D102 -> 0.431 | O103: ='From Labview'!H102 -> 0.451 | P103: ='From Labview'!L102 -> 0.26 | Q103: ='From Labview'!P102 -> 0.513 | R103: ='From Labview'!S102 -> -0.333 | S103: ='From Labview'!X102 -> 0.092 | T103: ='From Labview'!AB102 -> -0.431 | U103: ='From Labview'!AF102 -> -0.751 | V103: ='From Labview'!AJ102 -> 0.921 | W103: ='From Labview'!AN102 -> -0.325
A104: ='Pre Delta'!A103 -> 17000 | B104: ='Post Delta'!B103-'Pre Delta'!B103 -> 0.311 | C104: ='Post Delta'!C103-'Pre Delta'!C103 -> 0.3111 | D104: ='Post Delta'!D103-'Pre Delta'!D103 -> 0.2836 | E104: ='Post Delta'!E103-'Pre Delta'!E103 -> 0.351 | F104: ='Post Delta'!F103-'Pre Delta'!F103 -> -0.0251 | G104: ='Post Delta'!G103-'Pre Delta'!G103 -> 0.0236 | H104: ='Post Delta'!H103-'Pre Delta'!H103 -> -0.5881 | I104: ='Post Delta'!I103-'Pre Delta'!I103 -> -0.7697 | J104: ='Post Delta'!J103-'Pre Delta'!J103 -> 0.5899 | K104: ='Post Delta'!K103-'Pre Delta'!K103 -> -0.6249 | M104: ='From Labview'!AG103 -> 17000 | N104: ='From Labview'!D103 -> 0.311 | O104: ='From Labview'!H103 -> 0.311 | P104: ='From Labview'!L103 -> 0.284 | Q104: ='From Labview'!P103 -> 0.351 | R104: ='From Labview'!S103 -> -0.257 | S104: ='From Labview'!X103 -> 0.024 | T104: ='From Labview'!AB103 -> -0.588 | U104: ='From Labview'!AF103 -> -0.77 | V104: ='From Labview'!AJ103 -> 0.59 | W104: ='From Labview'!AN103 -> -0.625
A105: ='Pre Delta'!A104 -> 18000 | B105: ='Post Delta'!B104-'Pre Delta'!B104 -> 0.2097 | C105: ='Post Delta'!C104-'Pre Delta'!C104 -> 0.1824 | D105: ='Post Delta'!D104-'Pre Delta'!D104 -> 0.3024 | E105: ='Post Delta'!E104-'Pre Delta'!E104 -> 0.1487 | F105: ='Post Delta'!F104-'Pre Delta'!F104 -> -0.1567 | G105: ='Post Delta'!G104-'Pre Delta'!G104 -> -0.0131 | H105: ='Post Delta'!H104-'Pre Delta'!H104 -> -0.7285 | I105: ='Post Delta'!I104-'Pre Delta'!I104 -> -0.7866 | J105: ='Post Delta'!J104-'Pre Delta'!J104 -> 0.1151 | K105: ='Post Delta'!K104-'Pre Delta'!K104 -> -0.7312 | M105: ='From Labview'!AG104 -> 18000 | N105: ='From Labview'!D104 -> 0.21 | O105: ='From Labview'!H104 -> 0.182 | P105: ='From Labview'!L104 -> 0.302 | Q105: ='From Labview'!P104 -> 0.149 | R105: ='From Labview'!S104 -> -0.136 | S105: ='From Labview'!X104 -> -0.013 | T105: ='From Labview'!AB104 -> -0.729 | U105: ='From Labview'!AF104 -> -0.787 | V105: ='From Labview'!AJ104 -> 0.115 | W105: ='From Labview'!AN104 -> -0.731
A106: ='Pre Delta'!A105 -> 19000 | B106: ='Post Delta'!B105-'Pre Delta'!B105 -> -0.0912 | C106: ='Post Delta'!C105-'Pre Delta'!C105 -> -0.1661 | D106: ='Post Delta'!D105-'Pre Delta'!D105 -> 0.2563 | E106: ='Post Delta'!E105-'Pre Delta'!E105 -> -0.0731 | F106: ='Post Delta'!F105-'Pre Delta'!F105 -> -0.1892 | G106: ='Post Delta'!G105-'Pre Delta'!G105 -> -0.0073 | H106: ='Post Delta'!H105-'Pre Delta'!H105 -> -0.8698 | I106: ='Post Delta'!I105-'Pre Delta'!I105 -> -0.7406 | J106: ='Post Delta'!J105-'Pre Delta'!J105 -> -0.3818 | K106: ='Post Delta'!K105-'Pre Delta'!K105 -> -0.562 | M106: ='From Labview'!AG105 -> 19000 | N106: ='From Labview'!D105 -> -0.091 | O106: ='From Labview'!H105 -> -0.166 | P106: ='From Labview'!L105 -> 0.256 | Q106: ='From Labview'!P105 -> -0.073 | R106: ='From Labview'!S105 -> -0.003 | S106: ='From Labview'!X105 -> -0.007 | T106: ='From Labview'!AB105 -> -0.87 | U106: ='From Labview'!AF105 -> -0.741 | V106: ='From Labview'!AJ105 -> -0.382 | W106: ='From Labview'!AN105 -> -0.562
A107: ='Pre Delta'!A106 -> 20000 | B107: ='Post Delta'!B106-'Pre Delta'!B106 -> -0.3858 | C107: ='Post Delta'!C106-'Pre Delta'!C106 -> -0.5373 | D107: ='Post Delta'!D106-'Pre Delta'!D106 -> 0.1795 | E107: ='Post Delta'!E106-'Pre Delta'!E106 -> -0.2484 | F107: ='Post Delta'!F106-'Pre Delta'!F106 -> -0.1664 | G107: ='Post Delta'!G106-'Pre Delta'!G106 -> 0.037 | H107: ='Post Delta'!H106-'Pre Delta'!H106 -> -1.0079 | I107: ='Post Delta'!I106-'Pre Delta'!I106 -> -0.5398 | J107: ='Post Delta'!J106-'Pre Delta'!J106 -> -0.6844 | K107: ='Post Delta'!K106-'Pre Delta'!K106 -> 0.0947 | M107: ='From Labview'!AG106 -> 20000 | N107: ='From Labview'!D106 -> -0.386 | O107: ='From Labview'!H106 -> -0.537 | P107: ='From Labview'!L106 -> 0.18 | Q107: ='From Labview'!P106 -> -0.248 | R107: ='From Labview'!S106 -> 0.114 | S107: ='From Labview'!X106 -> 0.037 | T107: ='From Labview'!AB106 -> -1.008 | U107: ='From Labview'!AF106 -> -0.54 | V107: ='From Labview'!AJ106 -> -0.684 | W107: ='From Labview'!AN106 -> 0.095
A108: ='Pre Delta'!A107 -> 21200 | B108: ='Post Delta'!B107-'Pre Delta'!B107 -> -3.6958 | C108: ='Post Delta'!C107-'Pre Delta'!C107 -> -3.5346 | D108: ='Post Delta'!D107-'Pre Delta'!D107 -> 0.0053 | E108: ='Post Delta'!E107-'Pre Delta'!E107 -> -0.3415 | F108: ='Post Delta'!F107-'Pre Delta'!F107 -> -0.1281 | G108: ='Post Delta'!G107-'Pre Delta'!G107 -> 0.0668 | H108: ='Post Delta'!H107-'Pre Delta'!H107 -> -3.8091 | I108: ='Post Delta'!I107-'Pre Delta'!I107 -> -3.6821 | J108: ='Post Delta'!J107-'Pre Delta'!J107 -> -3.3556 | K108: ='Post Delta'!K107-'Pre Delta'!K107 -> -5.2528 | M108: ='From Labview'!AG107 -> 21200 | N108: ='From Labview'!D107 -> -3.696 | O108: ='From Labview'!H107 -> -3.535 | P108: ='From Labview'!L107 -> 0.005 | Q108: ='From Labview'!P107 -> -0.342 | R108: ='From Labview'!S107 -> 0.261 | S108: ='From Labview'!X107 -> 0.067 | T108: ='From Labview'!AB107 -> -3.809 | U108: ='From Labview'!AF107 -> -3.682 | V108: ='From Labview'!AJ107 -> -3.356 | W108: ='From Labview'!AN107 -> -5.253
A109: ='Pre Delta'!A108 -> 22400 | B109: ='Post Delta'!B108-'Pre Delta'!B108 -> -3.2422 | C109: ='Post Delta'!C108-'Pre Delta'!C108 -> -3.4934 | D109: ='Post Delta'!D108-'Pre Delta'!D108 -> 0.1704 | E109: ='Post Delta'!E108-'Pre Delta'!E108 -> -0.5092 | F109: ='Post Delta'!F108-'Pre Delta'!F108 -> -0.7436 | G109: ='Post Delta'!G108-'Pre Delta'!G108 -> -0.523 | H109: ='Post Delta'!H108-'Pre Delta'!H108 -> -955.1519 | I109: ='Post Delta'!I108-'Pre Delta'!I108 -> -948.7489 | J109: ='Post Delta'!J108-'Pre Delta'!J108 -> -934.7838 | K109: ='Post Delta'!K108-'Pre Delta'!K108 -> -953.4531 | M109: ='From Labview'!AG108 -> 22400 | N109: ='From Labview'!D108 -> -3.242 | O109: ='From Labview'!H108 -> -3.493 | P109: ='From Labview'!L108 -> 0.17 | Q109: ='From Labview'!P108 -> -0.509 | R109: ='From Labview'!S108 -> -0.219 | S109: ='From Labview'!X108 -> -0.523 | T109: ='From Labview'!AB108 -> -955.152 | U109: ='From Labview'!AF108 -> -948.749 | V109: ='From Labview'!AJ108 -> -934.784 | W109: ='From Labview'!AN108 -> -953.453

Sheet Pre Delta
A1: ='[1]FR - Smoothed DUTL Left'!A1 -> Frequecy | B1: ='[1]FR - Smoothed DUTL Left'!B1 -> DTUL L | C1: ='[1]FR - Smoothed DUTL Right'!B1 -> DTUL R | D1: ='[1]FR - Smoothed DUTL Mic1'!B1 -> Mic1 | E1: ='[1]FR - Smoothed DUTL Mic2'!B1 -> Mic2 | F1: ='[1]FR - Smoothed DUTL Mic3'!B1 -> Mic3 | G1: ='[1]FR - Smoothed DUTL Mic4'!B1 -> Mic4 | H1: ='[1]FR - Smoothed Self DUTL Mic1'!B1 -> Self Mic1 | I1: ='[1]FR - Smoothed Self DUTL Mic2'!B1 -> Self Mic2 | J1: ='[1]FR - Smoothed Self DUTL Mic3'!B1 -> Self Mic3 | K1: ='[1]FR - Smoothed Self DUTL Mic4'!B1 -> Self Mic4
A2: ='[1]FR - Smoothed DUTL Left'!A2 -> 50 | B2: =Sheet1!N2-Sheet1!B2 -> -0.2844 | C2: =Sheet1!O2-Sheet1!C2 -> -0.3925 | D2: =Sheet1!P2-Sheet1!D2 -> -0.0291 | E2: =Sheet1!Q2-Sheet1!E2 -> -0.0304 | F2: =Sheet1!R2-Sheet1!F2 -> -0.2185 | G2: =Sheet1!S2-Sheet1!G2 -> -0.0588 | H2: =Sheet1!T2-Sheet1!H2 -> -0.2042 | I2: =Sheet1!U2-Sheet1!I2 -> -0.3778 | J2: =Sheet1!V2-Sheet1!J2 -> -0.6788 | K2: =Sheet1!W2-Sheet1!K2 -> -0.3567
A3: ='[1]FR - Smoothed DUTL Left'!A3 -> 53 | B3: =Sheet1!N3-Sheet1!B3 -> -0.3787 | C3: =Sheet1!O3-Sheet1!C3 -> -0.3841 | D3: =Sheet1!P3-Sheet1!D3 -> -0.0342 | E3: =Sheet1!Q3-Sheet1!E3 -> -0.0306 | F3: =Sheet1!R3-Sheet1!F3 -> -0.2192 | G3: =Sheet1!S3-Sheet1!G3 -> -0.0622 | H3: =Sheet1!T3-Sheet1!H3 -> -0.1442 | I3: =Sheet1!U3-Sheet1!I3 -> -0.2753 | J3: =Sheet1!V3-Sheet1!J3 -> -0.526 | K3: =Sheet1!W3-Sheet1!K3 -> -0.2704
A4: ='[1]FR - Smoothed DUTL Left'!A4 -> 56 | B4: =Sheet1!N4-Sheet1!B4 -> -0.3004 | C4: =Sheet1!O4-Sheet1!C4 -> -0.2889 | D4: =Sheet1!P4-Sheet1!D4 -> -0.0358 | E4: =Sheet1!Q4-Sheet1!E4 -> -0.029 | F4: =Sheet1!R4-Sheet1!F4 -> -0.2172 | G4: =Sheet1!S4-Sheet1!G4 -> -0.0624 | H4: =Sheet1!T4-Sheet1!H4 -> -0.0737 | I4: =Sheet1!U4-Sheet1!I4 -> -0.1836 | J4: =Sheet1!V4-Sheet1!J4 -> -0.4164 | K4: =Sheet1!W4-Sheet1!K4 -> -0.1898
A5: ='[1]FR - Smoothed DUTL Left'!A5 -> 60 | B5: =Sheet1!N5-Sheet1!B5 -> -0.2697 | C5: =Sheet1!O5-Sheet1!C5 -> -0.2453 | D5: =Sheet1!P5-Sheet1!D5 -> -0.0365 | E5: =Sheet1!Q5-Sheet1!E5 -> -0.0243 | F5: =Sheet1!R5-Sheet1!F5 -> -0.2118 | G5: =Sheet1!S5-Sheet1!G5 -> -0.061 | H5: =Sheet1!T5-Sheet1!H5 -> -0.0247 | I5: =Sheet1!U5-Sheet1!I5 -> -0.1247 | J5: =Sheet1!V5-Sheet1!J5 -> -0.3467 | K5: =Sheet1!W5-Sheet1!K5 -> -0.1341
A6: ='[1]FR - Smoothed DUTL Left'!A6 -> 63 | B6: =Sheet1!N6-Sheet1!B6 -> -0.2322 | C6: =Sheet1!O6-Sheet1!C6 -> -0.2087 | D6: =Sheet1!P6-Sheet1!D6 -> -0.0311 | E6: =Sheet1!Q6-Sheet1!E6 -> -0.0151 | F6: =Sheet1!R6-Sheet1!F6 -> -0.2007 | G6: =Sheet1!S6-Sheet1!G6 -> -0.0544 | H6: =Sheet1!T6-Sheet1!H6 -> 0.0207 | I6: =Sheet1!U6-Sheet1!I6 -> -0.0593 | J6: =Sheet1!V6-Sheet1!J6 -> -0.2882 | K6: =Sheet1!W6-Sheet1!K6 -> -0.0742
A7: ='[1]FR - Smoothed DUTL Left'!A7 -> 67 | B7: =Sheet1!N7-Sheet1!B7 -> -0.2017 | C7: =Sheet1!O7-Sheet1!C7 -> -0.191 | D7: =Sheet1!P7-Sheet1!D7 -> -0.0224 | E7: =Sheet1!Q7-Sheet1!E7 -> -0.0019 | F7: =Sheet1!R7-Sheet1!F7 -> -0.1866 | G7: =Sheet1!S7-Sheet1!G7 -> -0.0449 | H7: =Sheet1!T7-Sheet1!H7 -> 0.0496 | I7: =Sheet1!U7-Sheet1!I7 -> 0.0048 | J7: =Sheet1!V7-Sheet1!J7 -> -0.2461 | K7: =Sheet1!W7-Sheet1!K7 -> -0.0231
A8: ='[1]FR - Smoothed DUTL Left'!A8 -> 71 | B8: =Sheet1!N8-Sheet1!B8 -> -0.1805 | C8: =Sheet1!O8-Sheet1!C8 -> -0.1866 | D8: =Sheet1!P8-Sheet1!D8 -> -0.0138 | E8: =Sheet1!Q8-Sheet1!E8 -> 0.013 | F8: =Sheet1!R8-Sheet1!F8 -> -0.1733 | G8: =Sheet1!S8-Sheet1!G8 -> -0.0349 | H8: =Sheet1!T8-Sheet1!H8 -> 0.0587 | I8: =Sheet1!U8-Sheet1!I8 -> 0.0497 | J8: =Sheet1!V8-Sheet1!J8 -> -0.2229 | K8: =Sheet1!W8-Sheet1!K8 -> 0.0062
A9: ='[1]FR - Smoothed DUTL Left'!A9 -> 75 | B9: =Sheet1!N9-Sheet1!B9 -> -0.1647 | C9: =Sheet1!O9-Sheet1!C9 -> -0.1892 | D9: =Sheet1!P9-Sheet1!D9 -> -0.0095 | E9: =Sheet1!Q9-Sheet1!E9 -> 0.0201 | F9: =Sheet1!R9-Sheet1!F9 -> -0.1672 | G9: =Sheet1!S9-Sheet1!G9 -> -0.0344 | H9: =Sheet1!T9-Sheet1!H9 -> 0.0543 | I9: =Sheet1!U9-Sheet1!I9 -> 0.0725 | J9: =Sheet1!V9-Sheet1!J9 -> -0.2128 | K9: =Sheet1!W9-Sheet1!K9 -> 0.0154
A10: ='[1]FR - Smoothed DUTL Left'!A10 -> 80 | B10: =Sheet1!N10-Sheet1!B10 -> -0.1618 | C10: =Sheet1!O10-Sheet1!C10 -> -0.1927 | D10: =Sheet1!P10-Sheet1!D10 -> -0.0186 | E10: =Sheet1!Q10-Sheet1!E10 -> 0.0144 | F10: =Sheet1!R10-Sheet1!F10 -> -0.1736 | G10: =Sheet1!S10-Sheet1!G10 -> -0.046 | H10: =Sheet1!T10-Sheet1!H10 -> 0.0439 | I10: =Sheet1!U10-Sheet1!I10 -> 0.0839 | J10: =Sheet1!V10-Sheet1!J10 -> -0.2092 | K10: =Sheet1!W10-Sheet1!K10 -> 0.0149
A11: ='[1]FR - Smoothed DUTL Left'!A11 -> 85 | B11: =Sheet1!N11-Sheet1!B11 -> -0.1689 | C11: =Sheet1!O11-Sheet1!C11 -> -0.1903 | D11: =Sheet1!P11-Sheet1!D11 -> -0.0331 | E11: =Sheet1!Q11-Sheet1!E11 -> 0.0097 | F11: =Sheet1!R11-Sheet1!F11 -> -0.1776 | G11: =Sheet1!S11-Sheet1!G11 -> -0.0542 | H11: =Sheet1!T11-Sheet1!H11 -> 0.0331 | I11: =Sheet1!U11-Sheet1!I11 -> 0.0927 | J11: =Sheet1!V11-Sheet1!J11 -> -0.2069 | K11: =Sheet1!W11-Sheet1!K11 -> 0.0149
A12: ='[1]FR - Smoothed DUTL Left'!A12 -> 90 | B12: =Sheet1!N12-Sheet1!B12 -> -0.1725 | C12: =Sheet1!O12-Sheet1!C12 -> -0.178 | D12: =Sheet1!P12-Sheet1!D12 -> -0.0356 | E12: =Sheet1!Q12-Sheet1!E12 -> 0.0124 | F12: =Sheet1!R12-Sheet1!F12 -> -0.173 | G12: =Sheet1!S12-Sheet1!G12 -> -0.0538 | H12: =Sheet1!T12-Sheet1!H12 -> 0.0206 | I12: =Sheet1!U12-Sheet1!I12 -> 0.1022 | J12: =Sheet1!V12-Sheet1!J12 -> -0.2084 | K12: =Sheet1!W12-Sheet1!K12 -> 0.0181
A13: ='[1]FR - Smoothed DUTL Left'!A13 -> 95 | B13: =Sheet1!N13-Sheet1!B13 -> -0.1952 | C13: =Sheet1!O13-Sheet1!C13 -> -0.1852 | D13: =Sheet1!P13-Sheet1!D13 -> -0.0416 | E13: =Sheet1!Q13-Sheet1!E13 -> 0.0043 | F13: =Sheet1!R13-Sheet1!F13 -> -0.1785 | G13: =Sheet1!S13-Sheet1!G13 -> -0.0639 | H13: =Sheet1!T13-Sheet1!H13 -> -0.0133 | I13: =Sheet1!U13-Sheet1!I13 -> 0.0923 | J13: =Sheet1!V13-Sheet1!J13 -> -0.2347 | K13: =Sheet1!W13-Sheet1!K13 -> 0.0033
A14: ='[1]FR - Smoothed DUTL Left'!A14 -> 100 | B14: =Sheet1!N14-Sheet1!B14 -> -0.2701 | C14: =Sheet1!O14-Sheet1!C14 -> -0.2449 | D14: =Sheet1!P14-Sheet1!D14 -> -0.0611 | E14: =Sheet1!Q14-Sheet1!E14 -> -0.0183 | F14: =Sheet1!R14-Sheet1!F14 -> -0.1983 | G14: =Sheet1!S14-Sheet1!G14 -> -0.0897 | H14: =Sheet1!T14-Sheet1!H14 -> -0.1011 | I14: =Sheet1!U14-Sheet1!I14 -> 0.0167 | J14: =Sheet1!V14-Sheet1!J14 -> -0.3199 | K14: =Sheet1!W14-Sheet1!K14 -> -0.0779
A15: ='[1]FR - Smoothed DUTL Left'!A15 -> 106 | B15: =Sheet1!N15-Sheet1!B15 -> -0.3808 | C15: =Sheet1!O15-Sheet1!C15 -> -0.3472 | D15: =Sheet1!P15-Sheet1!D15 -> -0.0772 | E15: =Sheet1!Q15-Sheet1!E15 -> -0.0342 | F15: =Sheet1!R15-Sheet1!F15 -> -0.2114 | G15: =Sheet1!S15-Sheet1!G15 -> -0.1078 | H15: =Sheet1!T15-Sheet1!H15 -> -0.2429 | I15: =Sheet1!U15-Sheet1!I15 -> -0.153 | J15: =Sheet1!V15-Sheet1!J15 -> -0.4656 | K15: =Sheet1!W15-Sheet1!K15 -> -0.2567
A16: ='[1]FR - Smoothed DUTL Left'!A16 -> 112 | B16: =Sheet1!N16-Sheet1!B16 -> -0.4759 | C16: =Sheet1!O16-Sheet1!C16 -> -0.4465 | D16: =Sheet1!P16-Sheet1!D16 -> -0.0628 | E16: =Sheet1!Q16-Sheet1!E16 -> -0.0156 | F16: =Sheet1!R16-Sheet1!F16 -> -0.192 | G16: =Sheet1!S16-Sheet1!G16 -> -0.09 | H16: =Sheet1!T16-Sheet1!H16 -> -0.3679 | I16: =Sheet1!U16-Sheet1!I16 -> -0.3451 | J16: =Sheet1!V16-Sheet1!J16 -> -0.598 | K16: =Sheet1!W16-Sheet1!K16 -> -0.4618
A17: ='[1]FR - Smoothed DUTL Left'!A17 -> 118 | B17: =Sheet1!N17-Sheet1!B17 -> -0.5039 | C17: =Sheet1!O17-Sheet1!C17 -> -0.4917 | D17: =Sheet1!P17-Sheet1!D17 -> -0.0215 | E17: =Sheet1!Q17-Sheet1!E17 -> 0.031 | F17: =Sheet1!R17-Sheet1!F17 -> -0.1489 | G17: =Sheet1!S17-Sheet1!G17 -> -0.0458 | H17: =Sheet1!T17-Sheet1!H17 -> -0.4009 | I17: =Sheet1!U17-Sheet1!I17 -> -0.4305 | J17: =Sheet1!V17-Sheet1!J17 -> -0.6414 | K17: =Sheet1!W17-Sheet1!K17 -> -0.5694
A18: ='[1]FR - Smoothed DUTL Left'!A18 -> 125 | B18: =Sheet1!N18-Sheet1!B18 -> -0.434 | C18: =Sheet1!O18-Sheet1!C18 -> -0.4573 | D18: =Sheet1!P18-Sheet1!D18 -> 0.0079 | E18: =Sheet1!Q18-Sheet1!E18 -> 0.0672 | F18: =Sheet1!R18-Sheet1!F18 -> -0.1214 | G18: =Sheet1!S18-Sheet1!G18 -> -0.0166 | H18: =Sheet1!T18-Sheet1!H18 -> -0.3457 | I18: =Sheet1!U18-Sheet1!I18 -> -0.3796 | J18: =Sheet1!V18-Sheet1!J18 -> -0.6044 | K18: =Sheet1!W18-Sheet1!K18 -> -0.5575
A19: ='[1]FR - Smoothed DUTL Left'!A19 -> 132 | B19: =Sheet1!N19-Sheet1!B19 -> -0.2939 | C19: =Sheet1!O19-Sheet1!C19 -> -0.3773 | D19: =Sheet1!P19-Sheet1!D19 -> -0.0059 | E19: =Sheet1!Q19-Sheet1!E19 -> 0.059 | F19: =Sheet1!R19-Sheet1!F19 -> -0.1353 | G19: =Sheet1!S19-Sheet1!G19 -> -0.0318 | H19: =Sheet1!T19-Sheet1!H19 -> -0.2435 | I19: =Sheet1!U19-Sheet1!I19 -> -0.2411 | J19: =Sheet1!V19-Sheet1!J19 -> -0.532 | K19: =Sheet1!W19-Sheet1!K19 -> -0.4774
A20: ='[1]FR - Smoothed DUTL Left'!A20 -> 140 | B20: =Sheet1!N20-Sheet1!B20 -> -0.191 | C20: =Sheet1!O20-Sheet1!C20 -> -0.3286 | D20: =Sheet1!P20-Sheet1!D20 -> -0.0554 | E20: =Sheet1!Q20-Sheet1!E20 -> 0.0093 | F20: =Sheet1!R20-Sheet1!F20 -> -0.1763 | G20: =Sheet1!S20-Sheet1!G20 -> -0.0786 | H20: =Sheet1!T20-Sheet1!H20 -> -0.1459 | I20: =Sheet1!U20-Sheet1!I20 -> -0.0971 | J20: =Sheet1!V20-Sheet1!J20 -> -0.4488 | K20: =Sheet1!W20-Sheet1!K20 -> -0.378
A21: ='[1]FR - Smoothed DUTL Left'!A21 -> 150 | B21: =Sheet1!N21-Sheet1!B21 -> -0.2323 | C21: =Sheet1!O21-Sheet1!C21 -> -0.3568 | D21: =Sheet1!P21-Sheet1!D21 -> -0.0939 | E21: =Sheet1!Q21-Sheet1!E21 -> -0.0342 | F21: =Sheet1!R21-Sheet1!F21 -> -0.2053 | G21: =Sheet1!S21-Sheet1!G21 -> -0.1145 | H21: =Sheet1!T21-Sheet1!H21 -> -0.1076 | I21: =Sheet1!U21-Sheet1!I21 -> -0.053 | J21: =Sheet1!V21-Sheet1!J21 -> -0.3667 | K21: =Sheet1!W21-Sheet1!K21 -> -0.297
A22: ='[1]FR - Smoothed DUTL Left'!A22 -> 160 | B22: =Sheet1!N22-Sheet1!B22 -> -0.4 | C22: =Sheet1!O22-Sheet1!C22 -> -0.447 | D22: =Sheet1!P22-Sheet1!D22 -> -0.0968 | E22: =Sheet1!Q22-Sheet1!E22 -> -0.0371 | F22: =Sheet1!R22-Sheet1!F22 -> -0.2059 | G22: =Sheet1!S22-Sheet1!G22 -> -0.1174 | H22: =Sheet1!T22-Sheet1!H22 -> -0.1576 | I22: =Sheet1!U22-Sheet1!I22 -> -0.149 | J22: =Sheet1!V22-Sheet1!J22 -> -0.3041 | K22: =Sheet1!W22-Sheet1!K22 -> -0.2564
A23: ='[1]FR - Smoothed DUTL Left'!A23 -> 170 | B23: =Sheet1!N23-Sheet1!B23 -> -0.5749 | C23: =Sheet1!O23-Sheet1!C23 -> -0.5497 | D23: =Sheet1!P23-Sheet1!D23 -> -0.0832 | E23: =Sheet1!Q23-Sheet1!E23 -> -0.0216 | F23: =Sheet1!R23-Sheet1!F23 -> -0.1969 | G23: =Sheet1!S23-Sheet1!G23 -> -0.1065 | H23: =Sheet1!T23-Sheet1!H23 -> -0.2623 | I23: =Sheet1!U23-Sheet1!I23 -> -0.3091 | J23: =Sheet1!V23-Sheet1!J23 -> -0.2796 | K23: =Sheet1!W23-Sheet1!K23 -> -0.2514
A24: ='[1]FR - Smoothed DUTL Left'!A24 -> 180 | B24: =Sheet1!N24-Sheet1!B24 -> -0.63 | C24: =Sheet1!O24-Sheet1!C24 -> -0.6002 | D24: =Sheet1!P24-Sheet1!D24 -> -0.0758 | E24: =Sheet1!Q24-Sheet1!E24 -> -0.0174 | F24: =Sheet1!R24-Sheet1!F24 -> -0.1938 | G24: =Sheet1!S24-Sheet1!G24 -> -0.1044 | H24: =Sheet1!T24-Sheet1!H24 -> -0.3457 | I24: =Sheet1!U24-Sheet1!I24 -> -0.4151 | J24: =Sheet1!V24-Sheet1!J24 -> -0.2894 | K24: =Sheet1!W24-Sheet1!K24 -> -0.2649
A25: ='[1]FR - Smoothed DUTL Left'!A25 -> 190 | B25: =Sheet1!N25-Sheet1!B25 -> -0.6003 | C25: =Sheet1!O25-Sheet1!C25 -> -0.594 | D25: =Sheet1!P25-Sheet1!D25 -> -0.0737 | E25: =Sheet1!Q25-Sheet1!E25 -> -0.0219 | F25: =Sheet1!R25-Sheet1!F25 -> -0.1923 | G25: =Sheet1!S25-Sheet1!G25 -> -0.1076 | H25: =Sheet1!T25-Sheet1!H25 -> -0.3806 | I25: =Sheet1!U25-Sheet1!I25 -> -0.444 | J25: =Sheet1!V25-Sheet1!J25 -> -0.3247 | K25: =Sheet1!W25-Sheet1!K25 -> -0.2973
A26: ='[1]FR - Smoothed DUTL Left'!A26 -> 200 | B26: =Sheet1!N26-Sheet1!B26 -> -0.5691 | C26: =Sheet1!O26-Sheet1!C26 -> -0.5733 | D26: =Sheet1!P26-Sheet1!D26 -> -0.0741 | E26: =Sheet1!Q26-Sheet1!E26 -> -0.0204 | F26: =Sheet1!R26-Sheet1!F26 -> -0.1915 | G26: =Sheet1!S26-Sheet1!G26 -> -0.1085 | H26: =Sheet1!T26-Sheet1!H26 -> -0.4017 | I26: =Sheet1!U26-Sheet1!I26 -> -0.441 | J26: =Sheet1!V26-Sheet1!J26 -> -0.3875 | K26: =Sheet1!W26-Sheet1!K26 -> -0.3536
A27: ='[1]FR - Smoothed DUTL Left'!A27 -> 212 | B27: =Sheet1!N27-Sheet1!B27 -> -0.5492 | C27: =Sheet1!O27-Sheet1!C27 -> -0.556 | D27: =Sheet1!P27-Sheet1!D27 -> -0.0758 | E27: =Sheet1!Q27-Sheet1!E27 -> -0.0133 | F27: =Sheet1!R27-Sheet1!F27 -> -0.1915 | G27: =Sheet1!S27-Sheet1!G27 -> -0.1067 | H27: =Sheet1!T27-Sheet1!H27 -> -0.4309 | I27: =Sheet1!U27-Sheet1!I27 -> -0.4293 | J27: =Sheet1!V27-Sheet1!J27 -> -0.4676 | K27: =Sheet1!W27-Sheet1!K27 -> -0.4129
A28: ='[1]FR - Smoothed DUTL Left'!A28 -> 224 | B28: =Sheet1!N28-Sheet1!B28 -> -0.5433 | C28: =Sheet1!O28-Sheet1!C28 -> -0.5506 | D28: =Sheet1!P28-Sheet1!D28 -> -0.077 | E28: =Sheet1!Q28-Sheet1!E28 -> -0.0109 | F28: =Sheet1!R28-Sheet1!F28 -> -0.1912 | G28: =Sheet1!S28-Sheet1!G28 -> -0.1062 | H28: =Sheet1!T28-Sheet1!H28 -> -0.4612 | I28: =Sheet1!U28-Sheet1!I28 -> -0.4137 | J28: =Sheet1!V28-Sheet1!J28 -> -0.5354 | K28: =Sheet1!W28-Sheet1!K28 -> -0.4496
A29: ='[1]FR - Smoothed DUTL Left'!A29 -> 236 | B29: =Sheet1!N29-Sheet1!B29 -> -0.5451 | C29: =Sheet1!O29-Sheet1!C29 -> -0.5483 | D29: =Sheet1!P29-Sheet1!D29 -> -0.0785 | E29: =Sheet1!Q29-Sheet1!E29 -> -0.0131 | F29: =Sheet1!R29-Sheet1!F29 -> -0.1905 | G29: =Sheet1!S29-Sheet1!G29 -> -0.1088 | H29: =Sheet1!T29-Sheet1!H29 -> -0.4811 | I29: =Sheet1!U29-Sheet1!I29 -> -0.4034 | J29: =Sheet1!V29-Sheet1!J29 -> -0.5744 | K29: =Sheet1!W29-Sheet1!K29 -> -0.4648
A30: ='[1]FR - Smoothed DUTL Left'!A30 -> 250 | B30: =Sheet1!N30-Sheet1!B30 -> -0.5509 | C30: =Sheet1!O30-Sheet1!C30 -> -0.5464 | D30: =Sheet1!P30-Sheet1!D30 -> -0.0789 | E30: =Sheet1!Q30-Sheet1!E30 -> -0.0127 | F30: =Sheet1!R30-Sheet1!F30 -> -0.1896 | G30: =Sheet1!S30-Sheet1!G30 -> -0.1096 | H30: =Sheet1!T30-Sheet1!H30 -> -0.4979 | I30: =Sheet1!U30-Sheet1!I30 -> -0.41 | J30: =Sheet1!V30-Sheet1!J30 -> -0.594 | K30: =Sheet1!W30-Sheet1!K30 -> -0.4743
A31: ='[1]FR - Smoothed DUTL Left'!A31 -> 265 | B31: =Sheet1!N31-Sheet1!B31 -> -0.5578 | C31: =Sheet1!O31-Sheet1!C31 -> -0.5486 | D31: =Sheet1!P31-Sheet1!D31 -> -0.0799 | E31: =Sheet1!Q31-Sheet1!E31 -> -0.0112 | F31: =Sheet1!R31-Sheet1!F31 -> -0.1891 | G31: =Sheet1!S31-Sheet1!G31 -> -0.1091 | H31: =Sheet1!T31-Sheet1!H31 -> -0.517 | I31: =Sheet1!U31-Sheet1!I31 -> -0.4293 | J31: =Sheet1!V31-Sheet1!J31 -> -0.606 | K31: =Sheet1!W31-Sheet1!K31 -> -0.483
A32: ='[1]FR - Smoothed DUTL Left'!A32 -> 280 | B32: =Sheet1!N32-Sheet1!B32 -> -0.5606 | C32: =Sheet1!O32-Sheet1!C32 -> -0.555 | D32: =Sheet1!P32-Sheet1!D32 -> -0.0789 | E32: =Sheet1!Q32-Sheet1!E32 -> -0.0087 | F32: =Sheet1!R32-Sheet1!F32 -> -0.1872 | G32: =Sheet1!S32-Sheet1!G32 -> -0.1068 | H32: =Sheet1!T32-Sheet1!H32 -> -0.5338 | I32: =Sheet1!U32-Sheet1!I32 -> -0.4484 | J32: =Sheet1!V32-Sheet1!J32 -> -0.6169 | K32: =Sheet1!W32-Sheet1!K32 -> -0.4923
A33: ='[1]FR - Smoothed DUTL Left'!A33 -> 300 | B33: =Sheet1!N33-Sheet1!B33 -> -0.561 | C33: =Sheet1!O33-Sheet1!C33 -> -0.5627 | D33: =Sheet1!P33-Sheet1!D33 -> -0.075 | E33: =Sheet1!Q33-Sheet1!E33 -> -0.0046 | F33: =Sheet1!R33-Sheet1!F33 -> -0.184 | G33: =Sheet1!S33-Sheet1!G33 -> -0.1035 | H33: =Sheet1!T33-Sheet1!H33 -> -0.5467 | I33: =Sheet1!U33-Sheet1!I33 -> -0.4614 | J33: =Sheet1!V33-Sheet1!J33 -> -0.6364 | K33: =Sheet1!W33-Sheet1!K33 -> -0.5137
A34: ='[1]FR - Smoothed DUTL Left'!A34 -> 315 | B34: =Sheet1!N34-Sheet1!B34 -> -0.5589 | C34: =Sheet1!O34-Sheet1!C34 -> -0.5723 | D34: =Sheet1!P34-Sheet1!D34 -> -0.068 | E34: =Sheet1!Q34-Sheet1!E34 -> 0.0016 | F34: =Sheet1!R34-Sheet1!F34 -> -0.1791 | G34: =Sheet1!S34-Sheet1!G34 -> -0.0981 | H34: =Sheet1!T34-Sheet1!H34 -> -0.5593 | I34: =Sheet1!U34-Sheet1!I34 -> -0.4751 | J34: =Sheet1!V34-Sheet1!J34 -> -0.6677 | K34: =Sheet1!W34-Sheet1!K34 -> -0.5559
A35: ='[1]FR - Smoothed DUTL Left'!A35 -> 335 | B35: =Sheet1!N35-Sheet1!B35 -> -0.5574 | C35: =Sheet1!O35-Sheet1!C35 -> -0.5824 | D35: =Sheet1!P35-Sheet1!D35 -> -0.056 | E35: =Sheet1!Q35-Sheet1!E35 -> 0.0131 | F35: =Sheet1!R35-Sheet1!F35 -> -0.1697 | G35: =Sheet1!S35-Sheet1!G35 -> -0.0881 | H35: =Sheet1!T35-Sheet1!H35 -> -0.5696 | I35: =Sheet1!U35-Sheet1!I35 -> -0.4966 | J35: =Sheet1!V35-Sheet1!J35 -> -0.6965 | K35: =Sheet1!W35-Sheet1!K35 -> -0.6064
A36: ='[1]FR - Smoothed DUTL Left'!A36 -> 355 | B36: =Sheet1!N36-Sheet1!B36 -> -0.5594 | C36: =Sheet1!O36-Sheet1!C36 -> -0.59 | D36: =Sheet1!P36-Sheet1!D36 -> -0.0445 | E36: =Sheet1!Q36-Sheet1!E36 -> 0.0261 | F36: =Sheet1!R36-Sheet1!F36 -> -0.1588 | G36: =Sheet1!S36-Sheet1!G36 -> -0.076 | H36: =Sheet1!T36-Sheet1!H36 -> -0.5544 | I36: =Sheet1!U36-Sheet1!I36 -> -0.4978 | J36: =Sheet1!V36-Sheet1!J36 -> -0.6892 | K36: =Sheet1!W36-Sheet1!K36 -> -0.6223
A37: ='[1]FR - Smoothed DUTL Left'!A37 -> 375 | B37: =Sheet1!N37-Sheet1!B37 -> -0.5589 | C37: =Sheet1!O37-Sheet1!C37 -> -0.5901 | D37: =Sheet1!P37-Sheet1!D37 -> -0.0424 | E37: =Sheet1!Q37-Sheet1!E37 -> 0.0309 | F37: =Sheet1!R37-Sheet1!F37 -> -0.1566 | G37: =Sheet1!S37-Sheet1!G37 -> -0.0729 | H37: =Sheet1!T37-Sheet1!H37 -> -0.5005 | I37: =Sheet1!U37-Sheet1!I37 -> -0.4491 | J37: =Sheet1!V37-Sheet1!J37 -> -0.638 | K37: =Sheet1!W37-Sheet1!K37 -> -0.5754
A38: ='[1]FR - Smoothed DUTL Left'!A38 -> 400 | B38: =Sheet1!N38-Sheet1!B38 -> -0.5565 | C38: =Sheet1!O38-Sheet1!C38 -> -0.5896 | D38: =Sheet1!P38-Sheet1!D38 -> -0.0524 | E38: =Sheet1!Q38-Sheet1!E38 -> 0.0231 | F38: =Sheet1!R38-Sheet1!F38 -> -0.1673 | G38: =Sheet1!S38-Sheet1!G38 -> -0.0829 | H38: =Sheet1!T38-Sheet1!H38 -> -0.4509 | I38: =Sheet1!U38-Sheet1!I38 -> -0.3868 | J38: =Sheet1!V38-Sheet1!J38 -> -0.5977 | K38: =Sheet1!W38-Sheet1!K38 -> -0.5214
A39: ='[1]FR - Smoothed DUTL Left'!A39 -> 425 | B39: =Sheet1!N39-Sheet1!B39 -> -0.5605 | C39: =Sheet1!O39-Sheet1!C39 -> -0.597 | D39: =Sheet1!P39-Sheet1!D39 -> -0.068 | E39: =Sheet1!Q39-Sheet1!E39 -> 0.0095 | F39: =Sheet1!R39-Sheet1!F39 -> -0.185 | G39: =Sheet1!S39-Sheet1!G39 -> -0.099 | H39: =Sheet1!T39-Sheet1!H39 -> -0.4751 | I39: =Sheet1!U39-Sheet1!I39 -> -0.3847 | J39: =Sheet1!V39-Sheet1!J39 -> -0.6354 | K39: =Sheet1!W39-Sheet1!K39 -> -0.5394
A40: ='[1]FR - Smoothed DUTL Left'!A40 -> 450 | B40: =Sheet1!N40-Sheet1!B40 -> -0.5685 | C40: =Sheet1!O40-Sheet1!C40 -> -0.5995 | D40: =Sheet1!P40-Sheet1!D40 -> -0.0762 | E40: =Sheet1!Q40-Sheet1!E40 -> 0.0044 | F40: =Sheet1!R40-Sheet1!F40 -> -0.195 | G40: =Sheet1!S40-Sheet1!G40 -> -0.1066 | H40: =Sheet1!T40-Sheet1!H40 -> -0.5991 | I40: =Sheet1!U40-Sheet1!I40 -> -0.4915 | J40: =Sheet1!V40-Sheet1!J40 -> -0.7652 | K40: =Sheet1!W40-Sheet1!K40 -> -0.6616
A41: ='[1]FR - Smoothed DUTL Left'!A41 -> 475 | B41: =Sheet1!N41-Sheet1!B41 -> -0.5669 | C41: =Sheet1!O41-Sheet1!C41 -> -0.5999 | D41: =Sheet1!P41-Sheet1!D41 -> -0.0742 | E41: =Sheet1!Q41-Sheet1!E41 -> 0.0094 | F41: =Sheet1!R41-Sheet1!F41 -> -0.1916 | G41: =Sheet1!S41-Sheet1!G41 -> -0.1031 | H41: =Sheet1!T41-Sheet1!H41 -> -0.742 | I41: =Sheet1!U41-Sheet1!I41 -> -0.6497 | J41: =Sheet1!V41-Sheet1!J41 -> -0.8996 | K41: =Sheet1!W41-Sheet1!K41 -> -0.8222
A42: ='[1]FR - Smoothed DUTL Left'!A42 -> 500 | B42: =Sheet1!N42-Sheet1!B42 -> -0.5843 | C42: =Sheet1!O42-Sheet1!C42 -> -0.6214 | D42: =Sheet1!P42-Sheet1!D42 -> -0.0958 | E42: =Sheet1!Q42-Sheet1!E42 -> -0.0126 | F42: =Sheet1!R42-Sheet1!F42 -> -0.1957 | G42: =Sheet1!S42-Sheet1!G42 -> -0.118 | H42: =Sheet1!T42-Sheet1!H42 -> -0.7686 | I42: =Sheet1!U42-Sheet1!I42 -> -0.7158 | J42: =Sheet1!V42-Sheet1!J42 -> -0.9066 | K42: =Sheet1!W42-Sheet1!K42 -> -0.8762
A43: ='[1]FR - Smoothed DUTL Left'!A43 -> 530 | B43: =Sheet1!N43-Sheet1!B43 -> -0.6248 | C43: =Sheet1!O43-Sheet1!C43 -> -0.6434 | D43: =Sheet1!P43-Sheet1!D43 -> -0.1198 | E43: =Sheet1!Q43-Sheet1!E43 -> -0.0471 | F43: =Sheet1!R43-Sheet1!F43 -> -0.1971 | G43: =Sheet1!S43-Sheet1!G43 -> -0.1287 | H43: =Sheet1!T43-Sheet1!H43 -> -0.629 | I43: =Sheet1!U43-Sheet1!I43 -> -0.5974 | J43: =Sheet1!V43-Sheet1!J43 -> -0.7371 | K43: =Sheet1!W43-Sheet1!K43 -> -0.7302
A44: ='[1]FR - Smoothed DUTL Left'!A44 -> 560 | B44: =Sheet1!N44-Sheet1!B44 -> -0.644 | C44: =Sheet1!O44-Sheet1!C44 -> -0.6488 | D44: =Sheet1!P44-Sheet1!D44 -> -0.1105 | E44: =Sheet1!Q44-Sheet1!E44 -> -0.0421 | F44: =Sheet1!R44-Sheet1!F44 -> -0.19 | G44: =Sheet1!S44-Sheet1!G44 -> -0.1211 | H44: =Sheet1!T44-Sheet1!H44 -> -0.4345 | I44: =Sheet1!U44-Sheet1!I44 -> -0.3389 | J44: =Sheet1!V44-Sheet1!J44 -> -0.512 | K44: =Sheet1!W44-Sheet1!K44 -> -0.4331
A45: ='[1]FR - Smoothed DUTL Left'!A45 -> 600 | B45: =Sheet1!N45-Sheet1!B45 -> -0.6585 | C45: =Sheet1!O45-Sheet1!C45 -> -0.648 | D45: =Sheet1!P45-Sheet1!D45 -> -0.0985 | E45: =Sheet1!Q45-Sheet1!E45 -> -0.029 | F45: =Sheet1!R45-Sheet1!F45 -> -0.1823 | G45: =Sheet1!S45-Sheet1!G45 -> -0.1118 | H45: =Sheet1!T45-Sheet1!H45 -> -0.4504 | I45: =Sheet1!U45-Sheet1!I45 -> -0.1613 | J45: =Sheet1!V45-Sheet1!J45 -> -0.5101 | K45: =Sheet1!W45-Sheet1!K45 -> -0.246
A46: ='[1]FR - Smoothed DUTL Left'!A46 -> 630 | B46: =Sheet1!N46-Sheet1!B46 -> -0.6528 | C46: =Sheet1!O46-Sheet1!C46 -> -0.6238 | D46: =Sheet1!P46-Sheet1!D46 -> -0.0918 | E46: =Sheet1!Q46-Sheet1!E46 -> -0.0193 | F46: =Sheet1!R46-Sheet1!F46 -> -0.1776 | G46: =Sheet1!S46-Sheet1!G46 -> -0.1047 | H46: =Sheet1!T46-Sheet1!H46 -> -0.692 | I46: =Sheet1!U46-Sheet1!I46 -> -0.2762 | J46: =Sheet1!V46-Sheet1!J46 -> -0.7127 | K46: =Sheet1!W46-Sheet1!K46 -> -0.3754
A47: ='[1]FR - Smoothed DUTL Left'!A47 -> 670 | B47: =Sheet1!N47-Sheet1!B47 -> -0.6083 | C47: =Sheet1!O47-Sheet1!C47 -> -0.5906 | D47: =Sheet1!P47-Sheet1!D47 -> -0.0903 | E47: =Sheet1!Q47-Sheet1!E47 -> -0.0145 | F47: =Sheet1!R47-Sheet1!F47 -> -0.1745 | G47: =Sheet1!S47-Sheet1!G47 -> -0.1003 | H47: =Sheet1!T47-Sheet1!H47 -> -0.8012 | I47: =Sheet1!U47-Sheet1!I47 -> -0.4589 | J47: =Sheet1!V47-Sheet1!J47 -> -0.7656 | K47: =Sheet1!W47-Sheet1!K47 -> -0.5185
A48: ='[1]FR - Smoothed DUTL Left'!A48 -> 710 | B48: =Sheet1!N48-Sheet1!B48 -> -0.5664 | C48: =Sheet1!O48-Sheet1!C48 -> -0.5781 | D48: =Sheet1!P48-Sheet1!D48 -> -0.0881 | E48: =Sheet1!Q48-Sheet1!E48 -> -0.0134 | F48: =Sheet1!R48-Sheet1!F48 -> -0.1704 | G48: =Sheet1!S48-Sheet1!G48 -> -0.0988 | H48: =Sheet1!T48-Sheet1!H48 -> -0.6909 | I48: =Sheet1!U48-Sheet1!I48 -> -0.4478 | J48: =Sheet1!V48-Sheet1!J48 -> -0.6506 | K48: =Sheet1!W48-Sheet1!K48 -> -0.4508
A49: ='[1]FR - Smoothed DUTL Left'!A49 -> 750 | B49: =Sheet1!N49-Sheet1!B49 -> -0.5493 | C49: =Sheet1!O49-Sheet1!C49 -> -0.5811 | D49: =Sheet1!P49-Sheet1!D49 -> -0.0813 | E49: =Sheet1!Q49-Sheet1!E49 -> -0.0155 | F49: =Sheet1!R49-Sheet1!F49 -> -0.1642 | G49: =Sheet1!S49-Sheet1!G49 -> -0.1009 | H49: =Sheet1!T49-Sheet1!H49 -> -0.4697 | I49: =Sheet1!U49-Sheet1!I49 -> -0.3576 | J49: =Sheet1!V49-Sheet1!J49 -> -0.5527 | K49: =Sheet1!W49-Sheet1!K49 -> -0.366
A50: ='[1]FR - Smoothed DUTL Left'!A50 -> 800 | B50: =Sheet1!N50-Sheet1!B50 -> -0.5659 | C50: =Sheet1!O50-Sheet1!C50 -> -0.5932 | D50: =Sheet1!P50-Sheet1!D50 -> -0.0685 | E50: =Sheet1!Q50-Sheet1!E50 -> -0.016 | F50: =Sheet1!R50-Sheet1!F50 -> -0.154 | G50: =Sheet1!S50-Sheet1!G50 -> -0.101 | H50: =Sheet1!T50-Sheet1!H50 -> -0.3049 | I50: =Sheet1!U50-Sheet1!I50 -> -0.3248 | J50: =Sheet1!V50-Sheet1!J50 -> -0.5951 | K50: =Sheet1!W50-Sheet1!K50 -> -0.4309
A51: ='[1]FR - Smoothed DUTL Left'!A51 -> 850 | B51: =Sheet1!N51-Sheet1!B51 -> -0.6109 | C51: =Sheet1!O51-Sheet1!C51 -> -0.6185 | D51: =Sheet1!P51-Sheet1!D51 -> -0.0524 | E51: =Sheet1!Q51-Sheet1!E51 -> -0.0096 | F51: =Sheet1!R51-Sheet1!F51 -> -0.1398 | G51: =Sheet1!S51-Sheet1!G51 -> -0.0904 | H51: =Sheet1!T51-Sheet1!H51 -> -0.3515 | I51: =Sheet1!U51-Sheet1!I51 -> -0.386 | J51: =Sheet1!V51-Sheet1!J51 -> -0.7563 | K51: =Sheet1!W51-Sheet1!K51 -> -0.6165
A52: ='[1]FR - Smoothed DUTL Left'!A52 -> 900 | B52: =Sheet1!N52-Sheet1!B52 -> -0.6444 | C52: =Sheet1!O52-Sheet1!C52 -> -0.6482 | D52: =Sheet1!P52-Sheet1!D52 -> -0.0386 | E52: =Sheet1!Q52-Sheet1!E52 -> 0.0112 | F52: =Sheet1!R52-Sheet1!F52 -> -0.1297 | G52: =Sheet1!S52-Sheet1!G52 -> -0.0624 | H52: =Sheet1!T52-Sheet1!H52 -> -0.5253 | I52: =Sheet1!U52-Sheet1!I52 -> -0.5006 | J52: =Sheet1!V52-Sheet1!J52 -> -0.8602 | K52: =Sheet1!W52-Sheet1!K52 -> -0.7534
A53: ='[1]FR - Smoothed DUTL Left'!A53 -> 950 | B53: =Sheet1!N53-Sheet1!B53 -> -0.6545 | C53: =Sheet1!O53-Sheet1!C53 -> -0.6841 | D53: =Sheet1!P53-Sheet1!D53 -> -0.045 | E53: =Sheet1!Q53-Sheet1!E53 -> 0.0432 | F53: =Sheet1!R53-Sheet1!F53 -> -0.1508 | G53: =Sheet1!S53-Sheet1!G53 -> -0.0305 | H53: =Sheet1!T53-Sheet1!H53 -> -0.625 | I53: =Sheet1!U53-Sheet1!I53 -> -0.6014 | J53: =Sheet1!V53-Sheet1!J53 -> -0.8661 | K53: =Sheet1!W53-Sheet1!K53 -> -0.7917
A54: ='[1]FR - Smoothed DUTL Left'!A54 -> 1000 | B54: =Sheet1!N54-Sheet1!B54 -> -0.6596 | C54: =Sheet1!O54-Sheet1!C54 -> -0.7012 | D54: =Sheet1!P54-Sheet1!D54 -> -0.112 | E54: =Sheet1!Q54-Sheet1!E54 -> 0.0573 | F54: =Sheet1!R54-Sheet1!F54 -> -0.2161 | G54: =Sheet1!S54-Sheet1!G54 -> -0.0267 | H54: =Sheet1!T54-Sheet1!H54 -> -0.652 | I54: =Sheet1!U54-Sheet1!I54 -> -0.6606 | J54: =Sheet1!V54-Sheet1!J54 -> -0.846 | K54: =Sheet1!W54-Sheet1!K54 -> -0.7973
A55: ='[1]FR - Smoothed DUTL Left'!A55 -> 1060 | B55: =Sheet1!N55-Sheet1!B55 -> -0.6641 | C55: =Sheet1!O55-Sheet1!C55 -> -0.6942 | D55: =Sheet1!P55-Sheet1!D55 -> -0.177 | E55: =Sheet1!Q55-Sheet1!E55 -> -0.024 | F55: =Sheet1!R55-Sheet1!F55 -> -0.2837 | G55: =Sheet1!S55-Sheet1!G55 -> -0.1124 | H55: =Sheet1!T55-Sheet1!H55 -> -0.6505 | I55: =Sheet1!U55-Sheet1!I55 -> -0.6707 | J55: =Sheet1!V55-Sheet1!J55 -> -0.8105 | K55: =Sheet1!W55-Sheet1!K55 -> -0.7815
A56: ='[1]FR - Smoothed DUTL Left'!A56 -> 1120 | B56: =Sheet1!N56-Sheet1!B56 -> -0.6701 | C56: =Sheet1!O56-Sheet1!C56 -> -0.7037 | D56: =Sheet1!P56-Sheet1!D56 -> -0.1895 | E56: =Sheet1!Q56-Sheet1!E56 -> -0.1349 | F56: =Sheet1!R56-Sheet1!F56 -> -0.3069 | G56: =Sheet1!S56-Sheet1!G56 -> -0.2313 | H56: =Sheet1!T56-Sheet1!H56 -> -0.6458 | I56: =Sheet1!U56-Sheet1!I56 -> -0.6584 | J56: =Sheet1!V56-Sheet1!J56 -> -0.769 | K56: =Sheet1!W56-Sheet1!K56 -> -0.775
A57: ='[1]FR - Smoothed DUTL Left'!A57 -> 1180 | B57: =Sheet1!N57-Sheet1!B57 -> -0.7133 | C57: =Sheet1!O57-Sheet1!C57 -> -0.7187 | D57: =Sheet1!P57-Sheet1!D57 -> -0.1802 | E57: =Sheet1!Q57-Sheet1!E57 -> -0.1456 | F57: =Sheet1!R57-Sheet1!F57 -> -0.2936 | G57: =Sheet1!S57-Sheet1!G57 -> -0.2361 | H57: =Sheet1!T57-Sheet1!H57 -> -0.6871 | I57: =Sheet1!U57-Sheet1!I57 -> -0.7338 | J57: =Sheet1!V57-Sheet1!J57 -> -0.7686 | K57: =Sheet1!W57-Sheet1!K57 -> -0.8162
A58: ='[1]FR - Smoothed DUTL Left'!A58 -> 1250 | B58: =Sheet1!N58-Sheet1!B58 -> -0.7436 | C58: =Sheet1!O58-Sheet1!C58 -> -0.7651 | D58: =Sheet1!P58-Sheet1!D58 -> -0.1624 | E58: =Sheet1!Q58-Sheet1!E58 -> -0.114 | F58: =Sheet1!R58-Sheet1!F58 -> -0.2655 | G58: =Sheet1!S58-Sheet1!G58 -> -0.2059 | H58: =Sheet1!T58-Sheet1!H58 -> -0.7611 | I58: =Sheet1!U58-Sheet1!I58 -> -0.9475 | J58: =Sheet1!V58-Sheet1!J58 -> -0.8046 | K58: =Sheet1!W58-Sheet1!K58 -> -0.865
A59: ='[1]FR - Smoothed DUTL Left'!A59 -> 1320 | B59: =Sheet1!N59-Sheet1!B59 -> -0.8014 | C59: =Sheet1!O59-Sheet1!C59 -> -0.8298 | D59: =Sheet1!P59-Sheet1!D59 -> -0.137 | E59: =Sheet1!Q59-Sheet1!E59 -> -0.072 | F59: =Sheet1!R59-Sheet1!F59 -> -0.2319 | G59: =Sheet1!S59-Sheet1!G59 -> -0.1785 | H59: =Sheet1!T59-Sheet1!H59 -> -0.6704 | I59: =Sheet1!U59-Sheet1!I59 -> -1.1336 | J59: =Sheet1!V59-Sheet1!J59 -> -0.6882 | K59: =Sheet1!W59-Sheet1!K59 -> -0.8107
A60: ='[1]FR - Smoothed DUTL Left'!A60 -> 1400 | B60: =Sheet1!N60-Sheet1!B60 -> -0.8996 | C60: =Sheet1!O60-Sheet1!C60 -> -0.8147 | D60: =Sheet1!P60-Sheet1!D60 -> -0.1083 | E60: =Sheet1!Q60-Sheet1!E60 -> -0.0272 | F60: =Sheet1!R60-Sheet1!F60 -> -0.2004 | G60: =Sheet1!S60-Sheet1!G60 -> -0.1549 | H60: =Sheet1!T60-Sheet1!H60 -> -0.0733 | I60: =Sheet1!U60-Sheet1!I60 -> -1.014 | J60: =Sheet1!V60-Sheet1!J60 -> -0.3076 | K60: =Sheet1!W60-Sheet1!K60 -> -0.5113
A61: ='[1]FR - Smoothed DUTL Left'!A61 -> 1500 | B61: =Sheet1!N61-Sheet1!B61 -> -0.9513 | C61: =Sheet1!O61-Sheet1!C61 -> -0.7186 | D61: =Sheet1!P61-Sheet1!D61 -> -0.0844 | E61: =Sheet1!Q61-Sheet1!E61 -> 0.01 | F61: =Sheet1!R61-Sheet1!F61 -> -0.1901 | G61: =Sheet1!S61-Sheet1!G61 -> -0.1359 | H61: =Sheet1!T61-Sheet1!H61 -> 0.5109 | I61: =Sheet1!U61-Sheet1!I61 -> -0.39 | J61: =Sheet1!V61-Sheet1!J61 -> -0.1047 | K61: =Sheet1!W61-Sheet1!K61 -> -0.3158
A62: ='[1]FR - Smoothed DUTL Left'!A62 -> 1600 | B62: =Sheet1!N62-Sheet1!B62 -> -1.0242 | C62: =Sheet1!O62-Sheet1!C62 -> -0.5846 | D62: =Sheet1!P62-Sheet1!D62 -> -0.078 | E62: =Sheet1!Q62-Sheet1!E62 -> 0.0158 | F62: =Sheet1!R62-Sheet1!F62 -> -0.2014 | G62: =Sheet1!S62-Sheet1!G62 -> -0.1323 | H62: =Sheet1!T62-Sheet1!H62 -> 0.2158 | I62: =Sheet1!U62-Sheet1!I62 -> -0.2735 | J62: =Sheet1!V62-Sheet1!J62 -> -0.1634 | K62: =Sheet1!W62-Sheet1!K62 -> -0.4647
A63: ='[1]FR - Smoothed DUTL Left'!A63 -> 1700 | B63: =Sheet1!N63-Sheet1!B63 -> -1.0626 | C63: =Sheet1!O63-Sheet1!C63 -> -0.3739 | D63: =Sheet1!P63-Sheet1!D63 -> -0.0724 | E63: =Sheet1!Q63-Sheet1!E63 -> 0.001 | F63: =Sheet1!R63-Sheet1!F63 -> -0.1947 | G63: =Sheet1!S63-Sheet1!G63 -> -0.1322 | H63: =Sheet1!T63-Sheet1!H63 -> -0.3931 | I63: =Sheet1!U63-Sheet1!I63 -> -0.9413 | J63: =Sheet1!V63-Sheet1!J63 -> -0.1595 | K63: =Sheet1!W63-Sheet1!K63 -> -0.4145
A64: ='[1]FR - Smoothed DUTL Left'!A64 -> 1800 | B64: =Sheet1!N64-Sheet1!B64 -> -0.9658 | C64: =Sheet1!O64-Sheet1!C64 -> -0.0772 | D64: =Sheet1!P64-Sheet1!D64 -> -0.0503 | E64: =Sheet1!Q64-Sheet1!E64 -> -0.0008 | F64: =Sheet1!R64-Sheet1!F64 -> -0.1639 | G64: =Sheet1!S64-Sheet1!G64 -> -0.1151 | H64: =Sheet1!T64-Sheet1!H64 -> -0.8321 | I64: =Sheet1!U64-Sheet1!I64 -> -1.1875 | J64: =Sheet1!V64-Sheet1!J64 -> 0.0859 | K64: =Sheet1!W64-Sheet1!K64 -> -0.0572
A65: ='[1]FR - Smoothed DUTL Left'!A65 -> 1900 | B65: =Sheet1!N65-Sheet1!B65 -> -0.8685 | C65: =Sheet1!O65-Sheet1!C65 -> 0.1536 | D65: =Sheet1!P65-Sheet1!D65 -> -0.0248 | E65: =Sheet1!Q65-Sheet1!E65 -> 0.0138 | F65: =Sheet1!R65-Sheet1!F65 -> -0.1295 | G65: =Sheet1!S65-Sheet1!G65 -> -0.0811 | H65: =Sheet1!T65-Sheet1!H65 -> -1.0796 | I65: =Sheet1!U65-Sheet1!I65 -> -1.1397 | J65: =Sheet1!V65-Sheet1!J65 -> 0.2534 | K65: =Sheet1!W65-Sheet1!K65 -> 0.2142
A66: ='[1]FR - Smoothed DUTL Left'!A66 -> 2000 | B66: =Sheet1!N66-Sheet1!B66 -> -0.8241 | C66: =Sheet1!O66-Sheet1!C66 -> 0.2469 | D66: =Sheet1!P66-Sheet1!D66 -> -0.0181 | E66: =Sheet1!Q66-Sheet1!E66 -> 0.0361 | F66: =Sheet1!R66-Sheet1!F66 -> -0.1213 | G66: =Sheet1!S66-Sheet1!G66 -> -0.0454 | H66: =Sheet1!T66-Sheet1!H66 -> -1.2397 | I66: =Sheet1!U66-Sheet1!I66 -> -1.0301 | J66: =Sheet1!V66-Sheet1!J66 -> 0.1899 | K66: =Sheet1!W66-Sheet1!K66 -> 0.2633
A67: ='[1]FR - Smoothed DUTL Left'!A67 -> 2120 | B67: =Sheet1!N67-Sheet1!B67 -> -0.8356 | C67: =Sheet1!O67-Sheet1!C67 -> 0.2797 | D67: =Sheet1!P67-Sheet1!D67 -> -0.0395 | E67: =Sheet1!Q67-Sheet1!E67 -> 0.0524 | F67: =Sheet1!R67-Sheet1!F67 -> -0.1577 | G67: =Sheet1!S67-Sheet1!G67 -> -0.0414 | H67: =Sheet1!T67-Sheet1!H67 -> -1.3253 | I67: =Sheet1!U67-Sheet1!I67 -> -0.8835 | J67: =Sheet1!V67-Sheet1!J67 -> 0.0611 | K67: =Sheet1!W67-Sheet1!K67 -> 0.1705
A68: ='[1]FR - Smoothed DUTL Left'!A68 -> 2240 | B68: =Sheet1!N68-Sheet1!B68 -> -0.925 | C68: =Sheet1!O68-Sheet1!C68 -> 0.3644 | D68: =Sheet1!P68-Sheet1!D68 -> -0.0755 | E68: =Sheet1!Q68-Sheet1!E68 -> 0.0508 | F68: =Sheet1!R68-Sheet1!F68 -> -0.2145 | G68: =Sheet1!S68-Sheet1!G68 -> -0.0772 | H68: =Sheet1!T68-Sheet1!H68 -> -1.2063 | I68: =Sheet1!U68-Sheet1!I68 -> -0.675 | J68: =Sheet1!V68-Sheet1!J68 -> -0.0016 | K68: =Sheet1!W68-Sheet1!K68 -> -0.0031
A69: ='[1]FR - Smoothed DUTL Left'!A69 -> 2360 | B69: =Sheet1!N69-Sheet1!B69 -> -1.1712 | C69: =Sheet1!O69-Sheet1!C69 -> 0.4307 | D69: =Sheet1!P69-Sheet1!D69 -> -0.1058 | E69: =Sheet1!Q69-Sheet1!E69 -> 0.0328 | F69: =Sheet1!R69-Sheet1!F69 -> -0.2475 | G69: =Sheet1!S69-Sheet1!G69 -> -0.1193 | H69: =Sheet1!T69-Sheet1!H69 -> -0.7775 | I69: =Sheet1!U69-Sheet1!I69 -> -0.515 | J69: =Sheet1!V69-Sheet1!J69 -> 0.078 | K69: =Sheet1!W69-Sheet1!K69 -> -0.0336
A70: ='[1]FR - Smoothed DUTL Left'!A70 -> 2500 | B70: =Sheet1!N70-Sheet1!B70 -> -1.4381 | C70: =Sheet1!O70-Sheet1!C70 -> 0.3739 | D70: =Sheet1!P70-Sheet1!D70 -> -0.1361 | E70: =Sheet1!Q70-Sheet1!E70 -> 0.0065 | F70: =Sheet1!R70-Sheet1!F70 -> -0.2468 | G70: =Sheet1!S70-Sheet1!G70 -> -0.1344 | H70: =Sheet1!T70-Sheet1!H70 -> -0.1806 | I70: =Sheet1!U70-Sheet1!I70 -> -0.6552 | J70: =Sheet1!V70-Sheet1!J70 -> 0.1315 | K70: =Sheet1!W70-Sheet1!K70 -> 0.2916
A71: ='[1]FR - Smoothed DUTL Left'!A71 -> 2650 | B71: =Sheet1!N71-Sheet1!B71 -> -0.0291 | C71: =Sheet1!O71-Sheet1!C71 -> 0.2952 | D71: =Sheet1!P71-Sheet1!D71 -> -0.1748 | E71: =Sheet1!Q71-Sheet1!E71 -> -0.0053 | F71: =Sheet1!R71-Sheet1!F71 -> -0.2255 | G71: =Sheet1!S71-Sheet1!G71 -> -0.1091 | H71: =Sheet1!T71-Sheet1!H71 -> 0.041 | I71: =Sheet1!U71-Sheet1!I71 -> -0.8159 | J71: =Sheet1!V71-Sheet1!J71 -> 0.029 | K71: =Sheet1!W71-Sheet1!K71 -> 0.4569
A72: ='[1]FR - Smoothed DUTL Left'!A72 -> 2800 | B72: =Sheet1!N72-Sheet1!B72 -> 0.5382 | C72: =Sheet1!O72-Sheet1!C72 -> 0.1434 | D72: =Sheet1!P72-Sheet1!D72 -> -0.1711 | E72: =Sheet1!Q72-Sheet1!E72 -> 0.0045 | F72: =Sheet1!R72-Sheet1!F72 -> -0.1983 | G72: =Sheet1!S72-Sheet1!G72 -> -0.061 | H72: =Sheet1!T72-Sheet1!H72 -> -0.4491 | I72: =Sheet1!U72-Sheet1!I72 -> -0.6955 | J72: =Sheet1!V72-Sheet1!J72 -> 0.058 | K72: =Sheet1!W72-Sheet1!K72 -> 0.3083
A73: ='[1]FR - Smoothed DUTL Left'!A73 -> 3000 | B73: =Sheet1!N73-Sheet1!B73 -> 0.5438 | C73: =Sheet1!O73-Sheet1!C73 -> -0.0422 | D73: =Sheet1!P73-Sheet1!D73 -> -0.1363 | E73: =Sheet1!Q73-Sheet1!E73 -> 0.0005 | F73: =Sheet1!R73-Sheet1!F73 -> -0.1776 | G73: =Sheet1!S73-Sheet1!G73 -> -0.0556 | H73: =Sheet1!T73-Sheet1!H73 -> -0.8055 | I73: =Sheet1!U73-Sheet1!I73 -> -0.3695 | J73: =Sheet1!V73-Sheet1!J73 -> -0.1124 | K73: =Sheet1!W73-Sheet1!K73 -> -0.0403
A74: ='[1]FR - Smoothed DUTL Left'!A74 -> 3150 | B74: =Sheet1!N74-Sheet1!B74 -> 0.484 | C74: =Sheet1!O74-Sheet1!C74 -> -0.2268 | D74: =Sheet1!P74-Sheet1!D74 -> -0.1147 | E74: =Sheet1!Q74-Sheet1!E74 -> -0.0198 | F74: =Sheet1!R74-Sheet1!F74 -> -0.1733 | G74: =Sheet1!S74-Sheet1!G74 -> -0.1335 | H74: =Sheet1!T74-Sheet1!H74 -> -0.4815 | I74: =Sheet1!U74-Sheet1!I74 -> -0.0119 | J74: =Sheet1!V74-Sheet1!J74 -> -0.3504 | K74: =Sheet1!W74-Sheet1!K74 -> -0.549
A75: ='[1]FR - Smoothed DUTL Left'!A75 -> 3350 | B75: =Sheet1!N75-Sheet1!B75 -> 0.381 | C75: =Sheet1!O75-Sheet1!C75 -> -0.427 | D75: =Sheet1!P75-Sheet1!D75 -> -0.1117 | E75: =Sheet1!Q75-Sheet1!E75 -> -0.0599 | F75: =Sheet1!R75-Sheet1!F75 -> -0.1775 | G75: =Sheet1!S75-Sheet1!G75 -> -0.194 | H75: =Sheet1!T75-Sheet1!H75 -> 0.3425 | I75: =Sheet1!U75-Sheet1!I75 -> 0.0661 | J75: =Sheet1!V75-Sheet1!J75 -> -0.5365 | K75: =Sheet1!W75-Sheet1!K75 -> -0.7203
A76: ='[1]FR - Smoothed DUTL Left'!A76 -> 3550 | B76: =Sheet1!N76-Sheet1!B76 -> 0.4151 | C76: =Sheet1!O76-Sheet1!C76 -> -0.6193 | D76: =Sheet1!P76-Sheet1!D76 -> -0.1008 | E76: =Sheet1!Q76-Sheet1!E76 -> -0.0743 | F76: =Sheet1!R76-Sheet1!F76 -> -0.1776 | G76: =Sheet1!S76-Sheet1!G76 -> -0.2029 | H76: =Sheet1!T76-Sheet1!H76 -> 0.6974 | I76: =Sheet1!U76-Sheet1!I76 -> -0.1649 | J76: =Sheet1!V76-Sheet1!J76 -> -0.7226 | K76: =Sheet1!W76-Sheet1!K76 -> -0.3783
A77: ='[1]FR - Smoothed DUTL Left'!A77 -> 3750 | B77: =Sheet1!N77-Sheet1!B77 -> 0.3843 | C77: =Sheet1!O77-Sheet1!C77 -> -0.7132 | D77: =Sheet1!P77-Sheet1!D77 -> -0.0715 | E77: =Sheet1!Q77-Sheet1!E77 -> -0.0411 | F77: =Sheet1!R77-Sheet1!F77 -> -0.1731 | G77: =Sheet1!S77-Sheet1!G77 -> -0.1782 | H77: =Sheet1!T77-Sheet1!H77 -> 0.5127 | I77: =Sheet1!U77-Sheet1!I77 -> -0.308 | J77: =Sheet1!V77-Sheet1!J77 -> -1.0522 | K77: =Sheet1!W77-Sheet1!K77 -> -0.152
A78: ='[1]FR - Smoothed DUTL Left'!A78 -> 4000 | B78: =Sheet1!N78-Sheet1!B78 -> 0.2491 | C78: =Sheet1!O78-Sheet1!C78 -> -0.672 | D78: =Sheet1!P78-Sheet1!D78 -> -0.025 | E78: =Sheet1!Q78-Sheet1!E78 -> 0.0246 | F78: =Sheet1!R78-Sheet1!F78 -> -0.1806 | G78: =Sheet1!S78-Sheet1!G78 -> -0.1306 | H78: =Sheet1!T78-Sheet1!H78 -> 0.1983 | I78: =Sheet1!U78-Sheet1!I78 -> -0.2711 | J78: =Sheet1!V78-Sheet1!J78 -> -1.0169 | K78: =Sheet1!W78-Sheet1!K78 -> -0.2029
A79: ='[1]FR - Smoothed DUTL Left'!A79 -> 4250 | B79: =Sheet1!N79-Sheet1!B79 -> 0.0821 | C79: =Sheet1!O79-Sheet1!C79 -> -0.6415 | D79: =Sheet1!P79-Sheet1!D79 -> -0.0059 | E79: =Sheet1!Q79-Sheet1!E79 -> 0.0993 | F79: =Sheet1!R79-Sheet1!F79 -> -0.2132 | G79: =Sheet1!S79-Sheet1!G79 -> -0.0855 | H79: =Sheet1!T79-Sheet1!H79 -> -0.1573 | I79: =Sheet1!U79-Sheet1!I79 -> -0.1481 | J79: =Sheet1!V79-Sheet1!J79 -> -0.777 | K79: =Sheet1!W79-Sheet1!K79 -> -0.3504
A80: ='[1]FR - Smoothed DUTL Left'!A80 -> 4500 | B80: =Sheet1!N80-Sheet1!B80 -> 0.008 | C80: =Sheet1!O80-Sheet1!C80 -> -0.6415 | D80: =Sheet1!P80-Sheet1!D80 -> -0.0464 | E80: =Sheet1!Q80-Sheet1!E80 -> 0.1377 | F80: =Sheet1!R80-Sheet1!F80 -> -0.2836 | G80: =Sheet1!S80-Sheet1!G80 -> -0.0477 | H80: =Sheet1!T80-Sheet1!H80 -> -0.2816 | I80: =Sheet1!U80-Sheet1!I80 -> -0.0148 | J80: =Sheet1!V80-Sheet1!J80 -> -0.6316 | K80: =Sheet1!W80-Sheet1!K80 -> -0.5
A81: ='[1]FR - Smoothed DUTL Left'!A81 -> 4750 | B81: =Sheet1!N81-Sheet1!B81 -> -0.0131 | C81: =Sheet1!O81-Sheet1!C81 -> -0.5795 | D81: =Sheet1!P81-Sheet1!D81 -> -0.1234 | E81: =Sheet1!Q81-Sheet1!E81 -> 0.1038 | F81: =Sheet1!R81-Sheet1!F81 -> -0.3149 | G81: =Sheet1!S81-Sheet1!G81 -> -0.0887 | H81: =Sheet1!T81-Sheet1!H81 -> -0.0715 | I81: =Sheet1!U81-Sheet1!I81 -> 0.1562 | J81: =Sheet1!V81-Sheet1!J81 -> -0.468 | K81: =Sheet1!W81-Sheet1!K81 -> -0.6926
A82: ='[1]FR - Smoothed DUTL Left'!A82 -> 5000 | B82: =Sheet1!N82-Sheet1!B82 -> 0.0035 | C82: =Sheet1!O82-Sheet1!C82 -> -0.5366 | D82: =Sheet1!P82-Sheet1!D82 -> -0.1728 | E82: =Sheet1!Q82-Sheet1!E82 -> -0.0255 | F82: =Sheet1!R82-Sheet1!F82 -> -0.3038 | G82: =Sheet1!S82-Sheet1!G82 -> -0.1538 | H82: =Sheet1!T82-Sheet1!H82 -> 0.2397 | I82: =Sheet1!U82-Sheet1!I82 -> 0.2708 | J82: =Sheet1!V82-Sheet1!J82 -> -0.2277 | K82: =Sheet1!W82-Sheet1!K82 -> -0.8757
A83: ='[1]FR - Smoothed DUTL Left'!A83 -> 5300 | B83: =Sheet1!N83-Sheet1!B83 -> 0.0971 | C83: =Sheet1!O83-Sheet1!C83 -> -0.5688 | D83: =Sheet1!P83-Sheet1!D83 -> -0.1693 | E83: =Sheet1!Q83-Sheet1!E83 -> -0.1239 | F83: =Sheet1!R83-Sheet1!F83 -> -0.2932 | G83: =Sheet1!S83-Sheet1!G83 -> -0.1468 | H83: =Sheet1!T83-Sheet1!H83 -> 0.3902 | I83: =Sheet1!U83-Sheet1!I83 -> 0.2491 | J83: =Sheet1!V83-Sheet1!J83 -> 0.0356 | K83: =Sheet1!W83-Sheet1!K83 -> -0.9212
A84: ='[1]FR - Smoothed DUTL Left'!A84 -> 5600 | B84: =Sheet1!N84-Sheet1!B84 -> 0.2272 | C84: =Sheet1!O84-Sheet1!C84 -> -0.5817 | D84: =Sheet1!P84-Sheet1!D84 -> -0.1489 | E84: =Sheet1!Q84-Sheet1!E84 -> -0.1287 | F84: =Sheet1!R84-Sheet1!F84 -> -0.286 | G84: =Sheet1!S84-Sheet1!G84 -> -0.1466 | H84: =Sheet1!T84-Sheet1!H84 -> 0.3665 | I84: =Sheet1!U84-Sheet1!I84 -> 0.1673 | J84: =Sheet1!V84-Sheet1!J84 -> 0.2352 | K84: =Sheet1!W84-Sheet1!K84 -> -0.6222
A85: ='[1]FR - Smoothed DUTL Left'!A85 -> 6000 | B85: =Sheet1!N85-Sheet1!B85 -> 0.3397 | C85: =Sheet1!O85-Sheet1!C85 -> -0.5745 | D85: =Sheet1!P85-Sheet1!D85 -> -0.1777 | E85: =Sheet1!Q85-Sheet1!E85 -> -0.1088 | F85: =Sheet1!R85-Sheet1!F85 -> -0.3171 | G85: =Sheet1!S85-Sheet1!G85 -> -0.1707 | H85: =Sheet1!T85-Sheet1!H85 -> 0.3521 | I85: =Sheet1!U85-Sheet1!I85 -> 0.1251 | J85: =Sheet1!V85-Sheet1!J85 -> 0.4185 | K85: =Sheet1!W85-Sheet1!K85 -> -0.1796
A86: ='[1]FR - Smoothed DUTL Left'!A86 -> 6300 | B86: =Sheet1!N86-Sheet1!B86 -> 0.4245 | C86: =Sheet1!O86-Sheet1!C86 -> -0.4779 | D86: =Sheet1!P86-Sheet1!D86 -> -0.2602 | E86: =Sheet1!Q86-Sheet1!E86 -> -0.0969 | F86: =Sheet1!R86-Sheet1!F86 -> -0.3456 | G86: =Sheet1!S86-Sheet1!G86 -> -0.2262 | H86: =Sheet1!T86-Sheet1!H86 -> 0.3671 | I86: =Sheet1!U86-Sheet1!I86 -> 0.2714 | J86: =Sheet1!V86-Sheet1!J86 -> 0.6872 | K86: =Sheet1!W86-Sheet1!K86 -> -0.1189
A87: ='[1]FR - Smoothed DUTL Left'!A87 -> 6700 | B87: =Sheet1!N87-Sheet1!B87 -> 0.5153 | C87: =Sheet1!O87-Sheet1!C87 -> -0.2952 | D87: =Sheet1!P87-Sheet1!D87 -> -0.233 | E87: =Sheet1!Q87-Sheet1!E87 -> -0.1181 | F87: =Sheet1!R87-Sheet1!F87 -> -0.2769 | G87: =Sheet1!S87-Sheet1!G87 -> -0.2996 | H87: =Sheet1!T87-Sheet1!H87 -> 0.0355 | I87: =Sheet1!U87-Sheet1!I87 -> 0.7483 | J87: =Sheet1!V87-Sheet1!J87 -> 1.1521 | K87: =Sheet1!W87-Sheet1!K87 -> -0.0854
A88: ='[1]FR - Smoothed DUTL Left'!A88 -> 7100 | B88: =Sheet1!N88-Sheet1!B88 -> 0.5375 | C88: =Sheet1!O88-Sheet1!C88 -> -0.1152 | D88: =Sheet1!P88-Sheet1!D88 -> -0.158 | E88: =Sheet1!Q88-Sheet1!E88 -> -0.1891 | F88: =Sheet1!R88-Sheet1!F88 -> -0.2195 | G88: =Sheet1!S88-Sheet1!G88 -> -0.3543 | H88: =Sheet1!T88-Sheet1!H88 -> -0.6787 | I88: =Sheet1!U88-Sheet1!I88 -> 1.0873 | J88: =Sheet1!V88-Sheet1!J88 -> 1.4585 | K88: =Sheet1!W88-Sheet1!K88 -> 0.1829
A89: ='[1]FR - Smoothed DUTL Left'!A89 -> 7500 | B89: =Sheet1!N89-Sheet1!B89 -> 0.5075 | C89: =Sheet1!O89-Sheet1!C89 -> -0.0117 | D89: =Sheet1!P89-Sheet1!D89 -> -0.1414 | E89: =Sheet1!Q89-Sheet1!E89 -> -0.2372 | F89: =Sheet1!R89-Sheet1!F89 -> -0.2305 | G89: =Sheet1!S89-Sheet1!G89 -> -0.3486 | H89: =Sheet1!T89-Sheet1!H89 -> -1.0642 | I89: =Sheet1!U89-Sheet1!I89 -> 0.8805 | J89: =Sheet1!V89-Sheet1!J89 -> 1.1834 | K89: =Sheet1!W89-Sheet1!K89 -> 0.31
A90: ='[1]FR - Smoothed DUTL Left'!A90 -> 8000 | B90: =Sheet1!N90-Sheet1!B90 -> 0.495 | C90: =Sheet1!O90-Sheet1!C90 -> -0.056 | D90: =Sheet1!P90-Sheet1!D90 -> -0.2222 | E90: =Sheet1!Q90-Sheet1!E90 -> -0.2798 | F90: =Sheet1!R90-Sheet1!F90 -> -0.3236 | G90: =Sheet1!S90-Sheet1!G90 -> -0.3063 | H90: =Sheet1!T90-Sheet1!H90 -> -1.0374 | I90: =Sheet1!U90-Sheet1!I90 -> 0.2927 | J90: =Sheet1!V90-Sheet1!J90 -> 0.8127 | K90: =Sheet1!W90-Sheet1!K90 -> 0.0189
A91: ='[1]FR - Smoothed DUTL Left'!A91 -> 8500 | B91: =Sheet1!N91-Sheet1!B91 -> 0.481 | C91: =Sheet1!O91-Sheet1!C91 -> -0.1359 | D91: =Sheet1!P91-Sheet1!D91 -> -0.2534 | E91: =Sheet1!Q91-Sheet1!E91 -> -0.3456 | F91: =Sheet1!R91-Sheet1!F91 -> -0.3587 | G91: =Sheet1!S91-Sheet1!G91 -> -0.2325 | H91: =Sheet1!T91-Sheet1!H91 -> -0.8649 | I91: =Sheet1!U91-Sheet1!I91 -> -0.2538 | J91: =Sheet1!V91-Sheet1!J91 -> 0.5687 | K91: =Sheet1!W91-Sheet1!K91 -> -0.4771
A92: ='[1]FR - Smoothed DUTL Left'!A92 -> 9000 | B92: =Sheet1!N92-Sheet1!B92 -> 0.4729 | C92: =Sheet1!O92-Sheet1!C92 -> -0.0702 | D92: =Sheet1!P92-Sheet1!D92 -> -0.217 | E92: =Sheet1!Q92-Sheet1!E92 -> -0.3084 | F92: =Sheet1!R92-Sheet1!F92 -> -0.3492 | G92: =Sheet1!S92-Sheet1!G92 -> -0.1761 | H92: =Sheet1!T92-Sheet1!H92 -> -0.5538 | I92: =Sheet1!U92-Sheet1!I92 -> -0.2058 | J92: =Sheet1!V92-Sheet1!J92 -> 0.6566 | K92: =Sheet1!W92-Sheet1!K92 -> -1.0457
A93: ='[1]FR - Smoothed DUTL Left'!A93 -> 9500 | B93: =Sheet1!N93-Sheet1!B93 -> 0.5217 | C93: =Sheet1!O93-Sheet1!C93 -> 0.0214 | D93: =Sheet1!P93-Sheet1!D93 -> -0.2567 | E93: =Sheet1!Q93-Sheet1!E93 -> -0.2039 | F93: =Sheet1!R93-Sheet1!F93 -> -0.3625 | G93: =Sheet1!S93-Sheet1!G93 -> -0.2278 | H93: =Sheet1!T93-Sheet1!H93 -> -0.0436 | I93: =Sheet1!U93-Sheet1!I93 -> 0.2015 | J93: =Sheet1!V93-Sheet1!J93 -> 0.5988 | K93: =Sheet1!W93-Sheet1!K93 -> -1.0306
A94: ='[1]FR - Smoothed DUTL Left'!A94 -> 10000 | B94: =Sheet1!N94-Sheet1!B94 -> 0.4614 | C94: =Sheet1!O94-Sheet1!C94 -> -0.0052 | D94: =Sheet1!P94-Sheet1!D94 -> -0.3122 | E94: =Sheet1!Q94-Sheet1!E94 -> -0.1556 | F94: =Sheet1!R94-Sheet1!F94 -> -0.3425 | G94: =Sheet1!S94-Sheet1!G94 -> -0.3181 | H94: =Sheet1!T94-Sheet1!H94 -> 0.3138 | I94: =Sheet1!U94-Sheet1!I94 -> 0.3751 | J94: =Sheet1!V94-Sheet1!J94 -> -0.068 | K94: =Sheet1!W94-Sheet1!K94 -> -0.3932
A95: ='[1]FR - Smoothed DUTL Left'!A95 -> 10600 | B95: =Sheet1!N95-Sheet1!B95 -> 0.3018 | C95: =Sheet1!O95-Sheet1!C95 -> -0.1233 | D95: =Sheet1!P95-Sheet1!D95 -> -0.2516 | E95: =Sheet1!Q95-Sheet1!E95 -> -0.0672 | F95: =Sheet1!R95-Sheet1!F95 -> -0.2763 | G95: =Sheet1!S95-Sheet1!G95 -> -0.3354 | H95: =Sheet1!T95-Sheet1!H95 -> 0.4724 | I95: =Sheet1!U95-Sheet1!I95 -> 0.5892 | J95: =Sheet1!V95-Sheet1!J95 -> -0.9377 | K95: =Sheet1!W95-Sheet1!K95 -> 0.6966
A96: ='[1]FR - Smoothed DUTL Left'!A96 -> 11200 | B96: =Sheet1!N96-Sheet1!B96 -> 0.217 | C96: =Sheet1!O96-Sheet1!C96 -> -0.257 | D96: =Sheet1!P96-Sheet1!D96 -> -0.2099 | E96: =Sheet1!Q96-Sheet1!E96 -> 0.0617 | F96: =Sheet1!R96-Sheet1!F96 -> -0.335 | G96: =Sheet1!S96-Sheet1!G96 -> -0.2919 | H96: =Sheet1!T96-Sheet1!H96 -> 0.5792 | I96: =Sheet1!U96-Sheet1!I96 -> 0.8097 | J96: =Sheet1!V96-Sheet1!J96 -> -1.2539 | K96: =Sheet1!W96-Sheet1!K96 -> 1.1503
A97: ='[1]FR - Smoothed DUTL Left'!A97 -> 11800 | B97: =Sheet1!N97-Sheet1!B97 -> 0.162 | C97: =Sheet1!O97-Sheet1!C97 -> -0.4624 | D97: =Sheet1!P97-Sheet1!D97 -> -0.2634 | E97: =Sheet1!Q97-Sheet1!E97 -> -0.0235 | F97: =Sheet1!R97-Sheet1!F97 -> -0.4428 | G97: =Sheet1!S97-Sheet1!G97 -> -0.2917 | H97: =Sheet1!T97-Sheet1!H97 -> 0.3553 | I97: =Sheet1!U97-Sheet1!I97 -> 0.5418 | J97: =Sheet1!V97-Sheet1!J97 -> -0.8189 | K97: =Sheet1!W97-Sheet1!K97 -> 0.0093
A98: ='[1]FR - Smoothed DUTL Left'!A98 -> 12500 | B98: =Sheet1!N98-Sheet1!B98 -> 0.2016 | C98: =Sheet1!O98-Sheet1!C98 -> -0.5567 | D98: =Sheet1!P98-Sheet1!D98 -> -0.3681 | E98: =Sheet1!Q98-Sheet1!E98 -> -0.2774 | F98: =Sheet1!R98-Sheet1!F98 -> -0.486 | G98: =Sheet1!S98-Sheet1!G98 -> -0.3415 | H98: =Sheet1!T98-Sheet1!H98 -> 0.0069 | I98: =Sheet1!U98-Sheet1!I98 -> 0.0595 | J98: =Sheet1!V98-Sheet1!J98 -> -0.3703 | K98: =Sheet1!W98-Sheet1!K98 -> -1.4473
A99: ='[1]FR - Smoothed DUTL Left'!A99 -> 13200 | B99: =Sheet1!N99-Sheet1!B99 -> 0.2924 | C99: =Sheet1!O99-Sheet1!C99 -> -0.4661 | D99: =Sheet1!P99-Sheet1!D99 -> -0.4543 | E99: =Sheet1!Q99-Sheet1!E99 -> -0.4502 | F99: =Sheet1!R99-Sheet1!F99 -> -0.546 | G99: =Sheet1!S99-Sheet1!G99 -> -0.4308 | H99: =Sheet1!T99-Sheet1!H99 -> -0.1658 | I99: =Sheet1!U99-Sheet1!I99 -> -0.1483 | J99: =Sheet1!V99-Sheet1!J99 -> -0.2834 | K99: =Sheet1!W99-Sheet1!K99 -> -2.1199
A100: ='[1]FR - Smoothed DUTL Left'!A100 -> 14000 | B100: =Sheet1!N100-Sheet1!B100 -> 0.2966 | C100: =Sheet1!O100-Sheet1!C100 -> -0.396 | D100: =Sheet1!P100-Sheet1!D100 -> -0.4802 | E100: =Sheet1!Q100-Sheet1!E100 -> -0.5997 | F100: =Sheet1!R100-Sheet1!F100 -> -0.7689 | G100: =Sheet1!S100-Sheet1!G100 -> -0.4649 | H100: =Sheet1!T100-Sheet1!H100 -> -0.1495 | I100: =Sheet1!U100-Sheet1!I100 -> -0.2813 | J100: =Sheet1!V100-Sheet1!J100 -> -0.559 | K100: =Sheet1!W100-Sheet1!K100 -> -1.8653
A101: ='[1]FR - Smoothed DUTL Left'!A101 -> 15000 | B101: =Sheet1!N101-Sheet1!B101 -> 0.2 | C101: =Sheet1!O101-Sheet1!C101 -> -0.2721 | D101: =Sheet1!P101-Sheet1!D101 -> -0.4939 | E101: =Sheet1!Q101-Sheet1!E101 -> -0.8045 | F101: =Sheet1!R101-Sheet1!F101 -> -0.7884 | G101: =Sheet1!S101-Sheet1!G101 -> -0.428 | H101: =Sheet1!T101-Sheet1!H101 -> 0.0995 | I101: =Sheet1!U101-Sheet1!I101 -> -0.6257 | J101: =Sheet1!V101-Sheet1!J101 -> -1.2482 | K101: =Sheet1!W101-Sheet1!K101 -> -1.1098
A102: ='[1]FR - Smoothed DUTL Left'!A102 -> 16000 | B102: =Sheet1!N102-Sheet1!B102 -> 0.2044 | C102: =Sheet1!O102-Sheet1!C102 -> -0.2411 | D102: =Sheet1!P102-Sheet1!D102 -> -0.4346 | E102: =Sheet1!Q102-Sheet1!E102 -> -0.7678 | F102: =Sheet1!R102-Sheet1!F102 -> -0.5437 | G102: =Sheet1!S102-Sheet1!G102 -> -0.2497 | H102: =Sheet1!T102-Sheet1!H102 -> 0.5072 | I102: =Sheet1!U102-Sheet1!I102 -> -0.9613 | J102: =Sheet1!V102-Sheet1!J102 -> -1.7043 | K102: =Sheet1!W102-Sheet1!K102 -> -0.5253
A103: ='[1]FR - Smoothed DUTL Left'!A103 -> 17000 | B103: =Sheet1!N103-Sheet1!B103 -> 0.318 | C103: =Sheet1!O103-Sheet1!C103 -> -0.2531 | D103: =Sheet1!P103-Sheet1!D103 -> -0.3966 | E103: =Sheet1!Q103-Sheet1!E103 -> -0.57 | F103: =Sheet1!R103-Sheet1!F103 -> -0.2319 | G103: =Sheet1!S103-Sheet1!G103 -> -0.0556 | H103: =Sheet1!T103-Sheet1!H103 -> 0.6641 | I103: =Sheet1!U103-Sheet1!I103 -> -0.8993 | J103: =Sheet1!V103-Sheet1!J103 -> -1.5029 | K103: =Sheet1!W103-Sheet1!K103 -> -0.1701
A104: ='[1]FR - Smoothed DUTL Left'!A104 -> 18000 | B104: =Sheet1!N104-Sheet1!B104 -> 0.4243 | C104: =Sheet1!O104-Sheet1!C104 -> -0.2434 | D104: =Sheet1!P104-Sheet1!D104 -> -0.3554 | E104: =Sheet1!Q104-Sheet1!E104 -> -0.3227 | F104: =Sheet1!R104-Sheet1!F104 -> 0.0207 | G104: =Sheet1!S104-Sheet1!G104 -> 0.0991 | H104: =Sheet1!T104-Sheet1!H104 -> 0.6085 | I104: =Sheet1!U104-Sheet1!I104 -> -0.5554 | J104: =Sheet1!V104-Sheet1!J104 -> -1.0231 | K104: =Sheet1!W104-Sheet1!K104 -> 0.0122
A105: ='[1]FR - Smoothed DUTL Left'!A105 -> 19000 | B105: =Sheet1!N105-Sheet1!B105 -> 0.5922 | C105: =Sheet1!O105-Sheet1!C105 -> -0.2639 | D105: =Sheet1!P105-Sheet1!D105 -> -0.2673 | E105: =Sheet1!Q105-Sheet1!E105 -> -0.0429 | F105: =Sheet1!R105-Sheet1!F105 -> 0.1862 | G105: =Sheet1!S105-Sheet1!G105 -> 0.2133 | H105: =Sheet1!T105-Sheet1!H105 -> 0.4488 | I105: =Sheet1!U105-Sheet1!I105 -> -0.0704 | J105: =Sheet1!V105-Sheet1!J105 -> -0.4262 | K105: =Sheet1!W105-Sheet1!K105 -> -0.098
A106: ='[1]FR - Smoothed DUTL Left'!A106 -> 20000 | B106: =Sheet1!N106-Sheet1!B106 -> 0.8718 | C106: =Sheet1!O106-Sheet1!C106 -> -0.2317 | D106: =Sheet1!P106-Sheet1!D106 -> -0.1525 | E106: =Sheet1!Q106-Sheet1!E106 -> 0.2264 | F106: =Sheet1!R106-Sheet1!F106 -> 0.2804 | G106: =Sheet1!S106-Sheet1!G106 -> 0.272 | H106: =Sheet1!T106-Sheet1!H106 -> 0.0599 | I106: =Sheet1!U106-Sheet1!I106 -> 0.4928 | J106: =Sheet1!V106-Sheet1!J106 -> 0.0004 | K106: =Sheet1!W106-Sheet1!K106 -> -0.8697
A107: ='[1]FR - Smoothed DUTL Left'!A107 -> 21200 | B107: =Sheet1!N107-Sheet1!B107 -> 0.5238 | C107: =Sheet1!O107-Sheet1!C107 -> -0.9114 | D107: =Sheet1!P107-Sheet1!D107 -> 0.0057 | E107: =Sheet1!Q107-Sheet1!E107 -> 0.4735 | F107: =Sheet1!R107-Sheet1!F107 -> 0.3891 | G107: =Sheet1!S107-Sheet1!G107 -> 0.2822 | H107: =Sheet1!T107-Sheet1!H107 -> -1.7619 | I107: =Sheet1!U107-Sheet1!I107 -> -0.8529 | J107: =Sheet1!V107-Sheet1!J107 -> -1.3454 | K107: =Sheet1!W107-Sheet1!K107 -> -1.3662
A108: ='[1]FR - Smoothed DUTL Left'!A108 -> 22400 | B108: =Sheet1!N108-Sheet1!B108 -> -4.1288 | C108: =Sheet1!O108-Sheet1!C108 -> -4.2946 | D108: =Sheet1!P108-Sheet1!D108 -> -0.0634 | E108: =Sheet1!Q108-Sheet1!E108 -> 0.9432 | F108: =Sheet1!R108-Sheet1!F108 -> 0.5246 | G108: =Sheet1!S108-Sheet1!G108 -> 1.065 | H108: =Sheet1!T108-Sheet1!H108 -> -5.5031 | I108: =Sheet1!U108-Sheet1!I108 -> -4.9641 | J108: =Sheet1!V108-Sheet1!J108 -> -7.0782 | K108: =Sheet1!W108-Sheet1!K108 -> -5.7019

Sheet Post Delta
A1: ='FR - Smoothed DUTL Left'!A1 -> Frequecy | B1: ='FR - Smoothed DUTL Left'!B1 -> Post DUTL L | C1: ='FR - Smoothed DUTL Right'!B1 -> Post DUTL R | D1: ='FR - Smoothed DUTL Mic1'!B1 -> Post Mic1 | E1: ='FR - Smoothed DUTL Mic2'!B1 -> Post Mic2 | F1: ='FR - Smoothed DUTL Mic3'!B1 -> Post Mic3 | G1: ='FR - Smoothed DUTL Mic4'!B1 -> Post Mic4 | H1: ='FR - Smoothed Self DUTL Mic1'!B1 -> Post Self Mic1 | I1: ='FR - Smoothed Self DUTL Mic2'!B1 -> Post Self Mic2 | J1: ='FR - Smoothed Self DUTL Mic3'!B1 -> Post Self Mic3 | K1: ='FR - Smoothed Self DUTL Mic4'!B1 -> Post Self Mic4
A2: ='FR - Smoothed DUTL Left'!A2 -> 50 | B2: ='FR - Smoothed DUTL Left'!B2 -> -0.447 | C2: ='FR - Smoothed DUTL Right'!B2 -> -0.345 | D2: ='FR - Smoothed DUTL Mic1'!B2 -> 0.09 | E2: ='FR - Smoothed DUTL Mic2'!B2 -> 0.099 | F2: ='FR - Smoothed DUTL Mic3'!B2 -> -0.103 | G2: ='FR - Smoothed DUTL Mic4'!B2 -> 0.069 | H2: ='FR - Smoothed Self DUTL Mic1'!B2 -> 0.022 | I2: ='FR - Smoothed Self DUTL Mic2'!B2 -> -0.114 | J2: ='FR - Smoothed Self DUTL Mic3'!B2 -> -0.398 | K2: ='FR - Smoothed Self DUTL Mic4'!B2 -> -0.099
A3: ='FR - Smoothed DUTL Left'!A3 -> 53 | B3: ='FR - Smoothed DUTL Left'!B3 -> -0.19 | C3: ='FR - Smoothed DUTL Right'!B3 -> -0.181 | D3: ='FR - Smoothed DUTL Mic1'!B3 -> 0.063 | E3: ='FR - Smoothed DUTL Mic2'!B3 -> 0.084 | F3: ='FR - Smoothed DUTL Mic3'!B3 -> -0.118 | G3: ='FR - Smoothed DUTL Mic4'!B3 -> 0.052 | H3: ='FR - Smoothed Self DUTL Mic1'!B3 -> 0.132 | I3: ='FR - Smoothed Self DUTL Mic2'!B3 -> 0.069 | J3: ='FR - Smoothed Self DUTL Mic3'!B3 -> -0.236 | K3: ='FR - Smoothed Self DUTL Mic4'!B3 -> 0.056
A4: ='FR - Smoothed DUTL Left'!A4 -> 56 | B4: ='FR - Smoothed DUTL Left'!B4 -> -0.061 | C4: ='FR - Smoothed DUTL Right'!B4 -> -0.058 | D4: ='FR - Smoothed DUTL Mic1'!B4 -> 0.034 | E4: ='FR - Smoothed DUTL Mic2'!B4 -> 0.073 | F4: ='FR - Smoothed DUTL Mic3'!B4 -> -0.127 | G4: ='FR - Smoothed DUTL Mic4'!B4 -> 0.039 | H4: ='FR - Smoothed Self DUTL Mic1'!B4 -> 0.23 | I4: ='FR - Smoothed Self DUTL Mic2'!B4 -> 0.208 | J4: ='FR - Smoothed Self DUTL Mic3'!B4 -> -0.115 | K4: ='FR - Smoothed Self DUTL Mic4'!B4 -> 0.177
A5: ='FR - Smoothed DUTL Left'!A5 -> 60 | B5: ='FR - Smoothed DUTL Left'!B5 -> -0.008 | C5: ='FR - Smoothed DUTL Right'!B5 -> -0.008 | D5: ='FR - Smoothed DUTL Mic1'!B5 -> -0.024 | E5: ='FR - Smoothed DUTL Mic2'!B5 -> 0.059 | F5: ='FR - Smoothed DUTL Mic3'!B5 -> -0.142 | G5: ='FR - Smoothed DUTL Mic4'!B5 -> 0.019 | H5: ='FR - Smoothed Self DUTL Mic1'!B5 -> 0.3 | I5: ='FR - Smoothed Self DUTL Mic2'!B5 -> 0.309 | J5: ='FR - Smoothed Self DUTL Mic3'!B5 -> -0.031 | K5: ='FR - Smoothed Self DUTL Mic4'!B5 -> 0.268
A6: ='FR - Smoothed DUTL Left'!A6 -> 63 | B6: ='FR - Smoothed DUTL Left'!B6 -> 0.009 | C6: ='FR - Smoothed DUTL Right'!B6 -> 0.013 | D6: ='FR - Smoothed DUTL Mic1'!B6 -> -0.071 | E6: ='FR - Smoothed DUTL Mic2'!B6 -> 0.054 | F6: ='FR - Smoothed DUTL Mic3'!B6 -> -0.148 | G6: ='FR - Smoothed DUTL Mic4'!B6 -> 0.008 | H6: ='FR - Smoothed Self DUTL Mic1'!B6 -> 0.296 | I6: ='FR - Smoothed Self DUTL Mic2'!B6 -> 0.346 | J6: ='FR - Smoothed Self DUTL Mic3'!B6 -> -0.021 | K6: ='FR - Smoothed Self DUTL Mic4'!B6 -> 0.292
A7: ='FR - Smoothed DUTL Left'!A7 -> 67 | B7: ='FR - Smoothed DUTL Left'!B7 -> 0.004 | C7: ='FR - Smoothed DUTL Right'!B7 -> 0.006 | D7: ='FR - Smoothed DUTL Mic1'!B7 -> -0.086 | E7: ='FR - Smoothed DUTL Mic2'!B7 -> 0.064 | F7: ='FR - Smoothed DUTL Mic3'!B7 -> -0.141 | G7: ='FR - Smoothed DUTL Mic4'!B7 -> 0.011 | H7: ='FR - Smoothed Self DUTL Mic1'!B7 -> 0.218 | I7: ='FR - Smoothed Self DUTL Mic2'!B7 -> 0.294 | J7: ='FR - Smoothed Self DUTL Mic3'!B7 -> -0.08 | K7: ='FR - Smoothed Self DUTL Mic4'!B7 -> 0.231
A8: ='FR - Smoothed DUTL Left'!A8 -> 71 | B8: ='FR - Smoothed DUTL Left'!B8 -> -0.014 | C8: ='FR - Smoothed DUTL Right'!B8 -> -0.02 | D8: ='FR - Smoothed DUTL Mic1'!B8 -> -0.059 | E8: ='FR - Smoothed DUTL Mic2'!B8 -> 0.072 | F8: ='FR - Smoothed DUTL Mic3'!B8 -> -0.134 | G8: ='FR - Smoothed DUTL Mic4'!B8 -> 0.014 | H8: ='FR - Smoothed Self DUTL Mic1'!B8 -> 0.134 | I8: ='FR - Smoothed Self DUTL Mic2'!B8 -> 0.217 | J8: ='FR - Smoothed Self DUTL Mic3'!B8 -> -0.144 | K8: ='FR - Smoothed Self DUTL Mic4'!B8 -> 0.146
A9: ='FR - Smoothed DUTL Left'!A9 -> 75 | B9: ='FR - Smoothed DUTL Left'!B9 -> -0.039 | C9: ='FR - Smoothed DUTL Right'!B9 -> -0.045 | D9: ='FR - Smoothed DUTL Mic1'!B9 -> -0.034 | E9: ='FR - Smoothed DUTL Mic2'!B9 -> 0.06 | F9: ='FR - Smoothed DUTL Mic3'!B9 -> -0.143 | G9: ='FR - Smoothed DUTL Mic4'!B9 -> -0.004 | H9: ='FR - Smoothed Self DUTL Mic1'!B9 -> 0.077 | I9: ='FR - Smoothed Self DUTL Mic2'!B9 -> 0.159 | J9: ='FR - Smoothed Self DUTL Mic3'!B9 -> -0.184 | K9: ='FR - Smoothed Self DUTL Mic4'!B9 -> 0.08
A10: ='FR - Smoothed DUTL Left'!A10 -> 80 | B10: ='FR - Smoothed DUTL Left'!B10 -> -0.057 | C10: ='FR - Smoothed DUTL Right'!B10 -> -0.067 | D10: ='FR - Smoothed DUTL Mic1'!B10 -> -0.04 | E10: ='FR - Smoothed DUTL Mic2'!B10 -> 0.033 | F10: ='FR - Smoothed DUTL Mic3'!B10 -> -0.166 | G10: ='FR - Smoothed DUTL Mic4'!B10 -> -0.034 | H10: ='FR - Smoothed Self DUTL Mic1'!B10 -> 0.044 | I10: ='FR - Smoothed Self DUTL Mic2'!B10 -> 0.124 | J10: ='FR - Smoothed Self DUTL Mic3'!B10 -> -0.204 | K10: ='FR - Smoothed Self DUTL Mic4'!B10 -> 0.038
A11: ='FR - Smoothed DUTL Left'!A11 -> 85 | B11: ='FR - Smoothed DUTL Left'!B11 -> -0.077 | C11: ='FR - Smoothed DUTL Right'!B11 -> -0.09 | D11: ='FR - Smoothed DUTL Mic1'!B11 -> -0.045 | E11: ='FR - Smoothed DUTL Mic2'!B11 -> 0.018 | F11: ='FR - Smoothed DUTL Mic3'!B11 -> -0.178 | G11: ='FR - Smoothed DUTL Mic4'!B11 -> -0.052 | H11: ='FR - Smoothed Self DUTL Mic1'!B11 -> 0.019 | I11: ='FR - Smoothed Self DUTL Mic2'!B11 -> 0.106 | J11: ='FR - Smoothed Self DUTL Mic3'!B11 -> -0.22 | K11: ='FR - Smoothed Self DUTL Mic4'!B11 -> 0.009
A12: ='FR - Smoothed DUTL Left'!A12 -> 90 | B12: ='FR - Smoothed DUTL Left'!B12 -> -0.107 | C12: ='FR - Smoothed DUTL Right'!B12 -> -0.12 | D12: ='FR - Smoothed DUTL Mic1'!B12 -> -0.039 | E12: ='FR - Smoothed DUTL Mic2'!B12 -> 0.03 | F12: ='FR - Smoothed DUTL Mic3'!B12 -> -0.163 | G12: ='FR - Smoothed DUTL Mic4'!B12 -> -0.041 | H12: ='FR - Smoothed Self DUTL Mic1'!B12 -> -0.005 | I12: ='FR - Smoothed Self DUTL Mic2'!B12 -> 0.091 | J12: ='FR - Smoothed Self DUTL Mic3'!B12 -> -0.24 | K12: ='FR - Smoothed Self DUTL Mic4'!B12 -> -0.018
A13: ='FR - Smoothed DUTL Left'!A13 -> 95 | B13: ='FR - Smoothed DUTL Left'!B13 -> -0.15 | C13: ='FR - Smoothed DUTL Right'!B13 -> -0.162 | D13: ='FR - Smoothed DUTL Mic1'!B13 -> -0.026 | E13: ='FR - Smoothed DUTL Mic2'!B13 -> 0.049 | F13: ='FR - Smoothed DUTL Mic3'!B13 -> -0.141 | G13: ='FR - Smoothed DUTL Mic4'!B13 -> -0.021 | H13: ='FR - Smoothed Self DUTL Mic1'!B13 -> -0.036 | I13: ='FR - Smoothed Self DUTL Mic2'!B13 -> 0.079 | J13: ='FR - Smoothed Self DUTL Mic3'!B13 -> -0.27 | K13: ='FR - Smoothed Self DUTL Mic4'!B13 -> -0.044
A14: ='FR - Smoothed DUTL Left'!A14 -> 100 | B14: ='FR - Smoothed DUTL Left'!B14 -> -0.231 | C14: ='FR - Smoothed DUTL Right'!B14 -> -0.227 | D14: ='FR - Smoothed DUTL Mic1'!B14 -> 0.003 | E14: ='FR - Smoothed DUTL Mic2'!B14 -> 0.072 | F14: ='FR - Smoothed DUTL Mic3'!B14 -> -0.119 | G14: ='FR - Smoothed DUTL Mic4'!B14 -> 0.002 | H14: ='FR - Smoothed Self DUTL Mic1'!B14 -> -0.078 | I14: ='FR - Smoothed Self DUTL Mic2'!B14 -> 0.065 | J14: ='FR - Smoothed Self DUTL Mic3'!B14 -> -0.313 | K14: ='FR - Smoothed Self DUTL Mic4'!B14 -> -0.075
A15: ='FR - Smoothed DUTL Left'!A15 -> 106 | B15: ='FR - Smoothed DUTL Left'!B15 -> -0.349 | C15: ='FR - Smoothed DUTL Right'!B15 -> -0.305 | D15: ='FR - Smoothed DUTL Mic1'!B15 -> 0.03 | E15: ='FR - Smoothed DUTL Mic2'!B15 -> 0.087 | F15: ='FR - Smoothed DUTL Mic3'!B15 -> -0.11 | G15: ='FR - Smoothed DUTL Mic4'!B15 -> 0.012 | H15: ='FR - Smoothed Self DUTL Mic1'!B15 -> -0.146 | I15: ='FR - Smoothed Self DUTL Mic2'!B15 -> 0.02 | J15: ='FR - Smoothed Self DUTL Mic3'!B15 -> -0.387 | K15: ='FR - Smoothed Self DUTL Mic4'!B15 -> -0.137
A16: ='FR - Smoothed DUTL Left'!A16 -> 112 | B16: ='FR - Smoothed DUTL Left'!B16 -> -0.442 | C16: ='FR - Smoothed DUTL Right'!B16 -> -0.352 | D16: ='FR - Smoothed DUTL Mic1'!B16 -> 0.023 | E16: ='FR - Smoothed DUTL Mic2'!B16 -> 0.074 | F16: ='FR - Smoothed DUTL Mic3'!B16 -> -0.128 | G16: ='FR - Smoothed DUTL Mic4'!B16 -> -0.006 | H16: ='FR - Smoothed Self DUTL Mic1'!B16 -> -0.232 | I16: ='FR - Smoothed Self DUTL Mic2'!B16 -> -0.078 | J16: ='FR - Smoothed Self DUTL Mic3'!B16 -> -0.476 | K16: ='FR - Smoothed Self DUTL Mic4'!B16 -> -0.251
A17: ='FR - Smoothed DUTL Left'!A17 -> 118 | B17: ='FR - Smoothed DUTL Left'!B17 -> -0.452 | C17: ='FR - Smoothed DUTL Right'!B17 -> -0.338 | D17: ='FR - Smoothed DUTL Mic1'!B17 -> -0.007 | E17: ='FR - Smoothed DUTL Mic2'!B17 -> 0.036 | F17: ='FR - Smoothed DUTL Mic3'!B17 -> -0.161 | G17: ='FR - Smoothed DUTL Mic4'!B17 -> -0.042 | H17: ='FR - Smoothed Self DUTL Mic1'!B17 -> -0.27 | I17: ='FR - Smoothed Self DUTL Mic2'!B17 -> -0.159 | J17: ='FR - Smoothed Self DUTL Mic3'!B17 -> -0.521 | K17: ='FR - Smoothed Self DUTL Mic4'!B17 -> -0.349
A18: ='FR - Smoothed DUTL Left'!A18 -> 125 | B18: ='FR - Smoothed DUTL Left'!B18 -> -0.341 | C18: ='FR - Smoothed DUTL Right'!B18 -> -0.274 | D18: ='FR - Smoothed DUTL Mic1'!B18 -> -0.037 | E18: ='FR - Smoothed DUTL Mic2'!B18 -> 0.012 | F18: ='FR - Smoothed DUTL Mic3'!B18 -> -0.17 | G18: ='FR - Smoothed DUTL Mic4'!B18 -> -0.061 | H18: ='FR - Smoothed Self DUTL Mic1'!B18 -> -0.222 | I18: ='FR - Smoothed Self DUTL Mic2'!B18 -> -0.113 | J18: ='FR - Smoothed Self DUTL Mic3'!B18 -> -0.493 | K18: ='FR - Smoothed Self DUTL Mic4'!B18 -> -0.343
A19: ='FR - Smoothed DUTL Left'!A19 -> 132 | B19: ='FR - Smoothed DUTL Left'!B19 -> -0.11 | C19: ='FR - Smoothed DUTL Right'!B19 -> -0.173 | D19: ='FR - Smoothed DUTL Mic1'!B19 -> -0.033 | E19: ='FR - Smoothed DUTL Mic2'!B19 -> 0.036 | F19: ='FR - Smoothed DUTL Mic3'!B19 -> -0.138 | G19: ='FR - Smoothed DUTL Mic4'!B19 -> -0.036 | H19: ='FR - Smoothed Self DUTL Mic1'!B19 -> -0.112 | I19: ='FR - Smoothed Self DUTL Mic2'!B19 -> 0.056 | J19: ='FR - Smoothed Self DUTL Mic3'!B19 -> -0.419 | K19: ='FR - Smoothed Self DUTL Mic4'!B19 -> -0.24
A20: ='FR - Smoothed DUTL Left'!A20 -> 140 | B20: ='FR - Smoothed DUTL Left'!B20 -> 0.109 | C20: ='FR - Smoothed DUTL Right'!B20 -> -0.071 | D20: ='FR - Smoothed DUTL Mic1'!B20 -> -0.009 | E20: ='FR - Smoothed DUTL Mic2'!B20 -> 0.075 | F20: ='FR - Smoothed DUTL Mic3'!B20 -> -0.104 | G20: ='FR - Smoothed DUTL Mic4'!B20 -> -0.004 | H20: ='FR - Smoothed Self DUTL Mic1'!B20 -> -0.002 | I20: ='FR - Smoothed Self DUTL Mic2'!B20 -> 0.207 | J20: ='FR - Smoothed Self DUTL Mic3'!B20 -> -0.306 | K20: ='FR - Smoothed Self DUTL Mic4'!B20 -> -0.111
A21: ='FR - Smoothed DUTL Left'!A21 -> 150 | B21: ='FR - Smoothed DUTL Left'!B21 -> 0.123 | C21: ='FR - Smoothed DUTL Right'!B21 -> -0.049 | D21: ='FR - Smoothed DUTL Mic1'!B21 -> -0.006 | E21: ='FR - Smoothed DUTL Mic2'!B21 -> 0.075 | F21: ='FR - Smoothed DUTL Mic3'!B21 -> -0.107 | G21: ='FR - Smoothed DUTL Mic4'!B21 -> -0.009 | H21: ='FR - Smoothed Self DUTL Mic1'!B21 -> 0.055 | I21: ='FR - Smoothed Self DUTL Mic2'!B21 -> 0.178 | J21: ='FR - Smoothed Self DUTL Mic3'!B21 -> -0.133 | K21: ='FR - Smoothed Self DUTL Mic4'!B21 -> -0.001
A22: ='FR - Smoothed DUTL Left'!A22 -> 160 | B22: ='FR - Smoothed DUTL Left'!B22 -> -0.147 | C22: ='FR - Smoothed DUTL Right'!B22 -> -0.147 | D22: ='FR - Smoothed DUTL Mic1'!B22 -> -0.029 | E22: ='FR - Smoothed DUTL Mic2'!B22 -> 0.049 | F22: ='FR - Smoothed DUTL Mic3'!B22 -> -0.135 | G22: ='FR - Smoothed DUTL Mic4'!B22 -> -0.038 | H22: ='FR - Smoothed Self DUTL Mic1'!B22 -> 0.027 | I22: ='FR - Smoothed Self DUTL Mic2'!B22 -> -0.031 | J22: ='FR - Smoothed Self DUTL Mic3'!B22 -> 0.051 | K22: ='FR - Smoothed Self DUTL Mic4'!B22 -> 0.072
A23: ='FR - Smoothed DUTL Left'!A23 -> 170 | B23: ='FR - Smoothed DUTL Left'!B23 -> -0.495 | C23: ='FR - Smoothed DUTL Right'!B23 -> -0.297 | D23: ='FR - Smoothed DUTL Mic1'!B23 -> -0.05 | E23: ='FR - Smoothed DUTL Mic2'!B23 -> 0.033 | F23: ='FR - Smoothed DUTL Mic3'!B23 -> -0.152 | G23: ='FR - Smoothed DUTL Mic4'!B23 -> -0.055 | H23: ='FR - Smoothed Self DUTL Mic1'!B23 -> -0.064 | I23: ='FR - Smoothed Self DUTL Mic2'!B23 -> -0.265 | J23: ='FR - Smoothed Self DUTL Mic3'!B23 -> 0.119 | K23: ='FR - Smoothed Self DUTL Mic4'!B23 -> 0.048
A24: ='FR - Smoothed DUTL Left'!A24 -> 180 | B24: ='FR - Smoothed DUTL Left'!B24 -> -0.605 | C24: ='FR - Smoothed DUTL Right'!B24 -> -0.43 | D24: ='FR - Smoothed DUTL Mic1'!B24 -> -0.04 | E24: ='FR - Smoothed DUTL Mic2'!B24 -> 0.046 | F24: ='FR - Smoothed DUTL Mic3'!B24 -> -0.137 | G24: ='FR - Smoothed DUTL Mic4'!B24 -> -0.044 | H24: ='FR - Smoothed Self DUTL Mic1'!B24 -> -0.137 | I24: ='FR - Smoothed Self DUTL Mic2'!B24 -> -0.386 | J24: ='FR - Smoothed Self DUTL Mic3'!B24 -> 0.031 | K24: ='FR - Smoothed Self DUTL Mic4'!B24 -> -0.096
A25: ='FR - Smoothed DUTL Left'!A25 -> 190 | B25: ='FR - Smoothed DUTL Left'!B25 -> -0.523 | C25: ='FR - Smoothed DUTL Right'!B25 -> -0.499 | D25: ='FR - Smoothed DUTL Mic1'!B25 -> -0.02 | E25: ='FR - Smoothed DUTL Mic2'!B25 -> 0.057 | F25: ='FR - Smoothed DUTL Mic3'!B25 -> -0.119 | G25: ='FR - Smoothed DUTL Mic4'!B25 -> -0.034 | H25: ='FR - Smoothed Self DUTL Mic1'!B25 -> -0.132 | I25: ='FR - Smoothed Self DUTL Mic2'!B25 -> -0.373 | J25: ='FR - Smoothed Self DUTL Mic3'!B25 -> -0.086 | K25: ='FR - Smoothed Self DUTL Mic4'!B25 -> -0.25
A26: ='FR - Smoothed DUTL Left'!A26 -> 200 | B26: ='FR - Smoothed DUTL Left'!B26 -> -0.426 | C26: ='FR - Smoothed DUTL Right'!B26 -> -0.455 | D26: ='FR - Smoothed DUTL Mic1'!B26 -> -0.024 | E26: ='FR - Smoothed DUTL Mic2'!B26 -> 0.05 | F26: ='FR - Smoothed DUTL Mic3'!B26 -> -0.126 | G26: ='FR - Smoothed DUTL Mic4'!B26 -> -0.041 | H26: ='FR - Smoothed Self DUTL Mic1'!B26 -> -0.095 | I26: ='FR - Smoothed Self DUTL Mic2'!B26 -> -0.313 | J26: ='FR - Smoothed Self DUTL Mic3'!B26 -> -0.16 | K26: ='FR - Smoothed Self DUTL Mic4'!B26 -> -0.338
A27: ='FR - Smoothed DUTL Left'!A27 -> 212 | B27: ='FR - Smoothed DUTL Left'!B27 -> -0.343 | C27: ='FR - Smoothed DUTL Right'!B27 -> -0.355 | D27: ='FR - Smoothed DUTL Mic1'!B27 -> -0.036 | E27: ='FR - Smoothed DUTL Mic2'!B27 -> 0.051 | F27: ='FR - Smoothed DUTL Mic3'!B27 -> -0.143 | G27: ='FR - Smoothed DUTL Mic4'!B27 -> -0.041 | H27: ='FR - Smoothed Self DUTL Mic1'!B27 -> -0.085 | I27: ='FR - Smoothed Self DUTL Mic2'!B27 -> -0.275 | J27: ='FR - Smoothed Self DUTL Mic3'!B27 -> -0.206 | K27: ='FR - Smoothed Self DUTL Mic4'!B27 -> -0.374
A28: ='FR - Smoothed DUTL Left'!A28 -> 224 | B28: ='FR - Smoothed DUTL Left'!B28 -> -0.282 | C28: ='FR - Smoothed DUTL Right'!B28 -> -0.28 | D28: ='FR - Smoothed DUTL Mic1'!B28 -> -0.031 | E28: ='FR - Smoothed DUTL Mic2'!B28 -> 0.066 | F28: ='FR - Smoothed DUTL Mic3'!B28 -> -0.137 | G28: ='FR - Smoothed DUTL Mic4'!B28 -> -0.028 | H28: ='FR - Smoothed Self DUTL Mic1'!B28 -> -0.094 | I28: ='FR - Smoothed Self DUTL Mic2'!B28 -> -0.233 | J28: ='FR - Smoothed Self DUTL Mic3'!B28 -> -0.224 | K28: ='FR - Smoothed Self DUTL Mic4'!B28 -> -0.35
A29: ='FR - Smoothed DUTL Left'!A29 -> 236 | B29: ='FR - Smoothed DUTL Left'!B29 -> -0.215 | C29: ='FR - Smoothed DUTL Right'!B29 -> -0.213 | D29: ='FR - Smoothed DUTL Mic1'!B29 -> -0.017 | E29: ='FR - Smoothed DUTL Mic2'!B29 -> 0.085 | F29: ='FR - Smoothed DUTL Mic3'!B29 -> -0.112 | G29: ='FR - Smoothed DUTL Mic4'!B29 -> -0.012 | H29: ='FR - Smoothed Self DUTL Mic1'!B29 -> -0.08 | I29: ='FR - Smoothed Self DUTL Mic2'!B29 -> -0.141 | J29: ='FR - Smoothed Self DUTL Mic3'!B29 -> -0.204 | K29: ='FR - Smoothed Self DUTL Mic4'!B29 -> -0.258
A30: ='FR - Smoothed DUTL Left'!A30 -> 250 | B30: ='FR - Smoothed DUTL Left'!B30 -> -0.136 | C30: ='FR - Smoothed DUTL Right'!B30 -> -0.142 | D30: ='FR - Smoothed DUTL Mic1'!B30 -> -0.013 | E30: ='FR - Smoothed DUTL Mic2'!B30 -> 0.092 | F30: ='FR - Smoothed DUTL Mic3'!B30 -> -0.101 | G30: ='FR - Smoothed DUTL Mic4'!B30 -> -0.009 | H30: ='FR - Smoothed Self DUTL Mic1'!B30 -> -0.044 | I30: ='FR - Smoothed Self DUTL Mic2'!B30 -> -0.026 | J30: ='FR - Smoothed Self DUTL Mic3'!B30 -> -0.165 | K30: ='FR - Smoothed Self DUTL Mic4'!B30 -> -0.142
A31: ='FR - Smoothed DUTL Left'!A31 -> 265 | B31: ='FR - Smoothed DUTL Left'!B31 -> -0.073 | C31: ='FR - Smoothed DUTL Right'!B31 -> -0.09 | D31: ='FR - Smoothed DUTL Mic1'!B31 -> -0.019 | E31: ='FR - Smoothed DUTL Mic2'!B31 -> 0.083 | F31: ='FR - Smoothed DUTL Mic3'!B31 -> -0.111 | G31: ='FR - Smoothed DUTL Mic4'!B31 -> -0.021 | H31: ='FR - Smoothed Self DUTL Mic1'!B31 -> -0.017 | I31: ='FR - Smoothed Self DUTL Mic2'!B31 -> 0.056 | J31: ='FR - Smoothed Self DUTL Mic3'!B31 -> -0.135 | K31: ='FR - Smoothed Self DUTL Mic4'!B31 -> -0.056
A32: ='FR - Smoothed DUTL Left'!A32 -> 280 | B32: ='FR - Smoothed DUTL Left'!B32 -> -0.044 | C32: ='FR - Smoothed DUTL Right'!B32 -> -0.068 | D32: ='FR - Smoothed DUTL Mic1'!B32 -> -0.025 | E32: ='FR - Smoothed DUTL Mic2'!B32 -> 0.066 | F32: ='FR - Smoothed DUTL Mic3'!B32 -> -0.129 | G32: ='FR - Smoothed DUTL Mic4'!B32 -> -0.039 | H32: ='FR - Smoothed Self DUTL Mic1'!B32 -> -0.005 | I32: ='FR - Smoothed Self DUTL Mic2'!B32 -> 0.092 | J32: ='FR - Smoothed Self DUTL Mic3'!B32 -> -0.126 | K32: ='FR - Smoothed Self DUTL Mic4'!B32 -> -0.018
A33: ='FR - Smoothed DUTL Left'!A33 -> 300 | B33: ='FR - Smoothed DUTL Left'!B33 -> -0.044 | C33: ='FR - Smoothed DUTL Right'!B33 -> -0.054 | D33: ='FR - Smoothed DUTL Mic1'!B33 -> -0.027 | E33: ='FR - Smoothed DUTL Mic2'!B33 -> 0.055 | F33: ='FR - Smoothed DUTL Mic3'!B33 -> -0.138 | G33: ='FR - Smoothed DUTL Mic4'!B33 -> -0.048 | H33: ='FR - Smoothed Self DUTL Mic1'!B33 -> -0.005 | I33: ='FR - Smoothed Self DUTL Mic2'!B33 -> 0.1 | J33: ='FR - Smoothed Self DUTL Mic3'!B33 -> -0.137 | K33: ='FR - Smoothed Self DUTL Mic4'!B33 -> -0.024
A34: ='FR - Smoothed DUTL Left'!A34 -> 315 | B34: ='FR - Smoothed DUTL Left'!B34 -> -0.066 | C34: ='FR - Smoothed DUTL Right'!B34 -> -0.06 | D34: ='FR - Smoothed DUTL Mic1'!B34 -> -0.027 | E34: ='FR - Smoothed DUTL Mic2'!B34 -> 0.057 | F34: ='FR - Smoothed DUTL Mic3'!B34 -> -0.136 | G34: ='FR - Smoothed DUTL Mic4'!B34 -> -0.046 | H34: ='FR - Smoothed Self DUTL Mic1'!B34 -> -0.02 | I34: ='FR - Smoothed Self DUTL Mic2'!B34 -> 0.087 | J34: ='FR - Smoothed Self DUTL Mic3'!B34 -> -0.173 | K34: ='FR - Smoothed Self DUTL Mic4'!B34 -> -0.069
A35: ='FR - Smoothed DUTL Left'!A35 -> 335 | B35: ='FR - Smoothed DUTL Left'!B35 -> -0.108 | C35: ='FR - Smoothed DUTL Right'!B35 -> -0.11 | D35: ='FR - Smoothed DUTL Mic1'!B35 -> -0.023 | E35: ='FR - Smoothed DUTL Mic2'!B35 -> 0.062 | F35: ='FR - Smoothed DUTL Mic3'!B35 -> -0.134 | G35: ='FR - Smoothed DUTL Mic4'!B35 -> -0.042 | H35: ='FR - Smoothed Self DUTL Mic1'!B35 -> -0.059 | I35: ='FR - Smoothed Self DUTL Mic2'!B35 -> 0.039 | J35: ='FR - Smoothed Self DUTL Mic3'!B35 -> -0.229 | K35: ='FR - Smoothed Self DUTL Mic4'!B35 -> -0.148
A36: ='FR - Smoothed DUTL Left'!A36 -> 355 | B36: ='FR - Smoothed DUTL Left'!B36 -> -0.163 | C36: ='FR - Smoothed DUTL Right'!B36 -> -0.189 | D36: ='FR - Smoothed DUTL Mic1'!B36 -> -0.016 | E36: ='FR - Smoothed DUTL Mic2'!B36 -> 0.065 | F36: ='FR - Smoothed DUTL Mic3'!B36 -> -0.135 | G36: ='FR - Smoothed DUTL Mic4'!B36 -> -0.041 | H36: ='FR - Smoothed Self DUTL Mic1'!B36 -> -0.093 | I36: ='FR - Smoothed Self DUTL Mic2'!B36 -> -0.001 | J36: ='FR - Smoothed Self DUTL Mic3'!B36 -> -0.266 | K36: ='FR - Smoothed Self DUTL Mic4'!B36 -> -0.196
A37: ='FR - Smoothed DUTL Left'!A37 -> 375 | B37: ='FR - Smoothed DUTL Left'!B37 -> -0.218 | C37: ='FR - Smoothed DUTL Right'!B37 -> -0.272 | D37: ='FR - Smoothed DUTL Mic1'!B37 -> -0.011 | E37: ='FR - Smoothed DUTL Mic2'!B37 -> 0.069 | F37: ='FR - Smoothed DUTL Mic3'!B37 -> -0.137 | G37: ='FR - Smoothed DUTL Mic4'!B37 -> -0.039 | H37: ='FR - Smoothed Self DUTL Mic1'!B37 -> -0.102 | I37: ='FR - Smoothed Self DUTL Mic2'!B37 -> 0.01 | J37: ='FR - Smoothed Self DUTL Mic3'!B37 -> -0.27 | K37: ='FR - Smoothed Self DUTL Mic4'!B37 -> -0.174
A38: ='FR - Smoothed DUTL Left'!A38 -> 400 | B38: ='FR - Smoothed DUTL Left'!B38 -> -0.267 | C38: ='FR - Smoothed DUTL Right'!B38 -> -0.342 | D38: ='FR - Smoothed DUTL Mic1'!B38 -> -0.017 | E38: ='FR - Smoothed DUTL Mic2'!B38 -> 0.071 | F38: ='FR - Smoothed DUTL Mic3'!B38 -> -0.137 | G38: ='FR - Smoothed DUTL Mic4'!B38 -> -0.039 | H38: ='FR - Smoothed Self DUTL Mic1'!B38 -> -0.15 | I38: ='FR - Smoothed Self DUTL Mic2'!B38 -> 0.013 | J38: ='FR - Smoothed Self DUTL Mic3'!B38 -> -0.32 | K38: ='FR - Smoothed Self DUTL Mic4'!B38 -> -0.174
A39: ='FR - Smoothed DUTL Left'!A39 -> 425 | B39: ='FR - Smoothed DUTL Left'!B39 -> -0.321 | C39: ='FR - Smoothed DUTL Right'!B39 -> -0.395 | D39: ='FR - Smoothed DUTL Mic1'!B39 -> -0.035 | E39: ='FR - Smoothed DUTL Mic2'!B39 -> 0.066 | F39: ='FR - Smoothed DUTL Mic3'!B39 -> -0.144 | G39: ='FR - Smoothed DUTL Mic4'!B39 -> -0.045 | H39: ='FR - Smoothed Self DUTL Mic1'!B39 -> -0.307 | I39: ='FR - Smoothed Self DUTL Mic2'!B39 -> -0.092 | J39: ='FR - Smoothed Self DUTL Mic3'!B39 -> -0.477 | K39: ='FR - Smoothed Self DUTL Mic4'!B39 -> -0.292
A40: ='FR - Smoothed DUTL Left'!A40 -> 450 | B40: ='FR - Smoothed DUTL Left'!B40 -> -0.377 | C40: ='FR - Smoothed DUTL Right'!B40 -> -0.435 | D40: ='FR - Smoothed DUTL Mic1'!B40 -> -0.058 | E40: ='FR - Smoothed DUTL Mic2'!B40 -> 0.052 | F40: ='FR - Smoothed DUTL Mic3'!B40 -> -0.159 | G40: ='FR - Smoothed DUTL Mic4'!B40 -> -0.06 | H40: ='FR - Smoothed Self DUTL Mic1'!B40 -> -0.554 | I40: ='FR - Smoothed Self DUTL Mic2'!B40 -> -0.319 | J40: ='FR - Smoothed Self DUTL Mic3'!B40 -> -0.711 | K40: ='FR - Smoothed Self DUTL Mic4'!B40 -> -0.521
A41: ='FR - Smoothed DUTL Left'!A41 -> 475 | B41: ='FR - Smoothed DUTL Left'!B41 -> -0.402 | C41: ='FR - Smoothed DUTL Right'!B41 -> -0.442 | D41: ='FR - Smoothed DUTL Mic1'!B41 -> -0.071 | E41: ='FR - Smoothed DUTL Mic2'!B41 -> 0.038 | F41: ='FR - Smoothed DUTL Mic3'!B41 -> -0.159 | G41: ='FR - Smoothed DUTL Mic4'!B41 -> -0.064 | H41: ='FR - Smoothed Self DUTL Mic1'!B41 -> -0.807 | I41: ='FR - Smoothed Self DUTL Mic2'!B41 -> -0.601 | J41: ='FR - Smoothed Self DUTL Mic3'!B41 -> -0.936 | K41: ='FR - Smoothed Self DUTL Mic4'!B41 -> -0.784
A42: ='FR - Smoothed DUTL Left'!A42 -> 500 | B42: ='FR - Smoothed DUTL Left'!B42 -> -0.386 | C42: ='FR - Smoothed DUTL Right'!B42 -> -0.419 | D42: ='FR - Smoothed DUTL Mic1'!B42 -> -0.046 | E42: ='FR - Smoothed DUTL Mic2'!B42 -> 0.045 | F42: ='FR - Smoothed DUTL Mic3'!B42 -> -0.118 | G42: ='FR - Smoothed DUTL Mic4'!B42 -> -0.04 | H42: ='FR - Smoothed Self DUTL Mic1'!B42 -> -0.954 | I42: ='FR - Smoothed Self DUTL Mic2'!B42 -> -0.834 | J42: ='FR - Smoothed Self DUTL Mic3'!B42 -> -1.047 | K42: ='FR - Smoothed Self DUTL Mic4'!B42 -> -0.989
A43: ='FR - Smoothed DUTL Left'!A43 -> 530 | B43: ='FR - Smoothed DUTL Left'!B43 -> -0.359 | C43: ='FR - Smoothed DUTL Right'!B43 -> -0.406 | D43: ='FR - Smoothed DUTL Mic1'!B43 -> -0.013 | E43: ='FR - Smoothed DUTL Mic2'!B43 -> 0.062 | F43: ='FR - Smoothed DUTL Mic3'!B43 -> -0.101 | G43: ='FR - Smoothed DUTL Mic4'!B43 -> -0.025 | H43: ='FR - Smoothed Self DUTL Mic1'!B43 -> -0.902 | I43: ='FR - Smoothed Self DUTL Mic2'!B43 -> -0.92 | J43: ='FR - Smoothed Self DUTL Mic3'!B43 -> -0.953 | K43: ='FR - Smoothed Self DUTL Mic4'!B43 -> -1.033
A44: ='FR - Smoothed DUTL Left'!A44 -> 560 | B44: ='FR - Smoothed DUTL Left'!B44 -> -0.346 | C44: ='FR - Smoothed DUTL Right'!B44 -> -0.408 | D44: ='FR - Smoothed DUTL Mic1'!B44 -> -0.015 | E44: ='FR - Smoothed DUTL Mic2'!B44 -> 0.068 | F44: ='FR - Smoothed DUTL Mic3'!B44 -> -0.104 | G44: ='FR - Smoothed DUTL Mic4'!B44 -> -0.024 | H44: ='FR - Smoothed Self DUTL Mic1'!B44 -> -0.626 | I44: ='FR - Smoothed Self DUTL Mic2'!B44 -> -0.777 | J44: ='FR - Smoothed Self DUTL Mic3'!B44 -> -0.617 | K44: ='FR - Smoothed Self DUTL Mic4'!B44 -> -0.818
A45: ='FR - Smoothed DUTL Left'!A45 -> 600 | B45: ='FR - Smoothed DUTL Left'!B45 -> -0.37 | C45: ='FR - Smoothed DUTL Right'!B45 -> -0.43 | D45: ='FR - Smoothed DUTL Mic1'!B45 -> -0.024 | E45: ='FR - Smoothed DUTL Mic2'!B45 -> 0.069 | F45: ='FR - Smoothed DUTL Mic3'!B45 -> -0.11 | G45: ='FR - Smoothed DUTL Mic4'!B45 -> -0.025 | H45: ='FR - Smoothed Self DUTL Mic1'!B45 -> -0.302 | I45: ='FR - Smoothed Self DUTL Mic2'!B45 -> -0.468 | J45: ='FR - Smoothed Self DUTL Mic3'!B45 -> -0.263 | K45: ='FR - Smoothed Self DUTL Mic4'!B45 -> -0.438
A46: ='FR - Smoothed DUTL Left'!A46 -> 630 | B46: ='FR - Smoothed DUTL Left'!B46 -> -0.431 | C46: ='FR - Smoothed DUTL Right'!B46 -> -0.46 | D46: ='FR - Smoothed DUTL Mic1'!B46 -> -0.032 | E46: ='FR - Smoothed DUTL Mic2'!B46 -> 0.066 | F46: ='FR - Smoothed DUTL Mic3'!B46 -> -0.116 | G46: ='FR - Smoothed DUTL Mic4'!B46 -> -0.027 | H46: ='FR - Smoothed Self DUTL Mic1'!B46 -> -0.221 | I46: ='FR - Smoothed Self DUTL Mic2'!B46 -> -0.244 | J46: ='FR - Smoothed Self DUTL Mic3'!B46 -> -0.192 | K46: ='FR - Smoothed Self DUTL Mic4'!B46 -> -0.211
A47: ='FR - Smoothed DUTL Left'!A47 -> 670 | B47: ='FR - Smoothed DUTL Left'!B47 -> -0.483 | C47: ='FR - Smoothed DUTL Right'!B47 -> -0.468 | D47: ='FR - Smoothed DUTL Mic1'!B47 -> -0.039 | E47: ='FR - Smoothed DUTL Mic2'!B47 -> 0.061 | F47: ='FR - Smoothed DUTL Mic3'!B47 -> -0.119 | G47: ='FR - Smoothed DUTL Mic4'!B47 -> -0.029 | H47: ='FR - Smoothed Self DUTL Mic1'!B47 -> -0.315 | I47: ='FR - Smoothed Self DUTL Mic2'!B47 -> -0.19 | J47: ='FR - Smoothed Self DUTL Mic3'!B47 -> -0.28 | K47: ='FR - Smoothed Self DUTL Mic4'!B47 -> -0.191
A48: ='FR - Smoothed DUTL Left'!A48 -> 710 | B48: ='FR - Smoothed DUTL Left'!B48 -> -0.498 | C48: ='FR - Smoothed DUTL Right'!B48 -> -0.459 | D48: ='FR - Smoothed DUTL Mic1'!B48 -> -0.041 | E48: ='FR - Smoothed DUTL Mic2'!B48 -> 0.057 | F48: ='FR - Smoothed DUTL Mic3'!B48 -> -0.119 | G48: ='FR - Smoothed DUTL Mic4'!B48 -> -0.03 | H48: ='FR - Smoothed Self DUTL Mic1'!B48 -> -0.377 | I48: ='FR - Smoothed Self DUTL Mic2'!B48 -> -0.147 | J48: ='FR - Smoothed Self DUTL Mic3'!B48 -> -0.368 | K48: ='FR - Smoothed Self DUTL Mic4'!B48 -> -0.194
A49: ='FR - Smoothed DUTL Left'!A49 -> 750 | B49: ='FR - Smoothed DUTL Left'!B49 -> -0.518 | C49: ='FR - Smoothed DUTL Right'!B49 -> -0.447 | D49: ='FR - Smoothed DUTL Mic1'!B49 -> -0.038 | E49: ='FR - Smoothed DUTL Mic2'!B49 -> 0.053 | F49: ='FR - Smoothed DUTL Mic3'!B49 -> -0.118 | G49: ='FR - Smoothed DUTL Mic4'!B49 -> -0.031 | H49: ='FR - Smoothed Self DUTL Mic1'!B49 -> -0.351 | I49: ='FR - Smoothed Self DUTL Mic2'!B49 -> -0.072 | J49: ='FR - Smoothed Self DUTL Mic3'!B49 -> -0.472 | K49: ='FR - Smoothed Self DUTL Mic4'!B49 -> -0.193
A50: ='FR - Smoothed DUTL Left'!A50 -> 800 | B50: ='FR - Smoothed DUTL Left'!B50 -> -0.53 | C50: ='FR - Smoothed DUTL Right'!B50 -> -0.429 | D50: ='FR - Smoothed DUTL Mic1'!B50 -> -0.032 | E50: ='FR - Smoothed DUTL Mic2'!B50 -> 0.053 | F50: ='FR - Smoothed DUTL Mic3'!B50 -> -0.116 | G50: ='FR - Smoothed DUTL Mic4'!B50 -> -0.029 | H50: ='FR - Smoothed Self DUTL Mic1'!B50 -> -0.285 | I50: ='FR - Smoothed Self DUTL Mic2'!B50 -> -0.033 | J50: ='FR - Smoothed Self DUTL Mic3'!B50 -> -0.603 | K50: ='FR - Smoothed Self DUTL Mic4'!B50 -> -0.243
A51: ='FR - Smoothed DUTL Left'!A51 -> 850 | B51: ='FR - Smoothed DUTL Left'!B51 -> -0.451 | C51: ='FR - Smoothed DUTL Right'!B51 -> -0.399 | D51: ='FR - Smoothed DUTL Mic1'!B51 -> -0.031 | E51: ='FR - Smoothed DUTL Mic2'!B51 -> 0.054 | F51: ='FR - Smoothed DUTL Mic3'!B51 -> -0.114 | G51: ='FR - Smoothed DUTL Mic4'!B51 -> -0.021 | H51: ='FR - Smoothed Self DUTL Mic1'!B51 -> -0.251 | I51: ='FR - Smoothed Self DUTL Mic2'!B51 -> -0.061 | J51: ='FR - Smoothed Self DUTL Mic3'!B51 -> -0.665 | K51: ='FR - Smoothed Self DUTL Mic4'!B51 -> -0.336
A52: ='FR - Smoothed DUTL Left'!A52 -> 900 | B52: ='FR - Smoothed DUTL Left'!B52 -> -0.411 | C52: ='FR - Smoothed DUTL Right'!B52 -> -0.368 | D52: ='FR - Smoothed DUTL Mic1'!B52 -> -0.041 | E52: ='FR - Smoothed DUTL Mic2'!B52 -> 0.052 | F52: ='FR - Smoothed DUTL Mic3'!B52 -> -0.119 | G52: ='FR - Smoothed DUTL Mic4'!B52 -> -0.016 | H52: ='FR - Smoothed Self DUTL Mic1'!B52 -> -0.276 | I52: ='FR - Smoothed Self DUTL Mic2'!B52 -> -0.134 | J52: ='FR - Smoothed Self DUTL Mic3'!B52 -> -0.62 | K52: ='FR - Smoothed Self DUTL Mic4'!B52 -> -0.399
A53: ='FR - Smoothed DUTL Left'!A53 -> 950 | B53: ='FR - Smoothed DUTL Left'!B53 -> -0.398 | C53: ='FR - Smoothed DUTL Right'!B53 -> -0.322 | D53: ='FR - Smoothed DUTL Mic1'!B53 -> -0.058 | E53: ='FR - Smoothed DUTL Mic2'!B53 -> 0.044 | F53: ='FR - Smoothed DUTL Mic3'!B53 -> -0.145 | G53: ='FR - Smoothed DUTL Mic4'!B53 -> -0.023 | H53: ='FR - Smoothed Self DUTL Mic1'!B53 -> -0.312 | I53: ='FR - Smoothed Self DUTL Mic2'!B53 -> -0.218 | J53: ='FR - Smoothed Self DUTL Mic3'!B53 -> -0.58 | K53: ='FR - Smoothed Self DUTL Mic4'!B53 -> -0.436
A54: ='FR - Smoothed DUTL Left'!A54 -> 1000 | B54: ='FR - Smoothed DUTL Left'!B54 -> -0.345 | C54: ='FR - Smoothed DUTL Right'!B54 -> -0.258 | D54: ='FR - Smoothed DUTL Mic1'!B54 -> -0.059 | E54: ='FR - Smoothed DUTL Mic2'!B54 -> 0.033 | F54: ='FR - Smoothed DUTL Mic3'!B54 -> -0.174 | G54: ='FR - Smoothed DUTL Mic4'!B54 -> -0.044 | H54: ='FR - Smoothed Self DUTL Mic1'!B54 -> -0.309 | I54: ='FR - Smoothed Self DUTL Mic2'!B54 -> -0.261 | J54: ='FR - Smoothed Self DUTL Mic3'!B54 -> -0.541 | K54: ='FR - Smoothed Self DUTL Mic4'!B54 -> -0.442
A55: ='FR - Smoothed DUTL Left'!A55 -> 1060 | B55: ='FR - Smoothed DUTL Left'!B55 -> -0.275 | C55: ='FR - Smoothed DUTL Right'!B55 -> -0.191 | D55: ='FR - Smoothed DUTL Mic1'!B55 -> -0.044 | E55: ='FR - Smoothed DUTL Mic2'!B55 -> 0.036 | F55: ='FR - Smoothed DUTL Mic3'!B55 -> -0.179 | G55: ='FR - Smoothed DUTL Mic4'!B55 -> -0.075 | H55: ='FR - Smoothed Self DUTL Mic1'!B55 -> -0.254 | I55: ='FR - Smoothed Self DUTL Mic2'!B55 -> -0.224 | J55: ='FR - Smoothed Self DUTL Mic3'!B55 -> -0.448 | K55: ='FR - Smoothed Self DUTL Mic4'!B55 -> -0.382
A56: ='FR - Smoothed DUTL Left'!A56 -> 1120 | B56: ='FR - Smoothed DUTL Left'!B56 -> -0.206 | C56: ='FR - Smoothed DUTL Right'!B56 -> -0.121 | D56: ='FR - Smoothed DUTL Mic1'!B56 -> -0.028 | E56: ='FR - Smoothed DUTL Mic2'!B56 -> 0.05 | F56: ='FR - Smoothed DUTL Mic3'!B56 -> -0.167 | G56: ='FR - Smoothed DUTL Mic4'!B56 -> -0.081 | H56: ='FR - Smoothed Self DUTL Mic1'!B56 -> -0.171 | I56: ='FR - Smoothed Self DUTL Mic2'!B56 -> -0.139 | J56: ='FR - Smoothed Self DUTL Mic3'!B56 -> -0.31 | K56: ='FR - Smoothed Self DUTL Mic4'!B56 -> -0.296
A57: ='FR - Smoothed DUTL Left'!A57 -> 1180 | B57: ='FR - Smoothed DUTL Left'!B57 -> -0.143 | C57: ='FR - Smoothed DUTL Right'!B57 -> -0.071 | D57: ='FR - Smoothed DUTL Mic1'!B57 -> -0.012 | E57: ='FR - Smoothed DUTL Mic2'!B57 -> 0.061 | F57: ='FR - Smoothed DUTL Mic3'!B57 -> -0.149 | G57: ='FR - Smoothed DUTL Mic4'!B57 -> -0.065 | H57: ='FR - Smoothed Self DUTL Mic1'!B57 -> -0.124 | I57: ='FR - Smoothed Self DUTL Mic2'!B57 -> -0.148 | J57: ='FR - Smoothed Self DUTL Mic3'!B57 -> -0.205 | K57: ='FR - Smoothed Self DUTL Mic4'!B57 -> -0.234
A58: ='FR - Smoothed DUTL Left'!A58 -> 1250 | B58: ='FR - Smoothed DUTL Left'!B58 -> -0.122 | C58: ='FR - Smoothed DUTL Right'!B58 -> -0.013 | D58: ='FR - Smoothed DUTL Mic1'!B58 -> 0.001 | E58: ='FR - Smoothed DUTL Mic2'!B58 -> 0.071 | F58: ='FR - Smoothed DUTL Mic3'!B58 -> -0.126 | G58: ='FR - Smoothed DUTL Mic4'!B58 -> -0.053 | H58: ='FR - Smoothed Self DUTL Mic1'!B58 -> -0.087 | I58: ='FR - Smoothed Self DUTL Mic2'!B58 -> -0.358 | J58: ='FR - Smoothed Self DUTL Mic3'!B58 -> -0.146 | K58: ='FR - Smoothed Self DUTL Mic4'!B58 -> -0.154
A59: ='FR - Smoothed DUTL Left'!A59 -> 1320 | B59: ='FR - Smoothed DUTL Left'!B59 -> -0.071 | C59: ='FR - Smoothed DUTL Right'!B59 -> 0.092 | D59: ='FR - Smoothed DUTL Mic1'!B59 -> 0.009 | E59: ='FR - Smoothed DUTL Mic2'!B59 -> 0.078 | F59: ='FR - Smoothed DUTL Mic3'!B59 -> -0.107 | G59: ='FR - Smoothed DUTL Mic4'!B59 -> -0.05 | H59: ='FR - Smoothed Self DUTL Mic1'!B59 -> 0.175 | I59: ='FR - Smoothed Self DUTL Mic2'!B59 -> -0.609 | J59: ='FR - Smoothed Self DUTL Mic3'!B59 -> 0.128 | K59: ='FR - Smoothed Self DUTL Mic4'!B59 -> 0.161
A60: ='FR - Smoothed DUTL Left'!A60 -> 1400 | B60: ='FR - Smoothed DUTL Left'!B60 -> 0.02 | C60: ='FR - Smoothed DUTL Right'!B60 -> 0.193 | D60: ='FR - Smoothed DUTL Mic1'!B60 -> 0 | E60: ='FR - Smoothed DUTL Mic2'!B60 -> 0.075 | F60: ='FR - Smoothed DUTL Mic3'!B60 -> -0.103 | G60: ='FR - Smoothed DUTL Mic4'!B60 -> -0.06 | H60: ='FR - Smoothed Self DUTL Mic1'!B60 -> 0.916 | I60: ='FR - Smoothed Self DUTL Mic2'!B60 -> -0.562 | J60: ='FR - Smoothed Self DUTL Mic3'!B60 -> 0.68 | K60: ='FR - Smoothed Self DUTL Mic4'!B60 -> 0.927
A61: ='FR - Smoothed DUTL Left'!A61 -> 1500 | B61: ='FR - Smoothed DUTL Left'!B61 -> 0.101 | C61: ='FR - Smoothed DUTL Right'!B61 -> 0.303 | D61: ='FR - Smoothed DUTL Mic1'!B61 -> -0.03 | E61: ='FR - Smoothed DUTL Mic2'!B61 -> 0.062 | F61: ='FR - Smoothed DUTL Mic3'!B61 -> -0.127 | G61: ='FR - Smoothed DUTL Mic4'!B61 -> -0.076 | H61: ='FR - Smoothed Self DUTL Mic1'!B61 -> 1.457 | I61: ='FR - Smoothed Self DUTL Mic2'!B61 -> 0.166 | J61: ='FR - Smoothed Self DUTL Mic3'!B61 -> 0.945 | K61: ='FR - Smoothed Self DUTL Mic4'!B61 -> 1.237
A62: ='FR - Smoothed DUTL Left'!A62 -> 1600 | B62: ='FR - Smoothed DUTL Left'!B62 -> 0.135 | C62: ='FR - Smoothed DUTL Right'!B62 -> 0.422 | D62: ='FR - Smoothed DUTL Mic1'!B62 -> -0.04 | E62: ='FR - Smoothed DUTL Mic2'!B62 -> 0.054 | F62: ='FR - Smoothed DUTL Mic3'!B62 -> -0.149 | G62: ='FR - Smoothed DUTL Mic4'!B62 -> -0.087 | H62: ='FR - Smoothed Self DUTL Mic1'!B62 -> 1.039 | I62: ='FR - Smoothed Self DUTL Mic2'!B62 -> 0.549 | J62: ='FR - Smoothed Self DUTL Mic3'!B62 -> 0.843 | K62: ='FR - Smoothed Self DUTL Mic4'!B62 -> 0.833
A63: ='FR - Smoothed DUTL Left'!A63 -> 1700 | B63: ='FR - Smoothed DUTL Left'!B63 -> 0.081 | C63: ='FR - Smoothed DUTL Right'!B63 -> 0.594 | D63: ='FR - Smoothed DUTL Mic1'!B63 -> -0.027 | E63: ='FR - Smoothed DUTL Mic2'!B63 -> 0.062 | F63: ='FR - Smoothed DUTL Mic3'!B63 -> -0.149 | G63: ='FR - Smoothed DUTL Mic4'!B63 -> -0.083 | H63: ='FR - Smoothed Self DUTL Mic1'!B63 -> 0.303 | I63: ='FR - Smoothed Self DUTL Mic2'!B63 -> -0.034 | J63: ='FR - Smoothed Self DUTL Mic3'!B63 -> 0.66 | K63: ='FR - Smoothed Self DUTL Mic4'!B63 -> 0.567
A64: ='FR - Smoothed DUTL Left'!A64 -> 1800 | B64: ='FR - Smoothed DUTL Left'!B64 -> 0.022 | C64: ='FR - Smoothed DUTL Right'!B64 -> 0.824 | D64: ='FR - Smoothed DUTL Mic1'!B64 -> -0.023 | E64: ='FR - Smoothed DUTL Mic2'!B64 -> 0.072 | F64: ='FR - Smoothed DUTL Mic3'!B64 -> -0.149 | G64: ='FR - Smoothed DUTL Mic4'!B64 -> -0.066 | H64: ='FR - Smoothed Self DUTL Mic1'!B64 -> -0.244 | I64: ='FR - Smoothed Self DUTL Mic2'!B64 -> -0.368 | J64: ='FR - Smoothed Self DUTL Mic3'!B64 -> 0.687 | K64: ='FR - Smoothed Self DUTL Mic4'!B64 -> 0.664
A65: ='FR - Smoothed DUTL Left'!A65 -> 1900 | B65: ='FR - Smoothed DUTL Left'!B65 -> 0.02 | C65: ='FR - Smoothed DUTL Right'!B65 -> 1.005 | D65: ='FR - Smoothed DUTL Mic1'!B65 -> -0.028 | E65: ='FR - Smoothed DUTL Mic2'!B65 -> 0.075 | F65: ='FR - Smoothed DUTL Mic3'!B65 -> -0.151 | G65: ='FR - Smoothed DUTL Mic4'!B65 -> -0.045 | H65: ='FR - Smoothed Self DUTL Mic1'!B65 -> -0.509 | I65: ='FR - Smoothed Self DUTL Mic2'!B65 -> -0.424 | J65: ='FR - Smoothed Self DUTL Mic3'!B65 -> 0.836 | K65: ='FR - Smoothed Self DUTL Mic4'!B65 -> 0.814
A66: ='FR - Smoothed DUTL Left'!A66 -> 2000 | B66: ='FR - Smoothed DUTL Left'!B66 -> 0.007 | C66: ='FR - Smoothed DUTL Right'!B66 -> 1.111 | D66: ='FR - Smoothed DUTL Mic1'!B66 -> -0.036 | E66: ='FR - Smoothed DUTL Mic2'!B66 -> 0.07 | F66: ='FR - Smoothed DUTL Mic3'!B66 -> -0.154 | G66: ='FR - Smoothed DUTL Mic4'!B66 -> -0.032 | H66: ='FR - Smoothed Self DUTL Mic1'!B66 -> -0.594 | I66: ='FR - Smoothed Self DUTL Mic2'!B66 -> -0.398 | J66: ='FR - Smoothed Self DUTL Mic3'!B66 -> 0.881 | K66: ='FR - Smoothed Self DUTL Mic4'!B66 -> 0.829
A67: ='FR - Smoothed DUTL Left'!A67 -> 2120 | B67: ='FR - Smoothed DUTL Left'!B67 -> -0.028 | C67: ='FR - Smoothed DUTL Right'!B67 -> 1.175 | D67: ='FR - Smoothed DUTL Mic1'!B67 -> -0.042 | E67: ='FR - Smoothed DUTL Mic2'!B67 -> 0.06 | F67: ='FR - Smoothed DUTL Mic3'!B67 -> -0.156 | G67: ='FR - Smoothed DUTL Mic4'!B67 -> -0.031 | H67: ='FR - Smoothed Self DUTL Mic1'!B67 -> -0.597 | I67: ='FR - Smoothed Self DUTL Mic2'!B67 -> -0.289 | J67: ='FR - Smoothed Self DUTL Mic3'!B67 -> 0.825 | K67: ='FR - Smoothed Self DUTL Mic4'!B67 -> 0.794
A68: ='FR - Smoothed DUTL Left'!A68 -> 2240 | B68: ='FR - Smoothed DUTL Left'!B68 -> -0.113 | C68: ='FR - Smoothed DUTL Right'!B68 -> 1.278 | D68: ='FR - Smoothed DUTL Mic1'!B68 -> -0.047 | E68: ='FR - Smoothed DUTL Mic2'!B68 -> 0.051 | F68: ='FR - Smoothed DUTL Mic3'!B68 -> -0.157 | G68: ='FR - Smoothed DUTL Mic4'!B68 -> -0.033 | H68: ='FR - Smoothed Self DUTL Mic1'!B68 -> -0.444 | I68: ='FR - Smoothed Self DUTL Mic2'!B68 -> -0.023 | J68: ='FR - Smoothed Self DUTL Mic3'!B68 -> 0.737 | K68: ='FR - Smoothed Self DUTL Mic4'!B68 -> 0.802
A69: ='FR - Smoothed DUTL Left'!A69 -> 2360 | B69: ='FR - Smoothed DUTL Left'!B69 -> -0.411 | C69: ='FR - Smoothed DUTL Right'!B69 -> 1.343 | D69: ='FR - Smoothed DUTL Mic1'!B69 -> -0.054 | E69: ='FR - Smoothed DUTL Mic2'!B69 -> 0.045 | F69: ='FR - Smoothed DUTL Mic3'!B69 -> -0.16 | G69: ='FR - Smoothed DUTL Mic4'!B69 -> -0.032 | H69: ='FR - Smoothed Self DUTL Mic1'!B69 -> -0.006 | I69: ='FR - Smoothed Self DUTL Mic2'!B69 -> 0.236 | J69: ='FR - Smoothed Self DUTL Mic3'!B69 -> 0.731 | K69: ='FR - Smoothed Self DUTL Mic4'!B69 -> 1.007
A70: ='FR - Smoothed DUTL Left'!A70 -> 2500 | B70: ='FR - Smoothed DUTL Left'!B70 -> -1.339 | C70: ='FR - Smoothed DUTL Right'!B70 -> 1.051 | D70: ='FR - Smoothed DUTL Mic1'!B70 -> -0.051 | E70: ='FR - Smoothed DUTL Mic2'!B70 -> 0.043 | F70: ='FR - Smoothed DUTL Mic3'!B70 -> -0.162 | G70: ='FR - Smoothed DUTL Mic4'!B70 -> -0.022 | H70: ='FR - Smoothed Self DUTL Mic1'!B70 -> 0.666 | I70: ='FR - Smoothed Self DUTL Mic2'!B70 -> 0.028 | J70: ='FR - Smoothed Self DUTL Mic3'!B70 -> 0.844 | K70: ='FR - Smoothed Self DUTL Mic4'!B70 -> 1.34
A71: ='FR - Smoothed DUTL Left'!A71 -> 2650 | B71: ='FR - Smoothed DUTL Left'!B71 -> -0.815 | C71: ='FR - Smoothed DUTL Right'!B71 -> 0.586 | D71: ='FR - Smoothed DUTL Mic1'!B71 -> -0.024 | E71: ='FR - Smoothed DUTL Mic2'!B71 -> 0.055 | F71: ='FR - Smoothed DUTL Mic3'!B71 -> -0.146 | G71: ='FR - Smoothed DUTL Mic4'!B71 -> -0.005 | H71: ='FR - Smoothed Self DUTL Mic1'!B71 -> 1.053 | I71: ='FR - Smoothed Self DUTL Mic2'!B71 -> -0.314 | J71: ='FR - Smoothed Self DUTL Mic3'!B71 -> 0.908 | K71: ='FR - Smoothed Self DUTL Mic4'!B71 -> 1.257
A72: ='FR - Smoothed DUTL Left'!A72 -> 2800 | B72: ='FR - Smoothed DUTL Left'!B72 -> -0.383 | C72: ='FR - Smoothed DUTL Right'!B72 -> 0.347 | D72: ='FR - Smoothed DUTL Mic1'!B72 -> -0.024 | E72: ='FR - Smoothed DUTL Mic2'!B72 -> 0.071 | F72: ='FR - Smoothed DUTL Mic3'!B72 -> -0.135 | G72: ='FR - Smoothed DUTL Mic4'!B72 -> 0.019 | H72: ='FR - Smoothed Self DUTL Mic1'!B72 -> 0.323 | I72: ='FR - Smoothed Self DUTL Mic2'!B72 -> -0.299 | J72: ='FR - Smoothed Self DUTL Mic3'!B72 -> 0.757 | K72: ='FR - Smoothed Self DUTL Mic4'!B72 -> 0.966
A73: ='FR - Smoothed DUTL Left'!A73 -> 3000 | B73: ='FR - Smoothed DUTL Left'!B73 -> -0.126 | C73: ='FR - Smoothed DUTL Right'!B73 -> 0.247 | D73: ='FR - Smoothed DUTL Mic1'!B73 -> -0.038 | E73: ='FR - Smoothed DUTL Mic2'!B73 -> 0.082 | F73: ='FR - Smoothed DUTL Mic3'!B73 -> -0.132 | G73: ='FR - Smoothed DUTL Mic4'!B73 -> 0.002 | H73: ='FR - Smoothed Self DUTL Mic1'!B73 -> -0.222 | I73: ='FR - Smoothed Self DUTL Mic2'!B73 -> -0.046 | J73: ='FR - Smoothed Self DUTL Mic3'!B73 -> 0.46 | K73: ='FR - Smoothed Self DUTL Mic4'!B73 -> 0.65
A74: ='FR - Smoothed DUTL Left'!A74 -> 3150 | B74: ='FR - Smoothed DUTL Left'!B74 -> 0.323 | C74: ='FR - Smoothed DUTL Right'!B74 -> 0.128 | D74: ='FR - Smoothed DUTL Mic1'!B74 -> -0.046 | E74: ='FR - Smoothed DUTL Mic2'!B74 -> 0.091 | F74: ='FR - Smoothed DUTL Mic3'!B74 -> -0.127 | G74: ='FR - Smoothed DUTL Mic4'!B74 -> -0.057 | H74: ='FR - Smoothed Self DUTL Mic1'!B74 -> 0.328 | I74: ='FR - Smoothed Self DUTL Mic2'!B74 -> 0.156 | J74: ='FR - Smoothed Self DUTL Mic3'!B74 -> 0.258 | K74: ='FR - Smoothed Self DUTL Mic4'!B74 -> 0.334
A75: ='FR - Smoothed DUTL Left'!A75 -> 3350 | B75: ='FR - Smoothed DUTL Left'!B75 -> 0.575 | C75: ='FR - Smoothed DUTL Right'!B75 -> -0.009 | D75: ='FR - Smoothed DUTL Mic1'!B75 -> -0.044 | E75: ='FR - Smoothed DUTL Mic2'!B75 -> 0.096 | F75: ='FR - Smoothed DUTL Mic3'!B75 -> -0.115 | G75: ='FR - Smoothed DUTL Mic4'!B75 -> -0.073 | H75: ='FR - Smoothed Self DUTL Mic1'!B75 -> 1.028 | I75: ='FR - Smoothed Self DUTL Mic2'!B75 -> 0.287 | J75: ='FR - Smoothed Self DUTL Mic3'!B75 -> 0.142 | K75: ='FR - Smoothed Self DUTL Mic4'!B75 -> 0.144
A76: ='FR - Smoothed DUTL Left'!A76 -> 3550 | B76: ='FR - Smoothed DUTL Left'!B76 -> 0.718 | C76: ='FR - Smoothed DUTL Right'!B76 -> -0.207 | D76: ='FR - Smoothed DUTL Mic1'!B76 -> -0.038 | E76: ='FR - Smoothed DUTL Mic2'!B76 -> 0.089 | F76: ='FR - Smoothed DUTL Mic3'!B76 -> -0.094 | G76: ='FR - Smoothed DUTL Mic4'!B76 -> -0.039 | H76: ='FR - Smoothed Self DUTL Mic1'!B76 -> 1.231 | I76: ='FR - Smoothed Self DUTL Mic2'!B76 -> 0.482 | J76: ='FR - Smoothed Self DUTL Mic3'!B76 -> 0.087 | K76: ='FR - Smoothed Self DUTL Mic4'!B76 -> 0.14
A77: ='FR - Smoothed DUTL Left'!A77 -> 3750 | B77: ='FR - Smoothed DUTL Left'!B77 -> 0.902 | C77: ='FR - Smoothed DUTL Right'!B77 -> -0.324 | D77: ='FR - Smoothed DUTL Mic1'!B77 -> -0.035 | E77: ='FR - Smoothed DUTL Mic2'!B77 -> 0.08 | F77: ='FR - Smoothed DUTL Mic3'!B77 -> -0.072 | G77: ='FR - Smoothed DUTL Mic4'!B77 -> -0.005 | H77: ='FR - Smoothed Self DUTL Mic1'!B77 -> 1.09 | I77: ='FR - Smoothed Self DUTL Mic2'!B77 -> 0.707 | J77: ='FR - Smoothed Self DUTL Mic3'!B77 -> -0.03 | K77: ='FR - Smoothed Self DUTL Mic4'!B77 -> 0.136
A78: ='FR - Smoothed DUTL Left'!A78 -> 4000 | B78: ='FR - Smoothed DUTL Left'!B78 -> 0.952 | C78: ='FR - Smoothed DUTL Right'!B78 -> -0.26 | D78: ='FR - Smoothed DUTL Mic1'!B78 -> -0.042 | E78: ='FR - Smoothed DUTL Mic2'!B78 -> 0.073 | F78: ='FR - Smoothed DUTL Mic3'!B78 -> -0.069 | G78: ='FR - Smoothed DUTL Mic4'!B78 -> 0.006 | H78: ='FR - Smoothed Self DUTL Mic1'!B78 -> 0.862 | I78: ='FR - Smoothed Self DUTL Mic2'!B78 -> 0.9 | J78: ='FR - Smoothed Self DUTL Mic3'!B78 -> -0.094 | K78: ='FR - Smoothed Self DUTL Mic4'!B78 -> 0.126
A79: ='FR - Smoothed DUTL Left'!A79 -> 4250 | B79: ='FR - Smoothed DUTL Left'!B79 -> 0.832 | C79: ='FR - Smoothed DUTL Right'!B79 -> -0.145 | D79: ='FR - Smoothed DUTL Mic1'!B79 -> -0.052 | E79: ='FR - Smoothed DUTL Mic2'!B79 -> 0.064 | F79: ='FR - Smoothed DUTL Mic3'!B79 -> -0.108 | G79: ='FR - Smoothed DUTL Mic4'!B79 -> 0.002 | H79: ='FR - Smoothed Self DUTL Mic1'!B79 -> 0.629 | I79: ='FR - Smoothed Self DUTL Mic2'!B79 -> 0.887 | J79: ='FR - Smoothed Self DUTL Mic3'!B79 -> -0.021 | K79: ='FR - Smoothed Self DUTL Mic4'!B79 -> 0.141
A80: ='FR - Smoothed DUTL Left'!A80 -> 4500 | B80: ='FR - Smoothed DUTL Left'!B80 -> 0.774 | C80: ='FR - Smoothed DUTL Right'!B80 -> -0.073 | D80: ='FR - Smoothed DUTL Mic1'!B80 -> -0.039 | E80: ='FR - Smoothed DUTL Mic2'!B80 -> 0.054 | F80: ='FR - Smoothed DUTL Mic3'!B80 -> -0.145 | G80: ='FR - Smoothed DUTL Mic4'!B80 -> 0 | H80: ='FR - Smoothed Self DUTL Mic1'!B80 -> 0.582 | I80: ='FR - Smoothed Self DUTL Mic2'!B80 -> 0.881 | J80: ='FR - Smoothed Self DUTL Mic3'!B80 -> 0.064 | K80: ='FR - Smoothed Self DUTL Mic4'!B80 -> 0.15
A81: ='FR - Smoothed DUTL Left'!A81 -> 4750 | B81: ='FR - Smoothed DUTL Left'!B81 -> 0.729 | C81: ='FR - Smoothed DUTL Right'!B81 -> 0.021 | D81: ='FR - Smoothed DUTL Mic1'!B81 -> -0.036 | E81: ='FR - Smoothed DUTL Mic2'!B81 -> 0.056 | F81: ='FR - Smoothed DUTL Mic3'!B81 -> -0.148 | G81: ='FR - Smoothed DUTL Mic4'!B81 -> -0.003 | H81: ='FR - Smoothed Self DUTL Mic1'!B81 -> 0.753 | I81: ='FR - Smoothed Self DUTL Mic2'!B81 -> 0.906 | J81: ='FR - Smoothed Self DUTL Mic3'!B81 -> 0.235 | K81: ='FR - Smoothed Self DUTL Mic4'!B81 -> 0.178
A82: ='FR - Smoothed DUTL Left'!A82 -> 5000 | B82: ='FR - Smoothed DUTL Left'!B82 -> 0.717 | C82: ='FR - Smoothed DUTL Right'!B82 -> 0.08 | D82: ='FR - Smoothed DUTL Mic1'!B82 -> -0.05 | E82: ='FR - Smoothed DUTL Mic2'!B82 -> 0.065 | F82: ='FR - Smoothed DUTL Mic3'!B82 -> -0.14 | G82: ='FR - Smoothed DUTL Mic4'!B82 -> -0.025 | H82: ='FR - Smoothed Self DUTL Mic1'!B82 -> 0.958 | I82: ='FR - Smoothed Self DUTL Mic2'!B82 -> 0.91 | J82: ='FR - Smoothed Self DUTL Mic3'!B82 -> 0.527 | K82: ='FR - Smoothed Self DUTL Mic4'!B82 -> 0.252
A83: ='FR - Smoothed DUTL Left'!A83 -> 5300 | B83: ='FR - Smoothed DUTL Left'!B83 -> 0.721 | C83: ='FR - Smoothed DUTL Right'!B83 -> -0.002 | D83: ='FR - Smoothed DUTL Mic1'!B83 -> -0.06 | E83: ='FR - Smoothed DUTL Mic2'!B83 -> 0.049 | F83: ='FR - Smoothed DUTL Mic3'!B83 -> -0.125 | G83: ='FR - Smoothed DUTL Mic4'!B83 -> -0.049 | H83: ='FR - Smoothed Self DUTL Mic1'!B83 -> 0.993 | I83: ='FR - Smoothed Self DUTL Mic2'!B83 -> 0.856 | J83: ='FR - Smoothed Self DUTL Mic3'!B83 -> 0.776 | K83: ='FR - Smoothed Self DUTL Mic4'!B83 -> 0.336
A84: ='FR - Smoothed DUTL Left'!A84 -> 5600 | B84: ='FR - Smoothed DUTL Left'!B84 -> 0.741 | C84: ='FR - Smoothed DUTL Right'!B84 -> -0.081 | D84: ='FR - Smoothed DUTL Mic1'!B84 -> -0.062 | E84: ='FR - Smoothed DUTL Mic2'!B84 -> 0.035 | F84: ='FR - Smoothed DUTL Mic3'!B84 -> -0.104 | G84: ='FR - Smoothed DUTL Mic4'!B84 -> -0.055 | H84: ='FR - Smoothed Self DUTL Mic1'!B84 -> 0.864 | I84: ='FR - Smoothed Self DUTL Mic2'!B84 -> 0.736 | J84: ='FR - Smoothed Self DUTL Mic3'!B84 -> 0.862 | K84: ='FR - Smoothed Self DUTL Mic4'!B84 -> 0.422
A85: ='FR - Smoothed DUTL Left'!A85 -> 6000 | B85: ='FR - Smoothed DUTL Left'!B85 -> 0.819 | C85: ='FR - Smoothed DUTL Right'!B85 -> -0.094 | D85: ='FR - Smoothed DUTL Mic1'!B85 -> -0.046 | E85: ='FR - Smoothed DUTL Mic2'!B85 -> 0.03 | F85: ='FR - Smoothed DUTL Mic3'!B85 -> -0.1 | G85: ='FR - Smoothed DUTL Mic4'!B85 -> -0.049 | H85: ='FR - Smoothed Self DUTL Mic1'!B85 -> 0.778 | I85: ='FR - Smoothed Self DUTL Mic2'!B85 -> 0.53 | J85: ='FR - Smoothed Self DUTL Mic3'!B85 -> 0.929 | K85: ='FR - Smoothed Self DUTL Mic4'!B85 -> 0.428
A86: ='FR - Smoothed DUTL Left'!A86 -> 6300 | B86: ='FR - Smoothed DUTL Left'!B86 -> 0.912 | C86: ='FR - Smoothed DUTL Right'!B86 -> -0.023 | D86: ='FR - Smoothed DUTL Mic1'!B86 -> -0.016 | E86: ='FR - Smoothed DUTL Mic2'!B86 -> 0.036 | F86: ='FR - Smoothed DUTL Mic3'!B86 -> -0.153 | G86: ='FR - Smoothed DUTL Mic4'!B86 -> -0.034 | H86: ='FR - Smoothed Self DUTL Mic1'!B86 -> 0.816 | I86: ='FR - Smoothed Self DUTL Mic2'!B86 -> 0.377 | J86: ='FR - Smoothed Self DUTL Mic3'!B86 -> 1.089 | K86: ='FR - Smoothed Self DUTL Mic4'!B86 -> 0.341
A87: ='FR - Smoothed DUTL Left'!A87 -> 6700 | B87: ='FR - Smoothed DUTL Left'!B87 -> 1.008 | C87: ='FR - Smoothed DUTL Right'!B87 -> 0.136 | D87: ='FR - Smoothed DUTL Mic1'!B87 -> -0.029 | E87: ='FR - Smoothed DUTL Mic2'!B87 -> 0.052 | F87: ='FR - Smoothed DUTL Mic3'!B87 -> -0.186 | G87: ='FR - Smoothed DUTL Mic4'!B87 -> -0.011 | H87: ='FR - Smoothed Self DUTL Mic1'!B87 -> 0.619 | I87: ='FR - Smoothed Self DUTL Mic2'!B87 -> 0.634 | J87: ='FR - Smoothed Self DUTL Mic3'!B87 -> 1.251 | K87: ='FR - Smoothed Self DUTL Mic4'!B87 -> 0.612
A88: ='FR - Smoothed DUTL Left'!A88 -> 7100 | B88: ='FR - Smoothed DUTL Left'!B88 -> 1.016 | C88: ='FR - Smoothed DUTL Right'!B88 -> 0.289 | D88: ='FR - Smoothed DUTL Mic1'!B88 -> -0.069 | E88: ='FR - Smoothed DUTL Mic2'!B88 -> 0.11 | F88: ='FR - Smoothed DUTL Mic3'!B88 -> -0.161 | G88: ='FR - Smoothed DUTL Mic4'!B88 -> 0.005 | H88: ='FR - Smoothed Self DUTL Mic1'!B88 -> -0.001 | I88: ='FR - Smoothed Self DUTL Mic2'!B88 -> 0.945 | J88: ='FR - Smoothed Self DUTL Mic3'!B88 -> 0.978 | K88: ='FR - Smoothed Self DUTL Mic4'!B88 -> 1.434
A89: ='FR - Smoothed DUTL Left'!A89 -> 7500 | B89: ='FR - Smoothed DUTL Left'!B89 -> 0.936 | C89: ='FR - Smoothed DUTL Right'!B89 -> 0.365 | D89: ='FR - Smoothed DUTL Mic1'!B89 -> -0.111 | E89: ='FR - Smoothed DUTL Mic2'!B89 -> 0.172 | F89: ='FR - Smoothed DUTL Mic3'!B89 -> -0.124 | G89: ='FR - Smoothed DUTL Mic4'!B89 -> 0.017 | H89: ='FR - Smoothed Self DUTL Mic1'!B89 -> -0.511 | I89: ='FR - Smoothed Self DUTL Mic2'!B89 -> 0.837 | J89: ='FR - Smoothed Self DUTL Mic3'!B89 -> 0.354 | K89: ='FR - Smoothed Self DUTL Mic4'!B89 -> 1.791
A90: ='FR - Smoothed DUTL Left'!A90 -> 8000 | B90: ='FR - Smoothed DUTL Left'!B90 -> 0.855 | C90: ='FR - Smoothed DUTL Right'!B90 -> 0.308 | D90: ='FR - Smoothed DUTL Mic1'!B90 -> -0.096 | E90: ='FR - Smoothed DUTL Mic2'!B90 -> 0.202 | F90: ='FR - Smoothed DUTL Mic3'!B90 -> -0.127 | G90: ='FR - Smoothed DUTL Mic4'!B90 -> 0.024 | H90: ='FR - Smoothed Self DUTL Mic1'!B90 -> -0.655 | I90: ='FR - Smoothed Self DUTL Mic2'!B90 -> 0.37 | J90: ='FR - Smoothed Self DUTL Mic3'!B90 -> 0.003 | K90: ='FR - Smoothed Self DUTL Mic4'!B90 -> 1.093
A91: ='FR - Smoothed DUTL Left'!A91 -> 8500 | B91: ='FR - Smoothed DUTL Left'!B91 -> 0.769 | C91: ='FR - Smoothed DUTL Right'!B91 -> 0.212 | D91: ='FR - Smoothed DUTL Mic1'!B91 -> -0.027 | E91: ='FR - Smoothed DUTL Mic2'!B91 -> 0.171 | F91: ='FR - Smoothed DUTL Mic3'!B91 -> -0.156 | G91: ='FR - Smoothed DUTL Mic4'!B91 -> -0.003 | H91: ='FR - Smoothed Self DUTL Mic1'!B91 -> -0.548 | I91: ='FR - Smoothed Self DUTL Mic2'!B91 -> -0.076 | J91: ='FR - Smoothed Self DUTL Mic3'!B91 -> -0.104 | K91: ='FR - Smoothed Self DUTL Mic4'!B91 -> 0.099
A92: ='FR - Smoothed DUTL Left'!A92 -> 9000 | B92: ='FR - Smoothed DUTL Left'!B92 -> 0.723 | C92: ='FR - Smoothed DUTL Right'!B92 -> 0.272 | D92: ='FR - Smoothed DUTL Mic1'!B92 -> -0.003 | E92: ='FR - Smoothed DUTL Mic2'!B92 -> 0.05 | F92: ='FR - Smoothed DUTL Mic3'!B92 -> -0.175 | G92: ='FR - Smoothed DUTL Mic4'!B92 -> -0.096 | H92: ='FR - Smoothed Self DUTL Mic1'!B92 -> -0.277 | I92: ='FR - Smoothed Self DUTL Mic2'!B92 -> -0.075 | J92: ='FR - Smoothed Self DUTL Mic3'!B92 -> -0.025 | K92: ='FR - Smoothed Self DUTL Mic4'!B92 -> -0.634
A93: ='FR - Smoothed DUTL Left'!A93 -> 9500 | B93: ='FR - Smoothed DUTL Left'!B93 -> 0.782 | C93: ='FR - Smoothed DUTL Right'!B93 -> 0.349 | D93: ='FR - Smoothed DUTL Mic1'!B93 -> -0.011 | E93: ='FR - Smoothed DUTL Mic2'!B93 -> 0.006 | F93: ='FR - Smoothed DUTL Mic3'!B93 -> -0.181 | G93: ='FR - Smoothed DUTL Mic4'!B93 -> -0.174 | H93: ='FR - Smoothed Self DUTL Mic1'!B93 -> 0.041 | I93: ='FR - Smoothed Self DUTL Mic2'!B93 -> 0.13 | J93: ='FR - Smoothed Self DUTL Mic3'!B93 -> 0.259 | K93: ='FR - Smoothed Self DUTL Mic4'!B93 -> -0.474
A94: ='FR - Smoothed DUTL Left'!A94 -> 10000 | B94: ='FR - Smoothed DUTL Left'!B94 -> 0.781 | C94: ='FR - Smoothed DUTL Right'!B94 -> 0.348 | D94: ='FR - Smoothed DUTL Mic1'!B94 -> 0.015 | E94: ='FR - Smoothed DUTL Mic2'!B94 -> 0.061 | F94: ='FR - Smoothed DUTL Mic3'!B94 -> -0.152 | G94: ='FR - Smoothed DUTL Mic4'!B94 -> -0.215 | H94: ='FR - Smoothed Self DUTL Mic1'!B94 -> 0.097 | I94: ='FR - Smoothed Self DUTL Mic2'!B94 -> 0.051 | J94: ='FR - Smoothed Self DUTL Mic3'!B94 -> 0.712 | K94: ='FR - Smoothed Self DUTL Mic4'!B94 -> 0.126
A95: ='FR - Smoothed DUTL Left'!A95 -> 10600 | B95: ='FR - Smoothed DUTL Left'!B95 -> 0.656 | C95: ='FR - Smoothed DUTL Right'!B95 -> 0.294 | D95: ='FR - Smoothed DUTL Mic1'!B95 -> 0.042 | E95: ='FR - Smoothed DUTL Mic2'!B95 -> 0.147 | F95: ='FR - Smoothed DUTL Mic3'!B95 -> -0.167 | G95: ='FR - Smoothed DUTL Mic4'!B95 -> -0.254 | H95: ='FR - Smoothed Self DUTL Mic1'!B95 -> 0.46 | I95: ='FR - Smoothed Self DUTL Mic2'!B95 -> 0.152 | J95: ='FR - Smoothed Self DUTL Mic3'!B95 -> 0.937 | K95: ='FR - Smoothed Self DUTL Mic4'!B95 -> 0.882
A96: ='FR - Smoothed DUTL Left'!A96 -> 11200 | B96: ='FR - Smoothed DUTL Left'!B96 -> 0.602 | C96: ='FR - Smoothed DUTL Right'!B96 -> 0.223 | D96: ='FR - Smoothed DUTL Mic1'!B96 -> 0.027 | E96: ='FR - Smoothed DUTL Mic2'!B96 -> 0.14 | F96: ='FR - Smoothed DUTL Mic3'!B96 -> -0.201 | G96: ='FR - Smoothed DUTL Mic4'!B96 -> -0.225 | H96: ='FR - Smoothed Self DUTL Mic1'!B96 -> 1.461 | I96: ='FR - Smoothed Self DUTL Mic2'!B96 -> 0.478 | J96: ='FR - Smoothed Self DUTL Mic3'!B96 -> 1.037 | K96: ='FR - Smoothed Self DUTL Mic4'!B96 -> 0.91
A97: ='FR - Smoothed DUTL Left'!A97 -> 11800 | B97: ='FR - Smoothed DUTL Left'!B97 -> 0.574 | C97: ='FR - Smoothed DUTL Right'!B97 -> 0.034 | D97: ='FR - Smoothed DUTL Mic1'!B97 -> -0.018 | E97: ='FR - Smoothed DUTL Mic2'!B97 -> 0.083 | F97: ='FR - Smoothed DUTL Mic3'!B97 -> -0.208 | G97: ='FR - Smoothed DUTL Mic4'!B97 -> -0.196 | H97: ='FR - Smoothed Self DUTL Mic1'!B97 -> 1.621 | I97: ='FR - Smoothed Self DUTL Mic2'!B97 -> 0.229 | J97: ='FR - Smoothed Self DUTL Mic3'!B97 -> 1.494 | K97: ='FR - Smoothed Self DUTL Mic4'!B97 -> -0.053
A98: ='FR - Smoothed DUTL Left'!A98 -> 12500 | B98: ='FR - Smoothed DUTL Left'!B98 -> 0.567 | C98: ='FR - Smoothed DUTL Right'!B98 -> -0.115 | D98: ='FR - Smoothed DUTL Mic1'!B98 -> -0.032 | E98: ='FR - Smoothed DUTL Mic2'!B98 -> -0.008 | F98: ='FR - Smoothed DUTL Mic3'!B98 -> -0.23 | G98: ='FR - Smoothed DUTL Mic4'!B98 -> -0.215 | H98: ='FR - Smoothed Self DUTL Mic1'!B98 -> 0.961 | I98: ='FR - Smoothed Self DUTL Mic2'!B98 -> -0.617 | J98: ='FR - Smoothed Self DUTL Mic3'!B98 -> 1.691 | K98: ='FR - Smoothed Self DUTL Mic4'!B98 -> -0.992
A99: ='FR - Smoothed DUTL Left'!A99 -> 13200 | B99: ='FR - Smoothed DUTL Left'!B99 -> 0.589 | C99: ='FR - Smoothed DUTL Right'!B99 -> -0.127 | D99: ='FR - Smoothed DUTL Mic1'!B99 -> -0.087 | E99: ='FR - Smoothed DUTL Mic2'!B99 -> -0.09 | F99: ='FR - Smoothed DUTL Mic3'!B99 -> -0.241 | G99: ='FR - Smoothed DUTL Mic4'!B99 -> -0.276 | H99: ='FR - Smoothed Self DUTL Mic1'!B99 -> 0.342 | I99: ='FR - Smoothed Self DUTL Mic2'!B99 -> -1.133 | J99: ='FR - Smoothed Self DUTL Mic3'!B99 -> 1.311 | K99: ='FR - Smoothed Self DUTL Mic4'!B99 -> -1.397
A100: ='FR - Smoothed DUTL Left'!A100 -> 14000 | B100: ='FR - Smoothed DUTL Left'!B100 -> 0.655 | C100: ='FR - Smoothed DUTL Right'!B100 -> -0.021 | D100: ='FR - Smoothed DUTL Mic1'!B100 -> -0.183 | E100: ='FR - Smoothed DUTL Mic2'!B100 -> -0.192 | F100: ='FR - Smoothed DUTL Mic3'!B100 -> -0.276 | G100: ='FR - Smoothed DUTL Mic4'!B100 -> -0.302 | H100: ='FR - Smoothed Self DUTL Mic1'!B100 -> -0.034 | I100: ='FR - Smoothed Self DUTL Mic2'!B100 -> -1.3 | J100: ='FR - Smoothed Self DUTL Mic3'!B100 -> 0.614 | K100: ='FR - Smoothed Self DUTL Mic4'!B100 -> -1.245
A101: ='FR - Smoothed DUTL Left'!A101 -> 15000 | B101: ='FR - Smoothed DUTL Left'!B101 -> 0.725 | C101: ='FR - Smoothed DUTL Right'!B101 -> 0.273 | D101: ='FR - Smoothed DUTL Mic1'!B101 -> -0.202 | E101: ='FR - Smoothed DUTL Mic2'!B101 -> -0.262 | F101: ='FR - Smoothed DUTL Mic3'!B101 -> -0.327 | G101: ='FR - Smoothed DUTL Mic4'!B101 -> -0.272 | H101: ='FR - Smoothed Self DUTL Mic1'!B101 -> -0.085 | I101: ='FR - Smoothed Self DUTL Mic2'!B101 -> -1.468 | J101: ='FR - Smoothed Self DUTL Mic3'!B101 -> -0.24 | K101: ='FR - Smoothed Self DUTL Mic4'!B101 -> -0.96
A102: ='FR - Smoothed DUTL Left'!A102 -> 16000 | B102: ='FR - Smoothed DUTL Left'!B102 -> 0.635 | C102: ='FR - Smoothed DUTL Right'!B102 -> 0.21 | D102: ='FR - Smoothed DUTL Mic1'!B102 -> -0.175 | E102: ='FR - Smoothed DUTL Mic2'!B102 -> -0.255 | F102: ='FR - Smoothed DUTL Mic3'!B102 -> -0.333 | G102: ='FR - Smoothed DUTL Mic4'!B102 -> -0.158 | H102: ='FR - Smoothed Self DUTL Mic1'!B102 -> 0.076 | I102: ='FR - Smoothed Self DUTL Mic2'!B102 -> -1.712 | J102: ='FR - Smoothed Self DUTL Mic3'!B102 -> -0.783 | K102: ='FR - Smoothed Self DUTL Mic4'!B102 -> -0.85
A103: ='FR - Smoothed DUTL Left'!A103 -> 17000 | B103: ='FR - Smoothed DUTL Left'!B103 -> 0.629 | C103: ='FR - Smoothed DUTL Right'!B103 -> 0.058 | D103: ='FR - Smoothed DUTL Mic1'!B103 -> -0.113 | E103: ='FR - Smoothed DUTL Mic2'!B103 -> -0.219 | F103: ='FR - Smoothed DUTL Mic3'!B103 -> -0.257 | G103: ='FR - Smoothed DUTL Mic4'!B103 -> -0.032 | H103: ='FR - Smoothed Self DUTL Mic1'!B103 -> 0.076 | I103: ='FR - Smoothed Self DUTL Mic2'!B103 -> -1.669 | J103: ='FR - Smoothed Self DUTL Mic3'!B103 -> -0.913 | K103: ='FR - Smoothed Self DUTL Mic4'!B103 -> -0.795
A104: ='FR - Smoothed DUTL Left'!A104 -> 18000 | B104: ='FR - Smoothed DUTL Left'!B104 -> 0.634 | C104: ='FR - Smoothed DUTL Right'!B104 -> -0.061 | D104: ='FR - Smoothed DUTL Mic1'!B104 -> -0.053 | E104: ='FR - Smoothed DUTL Mic2'!B104 -> -0.174 | F104: ='FR - Smoothed DUTL Mic3'!B104 -> -0.136 | G104: ='FR - Smoothed DUTL Mic4'!B104 -> 0.086 | H104: ='FR - Smoothed Self DUTL Mic1'!B104 -> -0.12 | I104: ='FR - Smoothed Self DUTL Mic2'!B104 -> -1.342 | J104: ='FR - Smoothed Self DUTL Mic3'!B104 -> -0.908 | K104: ='FR - Smoothed Self DUTL Mic4'!B104 -> -0.719
A105: ='FR - Smoothed DUTL Left'!A105 -> 19000 | B105: ='FR - Smoothed DUTL Left'!B105 -> 0.501 | C105: ='FR - Smoothed DUTL Right'!B105 -> -0.43 | D105: ='FR - Smoothed DUTL Mic1'!B105 -> -0.011 | E105: ='FR - Smoothed DUTL Mic2'!B105 -> -0.116 | F105: ='FR - Smoothed DUTL Mic3'!B105 -> -0.003 | G105: ='FR - Smoothed DUTL Mic4'!B105 -> 0.206 | H105: ='FR - Smoothed Self DUTL Mic1'!B105 -> -0.421 | I105: ='FR - Smoothed Self DUTL Mic2'!B105 -> -0.811 | J105: ='FR - Smoothed Self DUTL Mic3'!B105 -> -0.808 | K105: ='FR - Smoothed Self DUTL Mic4'!B105 -> -0.66
A106: ='FR - Smoothed DUTL Left'!A106 -> 20000 | B106: ='FR - Smoothed DUTL Left'!B106 -> 0.486 | C106: ='FR - Smoothed DUTL Right'!B106 -> -0.769 | D106: ='FR - Smoothed DUTL Mic1'!B106 -> 0.027 | E106: ='FR - Smoothed DUTL Mic2'!B106 -> -0.022 | F106: ='FR - Smoothed DUTL Mic3'!B106 -> 0.114 | G106: ='FR - Smoothed DUTL Mic4'!B106 -> 0.309 | H106: ='FR - Smoothed Self DUTL Mic1'!B106 -> -0.948 | I106: ='FR - Smoothed Self DUTL Mic2'!B106 -> -0.047 | J106: ='FR - Smoothed Self DUTL Mic3'!B106 -> -0.684 | K106: ='FR - Smoothed Self DUTL Mic4'!B106 -> -0.775
A107: ='FR - Smoothed DUTL Left'!A107 -> 21200 | B107: ='FR - Smoothed DUTL Left'!B107 -> -3.172 | C107: ='FR - Smoothed DUTL Right'!B107 -> -4.446 | D107: ='FR - Smoothed DUTL Mic1'!B107 -> 0.011 | E107: ='FR - Smoothed DUTL Mic2'!B107 -> 0.132 | F107: ='FR - Smoothed DUTL Mic3'!B107 -> 0.261 | G107: ='FR - Smoothed DUTL Mic4'!B107 -> 0.349 | H107: ='FR - Smoothed Self DUTL Mic1'!B107 -> -5.571 | I107: ='FR - Smoothed Self DUTL Mic2'!B107 -> -4.535 | J107: ='FR - Smoothed Self DUTL Mic3'!B107 -> -4.701 | K107: ='FR - Smoothed Self DUTL Mic4'!B107 -> -6.619
A108: ='FR - Smoothed DUTL Left'!A108 -> 22400 | B108: ='FR - Smoothed DUTL Left'!B108 -> -7.371 | C108: ='FR - Smoothed DUTL Right'!B108 -> -7.788 | D108: ='FR - Smoothed DUTL Mic1'!B108 -> 0.107 | E108: ='FR - Smoothed DUTL Mic2'!B108 -> 0.434 | F108: ='FR - Smoothed DUTL Mic3'!B108 -> -0.219 | G108: ='FR - Smoothed DUTL Mic4'!B108 -> 0.542 | H108: ='FR - Smoothed Self DUTL Mic1'!B108 -> -960.655 | I108: ='FR - Smoothed Self DUTL Mic2'!B108 -> -953.713 | J108: ='FR - Smoothed Self DUTL Mic3'!B108 -> -941.862 | K108: ='FR - Smoothed Self DUTL Mic4'!B108 -> -959.155

Sheet From Labview
A1: Frequency | B1: FR - Smoothed DUTL Left(Pre-Delta) | C1: FR - Smoothed DUTL Left(Post-Delta) | D1: FR - Smoothed DUTL Left(Post - Pre) | E1: Frequency | F1: FR - Smoothed DUTL Right(Pre-Delta) | G1: FR - Smoothed DUTL Right(Post-Delta) | H1: FR - Smoothed DUTL Right(Post - Pre) | I1: Frequency | J1: FR - Smoothed DUTL Mic1(Pre-Delta) | K1: FR - Smoothed DUTL Mic1(Post-Delta) | L1: FR - Smoothed DUTL Mic1(Post - Pre) | M1: Frequency | N1: FR - Smoothed DUTL Mic2(Pre-Delta) | O1: FR - Smoothed DUTL Mic2(Post-Delta) | P1: FR - Smoothed DUTL Mic2(Post - Pre) | Q1: Frequency | R1: FR - Smoothed DUTL Mic3(Pre-Delta) | S1: FR - Smoothed DUTL Mic3(Post-Delta) | T1: FR - Smoothed DUTL Mic3(Post - Pre) | U1: Frequency | V1: FR - Smoothed DUTL Mic4(Pre-Delta) | W1: FR - Smoothed DUTL Mic4(Post-Delta) | X1: FR - Smoothed DUTL Mic4(Post - Pre) | Y1: Frequency | Z1: FR - Smoothed Self DUTL Mic1(Pre-Delta) | AA1: FR - Smoothed Self DUTL Mic1(Post-Delta) | AB1: FR - Smoothed Self DUTL Mic1(Post - Pre) | AC1: Frequency | AD1: FR - Smoothed Self DUTL Mic2(Pre-Delta) | AE1: FR - Smoothed Self DUTL Mic2(Post-Delta) | AF1: FR - Smoothed Self DUTL Mic2(Post - Pre) | AG1: Frequency | AH1: FR - Smoothed Self DUTL Mic3(Pre-Delta) | AI1: FR - Smoothed Self DUTL Mic3(Post-Delta) | AJ1: FR - Smoothed Self DUTL Mic3(Post - Pre) | AK1: Frequency | AL1: FR - Smoothed Self DUTL Mic4(Pre-Delta) | AM1: FR - Smoothed Self DUTL Mic4(Post-Delta) | AN1: FR - Smoothed Self DUTL Mic4(Post - Pre)
A2: 50 | B2: -0.284 | C2: -0.447 | D2: -0.163 | E2: 50 | F2: -0.392 | G2: -0.345 | H2: 0.047 | I2: 50 | J2: -0.029 | K2: 0.09 | L2: 0.119 | M2: 50 | N2: -0.03 | O2: 0.099 | P2: 0.129 | Q2: 50 | R2: -0.218 | S2: -0.103 | T2: 0.115 | U2: 50 | V2: -0.059 | W2: 0.069 | X2: 0.128 | Y2: 50 | Z2: -0.204 | AA2: 0.022 | AB2: 0.226 | AC2: 50 | AD2: -0.378 | AE2: -0.114 | AF2: 0.264 | AG2: 50 | AH2: -0.679 | AI2: -0.398 | AJ2: 0.281 | AK2: 50 | AL2: -0.357 | AM2: -0.099 | AN2: 0.258
A3: 53 | B3: -0.379 | C3: -0.19 | D3: 0.189 | E3: 53 | F3: -0.384 | G3: -0.181 | H3: 0.203 | I3: 53 | J3: -0.034 | K3: 0.063 | L3: 0.097 | M3: 53 | N3: -0.031 | O3: 0.084 | P3: 0.115 | Q3: 53 | R3: -0.219 | S3: -0.118 | T3: 0.101 | U3: 53 | V3: -0.062 | W3: 0.052 | X3: 0.114 | Y3: 53 | Z3: -0.144 | AA3: 0.132 | AB3: 0.276 | AC3: 53 | AD3: -0.275 | AE3: 0.069 | AF3: 0.344 | AG3: 53 | AH3: -0.526 | AI3: -0.236 | AJ3: 0.29 | AK3: 53 | AL3: -0.27 | AM3: 0.056 | AN3: 0.326
A4: 56 | B4: -0.3 | C4: -0.061 | D4: 0.239 | E4: 56 | F4: -0.289 | G4: -0.058 | H4: 0.231 | I4: 56 | J4: -0.036 | K4: 0.034 | L4: 0.07 | M4: 56 | N4: -0.029 | O4: 0.073 | P4: 0.102 | Q4: 56 | R4: -0.217 | S4: -0.127 | T4: 0.09 | U4: 56 | V4: -0.062 | W4: 0.039 | X4: 0.101 | Y4: 56 | Z4: -0.074 | AA4: 0.23 | AB4: 0.304 | AC4: 56 | AD4: -0.184 | AE4: 0.208 | AF4: 0.392 | AG4: 56 | AH4: -0.416 | AI4: -0.115 | AJ4: 0.301 | AK4: 56 | AL4: -0.19 | AM4: 0.177 | AN4: 0.367
A5: 60 | B5: -0.27 | C5: -0.008 | D5: 0.262 | E5: 60 | F5: -0.245 | G5: -0.008 | H5: 0.237 | I5: 60 | J5: -0.037 | K5: -0.024 | L5: 0.013 | M5: 60 | N5: -0.024 | O5: 0.059 | P5: 0.083 | Q5: 60 | R5: -0.212 | S5: -0.142 | T5: 0.07 | U5: 60 | V5: -0.061 | W5: 0.019 | X5: 0.08 | Y5: 60 | Z5: -0.025 | AA5: 0.3 | AB5: 0.325 | AC5: 60 | AD5: -0.125 | AE5: 0.309 | AF5: 0.434 | AG5: 60 | AH5: -0.347 | AI5: -0.031 | AJ5: 0.316 | AK5: 60 | AL5: -0.134 | AM5: 0.268 | AN5: 0.402
A6: 63 | B6: -0.232 | C6: 0.009 | D6: 0.241 | E6: 63 | F6: -0.209 | G6: 0.013 | H6: 0.222 | I6: 63 | J6: -0.031 | K6: -0.071 | L6: -0.04 | M6: 63 | N6: -0.015 | O6: 0.054 | P6: 0.069 | Q6: 63 | R6: -0.201 | S6: -0.148 | T6: 0.053 | U6: 63 | V6: -0.054 | W6: 0.008 | X6: 0.062 | Y6: 63 | Z6: 0.021 | AA6: 0.296 | AB6: 0.275 | AC6: 63 | AD6: -0.059 | AE6: 0.346 | AF6: 0.405 | AG6: 63 | AH6: -0.288 | AI6: -0.021 | AJ6: 0.267 | AK6: 63 | AL6: -0.074 | AM6: 0.292 | AN6: 0.366
A7: 67 | B7: -0.202 | C7: 0.004 | D7: 0.206 | E7: 67 | F7: -0.191 | G7: 0.006 | H7: 0.197 | I7: 67 | J7: -0.022 | K7: -0.086 | L7: -0.064 | M7: 67 | N7: -0.002 | O7: 0.064 | P7: 0.066 | Q7: 67 | R7: -0.187 | S7: -0.141 | T7: 0.046 | U7: 67 | V7: -0.045 | W7: 0.011 | X7: 0.056 | Y7: 67 | Z7: 0.05 | AA7: 0.218 | AB7: 0.168 | AC7: 67 | AD7: 0.005 | AE7: 0.294 | AF7: 0.289 | AG7: 67 | AH7: -0.246 | AI7: -0.08 | AJ7: 0.166 | AK7: 67 | AL7: -0.023 | AM7: 0.231 | AN7: 0.254
A8: 71 | B8: -0.18 | C8: -0.014 | D8: 0.166 | E8: 71 | F8: -0.187 | G8: -0.02 | H8: 0.167 | I8: 71 | J8: -0.014 | K8: -0.059 | L8: -0.045 | M8: 71 | N8: 0.013 | O8: 0.072 | P8: 0.059 | Q8: 71 | R8: -0.173 | S8: -0.134 | T8: 0.039 | U8: 71 | V8: -0.035 | W8: 0.014 | X8: 0.049 | Y8: 71 | Z8: 0.059 | AA8: 0.134 | AB8: 0.075 | AC8: 71 | AD8: 0.05 | AE8: 0.217 | AF8: 0.167 | AG8: 71 | AH8: -0.223 | AI8: -0.144 | AJ8: 0.079 | AK8: 71 | AL8: 0.006 | AM8: 0.146 | AN8: 0.14
A9: 75 | B9: -0.165 | C9: -0.039 | D9: 0.126 | E9: 75 | F9: -0.189 | G9: -0.045 | H9: 0.144 | I9: 75 | J9: -0.01 | K9: -0.034 | L9: -0.024 | M9: 75 | N9: 0.02 | O9: 0.06 | P9: 0.04 | Q9: 75 | R9: -0.167 | S9: -0.143 | T9: 0.024 | U9: 75 | V9: -0.034 | W9: -0.004 | X9: 0.03 | Y9: 75 | Z9: 0.054 | AA9: 0.077 | AB9: 0.023 | AC9: 75 | AD9: 0.073 | AE9: 0.159 | AF9: 0.086 | AG9: 75 | AH9: -0.213 | AI9: -0.184 | AJ9: 0.029 | AK9: 75 | AL9: 0.015 | AM9: 0.08 | AN9: 0.065
A10: 80 | B10: -0.162 | C10: -0.057 | D10: 0.105 | E10: 80 | F10: -0.193 | G10: -0.067 | H10: 0.126 | I10: 80 | J10: -0.019 | K10: -0.04 | L10: -0.021 | M10: 80 | N10: 0.014 | O10: 0.033 | P10: 0.019 | Q10: 80 | R10: -0.174 | S10: -0.166 | T10: 0.008 | U10: 80 | V10: -0.046 | W10: -0.034 | X10: 0.012 | Y10: 80 | Z10: 0.044 | AA10: 0.044 | AB10: 0 | AC10: 80 | AD10: 0.084 | AE10: 0.124 | AF10: 0.04 | AG10: 80 | AH10: -0.209 | AI10: -0.204 | AJ10: 0.005 | AK10: 80 | AL10: 0.015 | AM10: 0.038 | AN10: 0.023
A11: 85 | B11: -0.169 | C11: -0.077 | D11: 0.092 | E11: 85 | F11: -0.19 | G11: -0.09 | H11: 0.1 | I11: 85 | J11: -0.033 | K11: -0.045 | L11: -0.012 | M11: 85 | N11: 0.01 | O11: 0.018 | P11: 0.008 | Q11: 85 | R11: -0.178 | S11: -0.178 | T11: 0 | U11: 85 | V11: -0.054 | W11: -0.052 | X11: 0.002 | Y11: 85 | Z11: 0.033 | AA11: 0.019 | AB11: -0.014 | AC11: 85 | AD11: 0.093 | AE11: 0.106 | AF11: 0.013 | AG11: 85 | AH11: -0.207 | AI11: -0.22 | AJ11: -0.013 | AK11: 85 | AL11: 0.015 | AM11: 0.009 | AN11: -0.006
A12: 90 | B12: -0.172 | C12: -0.107 | D12: 0.065 | E12: 90 | F12: -0.178 | G12: -0.12 | H12: 0.058 | I12: 90 | J12: -0.036 | K12: -0.039 | L12: -0.003 | M12: 90 | N12: 0.012 | O12: 0.03 | P12: 0.018 | Q12: 90 | R12: -0.173 | S12: -0.163 | T12: 0.01 | U12: 90 | V12: -0.054 | W12: -0.041 | X12: 0.013 | Y12: 90 | Z12: 0.021 | AA12: -0.005 | AB12: -0.026 | AC12: 90 | AD12: 0.102 | AE12: 0.091 | AF12: -0.011 | AG12: 90 | AH12: -0.208 | AI12: -0.24 | AJ12: -0.032 | AK12: 90 | AL12: 0.018 | AM12: -0.018 | AN12: -0.036
A13: 95 | B13: -0.195 | C13: -0.15 | D13: 0.045 | E13: 95 | F13: -0.185 | G13: -0.162 | H13: 0.023 | I13: 95 | J13: -0.042 | K13: -0.026 | L13: 0.016 | M13: 95 | N13: 0.004 | O13: 0.049 | P13: 0.045 | Q13: 95 | R13: -0.179 | S13: -0.141 | T13: 0.038 | U13: 95 | V13: -0.064 | W13: -0.021 | X13: 0.043 | Y13: 95 | Z13: -0.013 | AA13: -0.036 | AB13: -0.023 | AC13: 95 | AD13: 0.092 | AE13: 0.079 | AF13: -0.013 | AG13: 95 | AH13: -0.235 | AI13: -0.27 | AJ13: -0.035 | AK13: 95 | AL13: 0.003 | AM13: -0.044 | AN13: -0.047
A14: 100 | B14: -0.27 | C14: -0.231 | D14: 0.039 | E14: 100 | F14: -0.245 | G14: -0.227 | H14: 0.018 | I14: 100 | J14: -0.061 | K14: 0.003 | L14: 0.064 | M14: 100 | N14: -0.018 | O14: 0.072 | P14: 0.09 | Q14: 100 | R14: -0.198 | S14: -0.119 | T14: 0.079 | U14: 100 | V14: -0.09 | W14: 0.002 | X14: 0.092 | Y14: 100 | Z14: -0.101 | AA14: -0.078 | AB14: 0.023 | AC14: 100 | AD14: 0.017 | AE14: 0.065 | AF14: 0.048 | AG14: 100 | AH14: -0.32 | AI14: -0.313 | AJ14: 0.007 | AK14: 100 | AL14: -0.078 | AM14: -0.075 | AN14: 0.003
A15: 106 | B15: -0.381 | C15: -0.349 | D15: 0.032 | E15: 106 | F15: -0.347 | G15: -0.305 | H15: 0.042 | I15: 106 | J15: -0.077 | K15: 0.03 | L15: 0.107 | M15: 106 | N15: -0.034 | O15: 0.087 | P15: 0.121 | Q15: 106 | R15: -0.211 | S15: -0.11 | T15: 0.101 | U15: 106 | V15: -0.108 | W15: 0.012 | X15: 0.12 | Y15: 106 | Z15: -0.243 | AA15: -0.146 | AB15: 0.097 | AC15: 106 | AD15: -0.153 | AE15: 0.02 | AF15: 0.173 | AG15: 106 | AH15: -0.466 | AI15: -0.387 | AJ15: 0.079 | AK15: 106 | AL15: -0.257 | AM15: -0.137 | AN15: 0.12
A16: 112 | B16: -0.476 | C16: -0.442 | D16: 0.034 | E16: 112 | F16: -0.447 | G16: -0.352 | H16: 0.095 | I16: 112 | J16: -0.063 | K16: 0.023 | L16: 0.086 | M16: 112 | N16: -0.016 | O16: 0.074 | P16: 0.09 | Q16: 112 | R16: -0.192 | S16: -0.128 | T16: 0.064 | U16: 112 | V16: -0.09 | W16: -0.006 | X16: 0.084 | Y16: 112 | Z16: -0.368 | AA16: -0.232 | AB16: 0.136 | AC16: 112 | AD16: -0.345 | AE16: -0.078 | AF16: 0.267 | AG16: 112 | AH16: -0.598 | AI16: -0.476 | AJ16: 0.122 | AK16: 112 | AL16: -0.462 | AM16: -0.251 | AN16: 0.211
A17: 118 | B17: -0.504 | C17: -0.452 | D17: 0.052 | E17: 118 | F17: -0.492 | G17: -0.338 | H17: 0.154 | I17: 118 | J17: -0.021 | K17: -0.007 | L17: 0.014 | M17: 118 | N17: 0.031 | O17: 0.036 | P17: 0.005 | Q17: 118 | R17: -0.149 | S17: -0.161 | T17: -0.012 | U17: 118 | V17: -0.046 | W17: -0.042 | X17: 0.004 | Y17: 118 | Z17: -0.401 | AA17: -0.27 | AB17: 0.131 | AC17: 118 | AD17: -0.43 | AE17: -0.159 | AF17: 0.271 | AG17: 118 | AH17: -0.641 | AI17: -0.521 | AJ17: 0.12 | AK17: 118 | AL17: -0.569 | AM17: -0.349 | AN17: 0.22
A18: 125 | B18: -0.434 | C18: -0.341 | D18: 0.093 | E18: 125 | F18: -0.457 | G18: -0.274 | H18: 0.183 | I18: 125 | J18: 0.008 | K18: -0.037 | L18: -0.045 | M18: 125 | N18: 0.067 | O18: 0.012 | P18: -0.055 | Q18: 125 | R18: -0.121 | S18: -0.17 | T18: -0.049 | U18: 125 | V18: -0.017 | W18: -0.061 | X18: -0.044 | Y18: 125 | Z18: -0.346 | AA18: -0.222 | AB18: 0.124 | AC18: 125 | AD18: -0.38 | AE18: -0.113 | AF18: 0.267 | AG18: 125 | AH18: -0.604 | AI18: -0.493 | AJ18: 0.111 | AK18: 125 | AL18: -0.558 | AM18: -0.343 | AN18: 0.215
A19: 132 | B19: -0.294 | C19: -0.11 | D19: 0.184 | E19: 132 | F19: -0.377 | G19: -0.173 | H19: 0.204 | I19: 132 | J19: -0.006 | K19: -0.033 | L19: -0.027 | M19: 132 | N19: 0.059 | O19: 0.036 | P19: -0.023 | Q19: 132 | R19: -0.135 | S19: -0.138 | T19: -0.003 | U19: 132 | V19: -0.032 | W19: -0.036 | X19: -0.004 | Y19: 132 | Z19: -0.243 | AA19: -0.112 | AB19: 0.131 | AC19: 132 | AD19: -0.241 | AE19: 0.056 | AF19: 0.297 | AG19: 132 | AH19: -0.532 | AI19: -0.419 | AJ19: 0.113 | AK19: 132 | AL19: -0.477 | AM19: -0.24 | AN19: 0.237
A20: 140 | B20: -0.191 | C20: 0.109 | D20: 0.3 | E20: 140 | F20: -0.329 | G20: -0.071 | H20: 0.258 | I20: 140 | J20: -0.055 | K20: -0.009 | L20: 0.046 | M20: 140 | N20: 0.009 | O20: 0.075 | P20: 0.066 | Q20: 140 | R20: -0.176 | S20: -0.104 | T20: 0.072 | U20: 140 | V20: -0.079 | W20: -0.004 | X20: 0.075 | Y20: 140 | Z20: -0.146 | AA20: -0.002 | AB20: 0.144 | AC20: 140 | AD20: -0.097 | AE20: 0.207 | AF20: 0.304 | AG20: 140 | AH20: -0.449 | AI20: -0.306 | AJ20: 0.143 | AK20: 140 | AL20: -0.378 | AM20: -0.111 | AN20: 0.267
A21: 150 | B21: -0.232 | C21: 0.123 | D21: 0.355 | E21: 150 | F21: -0.357 | G21: -0.049 | H21: 0.308 | I21: 150 | J21: -0.094 | K21: -0.006 | L21: 0.088 | M21: 150 | N21: -0.034 | O21: 0.075 | P21: 0.109 | Q21: 150 | R21: -0.205 | S21: -0.107 | T21: 0.098 | U21: 150 | V21: -0.115 | W21: -0.009 | X21: 0.106 | Y21: 150 | Z21: -0.108 | AA21: 0.055 | AB21: 0.163 | AC21: 150 | AD21: -0.053 | AE21: 0.178 | AF21: 0.231 | AG21: 150 | AH21: -0.367 | AI21: -0.133 | AJ21: 0.234 | AK21: 150 | AL21: -0.297 | AM21: -0.001 | AN21: 0.296
A22: 160 | B22: -0.4 | C22: -0.147 | D22: 0.253 | E22: 160 | F22: -0.447 | G22: -0.147 | H22: 0.3 | I22: 160 | J22: -0.097 | K22: -0.029 | L22: 0.068 | M22: 160 | N22: -0.037 | O22: 0.049 | P22: 0.086 | Q22: 160 | R22: -0.206 | S22: -0.135 | T22: 0.071 | U22: 160 | V22: -0.117 | W22: -0.038 | X22: 0.079 | Y22: 160 | Z22: -0.158 | AA22: 0.027 | AB22: 0.185 | AC22: 160 | AD22: -0.149 | AE22: -0.031 | AF22: 0.118 | AG22: 160 | AH22: -0.304 | AI22: 0.051 | AJ22: 0.355 | AK22: 160 | AL22: -0.256 | AM22: 0.072 | AN22: 0.328
A23: 170 | B23: -0.575 | C23: -0.495 | D23: 0.08 | E23: 170 | F23: -0.55 | G23: -0.297 | H23: 0.253 | I23: 170 | J23: -0.083 | K23: -0.05 | L23: 0.033 | M23: 170 | N23: -0.022 | O23: 0.033 | P23: 0.055 | Q23: 170 | R23: -0.197 | S23: -0.152 | T23: 0.045 | U23: 170 | V23: -0.106 | W23: -0.055 | X23: 0.051 | Y23: 170 | Z23: -0.262 | AA23: -0.064 | AB23: 0.198 | AC23: 170 | AD23: -0.309 | AE23: -0.265 | AF23: 0.044 | AG23: 170 | AH23: -0.28 | AI23: 0.119 | AJ23: 0.399 | AK23: 170 | AL23: -0.251 | AM23: 0.048 | AN23: 0.299
A24: 180 | B24: -0.63 | C24: -0.605 | D24: 0.025 | E24: 180 | F24: -0.6 | G24: -0.43 | H24: 0.17 | I24: 180 | J24: -0.076 | K24: -0.04 | L24: 0.036 | M24: 180 | N24: -0.017 | O24: 0.046 | P24: 0.063 | Q24: 180 | R24: -0.194 | S24: -0.137 | T24: 0.057 | U24: 180 | V24: -0.104 | W24: -0.044 | X24: 0.06 | Y24: 180 | Z24: -0.346 | AA24: -0.137 | AB24: 0.209 | AC24: 180 | AD24: -0.415 | AE24: -0.386 | AF24: 0.029 | AG24: 180 | AH24: -0.289 | AI24: 0.031 | AJ24: 0.32 | AK24: 180 | AL24: -0.265 | AM24: -0.096 | AN24: 0.169
A25: 190 | B25: -0.6 | C25: -0.523 | D25: 0.077 | E25: 190 | F25: -0.594 | G25: -0.499 | H25: 0.095 | I25: 190 | J25: -0.074 | K25: -0.02 | L25: 0.054 | M25: 190 | N25: -0.022 | O25: 0.057 | P25: 0.079 | Q25: 190 | R25: -0.192 | S25: -0.119 | T25: 0.073 | U25: 190 | V25: -0.108 | W25: -0.034 | X25: 0.074 | Y25: 190 | Z25: -0.381 | AA25: -0.132 | AB25: 0.249 | AC25: 190 | AD25: -0.444 | AE25: -0.373 | AF25: 0.071 | AG25: 190 | AH25: -0.325 | AI25: -0.086 | AJ25: 0.239 | AK25: 190 | AL25: -0.297 | AM25: -0.25 | AN25: 0.047
A26: 200 | B26: -0.569 | C26: -0.426 | D26: 0.143 | E26: 200 | F26: -0.573 | G26: -0.455 | H26: 0.118 | I26: 200 | J26: -0.074 | K26: -0.024 | L26: 0.05 | M26: 200 | N26: -0.02 | O26: 0.05 | P26: 0.07 | Q26: 200 | R26: -0.191 | S26: -0.126 | T26: 0.065 | U26: 200 | V26: -0.108 | W26: -0.041 | X26: 0.067 | Y26: 200 | Z26: -0.402 | AA26: -0.095 | AB26: 0.307 | AC26: 200 | AD26: -0.441 | AE26: -0.313 | AF26: 0.128 | AG26: 200 | AH26: -0.388 | AI26: -0.16 | AJ26: 0.228 | AK26: 200 | AL26: -0.354 | AM26: -0.338 | AN26: 0.016
A27: 212 | B27: -0.549 | C27: -0.343 | D27: 0.206 | E27: 212 | F27: -0.556 | G27: -0.355 | H27: 0.201 | I27: 212 | J27: -0.076 | K27: -0.036 | L27: 0.04 | M27: 212 | N27: -0.013 | O27: 0.051 | P27: 0.064 | Q27: 212 | R27: -0.192 | S27: -0.143 | T27: 0.049 | U27: 212 | V27: -0.107 | W27: -0.041 | X27: 0.066 | Y27: 212 | Z27: -0.431 | AA27: -0.085 | AB27: 0.346 | AC27: 212 | AD27: -0.429 | AE27: -0.275 | AF27: 0.154 | AG27: 212 | AH27: -0.468 | AI27: -0.206 | AJ27: 0.262 | AK27: 212 | AL27: -0.413 | AM27: -0.374 | AN27: 0.039
A28: 224 | B28: -0.543 | C28: -0.282 | D28: 0.261 | E28: 224 | F28: -0.551 | G28: -0.28 | H28: 0.271 | I28: 224 | J28: -0.077 | K28: -0.031 | L28: 0.046 | M28: 224 | N28: -0.011 | O28: 0.066 | P28: 0.077 | Q28: 224 | R28: -0.191 | S28: -0.137 | T28: 0.054 | U28: 224 | V28: -0.106 | W28: -0.028 | X28: 0.078 | Y28: 224 | Z28: -0.461 | AA28: -0.094 | AB28: 0.367 | AC28: 224 | AD28: -0.414 | AE28: -0.233 | AF28: 0.181 | AG28: 224 | AH28: -0.535 | AI28: -0.224 | AJ28: 0.311 | AK28: 224 | AL28: -0.45 | AM28: -0.35 | AN28: 0.1
A29: 236 | B29: -0.545 | C29: -0.215 | D29: 0.33 | E29: 236 | F29: -0.548 | G29: -0.213 | H29: 0.335 | I29: 236 | J29: -0.079 | K29: -0.017 | L29: 0.062 | M29: 236 | N29: -0.013 | O29: 0.085 | P29: 0.098 | Q29: 236 | R29: -0.19 | S29: -0.112 | T29: 0.078 | U29: 236 | V29: -0.109 | W29: -0.012 | X29: 0.097 | Y29: 236 | Z29: -0.481 | AA29: -0.08 | AB29: 0.401 | AC29: 236 | AD29: -0.403 | AE29: -0.141 | AF29: 0.262 | AG29: 236 | AH29: -0.574 | AI29: -0.204 | AJ29: 0.37 | AK29: 236 | AL29: -0.465 | AM29: -0.258 | AN29: 0.207
A30: 250 | B30: -0.551 | C30: -0.136 | D30: 0.415 | E30: 250 | F30: -0.546 | G30: -0.142 | H30: 0.404 | I30: 250 | J30: -0.079 | K30: -0.013 | L30: 0.066 | M30: 250 | N30: -0.013 | O30: 0.092 | P30: 0.105 | Q30: 250 | R30: -0.19 | S30: -0.101 | T30: 0.089 | U30: 250 | V30: -0.11 | W30: -0.009 | X30: 0.101 | Y30: 250 | Z30: -0.498 | AA30: -0.044 | AB30: 0.454 | AC30: 250 | AD30: -0.41 | AE30: -0.026 | AF30: 0.384 | AG30: 250 | AH30: -0.594 | AI30: -0.165 | AJ30: 0.429 | AK30: 250 | AL30: -0.474 | AM30: -0.142 | AN30: 0.332
A31: 265 | B31: -0.558 | C31: -0.073 | D31: 0.485 | E31: 265 | F31: -0.549 | G31: -0.09 | H31: 0.459 | I31: 265 | J31: -0.08 | K31: -0.019 | L31: 0.061 | M31: 265 | N31: -0.011 | O31: 0.083 | P31: 0.094 | Q31: 265 | R31: -0.189 | S31: -0.111 | T31: 0.078 | U31: 265 | V31: -0.109 | W31: -0.021 | X31: 0.088 | Y31: 265 | Z31: -0.517 | AA31: -0.017 | AB31: 0.5 | AC31: 265 | AD31: -0.429 | AE31: 0.056 | AF31: 0.485 | AG31: 265 | AH31: -0.606 | AI31: -0.135 | AJ31: 0.471 | AK31: 265 | AL31: -0.483 | AM31: -0.056 | AN31: 0.427
A32: 280 | B32: -0.561 | C32: -0.044 | D32: 0.517 | E32: 280 | F32: -0.555 | G32: -0.068 | H32: 0.487 | I32: 280 | J32: -0.079 | K32: -0.025 | L32: 0.054 | M32: 280 | N32: -0.009 | O32: 0.066 | P32: 0.075 | Q32: 280 | R32: -0.187 | S32: -0.129 | T32: 0.058 | U32: 280 | V32: -0.107 | W32: -0.039 | X32: 0.068 | Y32: 280 | Z32: -0.534 | AA32: -0.005 | AB32: 0.529 | AC32: 280 | AD32: -0.448 | AE32: 0.092 | AF32: 0.54 | AG32: 280 | AH32: -0.617 | AI32: -0.126 | AJ32: 0.491 | AK32: 280 | AL32: -0.492 | AM32: -0.018 | AN32: 0.474
A33: 300 | B33: -0.561 | C33: -0.044 | D33: 0.517 | E33: 300 | F33: -0.563 | G33: -0.054 | H33: 0.509 | I33: 300 | J33: -0.075 | K33: -0.027 | L33: 0.048 | M33: 300 | N33: -0.005 | O33: 0.055 | P33: 0.06 | Q33: 300 | R33: -0.184 | S33: -0.138 | T33: 0.046 | U33: 300 | V33: -0.104 | W33: -0.048 | X33: 0.056 | Y33: 300 | Z33: -0.547 | AA33: -0.005 | AB33: 0.542 | AC33: 300 | AD33: -0.461 | AE33: 0.1 | AF33: 0.561 | AG33: 300 | AH33: -0.636 | AI33: -0.137 | AJ33: 0.499 | AK33: 300 | AL33: -0.514 | AM33: -0.024 | AN33: 0.49
A34: 315 | B34: -0.559 | C34: -0.066 | D34: 0.493 | E34: 315 | F34: -0.572 | G34: -0.06 | H34: 0.512 | I34: 315 | J34: -0.068 | K34: -0.027 | L34: 0.041 | M34: 315 | N34: 0.002 | O34: 0.057 | P34: 0.055 | Q34: 315 | R34: -0.179 | S34: -0.136 | T34: 0.043 | U34: 315 | V34: -0.098 | W34: -0.046 | X34: 0.052 | Y34: 315 | Z34: -0.559 | AA34: -0.02 | AB34: 0.539 | AC34: 315 | AD34: -0.475 | AE34: 0.087 | AF34: 0.562 | AG34: 315 | AH34: -0.668 | AI34: -0.173 | AJ34: 0.495 | AK34: 315 | AL34: -0.556 | AM34: -0.069 | AN34: 0.487
A35: 335 | B35: -0.557 | C35: -0.108 | D35: 0.449 | E35: 335 | F35: -0.582 | G35: -0.11 | H35: 0.472 | I35: 335 | J35: -0.056 | K35: -0.023 | L35: 0.033 | M35: 335 | N35: 0.013 | O35: 0.062 | P35: 0.049 | Q35: 335 | R35: -0.17 | S35: -0.134 | T35: 0.036 | U35: 335 | V35: -0.088 | W35: -0.042 | X35: 0.046 | Y35: 335 | Z35: -0.57 | AA35: -0.059 | AB35: 0.511 | AC35: 335 | AD35: -0.497 | AE35: 0.039 | AF35: 0.536 | AG35: 335 | AH35: -0.697 | AI35: -0.229 | AJ35: 0.468 | AK35: 335 | AL35: -0.606 | AM35: -0.148 | AN35: 0.458
A36: 355 | B36: -0.559 | C36: -0.163 | D36: 0.396 | E36: 355 | F36: -0.59 | G36: -0.189 | H36: 0.401 | I36: 355 | J36: -0.044 | K36: -0.016 | L36: 0.028 | M36: 355 | N36: 0.026 | O36: 0.065 | P36: 0.039 | Q36: 355 | R36: -0.159 | S36: -0.135 | T36: 0.024 | U36: 355 | V36: -0.076 | W36: -0.041 | X36: 0.035 | Y36: 355 | Z36: -0.554 | AA36: -0.093 | AB36: 0.461 | AC36: 355 | AD36: -0.498 | AE36: -0.001 | AF36: 0.497 | AG36: 355 | AH36: -0.689 | AI36: -0.266 | AJ36: 0.423 | AK36: 355 | AL36: -0.622 | AM36: -0.196 | AN36: 0.426
A37: 375 | B37: -0.559 | C37: -0.218 | D37: 0.341 | E37: 375 | F37: -0.59 | G37: -0.272 | H37: 0.318 | I37: 375 | J37: -0.042 | K37: -0.011 | L37: 0.031 | M37: 375 | N37: 0.031 | O37: 0.069 | P37: 0.038 | Q37: 375 | R37: -0.157 | S37: -0.137 | T37: 0.02 | U37: 375 | V37: -0.073 | W37: -0.039 | X37: 0.034 | Y37: 375 | Z37: -0.501 | AA37: -0.102 | AB37: 0.399 | AC37: 375 | AD37: -0.449 | AE37: 0.01 | AF37: 0.459 | AG37: 375 | AH37: -0.638 | AI37: -0.27 | AJ37: 0.368 | AK37: 375 | AL37: -0.575 | AM37: -0.174 | AN37: 0.401
A38: 400 | B38: -0.557 | C38: -0.267 | D38: 0.29 | E38: 400 | F38: -0.59 | G38: -0.342 | H38: 0.248 | I38: 400 | J38: -0.052 | K38: -0.017 | L38: 0.035 | M38: 400 | N38: 0.023 | O38: 0.071 | P38: 0.048 | Q38: 400 | R38: -0.167 | S38: -0.137 | T38: 0.03 | U38: 400 | V38: -0.083 | W38: -0.039 | X38: 0.044 | Y38: 400 | Z38: -0.451 | AA38: -0.15 | AB38: 0.301 | AC38: 400 | AD38: -0.387 | AE38: 0.013 | AF38: 0.4 | AG38: 400 | AH38: -0.598 | AI38: -0.32 | AJ38: 0.278 | AK38: 400 | AL38: -0.521 | AM38: -0.174 | AN38: 0.347
A39: 425 | B39: -0.56 | C39: -0.321 | D39: 0.239 | E39: 425 | F39: -0.597 | G39: -0.395 | H39: 0.202 | I39: 425 | J39: -0.068 | K39: -0.035 | L39: 0.033 | M39: 425 | N39: 0.01 | O39: 0.066 | P39: 0.056 | Q39: 425 | R39: -0.185 | S39: -0.144 | T39: 0.041 | U39: 425 | V39: -0.099 | W39: -0.045 | X39: 0.054 | Y39: 425 | Z39: -0.475 | AA39: -0.307 | AB39: 0.168 | AC39: 425 | AD39: -0.385 | AE39: -0.092 | AF39: 0.293 | AG39: 425 | AH39: -0.635 | AI39: -0.477 | AJ39: 0.158 | AK39: 425 | AL39: -0.539 | AM39: -0.292 | AN39: 0.247
A40: 450 | B40: -0.569 | C40: -0.377 | D40: 0.192 | E40: 450 | F40: -0.6 | G40: -0.435 | H40: 0.165 | I40: 450 | J40: -0.076 | K40: -0.058 | L40: 0.018 | M40: 450 | N40: 0.004 | O40: 0.052 | P40: 0.048 | Q40: 450 | R40: -0.195 | S40: -0.159 | T40: 0.036 | U40: 450 | V40: -0.107 | W40: -0.06 | X40: 0.047 | Y40: 450 | Z40: -0.599 | AA40: -0.554 | AB40: 0.045 | AC40: 450 | AD40: -0.491 | AE40: -0.319 | AF40: 0.172 | AG40: 450 | AH40: -0.765 | AI40: -0.711 | AJ40: 0.054 | AK40: 450 | AL40: -0.662 | AM40: -0.521 | AN40: 0.141
A41: 475 | B41: -0.567 | C41: -0.402 | D41: 0.165 | E41: 475 | F41: -0.6 | G41: -0.442 | H41: 0.158 | I41: 475 | J41: -0.074 | K41: -0.071 | L41: 0.003 | M41: 475 | N41: 0.009 | O41: 0.038 | P41: 0.029 | Q41: 475 | R41: -0.192 | S41: -0.159 | T41: 0.033 | U41: 475 | V41: -0.103 | W41: -0.064 | X41: 0.039 | Y41: 475 | Z41: -0.742 | AA41: -0.807 | AB41: -0.065 | AC41: 475 | AD41: -0.65 | AE41: -0.601 | AF41: 0.049 | AG41: 475 | AH41: -0.9 | AI41: -0.936 | AJ41: -0.036 | AK41: 475 | AL41: -0.822 | AM41: -0.784 | AN41: 0.038
A42: 500 | B42: -0.584 | C42: -0.386 | D42: 0.198 | E42: 500 | F42: -0.621 | G42: -0.419 | H42: 0.202 | I42: 500 | J42: -0.096 | K42: -0.046 | L42: 0.05 | M42: 500 | N42: -0.013 | O42: 0.045 | P42: 0.058 | Q42: 500 | R42: -0.196 | S42: -0.118 | T42: 0.078 | U42: 500 | V42: -0.118 | W42: -0.04 | X42: 0.078 | Y42: 500 | Z42: -0.769 | AA42: -0.954 | AB42: -0.185 | AC42: 500 | AD42: -0.716 | AE42: -0.834 | AF42: -0.118 | AG42: 500 | AH42: -0.907 | AI42: -1.047 | AJ42: -0.14 | AK42: 500 | AL42: -0.876 | AM42: -0.989 | AN42: -0.113
A43: 530 | B43: -0.625 | C43: -0.359 | D43: 0.266 | E43: 530 | F43: -0.643 | G43: -0.406 | H43: 0.237 | I43: 530 | J43: -0.12 | K43: -0.013 | L43: 0.107 | M43: 530 | N43: -0.047 | O43: 0.062 | P43: 0.109 | Q43: 530 | R43: -0.197 | S43: -0.101 | T43: 0.096 | U43: 530 | V43: -0.129 | W43: -0.025 | X43: 0.104 | Y43: 530 | Z43: -0.629 | AA43: -0.902 | AB43: -0.273 | AC43: 530 | AD43: -0.597 | AE43: -0.92 | AF43: -0.323 | AG43: 530 | AH43: -0.737 | AI43: -0.953 | AJ43: -0.216 | AK43: 530 | AL43: -0.73 | AM43: -1.033 | AN43: -0.303
A44: 560 | B44: -0.644 | C44: -0.346 | D44: 0.298 | E44: 560 | F44: -0.649 | G44: -0.408 | H44: 0.241 | I44: 560 | J44: -0.111 | K44: -0.015 | L44: 0.096 | M44: 560 | N44: -0.042 | O44: 0.068 | P44: 0.11 | Q44: 560 | R44: -0.19 | S44: -0.104 | T44: 0.086 | U44: 560 | V44: -0.121 | W44: -0.024 | X44: 0.097 | Y44: 560 | Z44: -0.435 | AA44: -0.626 | AB44: -0.191 | AC44: 560 | AD44: -0.339 | AE44: -0.777 | AF44: -0.438 | AG44: 560 | AH44: -0.512 | AI44: -0.617 | AJ44: -0.105 | AK44: 560 | AL44: -0.433 | AM44: -0.818 | AN44: -0.385
A45: 600 | B45: -0.659 | C45: -0.37 | D45: 0.289 | E45: 600 | F45: -0.648 | G45: -0.43 | H45: 0.218 | I45: 600 | J45: -0.099 | K45: -0.024 | L45: 0.075 | M45: 600 | N45: -0.029 | O45: 0.069 | P45: 0.098 | Q45: 600 | R45: -0.182 | S45: -0.11 | T45: 0.072 | U45: 600 | V45: -0.112 | W45: -0.025 | X45: 0.087 | Y45: 600 | Z45: -0.45 | AA45: -0.302 | AB45: 0.148 | AC45: 600 | AD45: -0.161 | AE45: -0.468 | AF45: -0.307 | AG45: 600 | AH45: -0.51 | AI45: -0.263 | AJ45: 0.247 | AK45: 600 | AL45: -0.246 | AM45: -0.438 | AN45: -0.192
A46: 630 | B46: -0.653 | C46: -0.431 | D46: 0.222 | E46: 630 | F46: -0.624 | G46: -0.46 | H46: 0.164 | I46: 630 | J46: -0.092 | K46: -0.032 | L46: 0.06 | M46: 630 | N46: -0.019 | O46: 0.066 | P46: 0.085 | Q46: 630 | R46: -0.178 | S46: -0.116 | T46: 0.062 | U46: 630 | V46: -0.105 | W46: -0.027 | X46: 0.078 | Y46: 630 | Z46: -0.692 | AA46: -0.221 | AB46: 0.471 | AC46: 630 | AD46: -0.276 | AE46: -0.244 | AF46: 0.032 | AG46: 630 | AH46: -0.713 | AI46: -0.192 | AJ46: 0.521 | AK46: 630 | AL46: -0.375 | AM46: -0.211 | AN46: 0.164
A47: 670 | B47: -0.608 | C47: -0.483 | D47: 0.125 | E47: 670 | F47: -0.591 | G47: -0.468 | H47: 0.123 | I47: 670 | J47: -0.09 | K47: -0.039 | L47: 0.051 | M47: 670 | N47: -0.015 | O47: 0.061 | P47: 0.076 | Q47: 670 | R47: -0.174 | S47: -0.119 | T47: 0.055 | U47: 670 | V47: -0.1 | W47: -0.029 | X47: 0.071 | Y47: 670 | Z47: -0.801 | AA47: -0.315 | AB47: 0.486 | AC47: 670 | AD47: -0.459 | AE47: -0.19 | AF47: 0.269 | AG47: 670 | AH47: -0.766 | AI47: -0.28 | AJ47: 0.486 | AK47: 670 | AL47: -0.518 | AM47: -0.191 | AN47: 0.327
A48: 710 | B48: -0.566 | C48: -0.498 | D48: 0.068 | E48: 710 | F48: -0.578 | G48: -0.459 | H48: 0.119 | I48: 710 | J48: -0.088 | K48: -0.041 | L48: 0.047 | M48: 710 | N48: -0.013 | O48: 0.057 | P48: 0.07 | Q48: 710 | R48: -0.17 | S48: -0.119 | T48: 0.051 | U48: 710 | V48: -0.099 | W48: -0.03 | X48: 0.069 | Y48: 710 | Z48: -0.691 | AA48: -0.377 | AB48: 0.314 | AC48: 710 | AD48: -0.448 | AE48: -0.147 | AF48: 0.301 | AG48: 710 | AH48: -0.651 | AI48: -0.368 | AJ48: 0.283 | AK48: 710 | AL48: -0.451 | AM48: -0.194 | AN48: 0.257
A49: 750 | B49: -0.549 | C49: -0.518 | D49: 0.031 | E49: 750 | F49: -0.581 | G49: -0.447 | H49: 0.134 | I49: 750 | J49: -0.081 | K49: -0.038 | L49: 0.043 | M49: 750 | N49: -0.016 | O49: 0.053 | P49: 0.069 | Q49: 750 | R49: -0.164 | S49: -0.118 | T49: 0.046 | U49: 750 | V49: -0.101 | W49: -0.031 | X49: 0.07 | Y49: 750 | Z49: -0.47 | AA49: -0.351 | AB49: 0.119 | AC49: 750 | AD49: -0.358 | AE49: -0.072 | AF49: 0.286 | AG49: 750 | AH49: -0.553 | AI49: -0.472 | AJ49: 0.081 | AK49: 750 | AL49: -0.366 | AM49: -0.193 | AN49: 0.173
A50: 800 | B50: -0.566 | C50: -0.53 | D50: 0.036 | E50: 800 | F50: -0.593 | G50: -0.429 | H50: 0.164 | I50: 800 | J50: -0.069 | K50: -0.032 | L50: 0.037 | M50: 800 | N50: -0.016 | O50: 0.053 | P50: 0.069 | Q50: 800 | R50: -0.154 | S50: -0.116 | T50: 0.038 | U50: 800 | V50: -0.101 | W50: -0.029 | X50: 0.072 | Y50: 800 | Z50: -0.305 | AA50: -0.285 | AB50: 0.02 | AC50: 800 | AD50: -0.325 | AE50: -0.033 | AF50: 0.292 | AG50: 800 | AH50: -0.595 | AI50: -0.603 | AJ50: -0.008 | AK50: 800 | AL50: -0.431 | AM50: -0.243 | AN50: 0.188
A51: 850 | B51: -0.611 | C51: -0.451 | D51: 0.16 | E51: 850 | F51: -0.618 | G51: -0.399 | H51: 0.219 | I51: 850 | J51: -0.052 | K51: -0.031 | L51: 0.021 | M51: 850 | N51: -0.01 | O51: 0.054 | P51: 0.064 | Q51: 850 | R51: -0.14 | S51: -0.114 | T51: 0.026 | U51: 850 | V51: -0.09 | W51: -0.021 | X51: 0.069 | Y51: 850 | Z51: -0.351 | AA51: -0.251 | AB51: 0.1 | AC51: 850 | AD51: -0.386 | AE51: -0.061 | AF51: 0.325 | AG51: 850 | AH51: -0.756 | AI51: -0.665 | AJ51: 0.091 | AK51: 850 | AL51: -0.617 | AM51: -0.336 | AN51: 0.281
A52: 900 | B52: -0.644 | C52: -0.411 | D52: 0.233 | E52: 900 | F52: -0.648 | G52: -0.368 | H52: 0.28 | I52: 900 | J52: -0.039 | K52: -0.041 | L52: -0.002 | M52: 900 | N52: 0.011 | O52: 0.052 | P52: 0.041 | Q52: 900 | R52: -0.13 | S52: -0.119 | T52: 0.011 | U52: 900 | V52: -0.062 | W52: -0.016 | X52: 0.046 | Y52: 900 | Z52: -0.525 | AA52: -0.276 | AB52: 0.249 | AC52: 900 | AD52: -0.501 | AE52: -0.134 | AF52: 0.367 | AG52: 900 | AH52: -0.86 | AI52: -0.62 | AJ52: 0.24 | AK52: 900 | AL52: -0.753 | AM52: -0.399 | AN52: 0.354
A53: 950 | B53: -0.654 | C53: -0.398 | D53: 0.256 | E53: 950 | F53: -0.684 | G53: -0.322 | H53: 0.362 | I53: 950 | J53: -0.045 | K53: -0.058 | L53: -0.013 | M53: 950 | N53: 0.043 | O53: 0.044 | P53: 0.001 | Q53: 950 | R53: -0.151 | S53: -0.145 | T53: 0.006 | U53: 950 | V53: -0.031 | W53: -0.023 | X53: 0.008 | Y53: 950 | Z53: -0.625 | AA53: -0.312 | AB53: 0.313 | AC53: 950 | AD53: -0.601 | AE53: -0.218 | AF53: 0.383 | AG53: 950 | AH53: -0.866 | AI53: -0.58 | AJ53: 0.286 | AK53: 950 | AL53: -0.792 | AM53: -0.436 | AN53: 0.356
A54: 1000 | B54: -0.66 | C54: -0.345 | D54: 0.315 | E54: 1000 | F54: -0.701 | G54: -0.258 | H54: 0.443 | I54: 1000 | J54: -0.112 | K54: -0.059 | L54: 0.053 | M54: 1000 | N54: 0.057 | O54: 0.033 | P54: -0.024 | Q54: 1000 | R54: -0.216 | S54: -0.174 | T54: 0.042 | U54: 1000 | V54: -0.027 | W54: -0.044 | X54: -0.017 | Y54: 1000 | Z54: -0.652 | AA54: -0.309 | AB54: 0.343 | AC54: 1000 | AD54: -0.661 | AE54: -0.261 | AF54: 0.4 | AG54: 1000 | AH54: -0.846 | AI54: -0.541 | AJ54: 0.305 | AK54: 1000 | AL54: -0.797 | AM54: -0.442 | AN54: 0.355
A55: 1060 | B55: -0.664 | C55: -0.275 | D55: 0.389 | E55: 1060 | F55: -0.694 | G55: -0.191 | H55: 0.503 | I55: 1060 | J55: -0.177 | K55: -0.044 | L55: 0.133 | M55: 1060 | N55: -0.024 | O55: 0.036 | P55: 0.06 | Q55: 1060 | R55: -0.284 | S55: -0.179 | T55: 0.105 | U55: 1060 | V55: -0.112 | W55: -0.075 | X55: 0.037 | Y55: 1060 | Z55: -0.65 | AA55: -0.254 | AB55: 0.396 | AC55: 1060 | AD55: -0.671 | AE55: -0.224 | AF55: 0.447 | AG55: 1060 | AH55: -0.811 | AI55: -0.448 | AJ55: 0.363 | AK55: 1060 | AL55: -0.781 | AM55: -0.382 | AN55: 0.399
A56: 1120 | B56: -0.67 | C56: -0.206 | D56: 0.464 | E56: 1120 | F56: -0.704 | G56: -0.121 | H56: 0.583 | I56: 1120 | J56: -0.189 | K56: -0.028 | L56: 0.161 | M56: 1120 | N56: -0.135 | O56: 0.05 | P56: 0.185 | Q56: 1120 | R56: -0.307 | S56: -0.167 | T56: 0.14 | U56: 1120 | V56: -0.231 | W56: -0.081 | X56: 0.15 | Y56: 1120 | Z56: -0.646 | AA56: -0.171 | AB56: 0.475 | AC56: 1120 | AD56: -0.658 | AE56: -0.139 | AF56: 0.519 | AG56: 1120 | AH56: -0.769 | AI56: -0.31 | AJ56: 0.459 | AK56: 1120 | AL56: -0.775 | AM56: -0.296 | AN56: 0.479
A57: 1180 | B57: -0.713 | C57: -0.143 | D57: 0.57 | E57: 1180 | F57: -0.719 | G57: -0.071 | H57: 0.648 | I57: 1180 | J57: -0.18 | K57: -0.012 | L57: 0.168 | M57: 1180 | N57: -0.146 | O57: 0.061 | P57: 0.207 | Q57: 1180 | R57: -0.294 | S57: -0.149 | T57: 0.145 | U57: 1180 | V57: -0.236 | W57: -0.065 | X57: 0.171 | Y57: 1180 | Z57: -0.687 | AA57: -0.124 | AB57: 0.563 | AC57: 1180 | AD57: -0.734 | AE57: -0.148 | AF57: 0.586 | AG57: 1180 | AH57: -0.769 | AI57: -0.205 | AJ57: 0.564 | AK57: 1180 | AL57: -0.816 | AM57: -0.234 | AN57: 0.582
A58: 1250 | B58: -0.744 | C58: -0.122 | D58: 0.622 | E58: 1250 | F58: -0.765 | G58: -0.013 | H58: 0.752 | I58: 1250 | J58: -0.162 | K58: 0.001 | L58: 0.163 | M58: 1250 | N58: -0.114 | O58: 0.071 | P58: 0.185 | Q58: 1250 | R58: -0.266 | S58: -0.126 | T58: 0.14 | U58: 1250 | V58: -0.206 | W58: -0.053 | X58: 0.153 | Y58: 1250 | Z58: -0.761 | AA58: -0.087 | AB58: 0.674 | AC58: 1250 | AD58: -0.948 | AE58: -0.358 | AF58: 0.59 | AG58: 1250 | AH58: -0.805 | AI58: -0.146 | AJ58: 0.659 | AK58: 1250 | AL58: -0.865 | AM58: -0.154 | AN58: 0.711
A59: 1320 | B59: -0.801 | C59: -0.071 | D59: 0.73 | E59: 1320 | F59: -0.83 | G59: 0.092 | H59: 0.922 | I59: 1320 | J59: -0.137 | K59: 0.009 | L59: 0.146 | M59: 1320 | N59: -0.072 | O59: 0.078 | P59: 0.15 | Q59: 1320 | R59: -0.232 | S59: -0.107 | T59: 0.125 | U59: 1320 | V59: -0.179 | W59: -0.05 | X59: 0.129 | Y59: 1320 | Z59: -0.67 | AA59: 0.175 | AB59: 0.845 | AC59: 1320 | AD59: -1.134 | AE59: -0.609 | AF59: 0.525 | AG59: 1320 | AH59: -0.688 | AI59: 0.128 | AJ59: 0.816 | AK59: 1320 | AL59: -0.811 | AM59: 0.161 | AN59: 0.972
A60: 1400 | B60: -0.9 | C60: 0.02 | D60: 0.92 | E60: 1400 | F60: -0.815 | G60: 0.193 | H60: 1.008 | I60: 1400 | J60: -0.108 | K60: 0 | L60: 0.108 | M60: 1400 | N60: -0.027 | O60: 0.075 | P60: 0.102 | Q60: 1400 | R60: -0.2 | S60: -0.103 | T60: 0.097 | U60: 1400 | V60: -0.155 | W60: -0.06 | X60: 0.095 | Y60: 1400 | Z60: -0.073 | AA60: 0.916 | AB60: 0.989 | AC60: 1400 | AD60: -1.014 | AE60: -0.562 | AF60: 0.452 | AG60: 1400 | AH60: -0.308 | AI60: 0.68 | AJ60: 0.988 | AK60: 1400 | AL60: -0.511 | AM60: 0.927 | AN60: 1.438
A61: 1500 | B61: -0.951 | C61: 0.101 | D61: 1.052 | E61: 1500 | F61: -0.719 | G61: 0.303 | H61: 1.022 | I61: 1500 | J61: -0.084 | K61: -0.03 | L61: 0.054 | M61: 1500 | N61: 0.01 | O61: 0.062 | P61: 0.052 | Q61: 1500 | R61: -0.19 | S61: -0.127 | T61: 0.063 | U61: 1500 | V61: -0.136 | W61: -0.076 | X61: 0.06 | Y61: 1500 | Z61: 0.511 | AA61: 1.457 | AB61: 0.946 | AC61: 1500 | AD61: -0.39 | AE61: 0.166 | AF61: 0.556 | AG61: 1500 | AH61: -0.105 | AI61: 0.945 | AJ61: 1.05 | AK61: 1500 | AL61: -0.316 | AM61: 1.237 | AN61: 1.553
A62: 1600 | B62: -1.024 | C62: 0.135 | D62: 1.159 | E62: 1600 | F62: -0.585 | G62: 0.422 | H62: 1.007 | I62: 1600 | J62: -0.078 | K62: -0.04 | L62: 0.038 | M62: 1600 | N62: 0.016 | O62: 0.054 | P62: 0.038 | Q62: 1600 | R62: -0.201 | S62: -0.149 | T62: 0.052 | U62: 1600 | V62: -0.132 | W62: -0.087 | X62: 0.045 | Y62: 1600 | Z62: 0.216 | AA62: 1.039 | AB62: 0.823 | AC62: 1600 | AD62: -0.274 | AE62: 0.549 | AF62: 0.823 | AG62: 1600 | AH62: -0.163 | AI62: 0.843 | AJ62: 1.006 | AK62: 1600 | AL62: -0.465 | AM62: 0.833 | AN62: 1.298
A63: 1700 | B63: -1.063 | C63: 0.081 | D63: 1.144 | E63: 1700 | F63: -0.374 | G63: 0.594 | H63: 0.968 | I63: 1700 | J63: -0.072 | K63: -0.027 | L63: 0.045 | M63: 1700 | N63: 0.001 | O63: 0.062 | P63: 0.061 | Q63: 1700 | R63: -0.195 | S63: -0.149 | T63: 0.046 | U63: 1700 | V63: -0.132 | W63: -0.083 | X63: 0.049 | Y63: 1700 | Z63: -0.393 | AA63: 0.303 | AB63: 0.696 | AC63: 1700 | AD63: -0.941 | AE63: -0.034 | AF63: 0.907 | AG63: 1700 | AH63: -0.16 | AI63: 0.66 | AJ63: 0.82 | AK63: 1700 | AL63: -0.415 | AM63: 0.567 | AN63: 0.982
A64: 1800 | B64: -0.966 | C64: 0.022 | D64: 0.988 | E64: 1800 | F64: -0.077 | G64: 0.824 | H64: 0.901 | I64: 1800 | J64: -0.05 | K64: -0.023 | L64: 0.027 | M64: 1800 | N64: -0.001 | O64: 0.072 | P64: 0.073 | Q64: 1800 | R64: -0.164 | S64: -0.149 | T64: 0.015 | U64: 1800 | V64: -0.115 | W64: -0.066 | X64: 0.049 | Y64: 1800 | Z64: -0.832 | AA64: -0.244 | AB64: 0.588 | AC64: 1800 | AD64: -1.188 | AE64: -0.368 | AF64: 0.82 | AG64: 1800 | AH64: 0.086 | AI64: 0.687 | AJ64: 0.601 | AK64: 1800 | AL64: -0.057 | AM64: 0.664 | AN64: 0.721
A65: 1900 | B65: -0.868 | C65: 0.02 | D65: 0.888 | E65: 1900 | F65: 0.154 | G65: 1.005 | H65: 0.851 | I65: 1900 | J65: -0.025 | K65: -0.028 | L65: -0.003 | M65: 1900 | N65: 0.014 | O65: 0.075 | P65: 0.061 | Q65: 1900 | R65: -0.13 | S65: -0.151 | T65: -0.021 | U65: 1900 | V65: -0.081 | W65: -0.045 | X65: 0.036 | Y65: 1900 | Z65: -1.08 | AA65: -0.509 | AB65: 0.571 | AC65: 1900 | AD65: -1.14 | AE65: -0.424 | AF65: 0.716 | AG65: 1900 | AH65: 0.253 | AI65: 0.836 | AJ65: 0.583 | AK65: 1900 | AL65: 0.214 | AM65: 0.814 | AN65: 0.6
A66: 2000 | B66: -0.824 | C66: 0.007 | D66: 0.831 | E66: 2000 | F66: 0.247 | G66: 1.111 | H66: 0.864 | I66: 2000 | J66: -0.018 | K66: -0.036 | L66: -0.018 | M66: 2000 | N66: 0.036 | O66: 0.07 | P66: 0.034 | Q66: 2000 | R66: -0.121 | S66: -0.154 | T66: -0.033 | U66: 2000 | V66: -0.045 | W66: -0.032 | X66: 0.013 | Y66: 2000 | Z66: -1.24 | AA66: -0.594 | AB66: 0.646 | AC66: 2000 | AD66: -1.03 | AE66: -0.398 | AF66: 0.632 | AG66: 2000 | AH66: 0.19 | AI66: 0.881 | AJ66: 0.691 | AK66: 2000 | AL66: 0.263 | AM66: 0.829 | AN66: 0.566
A67: 2120 | B67: -0.836 | C67: -0.028 | D67: 0.808 | E67: 2120 | F67: 0.28 | G67: 1.175 | H67: 0.895 | I67: 2120 | J67: -0.04 | K67: -0.042 | L67: -0.002 | M67: 2120 | N67: 0.052 | O67: 0.06 | P67: 0.008 | Q67: 2120 | R67: -0.158 | S67: -0.156 | T67: 0.002 | U67: 2120 | V67: -0.041 | W67: -0.031 | X67: 0.01 | Y67: 2120 | Z67: -1.325 | AA67: -0.597 | AB67: 0.728 | AC67: 2120 | AD67: -0.883 | AE67: -0.289 | AF67: 0.594 | AG67: 2120 | AH67: 0.061 | AI67: 0.825 | AJ67: 0.764 | AK67: 2120 | AL67: 0.171 | AM67: 0.794 | AN67: 0.623
A68: 2240 | B68: -0.925 | C68: -0.113 | D68: 0.812 | E68: 2240 | F68: 0.364 | G68: 1.278 | H68: 0.914 | I68: 2240 | J68: -0.076 | K68: -0.047 | L68: 0.029 | M68: 2240 | N68: 0.051 | O68: 0.051 | P68: 0 | Q68: 2240 | R68: -0.215 | S68: -0.157 | T68: 0.058 | U68: 2240 | V68: -0.077 | W68: -0.033 | X68: 0.044 | Y68: 2240 | Z68: -1.206 | AA68: -0.444 | AB68: 0.762 | AC68: 2240 | AD68: -0.675 | AE68: -0.023 | AF68: 0.652 | AG68: 2240 | AH68: -0.002 | AI68: 0.737 | AJ68: 0.739 | AK68: 2240 | AL68: -0.003 | AM68: 0.802 | AN68: 0.805
A69: 2360 | B69: -1.171 | C69: -0.411 | D69: 0.76 | E69: 2360 | F69: 0.431 | G69: 1.343 | H69: 0.912 | I69: 2360 | J69: -0.106 | K69: -0.054 | L69: 0.052 | M69: 2360 | N69: 0.033 | O69: 0.045 | P69: 0.012 | Q69: 2360 | R69: -0.248 | S69: -0.16 | T69: 0.088 | U69: 2360 | V69: -0.119 | W69: -0.032 | X69: 0.087 | Y69: 2360 | Z69: -0.778 | AA69: -0.006 | AB69: 0.772 | AC69: 2360 | AD69: -0.515 | AE69: 0.236 | AF69: 0.751 | AG69: 2360 | AH69: 0.078 | AI69: 0.731 | AJ69: 0.653 | AK69: 2360 | AL69: -0.034 | AM69: 1.007 | AN69: 1.041
A70: 2500 | B70: -1.438 | C70: -1.339 | D70: 0.099 | E70: 2500 | F70: 0.374 | G70: 1.051 | H70: 0.677 | I70: 2500 | J70: -0.136 | K70: -0.051 | L70: 0.085 | M70: 2500 | N70: 0.007 | O70: 0.043 | P70: 0.036 | Q70: 2500 | R70: -0.247 | S70: -0.162 | T70: 0.085 | U70: 2500 | V70: -0.134 | W70: -0.022 | X70: 0.112 | Y70: 2500 | Z70: -0.181 | AA70: 0.666 | AB70: 0.847 | AC70: 2500 | AD70: -0.655 | AE70: 0.028 | AF70: 0.683 | AG70: 2500 | AH70: 0.132 | AI70: 0.844 | AJ70: 0.712 | AK70: 2500 | AL70: 0.292 | AM70: 1.34 | AN70: 1.048
A71: 2650 | B71: -0.029 | C71: -0.815 | D71: -0.786 | E71: 2650 | F71: 0.295 | G71: 0.586 | H71: 0.291 | I71: 2650 | J71: -0.175 | K71: -0.024 | L71: 0.151 | M71: 2650 | N71: -0.005 | O71: 0.055 | P71: 0.06 | Q71: 2650 | R71: -0.225 | S71: -0.146 | T71: 0.079 | U71: 2650 | V71: -0.109 | W71: -0.005 | X71: 0.104 | Y71: 2650 | Z71: 0.041 | AA71: 1.053 | AB71: 1.012 | AC71: 2650 | AD71: -0.816 | AE71: -0.314 | AF71: 0.502 | AG71: 2650 | AH71: 0.029 | AI71: 0.908 | AJ71: 0.879 | AK71: 2650 | AL71: 0.457 | AM71: 1.257 | AN71: 0.8
A72: 2800 | B72: 0.538 | C72: -0.383 | D72: -0.921 | E72: 2800 | F72: 0.143 | G72: 0.347 | H72: 0.204 | I72: 2800 | J72: -0.171 | K72: -0.024 | L72: 0.147 | M72: 2800 | N72: 0.004 | O72: 0.071 | P72: 0.067 | Q72: 2800 | R72: -0.198 | S72: -0.135 | T72: 0.063 | U72: 2800 | V72: -0.061 | W72: 0.019 | X72: 0.08 | Y72: 2800 | Z72: -0.449 | AA72: 0.323 | AB72: 0.772 | AC72: 2800 | AD72: -0.695 | AE72: -0.299 | AF72: 0.396 | AG72: 2800 | AH72: 0.058 | AI72: 0.757 | AJ72: 0.699 | AK72: 2800 | AL72: 0.308 | AM72: 0.966 | AN72: 0.658
A73: 3000 | B73: 0.544 | C73: -0.126 | D73: -0.67 | E73: 3000 | F73: -0.042 | G73: 0.247 | H73: 0.289 | I73: 3000 | J73: -0.136 | K73: -0.038 | L73: 0.098 | M73: 3000 | N73: 0.001 | O73: 0.082 | P73: 0.081 | Q73: 3000 | R73: -0.178 | S73: -0.132 | T73: 0.046 | U73: 3000 | V73: -0.056 | W73: 0.002 | X73: 0.058 | Y73: 3000 | Z73: -0.806 | AA73: -0.222 | AB73: 0.584 | AC73: 3000 | AD73: -0.37 | AE73: -0.046 | AF73: 0.324 | AG73: 3000 | AH73: -0.112 | AI73: 0.46 | AJ73: 0.572 | AK73: 3000 | AL73: -0.04 | AM73: 0.65 | AN73: 0.69
A74: 3150 | B74: 0.484 | C74: 0.323 | D74: -0.161 | E74: 3150 | F74: -0.227 | G74: 0.128 | H74: 0.355 | I74: 3150 | J74: -0.115 | K74: -0.046 | L74: 0.069 | M74: 3150 | N74: -0.02 | O74: 0.091 | P74: 0.111 | Q74: 3150 | R74: -0.173 | S74: -0.127 | T74: 0.046 | U74: 3150 | V74: -0.134 | W74: -0.057 | X74: 0.077 | Y74: 3150 | Z74: -0.481 | AA74: 0.328 | AB74: 0.809 | AC74: 3150 | AD74: -0.012 | AE74: 0.156 | AF74: 0.168 | AG74: 3150 | AH74: -0.35 | AI74: 0.258 | AJ74: 0.608 | AK74: 3150 | AL74: -0.549 | AM74: 0.334 | AN74: 0.883
A75: 3350 | B75: 0.381 | C75: 0.575 | D75: 0.194 | E75: 3350 | F75: -0.427 | G75: -0.009 | H75: 0.418 | I75: 3350 | J75: -0.112 | K75: -0.044 | L75: 0.068 | M75: 3350 | N75: -0.06 | O75: 0.096 | P75: 0.156 | Q75: 3350 | R75: -0.177 | S75: -0.115 | T75: 0.062 | U75: 3350 | V75: -0.194 | W75: -0.073 | X75: 0.121 | Y75: 3350 | Z75: 0.343 | AA75: 1.028 | AB75: 0.685 | AC75: 3350 | AD75: 0.066 | AE75: 0.287 | AF75: 0.221 | AG75: 3350 | AH75: -0.536 | AI75: 0.142 | AJ75: 0.678 | AK75: 3350 | AL75: -0.72 | AM75: 0.144 | AN75: 0.864
A76: 3550 | B76: 0.415 | C76: 0.718 | D76: 0.303 | E76: 3550 | F76: -0.619 | G76: -0.207 | H76: 0.412 | I76: 3550 | J76: -0.101 | K76: -0.038 | L76: 0.063 | M76: 3550 | N76: -0.074 | O76: 0.089 | P76: 0.163 | Q76: 3550 | R76: -0.178 | S76: -0.094 | T76: 0.084 | U76: 3550 | V76: -0.203 | W76: -0.039 | X76: 0.164 | Y76: 3550 | Z76: 0.697 | AA76: 1.231 | AB76: 0.534 | AC76: 3550 | AD76: -0.165 | AE76: 0.482 | AF76: 0.647 | AG76: 3550 | AH76: -0.723 | AI76: 0.087 | AJ76: 0.81 | AK76: 3550 | AL76: -0.378 | AM76: 0.14 | AN76: 0.518
A77: 3750 | B77: 0.384 | C77: 0.902 | D77: 0.518 | E77: 3750 | F77: -0.713 | G77: -0.324 | H77: 0.389 | I77: 3750 | J77: -0.071 | K77: -0.035 | L77: 0.036 | M77: 3750 | N77: -0.041 | O77: 0.08 | P77: 0.121 | Q77: 3750 | R77: -0.173 | S77: -0.072 | T77: 0.101 | U77: 3750 | V77: -0.178 | W77: -0.005 | X77: 0.173 | Y77: 3750 | Z77: 0.513 | AA77: 1.09 | AB77: 0.577 | AC77: 3750 | AD77: -0.308 | AE77: 0.707 | AF77: 1.015 | AG77: 3750 | AH77: -1.052 | AI77: -0.03 | AJ77: 1.022 | AK77: 3750 | AL77: -0.152 | AM77: 0.136 | AN77: 0.288
A78: 4000 | B78: 0.249 | C78: 0.952 | D78: 0.703 | E78: 4000 | F78: -0.672 | G78: -0.26 | H78: 0.412 | I78: 4000 | J78: -0.025 | K78: -0.042 | L78: -0.017 | M78: 4000 | N78: 0.025 | O78: 0.073 | P78: 0.048 | Q78: 4000 | R78: -0.181 | S78: -0.069 | T78: 0.112 | U78: 4000 | V78: -0.131 | W78: 0.006 | X78: 0.137 | Y78: 4000 | Z78: 0.198 | AA78: 0.862 | AB78: 0.664 | AC78: 4000 | AD78: -0.271 | AE78: 0.9 | AF78: 1.171 | AG78: 4000 | AH78: -1.017 | AI78: -0.094 | AJ78: 0.923 | AK78: 4000 | AL78: -0.203 | AM78: 0.126 | AN78: 0.329
A79: 4250 | B79: 0.082 | C79: 0.832 | D79: 0.75 | E79: 4250 | F79: -0.641 | G79: -0.145 | H79: 0.496 | I79: 4250 | J79: -0.006 | K79: -0.052 | L79: -0.046 | M79: 4250 | N79: 0.099 | O79: 0.064 | P79: -0.035 | Q79: 4250 | R79: -0.213 | S79: -0.108 | T79: 0.105 | U79: 4250 | V79: -0.085 | W79: 0.002 | X79: 0.087 | Y79: 4250 | Z79: -0.157 | AA79: 0.629 | AB79: 0.786 | AC79: 4250 | AD79: -0.148 | AE79: 0.887 | AF79: 1.035 | AG79: 4250 | AH79: -0.777 | AI79: -0.021 | AJ79: 0.756 | AK79: 4250 | AL79: -0.35 | AM79: 0.141 | AN79: 0.491
A80: 4500 | B80: 0.008 | C80: 0.774 | D80: 0.766 | E80: 4500 | F80: -0.642 | G80: -0.073 | H80: 0.569 | I80: 4500 | J80: -0.046 | K80: -0.039 | L80: 0.007 | M80: 4500 | N80: 0.138 | O80: 0.054 | P80: -0.084 | Q80: 4500 | R80: -0.284 | S80: -0.145 | T80: 0.139 | U80: 4500 | V80: -0.048 | W80: 0 | X80: 0.048 | Y80: 4500 | Z80: -0.282 | AA80: 0.582 | AB80: 0.864 | AC80: 4500 | AD80: -0.015 | AE80: 0.881 | AF80: 0.896 | AG80: 4500 | AH80: -0.632 | AI80: 0.064 | AJ80: 0.696 | AK80: 4500 | AL80: -0.5 | AM80: 0.15 | AN80: 0.65
A81: 4750 | B81: -0.013 | C81: 0.729 | D81: 0.742 | E81: 4750 | F81: -0.579 | G81: 0.021 | H81: 0.6 | I81: 4750 | J81: -0.123 | K81: -0.036 | L81: 0.087 | M81: 4750 | N81: 0.104 | O81: 0.056 | P81: -0.048 | Q81: 4750 | R81: -0.315 | S81: -0.148 | T81: 0.167 | U81: 4750 | V81: -0.089 | W81: -0.003 | X81: 0.086 | Y81: 4750 | Z81: -0.071 | AA81: 0.753 | AB81: 0.824 | AC81: 4750 | AD81: 0.156 | AE81: 0.906 | AF81: 0.75 | AG81: 4750 | AH81: -0.468 | AI81: 0.235 | AJ81: 0.703 | AK81: 4750 | AL81: -0.693 | AM81: 0.178 | AN81: 0.871
A82: 5000 | B82: 0.003 | C82: 0.717 | D82: 0.714 | E82: 5000 | F82: -0.537 | G82: 0.08 | H82: 0.617 | I82: 5000 | J82: -0.173 | K82: -0.05 | L82: 0.123 | M82: 5000 | N82: -0.025 | O82: 0.065 | P82: 0.09 | Q82: 5000 | R82: -0.304 | S82: -0.14 | T82: 0.164 | U82: 5000 | V82: -0.154 | W82: -0.025 | X82: 0.129 | Y82: 5000 | Z82: 0.24 | AA82: 0.958 | AB82: 0.718 | AC82: 5000 | AD82: 0.271 | AE82: 0.91 | AF82: 0.639 | AG82: 5000 | AH82: -0.228 | AI82: 0.527 | AJ82: 0.755 | AK82: 5000 | AL82: -0.876 | AM82: 0.252 | AN82: 1.128
A83: 5300 | B83: 0.097 | C83: 0.721 | D83: 0.624 | E83: 5300 | F83: -0.569 | G83: -0.002 | H83: 0.567 | I83: 5300 | J83: -0.169 | K83: -0.06 | L83: 0.109 | M83: 5300 | N83: -0.124 | O83: 0.049 | P83: 0.173 | Q83: 5300 | R83: -0.293 | S83: -0.125 | T83: 0.168 | U83: 5300 | V83: -0.147 | W83: -0.049 | X83: 0.098 | Y83: 5300 | Z83: 0.39 | AA83: 0.993 | AB83: 0.603 | AC83: 5300 | AD83: 0.249 | AE83: 0.856 | AF83: 0.607 | AG83: 5300 | AH83: 0.036 | AI83: 0.776 | AJ83: 0.74 | AK83: 5300 | AL83: -0.921 | AM83: 0.336 | AN83: 1.257
A84: 5600 | B84: 0.227 | C84: 0.741 | D84: 0.514 | E84: 5600 | F84: -0.582 | G84: -0.081 | H84: 0.501 | I84: 5600 | J84: -0.149 | K84: -0.062 | L84: 0.087 | M84: 5600 | N84: -0.129 | O84: 0.035 | P84: 0.164 | Q84: 5600 | R84: -0.286 | S84: -0.104 | T84: 0.182 | U84: 5600 | V84: -0.147 | W84: -0.055 | X84: 0.092 | Y84: 5600 | Z84: 0.367 | AA84: 0.864 | AB84: 0.497 | AC84: 5600 | AD84: 0.167 | AE84: 0.736 | AF84: 0.569 | AG84: 5600 | AH84: 0.235 | AI84: 0.862 | AJ84: 0.627 | AK84: 5600 | AL84: -0.622 | AM84: 0.422 | AN84: 1.044
A85: 6000 | B85: 0.34 | C85: 0.819 | D85: 0.479 | E85: 6000 | F85: -0.574 | G85: -0.094 | H85: 0.48 | I85: 6000 | J85: -0.178 | K85: -0.046 | L85: 0.132 | M85: 6000 | N85: -0.109 | O85: 0.03 | P85: 0.139 | Q85: 6000 | R85: -0.317 | S85: -0.1 | T85: 0.217 | U85: 6000 | V85: -0.171 | W85: -0.049 | X85: 0.122 | Y85: 6000 | Z85: 0.352 | AA85: 0.778 | AB85: 0.426 | AC85: 6000 | AD85: 0.125 | AE85: 0.53 | AF85: 0.405 | AG85: 6000 | AH85: 0.419 | AI85: 0.929 | AJ85: 0.51 | AK85: 6000 | AL85: -0.18 | AM85: 0.428 | AN85: 0.608
A86: 6300 | B86: 0.424 | C86: 0.912 | D86: 0.488 | E86: 6300 | F86: -0.478 | G86: -0.023 | H86: 0.455 | I86: 6300 | J86: -0.26 | K86: -0.016 | L86: 0.244 | M86: 6300 | N86: -0.097 | O86: 0.036 | P86: 0.133 | Q86: 6300 | R86: -0.346 | S86: -0.153 | T86: 0.193 | U86: 6300 | V86: -0.226 | W86: -0.034 | X86: 0.192 | Y86: 6300 | Z86: 0.367 | AA86: 0.816 | AB86: 0.449 | AC86: 6300 | AD86: 0.271 | AE86: 0.377 | AF86: 0.106 | AG86: 6300 | AH86: 0.687 | AI86: 1.089 | AJ86: 0.402 | AK86: 6300 | AL86: -0.119 | AM86: 0.341 | AN86: 0.46
A87: 6700 | B87: 0.515 | C87: 1.008 | D87: 0.493 | E87: 6700 | F87: -0.295 | G87: 0.136 | H87: 0.431 | I87: 6700 | J87: -0.233 | K87: -0.029 | L87: 0.204 | M87: 6700 | N87: -0.118 | O87: 0.052 | P87: 0.17 | Q87: 6700 | R87: -0.277 | S87: -0.186 | T87: 0.091 | U87: 6700 | V87: -0.3 | W87: -0.011 | X87: 0.289 | Y87: 6700 | Z87: 0.035 | AA87: 0.619 | AB87: 0.584 | AC87: 6700 | AD87: 0.748 | AE87: 0.634 | AF87: -0.114 | AG87: 6700 | AH87: 1.152 | AI87: 1.251 | AJ87: 0.099 | AK87: 6700 | AL87: -0.085 | AM87: 0.612 | AN87: 0.697
A88: 7100 | B88: 0.537 | C88: 1.016 | D88: 0.479 | E88: 7100 | F88: -0.115 | G88: 0.289 | H88: 0.404 | I88: 7100 | J88: -0.158 | K88: -0.069 | L88: 0.089 | M88: 7100 | N88: -0.189 | O88: 0.11 | P88: 0.299 | Q88: 7100 | R88: -0.219 | S88: -0.161 | T88: 0.058 | U88: 7100 | V88: -0.354 | W88: 0.005 | X88: 0.359 | Y88: 7100 | Z88: -0.679 | AA88: -0.001 | AB88: 0.678 | AC88: 7100 | AD88: 1.087 | AE88: 0.945 | AF88: -0.142 | AG88: 7100 | AH88: 1.459 | AI88: 0.978 | AJ88: -0.481 | AK88: 7100 | AL88: 0.183 | AM88: 1.434 | AN88: 1.251
A89: 7500 | B89: 0.507 | C89: 0.936 | D89: 0.429 | E89: 7500 | F89: -0.012 | G89: 0.365 | H89: 0.377 | I89: 7500 | J89: -0.141 | K89: -0.111 | L89: 0.03 | M89: 7500 | N89: -0.237 | O89: 0.172 | P89: 0.409 | Q89: 7500 | R89: -0.231 | S89: -0.124 | T89: 0.107 | U89: 7500 | V89: -0.349 | W89: 0.017 | X89: 0.366 | Y89: 7500 | Z89: -1.064 | AA89: -0.511 | AB89: 0.553 | AC89: 7500 | AD89: 0.88 | AE89: 0.837 | AF89: -0.043 | AG89: 7500 | AH89: 1.183 | AI89: 0.354 | AJ89: -0.829 | AK89: 7500 | AL89: 0.31 | AM89: 1.791 | AN89: 1.481
A90: 8000 | B90: 0.495 | C90: 0.855 | D90: 0.36 | E90: 8000 | F90: -0.056 | G90: 0.308 | H90: 0.364 | I90: 8000 | J90: -0.222 | K90: -0.096 | L90: 0.126 | M90: 8000 | N90: -0.28 | O90: 0.202 | P90: 0.482 | Q90: 8000 | R90: -0.324 | S90: -0.127 | T90: 0.197 | U90: 8000 | V90: -0.306 | W90: 0.024 | X90: 0.33 | Y90: 8000 | Z90: -1.037 | AA90: -0.655 | AB90: 0.382 | AC90: 8000 | AD90: 0.293 | AE90: 0.37 | AF90: 0.077 | AG90: 8000 | AH90: 0.813 | AI90: 0.003 | AJ90: -0.81 | AK90: 8000 | AL90: 0.019 | AM90: 1.093 | AN90: 1.074
A91: 8500 | B91: 0.481 | C91: 0.769 | D91: 0.288 | E91: 8500 | F91: -0.136 | G91: 0.212 | H91: 0.348 | I91: 8500 | J91: -0.253 | K91: -0.027 | L91: 0.226 | M91: 8500 | N91: -0.346 | O91: 0.171 | P91: 0.517 | Q91: 8500 | R91: -0.359 | S91: -0.156 | T91: 0.203 | U91: 8500 | V91: -0.233 | W91: -0.003 | X91: 0.23 | Y91: 8500 | Z91: -0.865 | AA91: -0.548 | AB91: 0.317 | AC91: 8500 | AD91: -0.254 | AE91: -0.076 | AF91: 0.178 | AG91: 8500 | AH91: 0.569 | AI91: -0.104 | AJ91: -0.673 | AK91: 8500 | AL91: -0.477 | AM91: 0.099 | AN91: 0.576
A92: 9000 | B92: 0.473 | C92: 0.723 | D92: 0.25 | E92: 9000 | F92: -0.07 | G92: 0.272 | H92: 0.342 | I92: 9000 | J92: -0.217 | K92: -0.003 | L92: 0.214 | M92: 9000 | N92: -0.308 | O92: 0.05 | P92: 0.358 | Q92: 9000 | R92: -0.349 | S92: -0.175 | T92: 0.174 | U92: 9000 | V92: -0.176 | W92: -0.096 | X92: 0.08 | Y92: 9000 | Z92: -0.554 | AA92: -0.277 | AB92: 0.277 | AC92: 9000 | AD92: -0.206 | AE92: -0.075 | AF92: 0.131 | AG92: 9000 | AH92: 0.657 | AI92: -0.025 | AJ92: -0.682 | AK92: 9000 | AL92: -1.046 | AM92: -0.634 | AN92: 0.412
A93: 9500 | B93: 0.522 | C93: 0.782 | D93: 0.26 | E93: 9500 | F93: 0.021 | G93: 0.349 | H93: 0.328 | I93: 9500 | J93: -0.257 | K93: -0.011 | L93: 0.246 | M93: 9500 | N93: -0.204 | O93: 0.006 | P93: 0.21 | Q93: 9500 | R93: -0.362 | S93: -0.181 | T93: 0.181 | U93: 9500 | V93: -0.228 | W93: -0.174 | X93: 0.054 | Y93: 9500 | Z93: -0.044 | AA93: 0.041 | AB93: 0.085 | AC93: 9500 | AD93: 0.201 | AE93: 0.13 | AF93: -0.071 | AG93: 9500 | AH93: 0.599 | AI93: 0.259 | AJ93: -0.34 | AK93: 9500 | AL93: -1.031 | AM93: -0.474 | AN93: 0.557
A94: 10000 | B94: 0.461 | C94: 0.781 | D94: 0.32 | E94: 10000 | F94: -0.005 | G94: 0.348 | H94: 0.353 | I94: 10000 | J94: -0.312 | K94: 0.015 | L94: 0.327 | M94: 10000 | N94: -0.156 | O94: 0.061 | P94: 0.217 | Q94: 10000 | R94: -0.342 | S94: -0.152 | T94: 0.19 | U94: 10000 | V94: -0.318 | W94: -0.215 | X94: 0.103 | Y94: 10000 | Z94: 0.314 | AA94: 0.097 | AB94: -0.217 | AC94: 10000 | AD94: 0.375 | AE94: 0.051 | AF94: -0.324 | AG94: 10000 | AH94: -0.068 | AI94: 0.712 | AJ94: 0.78 | AK94: 10000 | AL94: -0.393 | AM94: 0.126 | AN94: 0.519
A95: 10600 | B95: 0.302 | C95: 0.656 | D95: 0.354 | E95: 10600 | F95: -0.123 | G95: 0.294 | H95: 0.417 | I95: 10600 | J95: -0.252 | K95: 0.042 | L95: 0.294 | M95: 10600 | N95: -0.067 | O95: 0.147 | P95: 0.214 | Q95: 10600 | R95: -0.276 | S95: -0.167 | T95: 0.109 | U95: 10600 | V95: -0.335 | W95: -0.254 | X95: 0.081 | Y95: 10600 | Z95: 0.472 | AA95: 0.46 | AB95: -0.012 | AC95: 10600 | AD95: 0.589 | AE95: 0.152 | AF95: -0.437 | AG95: 10600 | AH95: -0.938 | AI95: 0.937 | AJ95: 1.875 | AK95: 10600 | AL95: 0.697 | AM95: 0.882 | AN95: 0.185
A96: 11200 | B96: 0.217 | C96: 0.602 | D96: 0.385 | E96: 11200 | F96: -0.257 | G96: 0.223 | H96: 0.48 | I96: 11200 | J96: -0.21 | K96: 0.027 | L96: 0.237 | M96: 11200 | N96: 0.062 | O96: 0.14 | P96: 0.078 | Q96: 11200 | R96: -0.335 | S96: -0.201 | T96: 0.134 | U96: 11200 | V96: -0.292 | W96: -0.225 | X96: 0.067 | Y96: 11200 | Z96: 0.579 | AA96: 1.461 | AB96: 0.882 | AC96: 11200 | AD96: 0.81 | AE96: 0.478 | AF96: -0.332 | AG96: 11200 | AH96: -1.254 | AI96: 1.037 | AJ96: 2.291 | AK96: 11200 | AL96: 1.15 | AM96: 0.91 | AN96: -0.24
A97: 11800 | B97: 0.162 | C97: 0.574 | D97: 0.412 | E97: 11800 | F97: -0.462 | G97: 0.034 | H97: 0.496 | I97: 11800 | J97: -0.263 | K97: -0.018 | L97: 0.245 | M97: 11800 | N97: -0.023 | O97: 0.083 | P97: 0.106 | Q97: 11800 | R97: -0.443 | S97: -0.208 | T97: 0.235 | U97: 11800 | V97: -0.292 | W97: -0.196 | X97: 0.096 | Y97: 11800 | Z97: 0.355 | AA97: 1.621 | AB97: 1.266 | AC97: 11800 | AD97: 0.542 | AE97: 0.229 | AF97: -0.313 | AG97: 11800 | AH97: -0.819 | AI97: 1.494 | AJ97: 2.313 | AK97: 11800 | AL97: 0.009 | AM97: -0.053 | AN97: -0.062
A98: 12500 | B98: 0.202 | C98: 0.567 | D98: 0.365 | E98: 12500 | F98: -0.557 | G98: -0.115 | H98: 0.442 | I98: 12500 | J98: -0.368 | K98: -0.032 | L98: 0.336 | M98: 12500 | N98: -0.277 | O98: -0.008 | P98: 0.269 | Q98: 12500 | R98: -0.486 | S98: -0.23 | T98: 0.256 | U98: 12500 | V98: -0.341 | W98: -0.215 | X98: 0.126 | Y98: 12500 | Z98: 0.007 | AA98: 0.961 | AB98: 0.954 | AC98: 12500 | AD98: 0.06 | AE98: -0.617 | AF98: -0.677 | AG98: 12500 | AH98: -0.37 | AI98: 1.691 | AJ98: 2.061 | AK98: 12500 | AL98: -1.447 | AM98: -0.992 | AN98: 0.455
A99: 13200 | B99: 0.292 | C99: 0.589 | D99: 0.297 | E99: 13200 | F99: -0.466 | G99: -0.127 | H99: 0.339 | I99: 13200 | J99: -0.454 | K99: -0.087 | L99: 0.367 | M99: 13200 | N99: -0.45 | O99: -0.09 | P99: 0.36 | Q99: 13200 | R99: -0.546 | S99: -0.241 | T99: 0.305 | U99: 13200 | V99: -0.431 | W99: -0.276 | X99: 0.155 | Y99: 13200 | Z99: -0.166 | AA99: 0.342 | AB99: 0.508 | AC99: 13200 | AD99: -0.148 | AE99: -1.133 | AF99: -0.985 | AG99: 13200 | AH99: -0.283 | AI99: 1.311 | AJ99: 1.594 | AK99: 13200 | AL99: -2.12 | AM99: -1.397 | AN99: 0.723
A100: 14000 | B100: 0.297 | C100: 0.655 | D100: 0.358 | E100: 14000 | F100: -0.396 | G100: -0.021 | H100: 0.375 | I100: 14000 | J100: -0.48 | K100: -0.183 | L100: 0.297 | M100: 14000 | N100: -0.6 | O100: -0.192 | P100: 0.408 | Q100: 14000 | R100: -0.769 | S100: -0.276 | T100: 0.493 | U100: 14000 | V100: -0.465 | W100: -0.302 | X100: 0.163 | Y100: 14000 | Z100: -0.15 | AA100: -0.034 | AB100: 0.116 | AC100: 14000 | AD100: -0.281 | AE100: -1.3 | AF100: -1.019 | AG100: 14000 | AH100: -0.559 | AI100: 0.614 | AJ100: 1.173 | AK100: 14000 | AL100: -1.865 | AM100: -1.245 | AN100: 0.62
A101: 15000 | B101: 0.2 | C101: 0.725 | D101: 0.525 | E101: 15000 | F101: -0.272 | G101: 0.273 | H101: 0.545 | I101: 15000 | J101: -0.494 | K101: -0.202 | L101: 0.292 | M101: 15000 | N101: -0.804 | O101: -0.262 | P101: 0.542 | Q101: 15000 | R101: -0.788 | S101: -0.327 | T101: 0.461 | U101: 15000 | V101: -0.428 | W101: -0.272 | X101: 0.156 | Y101: 15000 | Z101: 0.099 | AA101: -0.085 | AB101: -0.184 | AC101: 15000 | AD101: -0.626 | AE101: -1.468 | AF101: -0.842 | AG101: 15000 | AH101: -1.248 | AI101: -0.24 | AJ101: 1.008 | AK101: 15000 | AL101: -1.11 | AM101: -0.96 | AN101: 0.15
A102: 16000 | B102: 0.204 | C102: 0.635 | D102: 0.431 | E102: 16000 | F102: -0.241 | G102: 0.21 | H102: 0.451 | I102: 16000 | J102: -0.435 | K102: -0.175 | L102: 0.26 | M102: 16000 | N102: -0.768 | O102: -0.255 | P102: 0.513 | Q102: 16000 | R102: -0.544 | S102: -0.333 | T102: 0.211 | U102: 16000 | V102: -0.25 | W102: -0.158 | X102: 0.092 | Y102: 16000 | Z102: 0.507 | AA102: 0.076 | AB102: -0.431 | AC102: 16000 | AD102: -0.961 | AE102: -1.712 | AF102: -0.751 | AG102: 16000 | AH102: -1.704 | AI102: -0.783 | AJ102: 0.921 | AK102: 16000 | AL102: -0.525 | AM102: -0.85 | AN102: -0.325
A103: 17000 | B103: 0.318 | C103: 0.629 | D103: 0.311 | E103: 17000 | F103: -0.253 | G103: 0.058 | H103: 0.311 | I103: 17000 | J103: -0.397 | K103: -0.113 | L103: 0.284 | M103: 17000 | N103: -0.57 | O103: -0.219 | P103: 0.351 | Q103: 17000 | R103: -0.232 | S103: -0.257 | T103: -0.025 | U103: 17000 | V103: -0.056 | W103: -0.032 | X103: 0.024 | Y103: 17000 | Z103: 0.664 | AA103: 0.076 | AB103: -0.588 | AC103: 17000 | AD103: -0.899 | AE103: -1.669 | AF103: -0.77 | AG103: 17000 | AH103: -1.503 | AI103: -0.913 | AJ103: 0.59 | AK103: 17000 | AL103: -0.17 | AM103: -0.795 | AN103: -0.625
A104: 18000 | B104: 0.424 | C104: 0.634 | D104: 0.21 | E104: 18000 | F104: -0.243 | G104: -0.061 | H104: 0.182 | I104: 18000 | J104: -0.355 | K104: -0.053 | L104: 0.302 | M104: 18000 | N104: -0.323 | O104: -0.174 | P104: 0.149 | Q104: 18000 | R104: 0.021 | S104: -0.136 | T104: -0.157 | U104: 18000 | V104: 0.099 | W104: 0.086 | X104: -0.013 | Y104: 18000 | Z104: 0.609 | AA104: -0.12 | AB104: -0.729 | AC104: 18000 | AD104: -0.555 | AE104: -1.342 | AF104: -0.787 | AG104: 18000 | AH104: -1.023 | AI104: -0.908 | AJ104: 0.115 | AK104: 18000 | AL104: 0.012 | AM104: -0.719 | AN104: -0.731
A105: 19000 | B105: 0.592 | C105: 0.501 | D105: -0.091 | E105: 19000 | F105: -0.264 | G105: -0.43 | H105: -0.166 | I105: 19000 | J105: -0.267 | K105: -0.011 | L105: 0.256 | M105: 19000 | N105: -0.043 | O105: -0.116 | P105: -0.073 | Q105: 19000 | R105: 0.186 | S105: -0.003 | T105: -0.189 | U105: 19000 | V105: 0.213 | W105: 0.206 | X105: -0.007 | Y105: 19000 | Z105: 0.449 | AA105: -0.421 | AB105: -0.87 | AC105: 19000 | AD105: -0.07 | AE105: -0.811 | AF105: -0.741 | AG105: 19000 | AH105: -0.426 | AI105: -0.808 | AJ105: -0.382 | AK105: 19000 | AL105: -0.098 | AM105: -0.66 | AN105: -0.562
A106: 20000 | B106: 0.872 | C106: 0.486 | D106: -0.386 | E106: 20000 | F106: -0.232 | G106: -0.769 | H106: -0.537 | I106: 20000 | J106: -0.153 | K106: 0.027 | L106: 0.18 | M106: 20000 | N106: 0.226 | O106: -0.022 | P106: -0.248 | Q106: 20000 | R106: 0.28 | S106: 0.114 | T106: -0.166 | U106: 20000 | V106: 0.272 | W106: 0.309 | X106: 0.037 | Y106: 20000 | Z106: 0.06 | AA106: -0.948 | AB106: -1.008 | AC106: 20000 | AD106: 0.493 | AE106: -0.047 | AF106: -0.54 | AG106: 20000 | AH106: 0 | AI106: -0.684 | AJ106: -0.684 | AK106: 20000 | AL106: -0.87 | AM106: -0.775 | AN106: 0.095
A107: 21200 | B107: 0.524 | C107: -3.172 | D107: -3.696 | E107: 21200 | F107: -0.911 | G107: -4.446 | H107: -3.535 | I107: 21200 | J107: 0.006 | K107: 0.011 | L107: 0.005 | M107: 21200 | N107: 0.474 | O107: 0.132 | P107: -0.342 | Q107: 21200 | R107: 0.389 | S107: 0.261 | T107: -0.128 | U107: 21200 | V107: 0.282 | W107: 0.349 | X107: 0.067 | Y107: 21200 | Z107: -1.762 | AA107: -5.571 | AB107: -3.809 | AC107: 21200 | AD107: -0.853 | AE107: -4.535 | AF107: -3.682 | AG107: 21200 | AH107: -1.345 | AI107: -4.701 | AJ107: -3.356 | AK107: 21200 | AL107: -1.366 | AM107: -6.619 | AN107: -5.253
A108: 22400 | B108: -4.129 | C108: -7.371 | D108: -3.242 | E108: 22400 | F108: -4.295 | G108: -7.788 | H108: -3.493 | I108: 22400 | J108: -0.063 | K108: 0.107 | L108: 0.17 | M108: 22400 | N108: 0.943 | O108: 0.434 | P108: -0.509 | Q108: 22400 | R108: 0.525 | S108: -0.219 | T108: -0.744 | U108: 22400 | V108: 1.065 | W108: 0.542 | X108: -0.523 | Y108: 22400 | Z108: -5.503 | AA108: -960.655 | AB108: -955.152 | AC108: 22400 | AD108: -4.964 | AE108: -953.713 | AF108: -948.749 | AG108: 22400 | AH108: -7.078 | AI108: -941.862 | AJ108: -934.784 | AK108: 22400 | AL108: -5.702 | AM108: -959.155 | AN108: -953.453

Sheet Sheet1
A1: ='[1]FR - Smoothed DUTL Left'!A1 -> Frequecy | B1: ='[1]FR - Smoothed DUTL Left'!B1 -> DTUL L | C1: ='[1]FR - Smoothed DUTL Right'!B1 -> DTUL R | D1: ='[1]FR - Smoothed DUTL Mic1'!B1 -> Mic1 | E1: ='[1]FR - Smoothed DUTL Mic2'!B1 -> Mic2 | F1: ='[1]FR - Smoothed DUTL Mic3'!B1 -> Mic3 | G1: ='[1]FR - Smoothed DUTL Mic4'!B1 -> Mic4 | H1: ='[1]FR - Smoothed Self DUTL Mic1'!B1 -> Self Mic1 | I1: ='[1]FR - Smoothed Self DUTL Mic2'!B1 -> Self Mic2 | J1: ='[1]FR - Smoothed Self DUTL Mic3'!B1 -> Self Mic3 | K1: ='[1]FR - Smoothed Self DUTL Mic4'!B1 -> Self Mic4 | M1: Frequecy | N1: GS DUTL L | O1: GS DUTL R | P1: GS Mic1 | Q1: GS Mic2 | R1: GS Mic3 | S1: GS Mic4 | T1: GS Self Mic1 | U1: GS Self Mic2 | V1: GS Self Mic3 | W1: GS Self Mic4
A2: ='[1]FR - Smoothed DUTL Left'!A2 -> 50 | B2: ='[1]FR - Smoothed DUTL Left'!B2 -> 84.7487 | C2: ='[1]FR - Smoothed DUTL Right'!B2 -> 85.9567 | D2: ='[1]FR - Smoothed DUTL Mic1'!B2 -> 81.5032 | E2: ='[1]FR - Smoothed DUTL Mic2'!B2 -> 81.7115 | F2: ='[1]FR - Smoothed DUTL Mic3'!B2 -> 81.8584 | G2: ='[1]FR - Smoothed DUTL Mic4'!B2 -> 81.7005 | H2: ='[1]FR - Smoothed Self DUTL Mic1'!B2 -> 71.6776 | I2: ='[1]FR - Smoothed Self DUTL Mic2'!B2 -> 69.9099 | J2: ='[1]FR - Smoothed Self DUTL Mic3'!B2 -> 72.1786 | K2: ='[1]FR - Smoothed Self DUTL Mic4'!B2 -> 70.6096 | M2: 50 | N2: 84.4643 | O2: 85.5642 | P2: 81.4741 | Q2: 81.6811 | R2: 81.6399 | S2: 81.6417 | T2: 71.4734 | U2: 69.5321 | V2: 71.4998 | W2: 70.2529
A3: ='[1]FR - Smoothed DUTL Left'!A3 -> 53 | B3: ='[1]FR - Smoothed DUTL Left'!B3 -> 88.0578 | C3: ='[1]FR - Smoothed DUTL Right'!B3 -> 89.1637 | D3: ='[1]FR - Smoothed DUTL Mic1'!B3 -> 81.5211 | E3: ='[1]FR - Smoothed DUTL Mic2'!B3 -> 81.7452 | F3: ='[1]FR - Smoothed DUTL Mic3'!B3 -> 81.8629 | G3: ='[1]FR - Smoothed DUTL Mic4'!B3 -> 81.7231 | H3: ='[1]FR - Smoothed Self DUTL Mic1'!B3 -> 74.4911 | I3: ='[1]FR - Smoothed Self DUTL Mic2'!B3 -> 73.0238 | J3: ='[1]FR - Smoothed Self DUTL Mic3'!B3 -> 74.951 | K3: ='[1]FR - Smoothed Self DUTL Mic4'!B3 -> 73.577 | M3: 53 | N3: 87.6791 | O3: 88.7796 | P3: 81.4869 | Q3: 81.7146 | R3: 81.6437 | S3: 81.6609 | T3: 74.3469 | U3: 72.7485 | V3: 74.425 | W3: 73.3066
A4: ='[1]FR - Smoothed DUTL Left'!A4 -> 56 | B4: ='[1]FR - Smoothed DUTL Left'!B4 -> 89.9511 | C4: ='[1]FR - Smoothed DUTL Right'!B4 -> 90.9082 | D4: ='[1]FR - Smoothed DUTL Mic1'!B4 -> 81.3305 | E4: ='[1]FR - Smoothed DUTL Mic2'!B4 -> 81.5567 | F4: ='[1]FR - Smoothed DUTL Mic3'!B4 -> 81.6489 | G4: ='[1]FR - Smoothed DUTL Mic4'!B4 -> 81.5202 | H4: ='[1]FR - Smoothed Self DUTL Mic1'!B4 -> 75.9613 | I4: ='[1]FR - Smoothed Self DUTL Mic2'!B4 -> 74.5741 | J4: ='[1]FR - Smoothed Self DUTL Mic3'!B4 -> 76.4269 | K4: ='[1]FR - Smoothed Self DUTL Mic4'!B4 -> 75.0882 | M4: 56 | N4: 89.6507 | O4: 90.6193 | P4: 81.2947 | Q4: 81.5277 | R4: 81.4317 | S4: 81.4578 | T4: 75.8876 | U4: 74.3905 | V4: 76.0105 | W4: 74.8984
A5: ='[1]FR - Smoothed DUTL Left'!A5 -> 60 | B5: ='[1]FR - Smoothed DUTL Left'!B5 -> 90.979 | C5: ='[1]FR - Smoothed DUTL Right'!B5 -> 92.0075 | D5: ='[1]FR - Smoothed DUTL Mic1'!B5 -> 80.6803 | E5: ='[1]FR - Smoothed DUTL Mic2'!B5 -> 80.9122 | F5: ='[1]FR - Smoothed DUTL Mic3'!B5 -> 80.9501 | G5: ='[1]FR - Smoothed DUTL Mic4'!B5 -> 80.8406 | H5: ='[1]FR - Smoothed Self DUTL Mic1'!B5 -> 77.1033 | I5: ='[1]FR - Smoothed Self DUTL Mic2'!B5 -> 75.6144 | J5: ='[1]FR - Smoothed Self DUTL Mic3'!B5 -> 77.5987 | K5: ='[1]FR - Smoothed Self DUTL Mic4'!B5 -> 76.1541 | M5: 60 | N5: 90.7093 | O5: 91.7622 | P5: 80.6438 | Q5: 80.8879 | R5: 80.7383 | S5: 80.7796 | T5: 77.0786 | U5: 75.4897 | V5: 77.252 | W5: 76.02
A6: ='[1]FR - Smoothed DUTL Left'!A6 -> 63 | B6: ='[1]FR - Smoothed DUTL Left'!B6 -> 91.5509 | C6: ='[1]FR - Smoothed DUTL Right'!B6 -> 92.842 | D6: ='[1]FR - Smoothed DUTL Mic1'!B6 -> 79.3184 | E6: ='[1]FR - Smoothed DUTL Mic2'!B6 -> 79.5498 | F6: ='[1]FR - Smoothed DUTL Mic3'!B6 -> 79.5155 | G6: ='[1]FR - Smoothed DUTL Mic4'!B6 -> 79.4174 | H6: ='[1]FR - Smoothed Self DUTL Mic1'!B6 -> 78.3816 | I6: ='[1]FR - Smoothed Self DUTL Mic2'!B6 -> 76.6513 | J6: ='[1]FR - Smoothed Self DUTL Mic3'!B6 -> 78.9209 | K6: ='[1]FR - Smoothed Self DUTL Mic4'!B6 -> 77.2629 | M6: 63 | N6: 91.3187 | O6: 92.6333 | P6: 79.2873 | Q6: 79.5347 | R6: 79.3148 | S6: 79.363 | T6: 78.4023 | U6: 76.592 | V6: 78.6327 | W6: 77.1887
A7: ='[1]FR - Smoothed DUTL Left'!A7 -> 67 | B7: ='[1]FR - Smoothed DUTL Left'!B7 -> 91.8294 | C7: ='[1]FR - Smoothed DUTL Right'!B7 -> 93.5755 | D7: ='[1]FR - Smoothed DUTL Mic1'!B7 -> 77.2579 | E7: ='[1]FR - Smoothed DUTL Mic2'!B7 -> 77.5043 | F7: ='[1]FR - Smoothed DUTL Mic3'!B7 -> 77.3524 | G7: ='[1]FR - Smoothed DUTL Mic4'!B7 -> 77.2664 | H7: ='[1]FR - Smoothed Self DUTL Mic1'!B7 -> 79.9314 | I7: ='[1]FR - Smoothed Self DUTL Mic2'!B7 -> 77.9786 | J7: ='[1]FR - Smoothed Self DUTL Mic3'!B7 -> 80.497 | K7: ='[1]FR - Smoothed Self DUTL Mic4'!B7 -> 78.6513 | M7: 67 | N7: 91.6277 | O7: 93.3845 | P7: 77.2355 | Q7: 77.5024 | R7: 77.1658 | S7: 77.2215 | T7: 79.981 | U7: 77.9834 | V7: 80.2509 | W7: 78.6282
A8: ='[1]FR - Smoothed DUTL Left'!A8 -> 71 | B8: ='[1]FR - Smoothed DUTL Left'!B8 -> 92.0138 | C8: ='[1]FR - Smoothed DUTL Right'!B8 -> 94.2512 | D8: ='[1]FR - Smoothed DUTL Mic1'!B8 -> 74.7951 | E8: ='[1]FR - Smoothed DUTL Mic2'!B8 -> 75.0839 | F8: ='[1]FR - Smoothed DUTL Mic3'!B8 -> 74.7487 | G8: ='[1]FR - Smoothed DUTL Mic4'!B8 -> 74.6934 | H8: ='[1]FR - Smoothed Self DUTL Mic1'!B8 -> 81.4373 | I8: ='[1]FR - Smoothed Self DUTL Mic2'!B8 -> 79.3883 | J8: ='[1]FR - Smoothed Self DUTL Mic3'!B8 -> 81.9984 | K8: ='[1]FR - Smoothed Self DUTL Mic4'!B8 -> 80.0672 | M8: 71 | N8: 91.8333 | O8: 94.0646 | P8: 74.7813 | Q8: 75.0969 | R8: 74.5754 | S8: 74.6585 | T8: 81.496 | U8: 79.438 | V8: 81.7755 | W8: 80.0734
A9: ='[1]FR - Smoothed DUTL Left'!A9 -> 75 | B9: ='[1]FR - Smoothed DUTL Left'!B9 -> 92.237 | C9: ='[1]FR - Smoothed DUTL Right'!B9 -> 94.8288 | D9: ='[1]FR - Smoothed DUTL Mic1'!B9 -> 72.6189 | E9: ='[1]FR - Smoothed DUTL Mic2'!B9 -> 72.9574 | F9: ='[1]FR - Smoothed DUTL Mic3'!B9 -> 72.4713 | G9: ='[1]FR - Smoothed DUTL Mic4'!B9 -> 72.492 | H9: ='[1]FR - Smoothed Self DUTL Mic1'!B9 -> 82.6011 | I9: ='[1]FR - Smoothed Self DUTL Mic2'!B9 -> 80.5524 | J9: ='[1]FR - Smoothed Self DUTL Mic3'!B9 -> 83.1375 | K9: ='[1]FR - Smoothed Self DUTL Mic4'!B9 -> 81.1929 | M9: 75 | N9: 92.0723 | O9: 94.6396 | P9: 72.6094 | Q9: 72.9775 | R9: 72.3041 | S9: 72.4576 | T9: 82.6554 | U9: 80.6249 | V9: 82.9247 | W9: 81.2083
A10: ='[1]FR - Smoothed DUTL Left'!A10 -> 80 | B10: ='[1]FR - Smoothed DUTL Left'!B10 -> 92.4841 | C10: ='[1]FR - Smoothed DUTL Right'!B10 -> 95.233 | D10: ='[1]FR - Smoothed DUTL Mic1'!B10 -> 71.4877 | E10: ='[1]FR - Smoothed DUTL Mic2'!B10 -> 71.8841 | F10: ='[1]FR - Smoothed DUTL Mic3'!B10 -> 71.4685 | G10: ='[1]FR - Smoothed DUTL Mic4'!B10 -> 71.594 | H10: ='[1]FR - Smoothed Self DUTL Mic1'!B10 -> 83.3468 | I10: ='[1]FR - Smoothed Self DUTL Mic2'!B10 -> 81.338 | J10: ='[1]FR - Smoothed Self DUTL Mic3'!B10 -> 83.8529 | K10: ='[1]FR - Smoothed Self DUTL Mic4'!B10 -> 81.9254 | M10: 80 | N10: 92.3223 | O10: 95.0403 | P10: 71.4691 | Q10: 71.8985 | R10: 71.2949 | S10: 71.548 | T10: 83.3907 | U10: 81.4219 | V10: 83.6437 | W10: 81.9403
A11: ='[1]FR - Smoothed DUTL Left'!A11 -> 85 | B11: ='[1]FR - Smoothed DUTL Left'!B11 -> 92.6578 | C11: ='[1]FR - Smoothed DUTL Right'!B11 -> 95.4241 | D11: ='[1]FR - Smoothed DUTL Mic1'!B11 -> 71.2569 | E11: ='[1]FR - Smoothed DUTL Mic2'!B11 -> 71.7263 | F11: ='[1]FR - Smoothed DUTL Mic3'!B11 -> 71.4358 | G11: ='[1]FR - Smoothed DUTL Mic4'!B11 -> 71.6475 | H11: ='[1]FR - Smoothed Self DUTL Mic1'!B11 -> 83.7333 | I11: ='[1]FR - Smoothed Self DUTL Mic2'!B11 -> 81.7681 | J11: ='[1]FR - Smoothed Self DUTL Mic3'!B11 -> 84.2178 | K11: ='[1]FR - Smoothed Self DUTL Mic4'!B11 -> 82.3117 | M11: 85 | N11: 92.4889 | O11: 95.2338 | P11: 71.2238 | Q11: 71.736 | R11: 71.2582 | S11: 71.5933 | T11: 83.7664 | U11: 81.8608 | V11: 84.0109 | W11: 82.3266
A12: ='[1]FR - Smoothed DUTL Left'!A12 -> 90 | B12: ='[1]FR - Smoothed DUTL Left'!B12 -> 92.6914 | C12: ='[1]FR - Smoothed DUTL Right'!B12 -> 95.4299 | D12: ='[1]FR - Smoothed DUTL Mic1'!B12 -> 71.2466 | E12: ='[1]FR - Smoothed DUTL Mic2'!B12 -> 71.7989 | F12: ='[1]FR - Smoothed DUTL Mic3'!B12 -> 71.5019 | G12: ='[1]FR - Smoothed DUTL Mic4'!B12 -> 71.7879 | H12: ='[1]FR - Smoothed Self DUTL Mic1'!B12 -> 83.853 | I12: ='[1]FR - Smoothed Self DUTL Mic2'!B12 -> 81.9082 | J12: ='[1]FR - Smoothed Self DUTL Mic3'!B12 -> 84.3311 | K12: ='[1]FR - Smoothed Self DUTL Mic4'!B12 -> 82.4317 | M12: 90 | N12: 92.5189 | O12: 95.2519 | P12: 71.211 | Q12: 71.8113 | R12: 71.3289 | S12: 71.7341 | T12: 83.8736 | U12: 82.0104 | V12: 84.1227 | W12: 82.4498
A13: ='[1]FR - Smoothed DUTL Left'!A13 -> 95 | B13: ='[1]FR - Smoothed DUTL Left'!B13 -> 92.544 | C13: ='[1]FR - Smoothed DUTL Right'!B13 -> 95.2884 | D13: ='[1]FR - Smoothed DUTL Mic1'!B13 -> 71.1482 | E13: ='[1]FR - Smoothed DUTL Mic2'!B13 -> 71.7736 | F13: ='[1]FR - Smoothed DUTL Mic3'!B13 -> 71.4042 | G13: ='[1]FR - Smoothed DUTL Mic4'!B13 -> 71.7571 | H13: ='[1]FR - Smoothed Self DUTL Mic1'!B13 -> 83.778 | I13: ='[1]FR - Smoothed Self DUTL Mic2'!B13 -> 81.8021 | J13: ='[1]FR - Smoothed Self DUTL Mic3'!B13 -> 84.2621 | K13: ='[1]FR - Smoothed Self DUTL Mic4'!B13 -> 82.3296 | M13: 95 | N13: 92.3488 | O13: 95.1032 | P13: 71.1066 | Q13: 71.7779 | R13: 71.2257 | S13: 71.6932 | T13: 83.7647 | U13: 81.8944 | V13: 84.0274 | W13: 82.3329
A14: ='[1]FR - Smoothed DUTL Left'!A14 -> 100 | B14: ='[1]FR - Smoothed DUTL Left'!B14 -> 92.2777 | C14: ='[1]FR - Smoothed DUTL Right'!B14 -> 95.0825 | D14: ='[1]FR - Smoothed DUTL Mic1'!B14 -> 70.9942 | E14: ='[1]FR - Smoothed DUTL Mic2'!B14 -> 71.6561 | F14: ='[1]FR - Smoothed DUTL Mic3'!B14 -> 71.289 | G14: ='[1]FR - Smoothed DUTL Mic4'!B14 -> 71.6818 | H14: ='[1]FR - Smoothed Self DUTL Mic1'!B14 -> 83.5968 | I14: ='[1]FR - Smoothed Self DUTL Mic2'!B14 -> 81.517 | J14: ='[1]FR - Smoothed Self DUTL Mic3'!B14 -> 84.0913 | K14: ='[1]FR - Smoothed Self DUTL Mic4'!B14 -> 82.0636 | M14: 100 | N14: 92.0076 | O14: 94.8376 | P14: 70.9331 | Q14: 71.6378 | R14: 71.0907 | S14: 71.5921 | T14: 83.4957 | U14: 81.5337 | V14: 83.7714 | W14: 81.9857
A15: ='[1]FR - Smoothed DUTL Left'!A15 -> 106 | B15: ='[1]FR - Smoothed DUTL Left'!B15 -> 92.0549 | C15: ='[1]FR - Smoothed DUTL Right'!B15 -> 94.923 | D15: ='[1]FR - Smoothed DUTL Mic1'!B15 -> 70.9646 | E15: ='[1]FR - Smoothed DUTL Mic2'!B15 -> 71.6146 | F15: ='[1]FR - Smoothed DUTL Mic3'!B15 -> 71.3796 | G15: ='[1]FR - Smoothed DUTL Mic4'!B15 -> 71.7669 | H15: ='[1]FR - Smoothed Self DUTL Mic1'!B15 -> 83.4545 | I15: ='[1]FR - Smoothed Self DUTL Mic2'!B15 -> 81.2374 | J15: ='[1]FR - Smoothed Self DUTL Mic3'!B15 -> 83.9538 | K15: ='[1]FR - Smoothed Self DUTL Mic4'!B15 -> 81.8008 | M15: 106 | N15: 91.6741 | O15: 94.5758 | P15: 70.8874 | Q15: 71.5804 | R15: 71.1682 | S15: 71.6591 | T15: 83.2116 | U15: 81.0844 | V15: 83.4882 | W15: 81.5441
A16: ='[1]FR - Smoothed DUTL Left'!A16 -> 112 | B16: ='[1]FR - Smoothed DUTL Left'!B16 -> 91.8461 | C16: ='[1]FR - Smoothed DUTL Right'!B16 -> 94.7678 | D16: ='[1]FR - Smoothed DUTL Mic1'!B16 -> 71.056 | E16: ='[1]FR - Smoothed DUTL Mic2'!B16 -> 71.6621 | F16: ='[1]FR - Smoothed DUTL Mic3'!B16 -> 71.6142 | G16: ='[1]FR - Smoothed DUTL Mic4'!B16 -> 71.9704 | H16: ='[1]FR - Smoothed Self DUTL Mic1'!B16 -> 83.4214 | I16: ='[1]FR - Smoothed Self DUTL Mic2'!B16 -> 81.1397 | J16: ='[1]FR - Smoothed Self DUTL Mic3'!B16 -> 83.9139 | K16: ='[1]FR - Smoothed Self DUTL Mic4'!B16 -> 81.6974 | M16: 112 | N16: 91.3702 | O16: 94.3213 | P16: 70.9932 | Q16: 71.6465 | R16: 71.4222 | S16: 71.8804 | T16: 83.0535 | U16: 80.7946 | V16: 83.3159 | W16: 81.2356
A17: ='[1]FR - Smoothed DUTL Left'!A17 -> 118 | B17: ='[1]FR - Smoothed DUTL Left'!B17 -> 91.5088 | C17: ='[1]FR - Smoothed DUTL Right'!B17 -> 94.5161 | D17: ='[1]FR - Smoothed DUTL Mic1'!B17 -> 71.0009 | E17: ='[1]FR - Smoothed DUTL Mic2'!B17 -> 71.5723 | F17: ='[1]FR - Smoothed DUTL Mic3'!B17 -> 71.7079 | G17: ='[1]FR - Smoothed DUTL Mic4'!B17 -> 72.0411 | H17: ='[1]FR - Smoothed Self DUTL Mic1'!B17 -> 83.3729 | I17: ='[1]FR - Smoothed Self DUTL Mic2'!B17 -> 81.1298 | J17: ='[1]FR - Smoothed Self DUTL Mic3'!B17 -> 83.8538 | K17: ='[1]FR - Smoothed Self DUTL Mic4'!B17 -> 81.6655 | M17: 118 | N17: 91.0049 | O17: 94.0244 | P17: 70.9794 | Q17: 71.6033 | R17: 71.559 | S17: 71.9953 | T17: 82.972 | U17: 80.6993 | V17: 83.2124 | W17: 81.0961
A18: ='[1]FR - Smoothed DUTL Left'!A18 -> 125 | B18: ='[1]FR - Smoothed DUTL Left'!B18 -> 90.9444 | C18: ='[1]FR - Smoothed DUTL Right'!B18 -> 94.1027 | D18: ='[1]FR - Smoothed DUTL Mic1'!B18 -> 70.6425 | E18: ='[1]FR - Smoothed DUTL Mic2'!B18 -> 71.1995 | F18: ='[1]FR - Smoothed DUTL Mic3'!B18 -> 71.5306 | G18: ='[1]FR - Smoothed DUTL Mic4'!B18 -> 71.8516 | H18: ='[1]FR - Smoothed Self DUTL Mic1'!B18 -> 83.1412 | I18: ='[1]FR - Smoothed Self DUTL Mic2'!B18 -> 80.9387 | J18: ='[1]FR - Smoothed Self DUTL Mic3'!B18 -> 83.6182 | K18: ='[1]FR - Smoothed Self DUTL Mic4'!B18 -> 81.4644 | M18: 125 | N18: 90.5104 | O18: 93.6454 | P18: 70.6504 | Q18: 71.2667 | R18: 71.4092 | S18: 71.835 | T18: 82.7955 | U18: 80.5591 | V18: 83.0138 | W18: 80.9069
A19: ='[1]FR - Smoothed DUTL Left'!A19 -> 132 | B19: ='[1]FR - Smoothed DUTL Left'!B19 -> 90.0243 | C19: ='[1]FR - Smoothed DUTL Right'!B19 -> 93.4621 | D19: ='[1]FR - Smoothed DUTL Mic1'!B19 -> 70.1126 | E19: ='[1]FR - Smoothed DUTL Mic2'!B19 -> 70.6523 | F19: ='[1]FR - Smoothed DUTL Mic3'!B19 -> 71.2061 | G19: ='[1]FR - Smoothed DUTL Mic4'!B19 -> 71.506 | H19: ='[1]FR - Smoothed Self DUTL Mic1'!B19 -> 82.7166 | I19: ='[1]FR - Smoothed Self DUTL Mic2'!B19 -> 80.4485 | J19: ='[1]FR - Smoothed Self DUTL Mic3'!B19 -> 83.2025 | K19: ='[1]FR - Smoothed Self DUTL Mic4'!B19 -> 80.9942 | M19: 132 | N19: 89.7304 | O19: 93.0848 | P19: 70.1067 | Q19: 70.7113 | R19: 71.0708 | S19: 71.4742 | T19: 82.4731 | U19: 80.2074 | V19: 82.6705 | W19: 80.5168
A20: ='[1]FR - Smoothed DUTL Left'!A20 -> 140 | B20: ='[1]FR - Smoothed DUTL Left'!B20 -> 88.8309 | C20: ='[1]FR - Smoothed DUTL Right'!B20 -> 92.6364 | D20: ='[1]FR - Smoothed DUTL Mic1'!B20 -> 69.6819 | E20: ='[1]FR - Smoothed DUTL Mic2'!B20 -> 70.1832 | F20: ='[1]FR - Smoothed DUTL Mic3'!B20 -> 70.9283 | G20: ='[1]FR - Smoothed DUTL Mic4'!B20 -> 71.1916 | H20: ='[1]FR - Smoothed Self DUTL Mic1'!B20 -> 82.2615 | I20: ='[1]FR - Smoothed Self DUTL Mic2'!B20 -> 79.8285 | J20: ='[1]FR - Smoothed Self DUTL Mic3'!B20 -> 82.7396 | K20: ='[1]FR - Smoothed Self DUTL Mic4'!B20 -> 80.3892 | M20: 140 | N20: 88.6399 | O20: 92.3078 | P20: 69.6265 | Q20: 70.1925 | R20: 70.752 | S20: 71.113 | T20: 82.1156 | U20: 79.7314 | V20: 82.2908 | W20: 80.0112
A21: ='[1]FR - Smoothed DUTL Left'!A21 -> 150 | B21: ='[1]FR - Smoothed DUTL Left'!B21 -> 87.8021 | C21: ='[1]FR - Smoothed DUTL Right'!B21 -> 91.8054 | D21: ='[1]FR - Smoothed DUTL Mic1'!B21 -> 69.3998 | E21: ='[1]FR - Smoothed DUTL Mic2'!B21 -> 69.8591 | F21: ='[1]FR - Smoothed DUTL Mic3'!B21 -> 70.6992 | G21: ='[1]FR - Smoothed DUTL Mic4'!B21 -> 70.9245 | H21: ='[1]FR - Smoothed Self DUTL Mic1'!B21 -> 81.9121 | I21: ='[1]FR - Smoothed Self DUTL Mic2'!B21 -> 79.3452 | J21: ='[1]FR - Smoothed Self DUTL Mic3'!B21 -> 82.3117 | K21: ='[1]FR - Smoothed Self DUTL Mic4'!B21 -> 79.8246 | M21: 150 | N21: 87.5698 | O21: 91.4486 | P21: 69.3059 | Q21: 69.8249 | R21: 70.4939 | S21: 70.81 | T21: 81.8045 | U21: 79.2922 | V21: 81.945 | W21: 79.5276
A22: ='[1]FR - Smoothed DUTL Left'!A22 -> 160 | B22: ='[1]FR - Smoothed DUTL Left'!B22 -> 87.3212 | C22: ='[1]FR - Smoothed DUTL Right'!B22 -> 91.1472 | D22: ='[1]FR - Smoothed DUTL Mic1'!B22 -> 69.1183 | E22: ='[1]FR - Smoothed DUTL Mic2'!B22 -> 69.5434 | F22: ='[1]FR - Smoothed DUTL Mic3'!B22 -> 70.4064 | G22: ='[1]FR - Smoothed DUTL Mic4'!B22 -> 70.598 | H22: ='[1]FR - Smoothed Self DUTL Mic1'!B22 -> 81.6917 | I22: ='[1]FR - Smoothed Self DUTL Mic2'!B22 -> 79.0882 | J22: ='[1]FR - Smoothed Self DUTL Mic3'!B22 -> 81.9299 | K22: ='[1]FR - Smoothed Self DUTL Mic4'!B22 -> 79.3552 | M22: 160 | N22: 86.9212 | O22: 90.7002 | P22: 69.0215 | Q22: 69.5063 | R22: 70.2005 | S22: 70.4806 | T22: 81.5341 | U22: 78.9392 | V22: 81.6258 | W22: 79.0988
A23: ='[1]FR - Smoothed DUTL Left'!A23 -> 170 | B23: ='[1]FR - Smoothed DUTL Left'!B23 -> 87.3556 | C23: ='[1]FR - Smoothed DUTL Right'!B23 -> 90.6717 | D23: ='[1]FR - Smoothed DUTL Mic1'!B23 -> 68.7655 | E23: ='[1]FR - Smoothed DUTL Mic2'!B23 -> 69.1456 | F23: ='[1]FR - Smoothed DUTL Mic3'!B23 -> 70.0189 | G23: ='[1]FR - Smoothed DUTL Mic4'!B23 -> 70.1613 | H23: ='[1]FR - Smoothed Self DUTL Mic1'!B23 -> 81.6381 | I23: ='[1]FR - Smoothed Self DUTL Mic2'!B23 -> 79.0642 | J23: ='[1]FR - Smoothed Self DUTL Mic3'!B23 -> 81.6909 | K23: ='[1]FR - Smoothed Self DUTL Mic4'!B23 -> 79.064 | M23: 170 | N23: 86.7807 | O23: 90.122 | P23: 68.6823 | Q23: 69.124 | R23: 69.822 | S23: 70.0548 | T23: 81.3758 | U23: 78.7551 | V23: 81.4113 | W23: 78.8126
A24: ='[1]FR - Smoothed DUTL Left'!A24 -> 180 | B24: ='[1]FR - Smoothed DUTL Left'!B24 -> 87.6634 | C24: ='[1]FR - Smoothed DUTL Right'!B24 -> 90.3487 | D24: ='[1]FR - Smoothed DUTL Mic1'!B24 -> 68.3919 | E24: ='[1]FR - Smoothed DUTL Mic2'!B24 -> 68.6843 | F24: ='[1]FR - Smoothed DUTL Mic3'!B24 -> 69.5895 | G24: ='[1]FR - Smoothed DUTL Mic4'!B24 -> 69.6476 | H24: ='[1]FR - Smoothed Self DUTL Mic1'!B24 -> 81.7714 | I24: ='[1]FR - Smoothed Self DUTL Mic2'!B24 -> 79.2854 | J24: ='[1]FR - Smoothed Self DUTL Mic3'!B24 -> 81.6979 | K24: ='[1]FR - Smoothed Self DUTL Mic4'!B24 -> 79.0904 | M24: 180 | N24: 87.0334 | O24: 89.7485 | P24: 68.3161 | Q24: 68.6669 | R24: 69.3957 | S24: 69.5432 | T24: 81.4257 | U24: 78.8703 | V24: 81.4085 | W24: 78.8255
A25: ='[1]FR - Smoothed DUTL Left'!A25 -> 190 | B25: ='[1]FR - Smoothed DUTL Left'!B25 -> 87.9885 | C25: ='[1]FR - Smoothed DUTL Right'!B25 -> 90.1096 | D25: ='[1]FR - Smoothed DUTL Mic1'!B25 -> 68.0988 | E25: ='[1]FR - Smoothed DUTL Mic2'!B25 -> 68.2915 | F25: ='[1]FR - Smoothed DUTL Mic3'!B25 -> 69.224 | G25: ='[1]FR - Smoothed DUTL Mic4'!B25 -> 69.1847 | H25: ='[1]FR - Smoothed Self DUTL Mic1'!B25 -> 81.964 | I25: ='[1]FR - Smoothed Self DUTL Mic2'!B25 -> 79.6062 | J25: ='[1]FR - Smoothed Self DUTL Mic3'!B25 -> 81.8498 | K25: ='[1]FR - Smoothed Self DUTL Mic4'!B25 -> 79.3418 | M25: 190 | N25: 87.3882 | O25: 89.5156 | P25: 68.0251 | Q25: 68.2696 | R25: 69.0317 | S25: 69.0771 | T25: 81.5834 | U25: 79.1622 | V25: 81.5251 | W25: 79.0445
A26: ='[1]FR - Smoothed DUTL Left'!A26 -> 200 | B26: ='[1]FR - Smoothed DUTL Left'!B26 -> 88.2789 | C26: ='[1]FR - Smoothed DUTL Right'!B26 -> 89.8181 | D26: ='[1]FR - Smoothed DUTL Mic1'!B26 -> 68.0861 | E26: ='[1]FR - Smoothed DUTL Mic2'!B26 -> 68.2035 | F26: ='[1]FR - Smoothed DUTL Mic3'!B26 -> 69.1287 | G26: ='[1]FR - Smoothed DUTL Mic4'!B26 -> 69.0126 | H26: ='[1]FR - Smoothed Self DUTL Mic1'!B26 -> 82.0748 | I26: ='[1]FR - Smoothed Self DUTL Mic2'!B26 -> 79.8409 | J26: ='[1]FR - Smoothed Self DUTL Mic3'!B26 -> 81.9738 | K26: ='[1]FR - Smoothed Self DUTL Mic4'!B26 -> 79.5898 | M26: 200 | N26: 87.7098 | O26: 89.2448 | P26: 68.012 | Q26: 68.1831 | R26: 68.9372 | S26: 68.9041 | T26: 81.6731 | U26: 79.3999 | V26: 81.5863 | W26: 79.2362
A27: ='[1]FR - Smoothed DUTL Left'!A27 -> 212 | B27: ='[1]FR - Smoothed DUTL Left'!B27 -> 88.6621 | C27: ='[1]FR - Smoothed DUTL Right'!B27 -> 89.5016 | D27: ='[1]FR - Smoothed DUTL Mic1'!B27 -> 68.4405 | E27: ='[1]FR - Smoothed DUTL Mic2'!B27 -> 68.4981 | F27: ='[1]FR - Smoothed DUTL Mic3'!B27 -> 69.4174 | G27: ='[1]FR - Smoothed DUTL Mic4'!B27 -> 69.244 | H27: ='[1]FR - Smoothed Self DUTL Mic1'!B27 -> 82.143 | I27: ='[1]FR - Smoothed Self DUTL Mic2'!B27 -> 80.025 | J27: ='[1]FR - Smoothed Self DUTL Mic3'!B27 -> 82.0732 | K27: ='[1]FR - Smoothed Self DUTL Mic4'!B27 -> 79.8116 | M27: 212 | N27: 88.1129 | O27: 88.9456 | P27: 68.3647 | Q27: 68.4848 | R27: 69.2259 | S27: 69.1373 | T27: 81.7121 | U27: 79.5957 | V27: 81.6056 | W27: 79.3987
A28: ='[1]FR - Smoothed DUTL Left'!A28 -> 224 | B28: ='[1]FR - Smoothed DUTL Left'!B28 -> 89.1996 | C28: ='[1]FR - Smoothed DUTL Right'!B28 -> 89.3 | D28: ='[1]FR - Smoothed DUTL Mic1'!B28 -> 69.0845 | E28: ='[1]FR - Smoothed DUTL Mic2'!B28 -> 69.1081 | F28: ='[1]FR - Smoothed DUTL Mic3'!B28 -> 70.0118 | G28: ='[1]FR - Smoothed DUTL Mic4'!B28 -> 69.8042 | H28: ='[1]FR - Smoothed Self DUTL Mic1'!B28 -> 82.3149 | I28: ='[1]FR - Smoothed Self DUTL Mic2'!B28 -> 80.3544 | J28: ='[1]FR - Smoothed Self DUTL Mic3'!B28 -> 82.2614 | K28: ='[1]FR - Smoothed Self DUTL Mic4'!B28 -> 80.1584 | M28: 224 | N28: 88.6563 | O28: 88.7494 | P28: 69.0075 | Q28: 69.0972 | R28: 69.8206 | S28: 69.698 | T28: 81.8537 | U28: 79.9407 | V28: 81.726 | W28: 79.7088
A29: ='[1]FR - Smoothed DUTL Left'!A29 -> 236 | B29: ='[1]FR - Smoothed DUTL Left'!B29 -> 89.8554 | C29: ='[1]FR - Smoothed DUTL Right'!B29 -> 89.3127 | D29: ='[1]FR - Smoothed DUTL Mic1'!B29 -> 69.8962 | E29: ='[1]FR - Smoothed DUTL Mic2'!B29 -> 69.9275 | F29: ='[1]FR - Smoothed DUTL Mic3'!B29 -> 70.7519 | G29: ='[1]FR - Smoothed DUTL Mic4'!B29 -> 70.5503 | H29: ='[1]FR - Smoothed Self DUTL Mic1'!B29 -> 82.5984 | I29: ='[1]FR - Smoothed Self DUTL Mic2'!B29 -> 80.8331 | J29: ='[1]FR - Smoothed Self DUTL Mic3'!B29 -> 82.535 | K29: ='[1]FR - Smoothed Self DUTL Mic4'!B29 -> 80.6238 | M29: 236 | N29: 89.3103 | O29: 88.7644 | P29: 69.8177 | Q29: 69.9144 | R29: 70.5614 | S29: 70.4415 | T29: 82.1173 | U29: 80.4297 | V29: 81.9606 | W29: 80.159
A30: ='[1]FR - Smoothed DUTL Left'!A30 -> 250 | B30: ='[1]FR - Smoothed DUTL Left'!B30 -> 90.5066 | C30: ='[1]FR - Smoothed DUTL Right'!B30 -> 89.4555 | D30: ='[1]FR - Smoothed DUTL Mic1'!B30 -> 70.7157 | E30: ='[1]FR - Smoothed DUTL Mic2'!B30 -> 70.7882 | F30: ='[1]FR - Smoothed DUTL Mic3'!B30 -> 71.4764 | G30: ='[1]FR - Smoothed DUTL Mic4'!B30 -> 71.3146 | H30: ='[1]FR - Smoothed Self DUTL Mic1'!B30 -> 82.8353 | I30: ='[1]FR - Smoothed Self DUTL Mic2'!B30 -> 81.2253 | J30: ='[1]FR - Smoothed Self DUTL Mic3'!B30 -> 82.7469 | K30: ='[1]FR - Smoothed Self DUTL Mic4'!B30 -> 80.9894 | M30: 250 | N30: 89.9557 | O30: 88.9091 | P30: 70.6368 | Q30: 70.7755 | R30: 71.2868 | S30: 71.205 | T30: 82.3374 | U30: 80.8153 | V30: 82.1529 | W30: 80.5151
A31: ='[1]FR - Smoothed DUTL Left'!A31 -> 265 | B31: ='[1]FR - Smoothed DUTL Left'!B31 -> 91.0522 | C31: ='[1]FR - Smoothed DUTL Right'!B31 -> 89.5888 | D31: ='[1]FR - Smoothed DUTL Mic1'!B31 -> 71.4576 | E31: ='[1]FR - Smoothed DUTL Mic2'!B31 -> 71.5775 | F31: ='[1]FR - Smoothed DUTL Mic3'!B31 -> 72.113 | G31: ='[1]FR - Smoothed DUTL Mic4'!B31 -> 72.0017 | H31: ='[1]FR - Smoothed Self DUTL Mic1'!B31 -> 82.9208 | I31: ='[1]FR - Smoothed Self DUTL Mic2'!B31 -> 81.3857 | J31: ='[1]FR - Smoothed Self DUTL Mic3'!B31 -> 82.8043 | K31: ='[1]FR - Smoothed Self DUTL Mic4'!B31 -> 81.1209 | M31: 265 | N31: 90.4944 | O31: 89.0402 | P31: 71.3777 | Q31: 71.5663 | R31: 71.9239 | S31: 71.8926 | T31: 82.4038 | U31: 80.9564 | V31: 82.1983 | W31: 80.6379
A32: ='[1]FR - Smoothed DUTL Left'!A32 -> 280 | B32: ='[1]FR - Smoothed DUTL Left'!B32 -> 91.4762 | C32: ='[1]FR - Smoothed DUTL Right'!B32 -> 89.6633 | D32: ='[1]FR - Smoothed DUTL Mic1'!B32 -> 72.0799 | E32: ='[1]FR - Smoothed DUTL Mic2'!B32 -> 72.2338 | F32: ='[1]FR - Smoothed DUTL Mic3'!B32 -> 72.638 | G32: ='[1]FR - Smoothed DUTL Mic4'!B32 -> 72.5677 | H32: ='[1]FR - Smoothed Self DUTL Mic1'!B32 -> 82.8912 | I32: ='[1]FR - Smoothed Self DUTL Mic2'!B32 -> 81.3682 | J32: ='[1]FR - Smoothed Self DUTL Mic3'!B32 -> 82.7505 | K32: ='[1]FR - Smoothed Self DUTL Mic4'!B32 -> 81.0763 | M32: 280 | N32: 90.9156 | O32: 89.1083 | P32: 72.001 | Q32: 72.2251 | R32: 72.4508 | S32: 72.4609 | T32: 82.3574 | U32: 80.9198 | V32: 82.1336 | W32: 80.584
A33: ='[1]FR - Smoothed DUTL Left'!A33 -> 300 | B33: ='[1]FR - Smoothed DUTL Left'!B33 -> 91.7833 | C33: ='[1]FR - Smoothed DUTL Right'!B33 -> 89.678 | D33: ='[1]FR - Smoothed DUTL Mic1'!B33 -> 72.5834 | E33: ='[1]FR - Smoothed DUTL Mic2'!B33 -> 72.7568 | F33: ='[1]FR - Smoothed DUTL Mic3'!B33 -> 73.0618 | G33: ='[1]FR - Smoothed DUTL Mic4'!B33 -> 73.0184 | H33: ='[1]FR - Smoothed Self DUTL Mic1'!B33 -> 82.8332 | I33: ='[1]FR - Smoothed Self DUTL Mic2'!B33 -> 81.2973 | J33: ='[1]FR - Smoothed Self DUTL Mic3'!B33 -> 82.6783 | K33: ='[1]FR - Smoothed Self DUTL Mic4'!B33 -> 80.9888 | M33: 300 | N33: 91.2223 | O33: 89.1153 | P33: 72.5084 | Q33: 72.7522 | R33: 72.8778 | S33: 72.9149 | T33: 82.2865 | U33: 80.8359 | V33: 82.0419 | W33: 80.4751
A34: ='[1]FR - Smoothed DUTL Left'!A34 -> 315 | B34: ='[1]FR - Smoothed DUTL Left'!B34 -> 92.0014 | C34: ='[1]FR - Smoothed DUTL Right'!B34 -> 89.6955 | D34: ='[1]FR - Smoothed DUTL Mic1'!B34 -> 72.9972 | E34: ='[1]FR - Smoothed DUTL Mic2'!B34 -> 73.1757 | F34: ='[1]FR - Smoothed DUTL Mic3'!B34 -> 73.4082 | G34: ='[1]FR - Smoothed DUTL Mic4'!B34 -> 73.3751 | H34: ='[1]FR - Smoothed Self DUTL Mic1'!B34 -> 82.7895 | I34: ='[1]FR - Smoothed Self DUTL Mic2'!B34 -> 81.2431 | J34: ='[1]FR - Smoothed Self DUTL Mic3'!B34 -> 82.6291 | K34: ='[1]FR - Smoothed Self DUTL Mic4'!B34 -> 80.9271 | M34: 315 | N34: 91.4425 | O34: 89.1232 | P34: 72.9292 | Q34: 73.1773 | R34: 73.2291 | S34: 73.277 | T34: 82.2302 | U34: 80.768 | V34: 81.9614 | W34: 80.3712
A35: ='[1]FR - Smoothed DUTL Left'!A35 -> 335 | B35: ='[1]FR - Smoothed DUTL Left'!B35 -> 92.219 | C35: ='[1]FR - Smoothed DUTL Right'!B35 -> 89.8486 | D35: ='[1]FR - Smoothed DUTL Mic1'!B35 -> 73.318 | E35: ='[1]FR - Smoothed DUTL Mic2'!B35 -> 73.4888 | F35: ='[1]FR - Smoothed DUTL Mic3'!B35 -> 73.6638 | G35: ='[1]FR - Smoothed DUTL Mic4'!B35 -> 73.625 | H35: ='[1]FR - Smoothed Self DUTL Mic1'!B35 -> 82.7474 | I35: ='[1]FR - Smoothed Self DUTL Mic2'!B35 -> 81.193 | J35: ='[1]FR - Smoothed Self DUTL Mic3'!B35 -> 82.5804 | K35: ='[1]FR - Smoothed Self DUTL Mic4'!B35 -> 80.8637 | M35: 335 | N35: 91.6616 | O35: 89.2662 | P35: 73.262 | Q35: 73.5019 | R35: 73.4941 | S35: 73.5369 | T35: 82.1778 | U35: 80.6964 | V35: 81.8839 | W35: 80.2573
A36: ='[1]FR - Smoothed DUTL Left'!A36 -> 355 | B36: ='[1]FR - Smoothed DUTL Left'!B36 -> 92.5358 | C36: ='[1]FR - Smoothed DUTL Right'!B36 -> 90.2829 | D36: ='[1]FR - Smoothed DUTL Mic1'!B36 -> 73.4962 | E36: ='[1]FR - Smoothed DUTL Mic2'!B36 -> 73.6511 | F36: ='[1]FR - Smoothed DUTL Mic3'!B36 -> 73.7649 | G36: ='[1]FR - Smoothed DUTL Mic4'!B36 -> 73.7119 | H36: ='[1]FR - Smoothed Self DUTL Mic1'!B36 -> 82.7082 | I36: ='[1]FR - Smoothed Self DUTL Mic2'!B36 -> 81.1318 | J36: ='[1]FR - Smoothed Self DUTL Mic3'!B36 -> 82.5279 | K36: ='[1]FR - Smoothed Self DUTL Mic4'!B36 -> 80.7746 | M36: 355 | N36: 91.9764 | O36: 89.6929 | P36: 73.4517 | Q36: 73.6772 | R36: 73.6061 | S36: 73.6359 | T36: 82.1538 | U36: 80.634 | V36: 81.8387 | W36: 80.1523
A37: ='[1]FR - Smoothed DUTL Left'!A37 -> 375 | B37: ='[1]FR - Smoothed DUTL Left'!B37 -> 92.9836 | C37: ='[1]FR - Smoothed DUTL Right'!B37 -> 90.934 | D37: ='[1]FR - Smoothed DUTL Mic1'!B37 -> 73.4063 | E37: ='[1]FR - Smoothed DUTL Mic2'!B37 -> 73.555 | F37: ='[1]FR - Smoothed DUTL Mic3'!B37 -> 73.5813 | G37: ='[1]FR - Smoothed DUTL Mic4'!B37 -> 73.5232 | H37: ='[1]FR - Smoothed Self DUTL Mic1'!B37 -> 82.7383 | I37: ='[1]FR - Smoothed Self DUTL Mic2'!B37 -> 81.1298 | J37: ='[1]FR - Smoothed Self DUTL Mic3'!B37 -> 82.5525 | K37: ='[1]FR - Smoothed Self DUTL Mic4'!B37 -> 80.7499 | M37: 375 | N37: 92.4247 | O37: 90.3439 | P37: 73.3639 | Q37: 73.5859 | R37: 73.4247 | S37: 73.4503 | T37: 82.2378 | U37: 80.6807 | V37: 81.9145 | W37: 80.1745
A38: ='[1]FR - Smoothed DUTL Left'!A38 -> 400 | B38: ='[1]FR - Smoothed DUTL Left'!B38 -> 93.424 | C38: ='[1]FR - Smoothed DUTL Right'!B38 -> 91.5796 | D38: ='[1]FR - Smoothed DUTL Mic1'!B38 -> 72.8896 | E38: ='[1]FR - Smoothed DUTL Mic2'!B38 -> 73.0701 | F38: ='[1]FR - Smoothed DUTL Mic3'!B38 -> 72.953 | G38: ='[1]FR - Smoothed DUTL Mic4'!B38 -> 72.9244 | H38: ='[1]FR - Smoothed Self DUTL Mic1'!B38 -> 82.8884 | I38: ='[1]FR - Smoothed Self DUTL Mic2'!B38 -> 81.2834 | J38: ='[1]FR - Smoothed Self DUTL Mic3'!B38 -> 82.7335 | K38: ='[1]FR - Smoothed Self DUTL Mic4'!B38 -> 80.9314 | M38: 400 | N38: 92.8675 | O38: 90.99 | P38: 72.8372 | Q38: 73.0932 | R38: 72.7857 | S38: 72.8415 | T38: 82.4375 | U38: 80.8966 | V38: 82.1358 | W38: 80.41
A39: ='[1]FR - Smoothed DUTL Left'!A39 -> 425 | B39: ='[1]FR - Smoothed DUTL Left'!B39 -> 93.689 | C39: ='[1]FR - Smoothed DUTL Right'!B39 -> 92.0617 | D39: ='[1]FR - Smoothed DUTL Mic1'!B39 -> 71.8188 | E39: ='[1]FR - Smoothed DUTL Mic2'!B39 -> 72.0983 | F39: ='[1]FR - Smoothed DUTL Mic3'!B39 -> 71.7409 | G39: ='[1]FR - Smoothed DUTL Mic4'!B39 -> 71.8066 | H39: ='[1]FR - Smoothed Self DUTL Mic1'!B39 -> 83.0866 | I39: ='[1]FR - Smoothed Self DUTL Mic2'!B39 -> 81.5632 | J39: ='[1]FR - Smoothed Self DUTL Mic3'!B39 -> 83.0057 | K39: ='[1]FR - Smoothed Self DUTL Mic4'!B39 -> 81.3005 | M39: 425 | N39: 93.1285 | O39: 91.4647 | P39: 71.7508 | Q39: 72.1078 | R39: 71.5559 | S39: 71.7076 | T39: 82.6115 | U39: 81.1785 | V39: 82.3703 | W39: 80.7611
A40: ='[1]FR - Smoothed DUTL Left'!A40 -> 450 | B40: ='[1]FR - Smoothed DUTL Left'!B40 -> 93.6937 | C40: ='[1]FR - Smoothed DUTL Right'!B40 -> 92.2856 | D40: ='[1]FR - Smoothed DUTL Mic1'!B40 -> 70.1035 | E40: ='[1]FR - Smoothed DUTL Mic2'!B40 -> 70.5785 | F40: ='[1]FR - Smoothed DUTL Mic3'!B40 -> 69.8567 | G40: ='[1]FR - Smoothed DUTL Mic4'!B40 -> 70.1236 | H40: ='[1]FR - Smoothed Self DUTL Mic1'!B40 -> 83.1652 | I40: ='[1]FR - Smoothed Self DUTL Mic2'!B40 -> 81.8083 | J40: ='[1]FR - Smoothed Self DUTL Mic3'!B40 -> 83.1746 | K40: ='[1]FR - Smoothed Self DUTL Mic4'!B40 -> 81.6504 | M40: 450 | N40: 93.1252 | O40: 91.6861 | P40: 70.0273 | Q40: 70.5829 | R40: 69.6617 | S40: 70.017 | T40: 82.5661 | U40: 81.3168 | V40: 82.4094 | W40: 80.9888
A41: ='[1]FR - Smoothed DUTL Left'!A41 -> 475 | B41: ='[1]FR - Smoothed DUTL Left'!B41 -> 93.3853 | C41: ='[1]FR - Smoothed DUTL Right'!B41 -> 92.2751 | D41: ='[1]FR - Smoothed DUTL Mic1'!B41 -> 67.8956 | E41: ='[1]FR - Smoothed DUTL Mic2'!B41 -> 68.6626 | F41: ='[1]FR - Smoothed DUTL Mic3'!B41 -> 67.7042 | G41: ='[1]FR - Smoothed DUTL Mic4'!B41 -> 68.292 | H41: ='[1]FR - Smoothed Self DUTL Mic1'!B41 -> 82.9327 | I41: ='[1]FR - Smoothed Self DUTL Mic2'!B41 -> 81.8169 | J41: ='[1]FR - Smoothed Self DUTL Mic3'!B41 -> 83.0171 | K41: ='[1]FR - Smoothed Self DUTL Mic4'!B41 -> 81.7343 | M41: 475 | N41: 92.8184 | O41: 91.6752 | P41: 67.8214 | Q41: 68.672 | R41: 67.5126 | S41: 68.1889 | T41: 82.1907 | U41: 81.1672 | V41: 82.1175 | W41: 80.9121
A42: ='[1]FR - Smoothed DUTL Left'!A42 -> 500 | B42: ='[1]FR - Smoothed DUTL Left'!B42 -> 92.9463 | C42: ='[1]FR - Smoothed DUTL Right'!B42 -> 92.218 | D42: ='[1]FR - Smoothed DUTL Mic1'!B42 -> 66.8396 | E42: ='[1]FR - Smoothed DUTL Mic2'!B42 -> 67.6685 | F42: ='[1]FR - Smoothed DUTL Mic3'!B42 -> 67.7169 | G42: ='[1]FR - Smoothed DUTL Mic4'!B42 -> 68.3214 | H42: ='[1]FR - Smoothed Self DUTL Mic1'!B42 -> 82.2177 | I42: ='[1]FR - Smoothed Self DUTL Mic2'!B42 -> 81.3967 | J42: ='[1]FR - Smoothed Self DUTL Mic3'!B42 -> 82.3593 | K42: ='[1]FR - Smoothed Self DUTL Mic4'!B42 -> 81.3516 | M42: 500 | N42: 92.362 | O42: 91.5966 | P42: 66.7438 | Q42: 67.6559 | R42: 67.5212 | S42: 68.2034 | T42: 81.4491 | U42: 80.6809 | V42: 81.4527 | W42: 80.4754
A43: ='[1]FR - Smoothed DUTL Left'!A43 -> 530 | B43: ='[1]FR - Smoothed DUTL Left'!B43 -> 92.6464 | C43: ='[1]FR - Smoothed DUTL Right'!B43 -> 92.2569 | D43: ='[1]FR - Smoothed DUTL Mic1'!B43 -> 69.5777 | E43: ='[1]FR - Smoothed DUTL Mic2'!B43 -> 69.9482 | F43: ='[1]FR - Smoothed DUTL Mic3'!B43 -> 70.9438 | G43: ='[1]FR - Smoothed DUTL Mic4'!B43 -> 71.1693 | H43: ='[1]FR - Smoothed Self DUTL Mic1'!B43 -> 80.9408 | I43: ='[1]FR - Smoothed Self DUTL Mic2'!B43 -> 80.4136 | J43: ='[1]FR - Smoothed Self DUTL Mic3'!B43 -> 81.1643 | K43: ='[1]FR - Smoothed Self DUTL Mic4'!B43 -> 80.4065 | M43: 530 | N43: 92.0216 | O43: 91.6135 | P43: 69.4579 | Q43: 69.9011 | R43: 70.7467 | S43: 71.0406 | T43: 80.3118 | U43: 79.8162 | V43: 80.4272 | W43: 79.6763
